Workbook

Sheet Structure
B3: Sheetname | C3: Purpose
B4: =INDEX(sheetlist,ROW()-3) -> Structure | C4: Identify purpose of each worksheet
B5: =INDEX(sheetlist,ROW()-3) -> forRPM | C5: Input file for RPM
B6: SC Summary | C6: Summary
B7: M_Input | C7: Past values version of ProCost input deck
B8: M_Input (link) | C8: Linked version of ProCost input deck
B9: MMap | C9: ProCost input deck generation
B10: ETO Data | C10: Data on cost and size of solar installs
B11: Data (clean) | C11: Cleaned version of ETO data for analysis
B12: Pivot | C12: Live pivot table for ETO data
B13: Pasted Charts | C13: Pasted Pivot Table charts
B14: Cost Matrix | C14: Development of measure inputs for ProCost
B15: Cost Curve | C15: Development of future costs
B16: How Big | C16: Development of max technical potential
B17: How Fast | C17: Development of achievable technical potential
B18: Shape | C18: Development of shape of the savings
B19: InForecast | C19: Clips from supporting documentation that inform key inputs
B20: Support Docs
B21: Other Forecasts
B22: PNW Solar Zones | C22: Log file of analysis updates

Sheet forRPM
B5: lookup | D5: Resource size for cost basis (MW) | E5: Planning Costs (Real Levelized $/kW-yr) | F5: Construction Costs (Real Levelized $/kW-yr) | G5: Total Construction Time (Months) | H5: Cancellation Costs, End of Planning ($/kW-year) | I5: Heat Rate (MMBtu/MWh) | J5: Plant Lifetime (Months) | K5: Fixed O&M ($/kW-yr) | L5: Variable O&M ($/MWh) | M5: Fuel Type (Select from List of Fuel Types) | N5: Earliest Availability Year | O5: Earliest Availability SubAnnualBlock (integer) | P5: CO2 Removal Efficiency (%) | Q5: Maximum Build Rate (Units/Decision Period) | R5: Total Potential Capacity (MW) | S5: Sub-Region (East or West) | T5: Must Run Resource? (Y/N) | U5: Renewable Resource? (Y/N) | V5: Include in Simulation? (0 or 1) | W5: Production Tax Credit Multiplier (fraction)
B6: Boise-RES-(Average)-(2014) | C6: Distrib Solar PV East Residential | D6: 1 | E6: =E18 -> 19.01423671 | F6: 380.2847343 | G6: 12 | H6: 0 | I6: 0 | J6: =J18*12 -> 300 | K6: =K18 -> 55.05510736 | L6: =L18 -> 0.9965333011 | M6: None | N6: 2020 | O6: 1 | P6: 0 | Q6: =Q18 -> 600 | R6: 6000 | S6: East | T6: Y | U6: Y | V6: 1 | W6: 0
B7: Boise-COM-(Average)-(2014) | C7: Distrib Solar PV East Commercial | D7: 1 | E7: 15.63392796 | F7: 312.6785593 | G7: 12 | H7: 0 | I7: 0 | J7: =J19*12 -> 300 | K7: =K19 -> 37.45030084 | L7: 0.9965333011 | M7: None | N7: 2020 | O7: 1 | P7: 0 | Q7: 360 | R7: 3600 | S7: East | T7: Y | U7: Y | V7: 1 | W7: 0
B8: Portland-RES-(Average)-(2014) | C8: Distrib Solar PV West Residential | D8: 1 | E8: 19.01423671 | F8: 380.2847343 | G8: 12 | H8: 0 | I8: 0 | J8: =J20*12 -> 300 | K8: 62.66007273 | L8: 0.9968813673 | M8: None | N8: 2020 | O8: 1 | P8: 0 | Q8: 1140 | R8: 11400 | S8: West | T8: Y | U8: Y | V8: 1 | W8: 0
B9: Portland-COM-(Average)-(2014) | C9: Distrib Solar PV West Commercial | D9: 1 | E9: 15.63392796 | F9: 312.6785593 | G9: 12 | H9: 0 | I9: 0 | J9: =J21*12 -> 300 | K9: 45.05526621 | L9: 0.9968813673 | M9: None | N9: 2020 | O9: 1 | P9: 0 | Q9: 710 | R9: 7100 | S9: West | T9: Y | U9: Y | V9: 1 | W9: 0
Q11: years to finish | R11: =R6/Q6*2 -> 20
Q12: years to finish | R12: =R7/Q7*2 -> 20
Q13: years to finish | R13: 20
K14: Levelized Transmission Deferral per kW (AC) | Q14: years to finish | R14: 20
K15: Levelized Distribution Deferral per kW (AC)
E16: 0.05 | K16: =MMap!$AD$5 -> Levelized Periodic Replacement Cost per kW (AC) (Inverter) | T16: 48 | U16: 49 | V16: 50 | W16: 51 | X16: 55 | Y16: 56 | Z16: 57 | AA16: 58
B17: lookup | E17: =CONCATENATE("Planning Cost at ",E16:E16," of Capital") -> Planning Cost at 0.05 of Capital | F17: =MMap!AA5 -> Levelized Capital per kW (AC) (Construction) | J17: Life | K17: =MMap!$AB$5 -> Levelized Non-E Value (Fixed OM Cleaning) | L17: =MMap!AC5 -> Levelized Annual O&M Cost per MWh (Var O&M in $/MWh) | Q17: Max Rate Units | R17: MW Potential | T17: Energy Q1 | U17: Energy Q2 | V17: Energy Q3 | W17: Energy Q4 | X17: Peak Q1 | Y17: Peak Q2 | Z17: Peak Q3 | AA17: Peak Q4 | AD17: Peak Winter | AE17: Peak Summer
B18: Boise-RES-(Average)-(2014) | E18: =$E$16*F18 -> 19.01423671 | F18: =VLOOKUP($B18,MMap,MATCH(F$17,MMapHeader,0),FALSE) -> 380.2847343 | J18: ='Cost Matrix'!$C$35 -> 25 | K18: =-VLOOKUP($B18,MMap,MATCH(K$17,MMapHeader,0),FALSE)+VLOOKUP($B18,MMap,MATCH(K$16,MMapHeader,0),FALSE)-VLOOKUP($B18,MMap,MATCH(K$15,MMapHeader,0),FALSE)-VLOOKUP($B18,MMap,MATCH(K$14,MMapHeader,0),FALSE) -> 55.05510736 | L18: =VLOOKUP($B18,MMap,MATCH(L$17,MMapHeader,0),FALSE) -> 0.9965333011 | Q18: =R18/20*$R$23 -> 600 | R18: ='SC Summary'!J15 -> 6000 | T18: =VLOOKUP($B18,$B$33:$CF$64,T$16,FALSE) -> 0.1308291177 | U18: =VLOOKUP($B18,$B$33:$CF$64,U$16,FALSE) -> 0.2292317075 | V18: 0.2351134875 | W18: 0.1192529386 | X18: =VLOOKUP($B18,$B$33:$CF$64,X$16,FALSE) -> 0.08292502857 | Y18: 0.2935541959 | Z18: =VLOOKUP($B18,$B$33:$CF$64,Z$16,FALSE) -> 0.3606287657 | AA18: 0.001925204565 | AD18: =R18*AA18 -> 11.55122739 | AE18: =R18*Z18 -> 2163.772594
B19: Boise-COM-(Average)-(2014) | E19: =$E$16*F19 -> 15.63392796 | F19: =VLOOKUP($B19,MMap,MATCH(F$17,MMapHeader,0),FALSE) -> 312.6785593 | J19: ='Cost Matrix'!$C$35 -> 25 | K19: =-VLOOKUP($B19,MMap,MATCH(K$17,MMapHeader,0),FALSE)+VLOOKUP($B19,MMap,MATCH(K$16,MMapHeader,0),FALSE)-VLOOKUP($B19,MMap,MATCH(K$15,MMapHeader,0),FALSE)-VLOOKUP($B19,MMap,MATCH(K$14,MMapHeader,0),FALSE) -> 37.45030084 | L19: =VLOOKUP($B19,MMap,MATCH(L$17,MMapHeader,0),FALSE) -> 0.9965333011 | Q19: =R19/20*$R$23 -> 360 | R19: ='SC Summary'!J16 -> 3600 | T19: =VLOOKUP($B19,$B$33:$CF$64,T$16,FALSE) -> 0.1308291177 | U19: 0.2292317075 | V19: 0.2351134875 | W19: 0.1192529386 | X19: 0.08292502857 | Y19: 0.2935541959 | Z19: 0.3606287657 | AA19: 0.001925204565 | AD19: =R19*AA19 -> 6.930736436 | AE19: =R19*Z19 -> 1298.263557
B20: Portland-RES-(Average)-(2014) | E20: =$E$16*F20 -> 19.01423671 | F20: =VLOOKUP($B20,MMap,MATCH(F$17,MMapHeader,0),FALSE) -> 380.2847343 | J20: ='Cost Matrix'!$C$35 -> 25 | K20: =-VLOOKUP($B20,MMap,MATCH(K$17,MMapHeader,0),FALSE)+VLOOKUP($B20,MMap,MATCH(K$16,MMapHeader,0),FALSE)-VLOOKUP($B20,MMap,MATCH(K$15,MMapHeader,0),FALSE)-VLOOKUP($B20,MMap,MATCH(K$14,MMapHeader,0),FALSE) -> 62.66007273 | L20: =VLOOKUP($B20,MMap,MATCH(L$17,MMapHeader,0),FALSE) -> 0.9968813673 | Q20: =R20/20*$R$23 -> 1140 | R20: ='SC Summary'!J17 -> 11400 | T20: 0.09512744371 | U20: 0.1898563311 | V20: 0.1957037232 | W20: 0.07813374731 | X20: 0 | Y20: 0.155300714 | Z20: 0.2605403718 | AA20: 0 | AD20: 0 | AE20: 2970.160238
B21: Portland-COM-(Average)-(2014) | E21: =$E$16*F21 -> 15.63392796 | F21: =VLOOKUP($B21,MMap,MATCH(F$17,MMapHeader,0),FALSE) -> 312.6785593 | J21: ='Cost Matrix'!$C$35 -> 25 | K21: =-VLOOKUP($B21,MMap,MATCH(K$17,MMapHeader,0),FALSE)+VLOOKUP($B21,MMap,MATCH(K$16,MMapHeader,0),FALSE)-VLOOKUP($B21,MMap,MATCH(K$15,MMapHeader,0),FALSE)-VLOOKUP($B21,MMap,MATCH(K$14,MMapHeader,0),FALSE) -> 45.05526621 | L21: =VLOOKUP($B21,MMap,MATCH(L$17,MMapHeader,0),FALSE) -> 0.9968813673 | Q21: =R21/20*$R$23 -> 710 | R21: ='SC Summary'!J18 -> 7100 | T21: 0.09512744371 | U21: 0.1898563311 | V21: 0.1957037232 | W21: 0.07813374731 | X21: 0 | Y21: 0.155300714 | Z21: 0.2605403718 | AA21: 0 | AD21: 0 | AE21: 1849.836639
AC22: Total | AD22: =SUM(AD18:AD21) -> 18.48196383 | AE22: =SUM(AE18:AE21) -> 8282.033028
Q23: Years per Decision Period | R23: 2 | AC23: Round | AD23: 20 | AE23: =ROUND(AE22,-2) -> 8300
Q25: Prior Estimate V5
Q26: Maximum Build Rate (Units/Decision Period) | R26: Total Potential Capacity (MW) | S26: Sub-Region (East or West) | BD26: Fraction of energy at hour 18 from 'Shape' for Jan, Apr July, Oct
Q27: 130 | R27: 7100 | S27: East | AW27: RPM Unit => | AY27: 1 | AZ27: MW (AC) | BD27: Jan | BE27: Apr | BF27: Jul | BG27: Oct
Q28: 30 | R28: 4500 | S28: East | AW28: System kW(DC) => | AY28: =MMap!$U$2 -> 5.3 | AZ28: Basis of energy calc in PVWatts | BD28: Q1 | BE28: Q2 | BF28: Q3 | BG28: Q4
Q29: 260 | R29: 12200 | S29: West | AW29: Scalar => | AY29: =AY27*1000/AY28 -> 188.6792453 | BC29: Portl | BD29: =AVERAGE(Shape!B27) -> 0 | BE29: =AVERAGE(Shape!K27) -> 0.155300714 | BF29: =AVERAGE(Shape!T27) -> 0.2605403718 | BG29: =AVERAGE(Shape!AI27) -> 0
B30: Quarterly Energy Calculation | Q30: 70 | R30: 8300 | S30: West | AW30: Hours per Quarter | AY30: =8760/4 -> 2190 | BC30: Boise | BD30: =AVERAGE(Shape!B60) -> 0.08292502857 | BE30: =AVERAGE(Shape!K60) -> 0.2935541959 | BF30: =AVERAGE(Shape!T60) -> 0.3606287657 | BG30: =AVERAGE(Shape!AI60) -> 0.001925204565
B32: Bring in ProCost Output | C32: =COLUMN()-1 -> 2 | D32: =COLUMN()-1 -> 3 | E32: 4 | F32: 5 | G32: 6 | H32: 7 | I32: 8 | J32: 9 | K32: 10 | L32: 11 | M32: 12 | N32: 13 | O32: 14 | P32: 15 | Q32: 16 | R32: 17 | S32: 18 | T32: 19 | U32: 20 | V32: 21 | W32: 22 | X32: 23 | Y32: 24 | Z32: 25 | AA32: 26 | AB32: 27 | AC32: 28 | AD32: 29 | AE32: 30 | AF32: 31 | AG32: 32 | AH32: 33 | AI32: 34 | AJ32: 35 | AK32: 36 | AL32: 37 | AM32: 38 | AN32: 39 | AO32: 40 | AP32: 41 | AQ32: 42 | AR32: 43 | AS32: 44 | AT32: 45 | AU32: 46 | AV32: 47 | AW32: 48 | AX32: 49 | AY32: 50 | AZ32: 51 | BA32: 52 | BB32: 53 | BC32: 54 | BD32: 55 | BE32: 56 | BF32: 57 | BG32: 58 | BH32: 59 | BI32: 60 | BJ32: 61 | BK32: 62 | BL32: 63 | BM32: 64 | BN32: 65 | BO32: 66 | BP32: =COLUMN()-1 -> 67 | BQ32: 68 | BR32: 69 | BS32: 70 | BT32: 71 | BU32: 72 | BV32: 73 | BW32: 74 | BX32: 75 | BY32: 76
C33: =M_Input!A147 -> Category | D33: =M_Input!B147 -> Measure | E33: =M_Input!C147 -> Busbar Savings | F33: =M_Input!D147 -> First Cost | G33: =M_Input!E147 -> Admin Cost | H33: =M_Input!F147 -> First Year Program Cost | I33: =M_Input!G147 -> PV Cost | J33: =M_Input!H147 -> PV Benefits | K33: =M_Input!I147 -> Unit Program Cost: First Year Program Cost in $/average annual kW saved | L33: =M_Input!J147 -> Utility System Net Levelized Cost (Net of T&D Capacity Benefits, Act Credit & Risk-Mitigation) in mills/kWh | M33: =M_Input!K147 -> TRC Net Levelized Cost (Net of All Benefits) in mills/kWh | N33: =M_Input!L147 -> TRC B/C Ratio | O33: =M_Input!M147 -> Net Electric & Gas System CO2 Avoided (Lifetime Tons) | P33: =M_Input!N147 -> Wholesale KW | Q33: =M_Input!O147 -> Jan | R33: =M_Input!P147 -> Feb | S33: =M_Input!Q147 -> Mar | T33: =M_Input!R147 -> Apr | U33: =M_Input!S147 -> May | V33: =M_Input!T147 -> Jun | W33: =M_Input!U147 -> Jul | X33: =M_Input!V147 -> Aug | Y33: =M_Input!W147 -> Sep | Z33: =M_Input!X147 -> Oct | AA33: =M_Input!Y147 -> Nov | AB33: =M_Input!Z147 -> Dec | AC33: =M_Input!AA147 -> 0 | AD33: =M_Input!AB147 -> Jan | AE33: =M_Input!AC147 -> Feb | AF33: =M_Input!AD147 -> Mar | AG33: =M_Input!AE147 -> Apr | AH33: =M_Input!AF147 -> May | AI33: =M_Input!AG147 -> Jun | AJ33: =M_Input!AH147 -> Jul | AK33: =M_Input!AI147 -> Aug | AL33: =M_Input!AJ147 -> Sep | AM33: =M_Input!AK147 -> Oct | AN33: =M_Input!AL147 -> Nov | AO33: =M_Input!AM147 -> Dec | AQ33: Energy Q1 | AR33: Energy Q2 | AS33: Energy Q3 | AT33: Energy Q4 | AU33: Sum Check | AW33: aMW Normalized Energy Q1 | AX33: aMW Normalized Energy Q2 | AY33: aMW Normalized Energy Q3 | AZ33: aMW Normalized Energy Q4 | BA33: aMW Sum Check | BD33: Peak Q1 | BE33: Peak Q2 | BF33: Peak Q3 | BG33: Peak Q4
C34: =M_Input!A148 -> Boise-COM-(Average)-(2035) | D34: =M_Input!B148 -> 0 | E34: =M_Input!C148 -> 8292.357105 | F34: =M_Input!D148 -> 10492.16758 | G34: =M_Input!E148 -> 0 | H34: =M_Input!F148 -> 10492.16758 | I34: =M_Input!G148 -> 10277.18749 | J34: =M_Input!H148 -> 3160.236036 | K34: =M_Input!I148 -> 11083.86757 | L34: =M_Input!J148 -> 49.02041006 | M34: =M_Input!K148 -> 101.7603946 | N34: =M_Input!L148 -> 0.4054274748 | O34: =M_Input!M148 -> 78.77880084 | P34: =M_Input!N148 -> 0.6504464322 | Q34: =M_Input!O148 -> 291.2040799 | R34: =M_Input!P148 -> 388.3113121 | S34: =M_Input!Q148 -> 587.8037221 | T34: =M_Input!R148 -> 664.7249034 | U34: =M_Input!S148 -> 769.6501811 | V34: =M_Input!T148 -> 824.1422377 | W34: =M_Input!U148 -> 816.6290694 | X34: =M_Input!V148 -> 830.1597578 | Y34: =M_Input!W148 -> 629.9162472 | Z34: =M_Input!X148 -> 558.8493278 | AA34: =M_Input!Y148 -> 319.1818217 | AB34: =M_Input!Z148 -> 273.1383463 | AC34: =M_Input!AA148 -> 0 | AD34: =M_Input!AB148 -> 72.51274883 | AE34: =M_Input!AC148 -> 87.81509507 | AF34: =M_Input!AD148 -> 90.88661119 | AG34: =M_Input!AE148 -> 131.2700171 | AH34: =M_Input!AF148 -> 147.5765514 | AI34: =M_Input!AG148 -> 123.3285376 | AJ34: =M_Input!AH148 -> 186.9084555 | AK34: =M_Input!AI148 -> 116.3675988 | AL34: =M_Input!AJ148 -> 148.9811204 | AM34: =M_Input!AK148 -> 81.88072299 | AN34: =M_Input!AL148 -> 83.29488423 | AO34: =M_Input!AM148 -> 67.82375538 | AQ34: =SUM(Q34:S34,AD34:AF34) -> 1518.533569 | AR34: =SUM(T34:V34,AG34:AI34) -> 2660.692428 | AS34: =SUM(W34:Y34,AJ34:AL34) -> 2728.962249 | AT34: =SUM(Z34:AB34,AM34:AO34) -> 1384.168858 | AU34: =SUM(AQ34:AT34) -> 8292.357105 | AW34: =AQ34/$AY$30/1000*$AY$29 -> 0.1308291177 | AX34: =AR34/$AY$30/1000*$AY$29 -> 0.2292317075 | AY34: =AS34/$AY$30/1000*$AY$29 -> 0.2351134875 | AZ34: =AT34/$AY$30/1000*$AY$29 -> 0.1192529386 | BA34: =SUM(AW34:AZ34)/4 -> 0.1786068128 | BC34: =LEFT(C34,5) -> Boise | BD34: =$AY$27*INDEX($BD$29:$BG$30,MATCH($BC34,$BC$29:$BC$30,0),1) -> 0.08292502857 | BE34: =$AY$27*INDEX($BD$29:$BG$30,MATCH($BC34,$BC$29:$BC$30,0),2) -> 0.2935541959 | BF34: =$AY$27*INDEX($BD$29:$BG$30,MATCH($BC34,$BC$29:$BC$30,0),3) -> 0.3606287657 | BG34: =$AY$27*INDEX($BD$29:$BG$30,MATCH($BC34,$BC$29:$BC$30,0),4) -> 0.001925204565
C35: =M_Input!A149 -> Boise-COM-(Average)-(2025) | D35: =M_Input!B149 -> 0 | E35: =M_Input!C149 -> 8292.357105 | F35: =M_Input!D149 -> 12885.9416 | G35: =M_Input!E149 -> 0 | H35: =M_Input!F149 -> 12885.9416 | I35: =M_Input!G149 -> 12394.08649 | J35: =M_Input!H149 -> 3160.236036 | K35: =M_Input!I149 -> 13612.63716 | L35: =M_Input!J149 -> 61.22040849 | M35: =M_Input!K149 -> 120.5445752 | N35: =M_Input!L149 -> 0.3445015474 | O35: =M_Input!M149 -> 78.77880084 | P35: =M_Input!N149 -> 0.6504464322 | Q35: =M_Input!O149 -> 291.2040799 | R35: =M_Input!P149 -> 388.3113121 | S35: =M_Input!Q149 -> 587.8037221 | T35: =M_Input!R149 -> 664.7249034 | U35: =M_Input!S149 -> 769.6501811 | V35: =M_Input!T149 -> 824.1422377 | W35: =M_Input!U149 -> 816.6290694 | X35: =M_Input!V149 -> 830.1597578 | Y35: =M_Input!W149 -> 629.9162472 | Z35: =M_Input!X149 -> 558.8493278 | AA35: =M_Input!Y149 -> 319.1818217 | AB35: =M_Input!Z149 -> 273.1383463 | AC35: =M_Input!AA149 -> 0 | AD35: =M_Input!AB149 -> 72.51274883 | AE35: =M_Input!AC149 -> 87.81509507 | AF35: =M_Input!AD149 -> 90.88661119 | AG35: =M_Input!AE149 -> 131.2700171 | AH35: =M_Input!AF149 -> 147.5765514 | AI35: =M_Input!AG149 -> 123.3285376 | AJ35: =M_Input!AH149 -> 186.9084555 | AK35: =M_Input!AI149 -> 116.3675988 | AL35: =M_Input!AJ149 -> 148.9811204 | AM35: =M_Input!AK149 -> 81.88072299 | AN35: =M_Input!AL149 -> 83.29488423 | AO35: =M_Input!AM149 -> 67.82375538 | AQ35: =SUM(Q35:S35,AD35:AF35) -> 1518.533569 | AR35: =SUM(T35:V35,AG35:AI35) -> 2660.692428 | AS35: =SUM(W35:Y35,AJ35:AL35) -> 2728.962249 | AT35: =SUM(Z35:AB35,AM35:AO35) -> 1384.168858 | AU35: =SUM(AQ35:AT35) -> 8292.357105 | AW35: =AQ35/$AY$30/1000*$AY$29 -> 0.1308291177 | AX35: =AR35/$AY$30/1000*$AY$29 -> 0.2292317075 | AY35: =AS35/$AY$30/1000*$AY$29 -> 0.2351134875 | AZ35: =AT35/$AY$30/1000*$AY$29 -> 0.1192529386 | BA35: =SUM(AW35:AZ35)/4 -> 0.1786068128 | BC35: =LEFT(C35,5) -> Boise | BD35: =$AY$27*INDEX($BD$29:$BG$30,MATCH($BC35,$BC$29:$BC$30,0),1) -> 0.08292502857 | BE35: =$AY$27*INDEX($BD$29:$BG$30,MATCH($BC35,$BC$29:$BC$30,0),2) -> 0.2935541959 | BF35: =$AY$27*INDEX($BD$29:$BG$30,MATCH($BC35,$BC$29:$BC$30,0),3) -> 0.3606287657 | BG35: =$AY$27*INDEX($BD$29:$BG$30,MATCH($BC35,$BC$29:$BC$30,0),4) -> 0.001925204565
C36: =M_Input!A150 -> Boise-COM-(Low Quartile)-(Fed Tax Credit) | D36: =M_Input!B150 -> 0 | E36: =M_Input!C150 -> 8292.357105 | F36: =M_Input!D150 -> 13356 | G36: =M_Input!E150 -> 0 | H36: =M_Input!F150 -> 13356 | I36: =M_Input!G150 -> 12809.77575 | J36: =M_Input!H150 -> 3160.236036 | K36: =M_Input!I150 -> 14109.20424 | L36: =M_Input!J150 -> 63.61608647 | M36: =M_Input!K150 -> 124.2331698 | N36: =M_Input!L150 -> 0.3346269687 | O36: =M_Input!M150 -> 78.77880084 | P36: =M_Input!N150 -> 0.6504464322 | Q36: =M_Input!O150 -> 291.2040799 | R36: =M_Input!P150 -> 388.3113121 | S36: =M_Input!Q150 -> 587.8037221 | T36: =M_Input!R150 -> 664.7249034 | U36: =M_Input!S150 -> 769.6501811 | V36: =M_Input!T150 -> 824.1422377 | W36: =M_Input!U150 -> 816.6290694 | X36: =M_Input!V150 -> 830.1597578 | Y36: =M_Input!W150 -> 629.9162472 | Z36: =M_Input!X150 -> 558.8493278 | AA36: =M_Input!Y150 -> 319.1818217 | AB36: =M_Input!Z150 -> 273.1383463 | AC36: =M_Input!AA150 -> 0 | AD36: =M_Input!AB150 -> 72.51274883 | AE36: =M_Input!AC150 -> 87.81509507 | AF36: =M_Input!AD150 -> 90.88661119 | AG36: =M_Input!AE150 -> 131.2700171 | AH36: =M_Input!AF150 -> 147.5765514 | AI36: =M_Input!AG150 -> 123.3285376 | AJ36: =M_Input!AH150 -> 186.9084555 | AK36: =M_Input!AI150 -> 116.3675988 | AL36: =M_Input!AJ150 -> 148.9811204 | AM36: =M_Input!AK150 -> 81.88072299 | AN36: =M_Input!AL150 -> 83.29488423 | AO36: =M_Input!AM150 -> 67.82375538 | AQ36: 1518.533569 | AR36: 2660.692428 | AS36: 2728.962249 | AT36: 1384.168858 | AU36: 8292.357105 | AW36: 0.1308291177 | AX36: 0.2292317075 | AY36: 0.2351134875 | AZ36: 0.1192529386 | BA36: 0.1786068128 | BC36: Boise | BD36: 0.08292502857 | BE36: 0.2935541959 | BF36: 0.3606287657 | BG36: 0.001925204565
C37: =M_Input!A151 -> Boise-COM-(Low Quartile)-(2014) | D37: =M_Input!B151 -> 0 | E37: =M_Input!C151 -> 8292.357105 | F37: =M_Input!D151 -> 14840 | G37: =M_Input!E151 -> 0 | H37: =M_Input!F151 -> 14840 | I37: =M_Input!G151 -> 14122.12942 | J37: =M_Input!H151 -> 3160.236036 | K37: =M_Input!I151 -> 15676.8936 | L37: =M_Input!J151 -> 71.17937252 | M37: =M_Input!K151 -> 135.878264 | N37: =M_Input!L151 -> 0.3068587514 | O37: =M_Input!M151 -> 78.77880084 | P37: =M_Input!N151 -> 0.6504464322 | Q37: =M_Input!O151 -> 291.2040799 | R37: =M_Input!P151 -> 388.3113121 | S37: =M_Input!Q151 -> 587.8037221 | T37: =M_Input!R151 -> 664.7249034 | U37: =M_Input!S151 -> 769.6501811 | V37: =M_Input!T151 -> 824.1422377 | W37: =M_Input!U151 -> 816.6290694 | X37: =M_Input!V151 -> 830.1597578 | Y37: =M_Input!W151 -> 629.9162472 | Z37: =M_Input!X151 -> 558.8493278 | AA37: =M_Input!Y151 -> 319.1818217 | AB37: =M_Input!Z151 -> 273.1383463 | AC37: =M_Input!AA151 -> 0 | AD37: =M_Input!AB151 -> 72.51274883 | AE37: =M_Input!AC151 -> 87.81509507 | AF37: =M_Input!AD151 -> 90.88661119 | AG37: =M_Input!AE151 -> 131.2700171 | AH37: =M_Input!AF151 -> 147.5765514 | AI37: =M_Input!AG151 -> 123.3285376 | AJ37: =M_Input!AH151 -> 186.9084555 | AK37: =M_Input!AI151 -> 116.3675988 | AL37: =M_Input!AJ151 -> 148.9811204 | AM37: =M_Input!AK151 -> 81.88072299 | AN37: =M_Input!AL151 -> 83.29488423 | AO37: =M_Input!AM151 -> 67.82375538 | AQ37: 1518.533569 | AR37: 2660.692428 | AS37: 2728.962249 | AT37: 1384.168858 | AU37: 8292.357105 | AW37: 0.1308291177 | AX37: 0.2292317075 | AY37: 0.2351134875 | AZ37: 0.1192529386 | BA37: 0.1786068128 | BC37: Boise | BD37: 0.08292502857 | BE37: 0.2935541959 | BF37: 0.3606287657 | BG37: 0.001925204565
C38: =M_Input!A152 -> Boise-RES-(Average)-(2035) | D38: =M_Input!B152 -> 0 | E38: =M_Input!C152 -> 8292.357105 | F38: =M_Input!D152 -> 14178.60484 | G38: =M_Input!E152 -> 0 | H38: =M_Input!F152 -> 14178.60484 | I38: =M_Input!G152 -> 13901.39002 | J38: =M_Input!H152 -> 2547.991834 | K38: =M_Input!I152 -> 14978.19942 | L38: =M_Input!J152 -> 67.80853642 | M38: =M_Input!K152 -> 139.3522592 | N38: =M_Input!L152 -> 0.2994457944 | O38: =M_Input!M152 -> 78.77880084 | P38: =M_Input!N152 -> 0.6504464322 | Q38: =M_Input!O152 -> 291.2040799 | R38: =M_Input!P152 -> 388.3113121 | S38: =M_Input!Q152 -> 587.8037221 | T38: =M_Input!R152 -> 664.7249034 | U38: =M_Input!S152 -> 769.6501811 | V38: =M_Input!T152 -> 824.1422377 | W38: =M_Input!U152 -> 816.6290694 | X38: =M_Input!V152 -> 830.1597578 | Y38: =M_Input!W152 -> 629.9162472 | Z38: =M_Input!X152 -> 558.8493278 | AA38: =M_Input!Y152 -> 319.1818217 | AB38: =M_Input!Z152 -> 273.1383463 | AC38: =M_Input!AA152 -> 0 | AD38: =M_Input!AB152 -> 72.51274883 | AE38: =M_Input!AC152 -> 87.81509507 | AF38: =M_Input!AD152 -> 90.88661119 | AG38: =M_Input!AE152 -> 131.2700171 | AH38: =M_Input!AF152 -> 147.5765514 | AI38: =M_Input!AG152 -> 123.3285376 | AJ38: =M_Input!AH152 -> 186.9084555 | AK38: =M_Input!AI152 -> 116.3675988 | AL38: =M_Input!AJ152 -> 148.9811204 | AM38: =M_Input!AK152 -> 81.88072299 | AN38: =M_Input!AL152 -> 83.29488423 | AO38: =M_Input!AM152 -> 67.82375538 | AQ38: 1518.533569 | AR38: 2660.692428 | AS38: 2728.962249 | AT38: 1384.168858 | AU38: 8292.357105 | AW38: 0.1308291177 | AX38: 0.2292317075 | AY38: 0.2351134875 | AZ38: 0.1192529386 | BA38: 0.1786068128 | BC38: Boise | BD38: 0.08292502857 | BE38: 0.2935541959 | BF38: 0.3606287657 | BG38: 0.001925204565
C39: =M_Input!A153 -> Portland-COM-(Average)-(2035) | D39: =M_Input!B153 -> 0 | E39: =M_Input!C153 -> 6486.238194 | F39: =M_Input!D153 -> 10492.16758 | G39: =M_Input!E153 -> 0 | H39: =M_Input!F153 -> 10492.16758 | I39: =M_Input!G153 -> 10252.75752 | J39: =M_Input!H153 -> 1775.319719 | K39: =M_Input!I153 -> 14170.21473 | L39: =M_Input!J153 -> 67.45521769 | M39: =M_Input!K153 -> 134.6037207 | N39: =M_Input!L153 -> 0.2903197366 | O39: =M_Input!M153 -> 61.62033604 | P39: =M_Input!N153 -> 0.1038118717 | Q39: =M_Input!O153 -> 211.0495991 | R39: =M_Input!P153 -> 258.2103511 | S39: =M_Input!Q153 -> 463.1146002 | T39: =M_Input!R153 -> 497.4262814 | U39: =M_Input!S153 -> 647.3988292 | V39: =M_Input!T153 -> 691.0189636 | W39: =M_Input!U153 -> 733.0465273 | X39: =M_Input!V153 -> 679.1066844 | Y39: =M_Input!W153 -> 503.11869 | Z39: =M_Input!X153 -> 401.9118863 | AA39: =M_Input!Y153 -> 198.3143008 | AB39: =M_Input!Z153 -> 152.2838831 | AC39: =M_Input!AA153 -> 0 | AD39: =M_Input!AB153 -> 49.39574914 | AE39: =M_Input!AC153 -> 54.94203195 | AF39: =M_Input!AD153 -> 67.43190769 | AG39: =M_Input!AE153 -> 117.4505508 | AH39: =M_Input!AF153 -> 150.6809564 | AI39: =M_Input!AG153 -> 99.68685387 | AJ39: =M_Input!AH153 -> 157.1483757 | AK39: =M_Input!AI153 -> 88.79390572 | AL39: =M_Input!AJ153 -> 110.3189319 | AM39: =M_Input!AK153 -> 70.07192613 | AN39: =M_Input!AL153 -> 48.6675885 | AO39: =M_Input!AM153 -> 35.64882015 | AQ39: 1104.144239 | AR39: 2203.662435 | AS39: 2271.533115 | AT39: 906.898405 | AU39: 6486.238194 | AW39: 0.09512744371 | AX39: 0.1898563311 | AY39: 0.1957037232 | AZ39: 0.07813374731 | BA39: 0.1397053113 | BC39: Portl | BD39: 0 | BE39: 0.155300714 | BF39: 0.2605403718 | BG39: 0
C40: =M_Input!A154 -> Boise-RES-(Average)-(2025) | D40: =M_Input!B154 -> 0 | E40: =M_Input!C154 -> 8292.357105 | F40: =M_Input!D154 -> 15672.09114 | G40: =M_Input!E154 -> 0 | H40: =M_Input!F154 -> 15672.09114 | I40: =M_Input!G154 -> 15222.13276 | J40: =M_Input!H154 -> 2547.991834 | K40: =M_Input!I154 -> 16555.91006 | L40: =M_Input!J154 -> 75.4201699 | M40: =M_Input!K154 -> 151.0717933 | N40: =M_Input!L154 -> 0.2768811979 | O40: =M_Input!M154 -> 78.77880084 | P40: =M_Input!N154 -> 0.6504464322 | Q40: =M_Input!O154 -> 291.2040799 | R40: =M_Input!P154 -> 388.3113121 | S40: =M_Input!Q154 -> 587.8037221 | T40: =M_Input!R154 -> 664.7249034 | U40: =M_Input!S154 -> 769.6501811 | V40: =M_Input!T154 -> 824.1422377 | W40: =M_Input!U154 -> 816.6290694 | X40: =M_Input!V154 -> 830.1597578 | Y40: =M_Input!W154 -> 629.9162472 | Z40: =M_Input!X154 -> 558.8493278 | AA40: =M_Input!Y154 -> 319.1818217 | AB40: =M_Input!Z154 -> 273.1383463 | AC40: =M_Input!AA154 -> 0 | AD40: =M_Input!AB154 -> 72.51274883 | AE40: =M_Input!AC154 -> 87.81509507 | AF40: =M_Input!AD154 -> 90.88661119 | AG40: =M_Input!AE154 -> 131.2700171 | AH40: =M_Input!AF154 -> 147.5765514 | AI40: =M_Input!AG154 -> 123.3285376 | AJ40: =M_Input!AH154 -> 186.9084555 | AK40: =M_Input!AI154 -> 116.3675988 | AL40: =M_Input!AJ154 -> 148.9811204 | AM40: =M_Input!AK154 -> 81.88072299 | AN40: =M_Input!AL154 -> 83.29488423 | AO40: =M_Input!AM154 -> 67.82375538 | AQ40: 1518.533569 | AR40: 2660.692428 | AS40: 2728.962249 | AT40: 1384.168858 | AU40: 8292.357105 | AW40: 0.1308291177 | AX40: 0.2292317075 | AY40: 0.2351134875 | AZ40: 0.1192529386 | BA40: 0.1786068128 | BC40: Boise | BD40: 0.08292502857 | BE40: 0.2935541959 | BF40: 0.3606287657 | BG40: 0.001925204565
C41: =M_Input!A155 -> Boise-COM-(Average)-(Fed Tax Credit) | D41: =M_Input!B155 -> 0 | E41: =M_Input!C155 -> 8292.357105 | F41: =M_Input!D155 -> 17649 | G41: =M_Input!E155 -> 0 | H41: =M_Input!F155 -> 17649 | I41: =M_Input!G155 -> 16606.22744 | J41: =M_Input!H155 -> 3160.236036 | K41: =M_Input!I155 -> 18644.3056 | L41: =M_Input!J155 -> 85.49559255 | M41: =M_Input!K155 -> 157.9207638 | N41: =M_Input!L155 -> 0.2652023071 | O41: =M_Input!M155 -> 78.77880084 | P41: =M_Input!N155 -> 0.6504464322 | Q41: =M_Input!O155 -> 291.2040799 | R41: =M_Input!P155 -> 388.3113121 | S41: =M_Input!Q155 -> 587.8037221 | T41: =M_Input!R155 -> 664.7249034 | U41: =M_Input!S155 -> 769.6501811 | V41: =M_Input!T155 -> 824.1422377 | W41: =M_Input!U155 -> 816.6290694 | X41: =M_Input!V155 -> 830.1597578 | Y41: =M_Input!W155 -> 629.9162472 | Z41: =M_Input!X155 -> 558.8493278 | AA41: =M_Input!Y155 -> 319.1818217 | AB41: =M_Input!Z155 -> 273.1383463 | AC41: =M_Input!AA155 -> 0 | AD41: =M_Input!AB155 -> 72.51274883 | AE41: =M_Input!AC155 -> 87.81509507 | AF41: =M_Input!AD155 -> 90.88661119 | AG41: =M_Input!AE155 -> 131.2700171 | AH41: =M_Input!AF155 -> 147.5765514 | AI41: =M_Input!AG155 -> 123.3285376 | AJ41: =M_Input!AH155 -> 186.9084555 | AK41: =M_Input!AI155 -> 116.3675988 | AL41: =M_Input!AJ155 -> 148.9811204 | AM41: =M_Input!AK155 -> 81.88072299 | AN41: =M_Input!AL155 -> 83.29488423 | AO41: =M_Input!AM155 -> 67.82375538 | AQ41: 1518.533569 | AR41: 2660.692428 | AS41: 2728.962249 | AT41: 1384.168858 | AU41: 8292.357105 | AW41: 0.1308291177 | AX41: 0.2292317075 | AY41: 0.2351134875 | AZ41: 0.1192529386 | BA41: 0.1786068128 | BC41: Boise | BD41: 0.08292502857 | BE41: 0.2935541959 | BF41: 0.3606287657 | BG41: 0.001925204565
C42: =M_Input!A156 -> Boise-RES-(Low Quartile)-(Fed Tax Credit) | D42: =M_Input!B156 -> 0 | E42: =M_Input!C156 -> 8292.357105 | F42: =M_Input!D156 -> 17649 | G42: =M_Input!E156 -> 0 | H42: =M_Input!F156 -> 17649 | I42: =M_Input!G156 -> 16970.38316 | J42: =M_Input!H156 -> 2547.991834 | K42: =M_Input!I156 -> 18644.3056 | L42: =M_Input!J156 -> 85.49559255 | M42: =M_Input!K156 -> 166.584792 | N42: =M_Input!L156 -> 0.2517683539 | O42: =M_Input!M156 -> 78.77880084 | P42: =M_Input!N156 -> 0.6504464322 | Q42: =M_Input!O156 -> 291.2040799 | R42: =M_Input!P156 -> 388.3113121 | S42: =M_Input!Q156 -> 587.8037221 | T42: =M_Input!R156 -> 664.7249034 | U42: =M_Input!S156 -> 769.6501811 | V42: =M_Input!T156 -> 824.1422377 | W42: =M_Input!U156 -> 816.6290694 | X42: =M_Input!V156 -> 830.1597578 | Y42: =M_Input!W156 -> 629.9162472 | Z42: =M_Input!X156 -> 558.8493278 | AA42: =M_Input!Y156 -> 319.1818217 | AB42: =M_Input!Z156 -> 273.1383463 | AC42: =M_Input!AA156 -> 0 | AD42: =M_Input!AB156 -> 72.51274883 | AE42: =M_Input!AC156 -> 87.81509507 | AF42: =M_Input!AD156 -> 90.88661119 | AG42: =M_Input!AE156 -> 131.2700171 | AH42: =M_Input!AF156 -> 147.5765514 | AI42: =M_Input!AG156 -> 123.3285376 | AJ42: =M_Input!AH156 -> 186.9084555 | AK42: =M_Input!AI156 -> 116.3675988 | AL42: =M_Input!AJ156 -> 148.9811204 | AM42: =M_Input!AK156 -> 81.88072299 | AN42: =M_Input!AL156 -> 83.29488423 | AO42: =M_Input!AM156 -> 67.82375538 | AQ42: 1518.533569 | AR42: 2660.692428 | AS42: 2728.962249 | AT42: 1384.168858 | AU42: 8292.357105 | AW42: 0.1308291177 | AX42: 0.2292317075 | AY42: 0.2351134875 | AZ42: 0.1192529386 | BA42: 0.1786068128 | BC42: Boise | BD42: 0.08292502857 | BE42: 0.2935541959 | BF42: 0.3606287657 | BG42: 0.001925204565
C43: =M_Input!A157 -> Portland-COM-(Average)-(2025) | D43: =M_Input!B157 -> 0 | E43: =M_Input!C157 -> 6486.238194 | F43: =M_Input!D157 -> 12885.9416 | G43: =M_Input!E157 -> 0 | H43: =M_Input!F157 -> 12885.9416 | I43: =M_Input!G157 -> 12369.65652 | J43: =M_Input!H157 -> 1775.319719 | K43: =M_Input!I157 -> 17403.1303 | L43: =M_Input!J157 -> 83.05235437 | M43: =M_Input!K157 -> 158.6184315 | N43: =M_Input!L157 -> 0.2466159203 | O43: =M_Input!M157 -> 61.62033604 | P43: =M_Input!N157 -> 0.1038118717 | Q43: =M_Input!O157 -> 211.0495991 | R43: =M_Input!P157 -> 258.2103511 | S43: =M_Input!Q157 -> 463.1146002 | T43: =M_Input!R157 -> 497.4262814 | U43: =M_Input!S157 -> 647.3988292 | V43: =M_Input!T157 -> 691.0189636 | W43: =M_Input!U157 -> 733.0465273 | X43: =M_Input!V157 -> 679.1066844 | Y43: =M_Input!W157 -> 503.11869 | Z43: =M_Input!X157 -> 401.9118863 | AA43: =M_Input!Y157 -> 198.3143008 | AB43: =M_Input!Z157 -> 152.2838831 | AC43: =M_Input!AA157 -> 0 | AD43: =M_Input!AB157 -> 49.39574914 | AE43: =M_Input!AC157 -> 54.94203195 | AF43: =M_Input!AD157 -> 67.43190769 | AG43: =M_Input!AE157 -> 117.4505508 | AH43: =M_Input!AF157 -> 150.6809564 | AI43: =M_Input!AG157 -> 99.68685387 | AJ43: =M_Input!AH157 -> 157.1483757 | AK43: =M_Input!AI157 -> 88.79390572 | AL43: =M_Input!AJ157 -> 110.3189319 | AM43: =M_Input!AK157 -> 70.07192613 | AN43: =M_Input!AL157 -> 48.6675885 | AO43: =M_Input!AM157 -> 35.64882015 | AQ43: 1104.144239 | AR43: 2203.662435 | AS43: 2271.533115 | AT43: 906.898405 | AU43: 6486.238194 | AW43: 0.09512744371 | AX43: 0.1898563311 | AY43: 0.1957037232 | AZ43: 0.07813374731 | BA43: 0.1397053113 | BC43: Portl | BD43: 0 | BE43: 0.155300714 | BF43: 0.2605403718 | BG43: 0
C44: =M_Input!A158 -> Boise-COM-(Average)-(2014) | D44: =M_Input!B158 -> 0 | E44: =M_Input!C158 -> 8292.357105 | F44: =M_Input!D158 -> 19610 | G44: =M_Input!E158 -> 0 | H44: =M_Input!F158 -> 19610 | I44: =M_Input!G158 -> 18340.40907 | J44: =M_Input!H158 -> 3160.236036 | K44: =M_Input!I158 -> 20715.89511 | L44: =M_Input!J158 -> 95.48993484 | M44: =M_Input!K158 -> 173.3089241 | N44: =M_Input!L158 -> 0.2422448351 | O44: =M_Input!M158 -> 78.77880084 | P44: =M_Input!N158 -> 0.6504464322 | Q44: =M_Input!O158 -> 291.2040799 | R44: =M_Input!P158 -> 388.3113121 | S44: =M_Input!Q158 -> 587.8037221 | T44: =M_Input!R158 -> 664.7249034 | U44: =M_Input!S158 -> 769.6501811 | V44: =M_Input!T158 -> 824.1422377 | W44: =M_Input!U158 -> 816.6290694 | X44: =M_Input!V158 -> 830.1597578 | Y44: =M_Input!W158 -> 629.9162472 | Z44: =M_Input!X158 -> 558.8493278 | AA44: =M_Input!Y158 -> 319.1818217 | AB44: =M_Input!Z158 -> 273.1383463 | AC44: =M_Input!AA158 -> 0 | AD44: =M_Input!AB158 -> 72.51274883 | AE44: =M_Input!AC158 -> 87.81509507 | AF44: =M_Input!AD158 -> 90.88661119 | AG44: =M_Input!AE158 -> 131.2700171 | AH44: =M_Input!AF158 -> 147.5765514 | AI44: =M_Input!AG158 -> 123.3285376 | AJ44: =M_Input!AH158 -> 186.9084555 | AK44: =M_Input!AI158 -> 116.3675988 | AL44: =M_Input!AJ158 -> 148.9811204 | AM44: =M_Input!AK158 -> 81.88072299 | AN44: =M_Input!AL158 -> 83.29488423 | AO44: =M_Input!AM158 -> 67.82375538 | AQ44: 1518.533569 | AR44: 2660.692428 | AS44: 2728.962249 | AT44: 1384.168858 | AU44: 8292.357105 | AW44: 0.1308291177 | AX44: 0.2292317075 | AY44: 0.2351134875 | AZ44: 0.1192529386 | BA44: 0.1786068128 | BC44: Boise | BD44: 0.08292502857 | BE44: 0.2935541959 | BF44: 0.3606287657 | BG44: 0.001925204565
C45: =M_Input!A159 -> Portland-COM-(Low Quartile)-(Fed Tax Credit) | D45: =M_Input!B159 -> 0 | E45: =M_Input!C159 -> 6486.238194 | F45: =M_Input!D159 -> 13356 | G45: =M_Input!E159 -> 0 | H45: =M_Input!F159 -> 13356 | I45: =M_Input!G159 -> 12785.34578 | J45: =M_Input!H159 -> 1775.319719 | K45: =M_Input!I159 -> 18037.96846 | L45: =M_Input!J159 -> 86.11511843 | M45: =M_Input!K159 -> 163.3341299 | N45: =M_Input!L159 -> 0.2395351466 | O45: =M_Input!M159 -> 61.62033604 | P45: =M_Input!N159 -> 0.1038118717 | Q45: =M_Input!O159 -> 211.0495991 | R45: =M_Input!P159 -> 258.2103511 | S45: =M_Input!Q159 -> 463.1146002 | T45: =M_Input!R159 -> 497.4262814 | U45: =M_Input!S159 -> 647.3988292 | V45: =M_Input!T159 -> 691.0189636 | W45: =M_Input!U159 -> 733.0465273 | X45: =M_Input!V159 -> 679.1066844 | Y45: =M_Input!W159 -> 503.11869 | Z45: =M_Input!X159 -> 401.9118863 | AA45: =M_Input!Y159 -> 198.3143008 | AB45: =M_Input!Z159 -> 152.2838831 | AC45: =M_Input!AA159 -> 0 | AD45: =M_Input!AB159 -> 49.39574914 | AE45: =M_Input!AC159 -> 54.94203195 | AF45: =M_Input!AD159 -> 67.43190769 | AG45: =M_Input!AE159 -> 117.4505508 | AH45: =M_Input!AF159 -> 150.6809564 | AI45: =M_Input!AG159 -> 99.68685387 | AJ45: =M_Input!AH159 -> 157.1483757 | AK45: =M_Input!AI159 -> 88.79390572 | AL45: =M_Input!AJ159 -> 110.3189319 | AM45: =M_Input!AK159 -> 70.07192613 | AN45: =M_Input!AL159 -> 48.6675885 | AO45: =M_Input!AM159 -> 35.64882015 | AQ45: 1104.144239 | AR45: 2203.662435 | AS45: 2271.533115 | AT45: 906.898405 | AU45: 6486.238194 | AW45: 0.09512744371 | AX45: 0.1898563311 | AY45: 0.1957037232 | AZ45: 0.07813374731 | BA45: 0.1397053113 | BC45: Portl | BD45: 0 | BE45: 0.155300714 | BF45: 0.2605403718 | BG45: 0
B46: Boise-COM-(Average)-(2014) | C46: =M_Input!A160 -> Boise-RES-(Low Quartile)-(2014) | D46: =M_Input!B160 -> 0 | E46: =M_Input!C160 -> 8292.357105 | F46: =M_Input!D160 -> 19610 | G46: =M_Input!E160 -> 0 | H46: =M_Input!F160 -> 19610 | I46: =M_Input!G160 -> 18704.56479 | J46: =M_Input!H160 -> 2547.991834 | K46: =M_Input!I160 -> 20715.89511 | L46: =M_Input!J160 -> 95.48993484 | M46: =M_Input!K160 -> 181.9729523 | N46: =M_Input!L160 -> 0.2309866891 | O46: =M_Input!M160 -> 78.77880084 | P46: =M_Input!N160 -> 0.6504464322 | Q46: =M_Input!O160 -> 291.2040799 | R46: =M_Input!P160 -> 388.3113121 | S46: =M_Input!Q160 -> 587.8037221 | T46: =M_Input!R160 -> 664.7249034 | U46: =M_Input!S160 -> 769.6501811 | V46: =M_Input!T160 -> 824.1422377 | W46: =M_Input!U160 -> 816.6290694 | X46: =M_Input!V160 -> 830.1597578 | Y46: =M_Input!W160 -> 629.9162472 | Z46: =M_Input!X160 -> 558.8493278 | AA46: =M_Input!Y160 -> 319.1818217 | AB46: =M_Input!Z160 -> 273.1383463 | AC46: =M_Input!AA160 -> 0 | AD46: =M_Input!AB160 -> 72.51274883 | AE46: =M_Input!AC160 -> 87.81509507 | AF46: =M_Input!AD160 -> 90.88661119 | AG46: =M_Input!AE160 -> 131.2700171 | AH46: =M_Input!AF160 -> 147.5765514 | AI46: =M_Input!AG160 -> 123.3285376 | AJ46: =M_Input!AH160 -> 186.9084555 | AK46: =M_Input!AI160 -> 116.3675988 | AL46: =M_Input!AJ160 -> 148.9811204 | AM46: =M_Input!AK160 -> 81.88072299 | AN46: =M_Input!AL160 -> 83.29488423 | AO46: =M_Input!AM160 -> 67.82375538 | AQ46: 1518.533569 | AR46: 2660.692428 | AS46: 2728.962249 | AT46: 1384.168858 | AU46: 8292.357105 | AW46: 0.1308291177 | AX46: 0.2292317075 | AY46: 0.2351134875 | AZ46: 0.1192529386 | BA46: 0.1786068128 | BC46: Boise | BD46: 0.08292502857 | BE46: 0.2935541959 | BF46: 0.3606287657 | BG46: 0.001925204565
C47: =M_Input!A161 -> Portland-COM-(Low Quartile)-(2014) | D47: =M_Input!B161 -> 0 | E47: =M_Input!C161 -> 6486.238194 | F47: =M_Input!D161 -> 14840 | G47: =M_Input!E161 -> 0 | H47: =M_Input!F161 -> 14840 | I47: =M_Input!G161 -> 14097.69945 | J47: =M_Input!H161 -> 1775.319719 | K47: =M_Input!I161 -> 20042.18718 | L47: =M_Input!J161 -> 95.78443168 | M47: =M_Input!K161 -> 178.2218471 | N47: =M_Input!L161 -> 0.2196271434 | O47: =M_Input!M161 -> 61.62033604 | P47: =M_Input!N161 -> 0.1038118717 | Q47: =M_Input!O161 -> 211.0495991 | R47: =M_Input!P161 -> 258.2103511 | S47: =M_Input!Q161 -> 463.1146002 | T47: =M_Input!R161 -> 497.4262814 | U47: =M_Input!S161 -> 647.3988292 | V47: =M_Input!T161 -> 691.0189636 | W47: =M_Input!U161 -> 733.0465273 | X47: =M_Input!V161 -> 679.1066844 | Y47: =M_Input!W161 -> 503.11869 | Z47: =M_Input!X161 -> 401.9118863 | AA47: =M_Input!Y161 -> 198.3143008 | AB47: =M_Input!Z161 -> 152.2838831 | AC47: =M_Input!AA161 -> 0 | AD47: =M_Input!AB161 -> 49.39574914 | AE47: =M_Input!AC161 -> 54.94203195 | AF47: =M_Input!AD161 -> 67.43190769 | AG47: =M_Input!AE161 -> 117.4505508 | AH47: =M_Input!AF161 -> 150.6809564 | AI47: =M_Input!AG161 -> 99.68685387 | AJ47: =M_Input!AH161 -> 157.1483757 | AK47: =M_Input!AI161 -> 88.79390572 | AL47: =M_Input!AJ161 -> 110.3189319 | AM47: =M_Input!AK161 -> 70.07192613 | AN47: =M_Input!AL161 -> 48.6675885 | AO47: =M_Input!AM161 -> 35.64882015 | AQ47: 1104.144239 | AR47: 2203.662435 | AS47: 2271.533115 | AT47: 906.898405 | AU47: 6486.238194 | AW47: 0.09512744371 | AX47: 0.1898563311 | AY47: 0.1957037232 | AZ47: 0.07813374731 | BA47: 0.1397053113 | BC47: Portl | BD47: 0 | BE47: 0.155300714 | BF47: 0.2605403718 | BG47: 0
C48: =M_Input!A162 -> Portland-RES-(Average)-(2035) | D48: =M_Input!B162 -> 0 | E48: =M_Input!C162 -> 6486.238194 | F48: =M_Input!D162 -> 14178.60484 | G48: =M_Input!E162 -> 0 | H48: =M_Input!F162 -> 14178.60484 | I48: =M_Input!G162 -> 13876.96005 | J48: =M_Input!H162 -> 1163.075517 | K48: =M_Input!I162 -> 19148.93883 | L48: =M_Input!J162 -> 91.47497281 | M48: =M_Input!K162 -> 182.6631901 | N48: =M_Input!L162 -> 0.2143134787 | O48: =M_Input!M162 -> 61.62033604 | P48: =M_Input!N162 -> 0.1038118717 | Q48: =M_Input!O162 -> 211.0495991 | R48: =M_Input!P162 -> 258.2103511 | S48: =M_Input!Q162 -> 463.1146002 | T48: =M_Input!R162 -> 497.4262814 | U48: =M_Input!S162 -> 647.3988292 | V48: =M_Input!T162 -> 691.0189636 | W48: =M_Input!U162 -> 733.0465273 | X48: =M_Input!V162 -> 679.1066844 | Y48: =M_Input!W162 -> 503.11869 | Z48: =M_Input!X162 -> 401.9118863 | AA48: =M_Input!Y162 -> 198.3143008 | AB48: =M_Input!Z162 -> 152.2838831 | AC48: =M_Input!AA162 -> 0 | AD48: =M_Input!AB162 -> 49.39574914 | AE48: =M_Input!AC162 -> 54.94203195 | AF48: =M_Input!AD162 -> 67.43190769 | AG48: =M_Input!AE162 -> 117.4505508 | AH48: =M_Input!AF162 -> 150.6809564 | AI48: =M_Input!AG162 -> 99.68685387 | AJ48: =M_Input!AH162 -> 157.1483757 | AK48: =M_Input!AI162 -> 88.79390572 | AL48: =M_Input!AJ162 -> 110.3189319 | AM48: =M_Input!AK162 -> 70.07192613 | AN48: =M_Input!AL162 -> 48.6675885 | AO48: =M_Input!AM162 -> 35.64882015 | AQ48: 1104.144239 | AR48: 2203.662435 | AS48: 2271.533115 | AT48: 906.898405 | AU48: 6486.238194 | AW48: 0.09512744371 | AX48: 0.1898563311 | AY48: 0.1957037232 | AZ48: 0.07813374731 | BA48: 0.1397053113 | BC48: Portl | BD48: 0 | BE48: 0.155300714 | BF48: 0.2605403718 | BG48: 0
C49: =M_Input!A163 -> Boise-RES-(Average)-(Fed Tax Credit) | D49: =M_Input!B163 -> 0 | E49: =M_Input!C163 -> 8292.357105 | F49: =M_Input!D163 -> 21465 | G49: =M_Input!E163 -> 0 | H49: =M_Input!F163 -> 21465 | I49: =M_Input!G163 -> 20345.00688 | J49: =M_Input!H163 -> 2547.991834 | K49: =M_Input!I163 -> 22675.50681 | L49: =M_Input!J163 -> 104.9440424 | M49: =M_Input!K163 -> 196.5293201 | N49: =M_Input!L163 -> 0.2142572622 | O49: =M_Input!M163 -> 78.77880084 | P49: =M_Input!N163 -> 0.6504464322 | Q49: =M_Input!O163 -> 291.2040799 | R49: =M_Input!P163 -> 388.3113121 | S49: =M_Input!Q163 -> 587.8037221 | T49: =M_Input!R163 -> 664.7249034 | U49: =M_Input!S163 -> 769.6501811 | V49: =M_Input!T163 -> 824.1422377 | W49: =M_Input!U163 -> 816.6290694 | X49: =M_Input!V163 -> 830.1597578 | Y49: =M_Input!W163 -> 629.9162472 | Z49: =M_Input!X163 -> 558.8493278 | AA49: =M_Input!Y163 -> 319.1818217 | AB49: =M_Input!Z163 -> 273.1383463 | AC49: =M_Input!AA163 -> 0 | AD49: =M_Input!AB163 -> 72.51274883 | AE49: =M_Input!AC163 -> 87.81509507 | AF49: =M_Input!AD163 -> 90.88661119 | AG49: =M_Input!AE163 -> 131.2700171 | AH49: =M_Input!AF163 -> 147.5765514 | AI49: =M_Input!AG163 -> 123.3285376 | AJ49: =M_Input!AH163 -> 186.9084555 | AK49: =M_Input!AI163 -> 116.3675988 | AL49: =M_Input!AJ163 -> 148.9811204 | AM49: =M_Input!AK163 -> 81.88072299 | AN49: =M_Input!AL163 -> 83.29488423 | AO49: =M_Input!AM163 -> 67.82375538 | AQ49: 1518.533569 | AR49: 2660.692428 | AS49: 2728.962249 | AT49: 1384.168858 | AU49: 8292.357105 | AW49: 0.1308291177 | AX49: 0.2292317075 | AY49: 0.2351134875 | AZ49: 0.1192529386 | BA49: 0.1786068128 | BC49: Boise | BD49: 0.08292502857 | BE49: 0.2935541959 | BF49: 0.3606287657 | BG49: 0.001925204565
C50: =M_Input!A164 -> Portland-RES-(Average)-(2025) | D50: =M_Input!B164 -> 0 | E50: =M_Input!C164 -> 6486.238194 | F50: =M_Input!D164 -> 15672.09114 | G50: =M_Input!E164 -> 0 | H50: =M_Input!F164 -> 15672.09114 | I50: =M_Input!G164 -> 15197.70279 | J50: =M_Input!H164 -> 1163.075517 | K50: =M_Input!I164 -> 21165.96928 | L50: =M_Input!J164 -> 101.206096 | M50: =M_Input!K164 -> 197.6460753 | N50: =M_Input!L164 -> 0.1981414464 | O50: =M_Input!M164 -> 61.62033604 | P50: =M_Input!N164 -> 0.1038118717 | Q50: =M_Input!O164 -> 211.0495991 | R50: =M_Input!P164 -> 258.2103511 | S50: =M_Input!Q164 -> 463.1146002 | T50: =M_Input!R164 -> 497.4262814 | U50: =M_Input!S164 -> 647.3988292 | V50: =M_Input!T164 -> 691.0189636 | W50: =M_Input!U164 -> 733.0465273 | X50: =M_Input!V164 -> 679.1066844 | Y50: =M_Input!W164 -> 503.11869 | Z50: =M_Input!X164 -> 401.9118863 | AA50: =M_Input!Y164 -> 198.3143008 | AB50: =M_Input!Z164 -> 152.2838831 | AC50: =M_Input!AA164 -> 0 | AD50: =M_Input!AB164 -> 49.39574914 | AE50: =M_Input!AC164 -> 54.94203195 | AF50: =M_Input!AD164 -> 67.43190769 | AG50: =M_Input!AE164 -> 117.4505508 | AH50: =M_Input!AF164 -> 150.6809564 | AI50: =M_Input!AG164 -> 99.68685387 | AJ50: =M_Input!AH164 -> 157.1483757 | AK50: =M_Input!AI164 -> 88.79390572 | AL50: =M_Input!AJ164 -> 110.3189319 | AM50: =M_Input!AK164 -> 70.07192613 | AN50: =M_Input!AL164 -> 48.6675885 | AO50: =M_Input!AM164 -> 35.64882015 | AQ50: 1104.144239 | AR50: 2203.662435 | AS50: 2271.533115 | AT50: 906.898405 | AU50: 6486.238194 | AW50: 0.09512744371 | AX50: 0.1898563311 | AY50: 0.1957037232 | AZ50: 0.07813374731 | BA50: 0.1397053113 | BC50: Portl | BD50: 0 | BE50: 0.155300714 | BF50: 0.2605403718 | BG50: 0
B51: Boise-RES-(Average)-(2014) | C51: =M_Input!A165 -> Boise-RES-(Average)-(2014) | D51: =M_Input!B165 -> 0 | E51: =M_Input!C165 -> 8292.357105 | F51: =M_Input!D165 -> 23850 | G51: =M_Input!E165 -> 0 | H51: =M_Input!F165 -> 23850 | I51: =M_Input!G165 -> 22454.14671 | J51: =M_Input!H165 -> 2547.991834 | K51: =M_Input!I165 -> 25195.00757 | L51: =M_Input!J165 -> 117.0993236 | M51: =M_Input!K165 -> 215.2446501 | N51: =M_Input!L165 -> 0.1960054217 | O51: =M_Input!M165 -> 78.77880084 | P51: =M_Input!N165 -> 0.6504464322 | Q51: =M_Input!O165 -> 291.2040799 | R51: =M_Input!P165 -> 388.3113121 | S51: =M_Input!Q165 -> 587.8037221 | T51: =M_Input!R165 -> 664.7249034 | U51: =M_Input!S165 -> 769.6501811 | V51: =M_Input!T165 -> 824.1422377 | W51: =M_Input!U165 -> 816.6290694 | X51: =M_Input!V165 -> 830.1597578 | Y51: =M_Input!W165 -> 629.9162472 | Z51: =M_Input!X165 -> 558.8493278 | AA51: =M_Input!Y165 -> 319.1818217 | AB51: =M_Input!Z165 -> 273.1383463 | AC51: =M_Input!AA165 -> 0 | AD51: =M_Input!AB165 -> 72.51274883 | AE51: =M_Input!AC165 -> 87.81509507 | AF51: =M_Input!AD165 -> 90.88661119 | AG51: =M_Input!AE165 -> 131.2700171 | AH51: =M_Input!AF165 -> 147.5765514 | AI51: =M_Input!AG165 -> 123.3285376 | AJ51: =M_Input!AH165 -> 186.9084555 | AK51: =M_Input!AI165 -> 116.3675988 | AL51: =M_Input!AJ165 -> 148.9811204 | AM51: =M_Input!AK165 -> 81.88072299 | AN51: =M_Input!AL165 -> 83.29488423 | AO51: =M_Input!AM165 -> 67.82375538 | AQ51: 1518.533569 | AR51: 2660.692428 | AS51: 2728.962249 | AT51: 1384.168858 | AU51: 8292.357105 | AW51: 0.1308291177 | AX51: 0.2292317075 | AY51: 0.2351134875 | AZ51: 0.1192529386 | BA51: 0.1786068128 | BC51: Boise | BD51: 0.08292502857 | BE51: 0.2935541959 | BF51: 0.3606287657 | BG51: 0.001925204565
C52: =M_Input!A166 -> Portland-COM-(Average)-(Fed Tax Credit) | D52: =M_Input!B166 -> 0 | E52: =M_Input!C166 -> 6486.238194 | F52: =M_Input!D166 -> 17649 | G52: =M_Input!E166 -> 0 | H52: =M_Input!F166 -> 17649 | I52: =M_Input!G166 -> 16581.79747 | J52: =M_Input!H166 -> 1775.319719 | K52: =M_Input!I166 -> 23835.8869 | L52: =M_Input!J166 -> 114.0870603 | M52: =M_Input!K166 -> 206.402169 | N52: =M_Input!L166 -> 0.1897726374 | O52: =M_Input!M166 -> 61.62033604 | P52: =M_Input!N166 -> 0.1038118717 | Q52: =M_Input!O166 -> 211.0495991 | R52: =M_Input!P166 -> 258.2103511 | S52: =M_Input!Q166 -> 463.1146002 | T52: =M_Input!R166 -> 497.4262814 | U52: =M_Input!S166 -> 647.3988292 | V52: =M_Input!T166 -> 691.0189636 | W52: =M_Input!U166 -> 733.0465273 | X52: =M_Input!V166 -> 679.1066844 | Y52: =M_Input!W166 -> 503.11869 | Z52: =M_Input!X166 -> 401.9118863 | AA52: =M_Input!Y166 -> 198.3143008 | AB52: =M_Input!Z166 -> 152.2838831 | AC52: =M_Input!AA166 -> 0 | AD52: =M_Input!AB166 -> 49.39574914 | AE52: =M_Input!AC166 -> 54.94203195 | AF52: =M_Input!AD166 -> 67.43190769 | AG52: =M_Input!AE166 -> 117.4505508 | AH52: =M_Input!AF166 -> 150.6809564 | AI52: =M_Input!AG166 -> 99.68685387 | AJ52: =M_Input!AH166 -> 157.1483757 | AK52: =M_Input!AI166 -> 88.79390572 | AL52: =M_Input!AJ166 -> 110.3189319 | AM52: =M_Input!AK166 -> 70.07192613 | AN52: =M_Input!AL166 -> 48.6675885 | AO52: =M_Input!AM166 -> 35.64882015 | AQ52: 1104.144239 | AR52: 2203.662435 | AS52: 2271.533115 | AT52: 906.898405 | AU52: 6486.238194 | AW52: 0.09512744371 | AX52: 0.1898563311 | AY52: 0.1957037232 | AZ52: 0.07813374731 | BA52: 0.1397053113 | BC52: Portl | BD52: 0 | BE52: 0.155300714 | BF52: 0.2605403718 | BG52: 0
C53: =M_Input!A167 -> Portland-RES-(Low Quartile)-(Fed Tax Credit) | D53: =M_Input!B167 -> 0 | E53: =M_Input!C167 -> 6486.238194 | F53: =M_Input!D167 -> 17649 | G53: =M_Input!E167 -> 0 | H53: =M_Input!F167 -> 17649 | I53: =M_Input!G167 -> 16945.95319 | J53: =M_Input!H167 -> 1163.075517 | K53: =M_Input!I167 -> 23835.8869 | L53: =M_Input!J167 -> 114.0870603 | M53: =M_Input!K167 -> 217.4787303 | N53: =M_Input!L167 -> 0.180147412 | O53: =M_Input!M167 -> 61.62033604 | P53: =M_Input!N167 -> 0.1038118717 | Q53: =M_Input!O167 -> 211.0495991 | R53: =M_Input!P167 -> 258.2103511 | S53: =M_Input!Q167 -> 463.1146002 | T53: =M_Input!R167 -> 497.4262814 | U53: =M_Input!S167 -> 647.3988292 | V53: =M_Input!T167 -> 691.0189636 | W53: =M_Input!U167 -> 733.0465273 | X53: =M_Input!V167 -> 679.1066844 | Y53: =M_Input!W167 -> 503.11869 | Z53: =M_Input!X167 -> 401.9118863 | AA53: =M_Input!Y167 -> 198.3143008 | AB53: =M_Input!Z167 -> 152.2838831 | AC53: =M_Input!AA167 -> 0 | AD53: =M_Input!AB167 -> 49.39574914 | AE53: =M_Input!AC167 -> 54.94203195 | AF53: =M_Input!AD167 -> 67.43190769 | AG53: =M_Input!AE167 -> 117.4505508 | AH53: =M_Input!AF167 -> 150.6809564 | AI53: =M_Input!AG167 -> 99.68685387 | AJ53: =M_Input!AH167 -> 157.1483757 | AK53: =M_Input!AI167 -> 88.79390572 | AL53: =M_Input!AJ167 -> 110.3189319 | AM53: =M_Input!AK167 -> 70.07192613 | AN53: =M_Input!AL167 -> 48.6675885 | AO53: =M_Input!AM167 -> 35.64882015 | AQ53: 1104.144239 | AR53: 2203.662435 | AS53: 2271.533115 | AT53: 906.898405 | AU53: 6486.238194 | AW53: 0.09512744371 | AX53: 0.1898563311 | AY53: 0.1957037232 | AZ53: 0.07813374731 | BA53: 0.1397053113 | BC53: Portl | BD53: 0 | BE53: 0.155300714 | BF53: 0.2605403718 | BG53: 0
C54: =M_Input!A168 -> Portland-COM-(Average)-(2014) | D54: =M_Input!B168 -> 0 | E54: =M_Input!C168 -> 6486.238194 | F54: =M_Input!D168 -> 19610 | G54: =M_Input!E168 -> 0 | H54: =M_Input!F168 -> 19610 | I54: =M_Input!G168 -> 18315.9791 | J54: =M_Input!H168 -> 1775.319719 | K54: =M_Input!I168 -> 26484.31878 | L54: =M_Input!J168 -> 126.8643671 | M54: =M_Input!K168 -> 226.0752239 | N54: =M_Input!L168 -> 0.1733247435 | O54: =M_Input!M168 -> 61.62033604 | P54: =M_Input!N168 -> 0.1038118717 | Q54: =M_Input!O168 -> 211.0495991 | R54: =M_Input!P168 -> 258.2103511 | S54: =M_Input!Q168 -> 463.1146002 | T54: =M_Input!R168 -> 497.4262814 | U54: =M_Input!S168 -> 647.3988292 | V54: =M_Input!T168 -> 691.0189636 | W54: =M_Input!U168 -> 733.0465273 | X54: =M_Input!V168 -> 679.1066844 | Y54: =M_Input!W168 -> 503.11869 | Z54: =M_Input!X168 -> 401.9118863 | AA54: =M_Input!Y168 -> 198.3143008 | AB54: =M_Input!Z168 -> 152.2838831 | AC54: =M_Input!AA168 -> 0 | AD54: =M_Input!AB168 -> 49.39574914 | AE54: =M_Input!AC168 -> 54.94203195 | AF54: =M_Input!AD168 -> 67.43190769 | AG54: =M_Input!AE168 -> 117.4505508 | AH54: =M_Input!AF168 -> 150.6809564 | AI54: =M_Input!AG168 -> 99.68685387 | AJ54: =M_Input!AH168 -> 157.1483757 | AK54: =M_Input!AI168 -> 88.79390572 | AL54: =M_Input!AJ168 -> 110.3189319 | AM54: =M_Input!AK168 -> 70.07192613 | AN54: =M_Input!AL168 -> 48.6675885 | AO54: =M_Input!AM168 -> 35.64882015 | AQ54: 1104.144239 | AR54: 2203.662435 | AS54: 2271.533115 | AT54: 906.898405 | AU54: 6486.238194 | AW54: 0.09512744371 | AX54: 0.1898563311 | AY54: 0.1957037232 | AZ54: 0.07813374731 | BA54: 0.1397053113 | BC54: Portl | BD54: 0 | BE54: 0.155300714 | BF54: 0.2605403718 | BG54: 0
B55: Portland-COM-(Average)-(2014) | C55: =M_Input!A169 -> Portland-RES-(Low Quartile)-(2014) | D55: =M_Input!B169 -> 0 | E55: =M_Input!C169 -> 6486.238194 | F55: =M_Input!D169 -> 19610 | G55: =M_Input!E169 -> 0 | H55: =M_Input!F169 -> 19610 | I55: =M_Input!G169 -> 18680.13482 | J55: =M_Input!H169 -> 1163.075517 | K55: =M_Input!I169 -> 26484.31878 | L55: =M_Input!J169 -> 126.8643671 | M55: =M_Input!K169 -> 237.1517852 | N55: =M_Input!L169 -> 0.1652602294 | O55: =M_Input!M169 -> 61.62033604 | P55: =M_Input!N169 -> 0.1038118717 | Q55: =M_Input!O169 -> 211.0495991 | R55: =M_Input!P169 -> 258.2103511 | S55: =M_Input!Q169 -> 463.1146002 | T55: =M_Input!R169 -> 497.4262814 | U55: =M_Input!S169 -> 647.3988292 | V55: =M_Input!T169 -> 691.0189636 | W55: =M_Input!U169 -> 733.0465273 | X55: =M_Input!V169 -> 679.1066844 | Y55: =M_Input!W169 -> 503.11869 | Z55: =M_Input!X169 -> 401.9118863 | AA55: =M_Input!Y169 -> 198.3143008 | AB55: =M_Input!Z169 -> 152.2838831 | AC55: =M_Input!AA169 -> 0 | AD55: =M_Input!AB169 -> 49.39574914 | AE55: =M_Input!AC169 -> 54.94203195 | AF55: =M_Input!AD169 -> 67.43190769 | AG55: =M_Input!AE169 -> 117.4505508 | AH55: =M_Input!AF169 -> 150.6809564 | AI55: =M_Input!AG169 -> 99.68685387 | AJ55: =M_Input!AH169 -> 157.1483757 | AK55: =M_Input!AI169 -> 88.79390572 | AL55: =M_Input!AJ169 -> 110.3189319 | AM55: =M_Input!AK169 -> 70.07192613 | AN55: =M_Input!AL169 -> 48.6675885 | AO55: =M_Input!AM169 -> 35.64882015 | AQ55: 1104.144239 | AR55: 2203.662435 | AS55: 2271.533115 | AT55: 906.898405 | AU55: 6486.238194 | AW55: 0.09512744371 | AX55: 0.1898563311 | AY55: 0.1957037232 | AZ55: 0.07813374731 | BA55: 0.1397053113 | BC55: Portl | BD55: 0 | BE55: 0.155300714 | BF55: 0.2605403718 | BG55: 0
C56: =M_Input!A170 -> Portland-RES-(Average)-(Fed Tax Credit) | D56: =M_Input!B170 -> 0 | E56: =M_Input!C170 -> 6486.238194 | F56: =M_Input!D170 -> 21465 | G56: =M_Input!E170 -> 0 | H56: =M_Input!F170 -> 21465 | I56: =M_Input!G170 -> 20320.57691 | J56: =M_Input!H170 -> 1163.075517 | K56: =M_Input!I170 -> 28989.59217 | L56: =M_Input!J170 -> 138.9510086 | M56: =M_Input!K170 -> 255.7614318 | N56: =M_Input!L170 -> 0.153278179 | O56: =M_Input!M170 -> 61.62033604 | P56: =M_Input!N170 -> 0.1038118717 | Q56: =M_Input!O170 -> 211.0495991 | R56: =M_Input!P170 -> 258.2103511 | S56: =M_Input!Q170 -> 463.1146002 | T56: =M_Input!R170 -> 497.4262814 | U56: =M_Input!S170 -> 647.3988292 | V56: =M_Input!T170 -> 691.0189636 | W56: =M_Input!U170 -> 733.0465273 | X56: =M_Input!V170 -> 679.1066844 | Y56: =M_Input!W170 -> 503.11869 | Z56: =M_Input!X170 -> 401.9118863 | AA56: =M_Input!Y170 -> 198.3143008 | AB56: =M_Input!Z170 -> 152.2838831 | AC56: =M_Input!AA170 -> 0 | AD56: =M_Input!AB170 -> 49.39574914 | AE56: =M_Input!AC170 -> 54.94203195 | AF56: =M_Input!AD170 -> 67.43190769 | AG56: =M_Input!AE170 -> 117.4505508 | AH56: =M_Input!AF170 -> 150.6809564 | AI56: =M_Input!AG170 -> 99.68685387 | AJ56: =M_Input!AH170 -> 157.1483757 | AK56: =M_Input!AI170 -> 88.79390572 | AL56: =M_Input!AJ170 -> 110.3189319 | AM56: =M_Input!AK170 -> 70.07192613 | AN56: =M_Input!AL170 -> 48.6675885 | AO56: =M_Input!AM170 -> 35.64882015 | AQ56: 1104.144239 | AR56: 2203.662435 | AS56: 2271.533115 | AT56: 906.898405 | AU56: 6486.238194 | AW56: 0.09512744371 | AX56: 0.1898563311 | AY56: 0.1957037232 | AZ56: 0.07813374731 | BA56: 0.1397053113 | BC56: Portl | BD56: 0 | BE56: 0.155300714 | BF56: 0.2605403718 | BG56: 0
B57: Portland-RES-(Average)-(2014) | C57: =M_Input!A171 -> Portland-RES-(Average)-(2014) | D57: =M_Input!B171 -> 0 | E57: =M_Input!C171 -> 6486.238194 | F57: =M_Input!D171 -> 23850 | G57: =M_Input!E171 -> 0 | H57: =M_Input!F171 -> 23850 | I57: =M_Input!G171 -> 22429.71673 | J57: =M_Input!H171 -> 1163.075517 | K57: =M_Input!I171 -> 32210.65797 | L57: =M_Input!J171 -> 154.4909764 | M57: =M_Input!K171 -> 279.6881201 | N57: =M_Input!L171 -> 0.1402080408 | O57: =M_Input!M171 -> 61.62033604 | P57: =M_Input!N171 -> 0.1038118717 | Q57: =M_Input!O171 -> 211.0495991 | R57: =M_Input!P171 -> 258.2103511 | S57: =M_Input!Q171 -> 463.1146002 | T57: =M_Input!R171 -> 497.4262814 | U57: =M_Input!S171 -> 647.3988292 | V57: =M_Input!T171 -> 691.0189636 | W57: =M_Input!U171 -> 733.0465273 | X57: =M_Input!V171 -> 679.1066844 | Y57: =M_Input!W171 -> 503.11869 | Z57: =M_Input!X171 -> 401.9118863 | AA57: =M_Input!Y171 -> 198.3143008 | AB57: =M_Input!Z171 -> 152.2838831 | AC57: =M_Input!AA171 -> 0 | AD57: =M_Input!AB171 -> 49.39574914 | AE57: =M_Input!AC171 -> 54.94203195 | AF57: =M_Input!AD171 -> 67.43190769 | AG57: =M_Input!AE171 -> 117.4505508 | AH57: =M_Input!AF171 -> 150.6809564 | AI57: =M_Input!AG171 -> 99.68685387 | AJ57: =M_Input!AH171 -> 157.1483757 | AK57: =M_Input!AI171 -> 88.79390572 | AL57: =M_Input!AJ171 -> 110.3189319 | AM57: =M_Input!AK171 -> 70.07192613 | AN57: =M_Input!AL171 -> 48.6675885 | AO57: =M_Input!AM171 -> 35.64882015 | AQ57: 1104.144239 | AR57: 2203.662435 | AS57: 2271.533115 | AT57: 906.898405 | AU57: 6486.238194 | AW57: 0.09512744371 | AX57: 0.1898563311 | AY57: 0.1957037232 | AZ57: 0.07813374731 | BA57: 0.1397053113 | BC57: Portl | BD57: 0 | BE57: 0.155300714 | BF57: 0.2605403718 | BG57: 0

Sheet SC Summary
A1: These estimates used for initial all resource supply bar and whisker chart March 7, 2015
B2: Supply Curve Results
B3: Distributed Solar PV
E4: Whisker Low | G4: Whisker High
E5: ='Cost Curve'!$T$18 -> 0.5533231218 | G5: ='Cost Curve'!U18 -> 1.509063059
J6: SunShot High | K6: SunShot High | L6: SunShot Low | M6: SunShot Low
E7: $/MWh | F7: $/MWh | G7: $/MWh | H7: aMW | I7: MW | J7: MW | K7: aMW | L7: MW | M7: aMW
B8: lookup | C8: Year | D8: Resource | E8: Low Cost | F8: Med Cost | G8: High Cost | H8: aMW Plant | I8: MW Plant | J8: MW Potential | K8: aMW Potential | L8: MW Potential | M8: aMW Potential | O8: Peak Winter | P8: Peak Summer
B9: Boise-RES-(Average)-(2025) | C9: 2025 | D9: Distrib Solar PV East Residential | E9: =F9*$E$5 -> 82.99846827 | F9: =ROUND(VLOOKUP(B9,MeasOut,83,FALSE),-1) -> 150 | G9: =F9*$G$5 -> 226.3594589 | J9: =ROUND(VLOOKUP($B9,HowBig,6,FALSE),-2) -> 2000 | K9: =ROUND(VLOOKUP($B9,HowBig,7,FALSE),-1) -> 330 | L9: =ROUND(VLOOKUP($B9,HowBig,11,FALSE),-2) -> 1100 | M9: =ROUND(VLOOKUP($B9,HowBig,12,FALSE),-1) -> 180 | O9: =J9*forRPM!$AA$18 -> 3.850409131 | P9: =J9*forRPM!$Z$18 -> 721.2575315
B10: Boise-COM-(Average)-(2025) | C10: 2025 | D10: Distrib Solar PV East Commercial | E10: =F10*$E$5 -> 66.39877461 | F10: =ROUND(VLOOKUP(B10,MeasOut,83,FALSE),-1) -> 120 | G10: =F10*$G$5 -> 181.0875671 | J10: =ROUND(VLOOKUP($B10,HowBig,6,FALSE),-2) -> 1200 | K10: =ROUND(VLOOKUP($B10,HowBig,7,FALSE),-1) -> 200 | L10: =ROUND(VLOOKUP($B10,HowBig,11,FALSE),-2) -> 700 | M10: =ROUND(VLOOKUP($B10,HowBig,12,FALSE),-1) -> 110 | O10: =J10*forRPM!$AA$19 -> 2.310245479 | P10: =J10*forRPM!$Z$19 -> 432.7545189
B11: Portland-RES-(Average)-(2025) | C11: 2025 | D11: Distrib Solar PV West Residential | E11: =F11*$E$5 -> 110.6646244 | F11: =ROUND(VLOOKUP(B11,MeasOut,83,FALSE),-1) -> 200 | G11: =F11*$G$5 -> 301.8126119 | J11: =ROUND(VLOOKUP($B11,HowBig,6,FALSE),-2) -> 3800 | K11: =ROUND(VLOOKUP($B11,HowBig,7,FALSE),-1) -> 500 | L11: =ROUND(VLOOKUP($B11,HowBig,11,FALSE),-2) -> 2100 | M11: =ROUND(VLOOKUP($B11,HowBig,12,FALSE),-1) -> 280 | O11: =J11*forRPM!$AA$20 -> 0 | P11: =J11*forRPM!$Z$20 -> 990.0534127
B12: Portland-COM-(Average)-(2025) | C12: 2025 | D12: Distrib Solar PV West Commercial | E12: =F12*$E$5 -> 88.53169948 | F12: =ROUND(VLOOKUP(B12,MeasOut,83,FALSE),-1) -> 160 | G12: =F12*$G$5 -> 241.4500895 | J12: =ROUND(VLOOKUP($B12,HowBig,6,FALSE),-2) -> 2400 | K12: =ROUND(VLOOKUP($B12,HowBig,7,FALSE),-1) -> 320 | L12: =ROUND(VLOOKUP($B12,HowBig,11,FALSE),-2) -> 1300 | M12: =ROUND(VLOOKUP($B12,HowBig,12,FALSE),-1) -> 180 | O12: =J12*forRPM!$AA$21 -> 0 | P12: =J12*forRPM!$Z$21 -> 625.2968922
E13: =SUMPRODUCT(E9:E12,J9:J12)/J13 -> 93.47628908 | F13: =SUMPRODUCT(F9:F12,K9:K12)/K13 -> 166.4444444 | G13: =SUMPRODUCT(G9:G12,L9:L12)/L13 -> 254.5092891 | J13: =SUM(J9:J12) -> 9400 | K13: =SUM(K9:K12) -> 1350 | L13: =SUM(L9:L12) -> 5200 | M13: =SUM(M9:M12) -> 750 | O13: =SUM(O9:O12) -> 6.160654609 | P13: =SUM(P9:P12) -> 2769.362355 | Q13: =ROUND(P13,-2) -> 2800
B15: Boise-RES-(Average)-(2035) | C15: 2035 | D15: Distrib Solar PV East Residential | E15: =F15*$E$5 -> 77.46523705 | F15: =ROUND(VLOOKUP(B15,MeasOut,83,FALSE),-1) -> 140 | G15: =F15*$G$5 -> 211.2688283 | J15: =ROUND(VLOOKUP($B15,HowBig,6,FALSE),-2) -> 6000 | K15: =ROUND(VLOOKUP($B15,HowBig,7,FALSE),-1) -> 1000 | L15: =ROUND(VLOOKUP($B15,HowBig,11,FALSE),-2) -> 3300 | M15: =ROUND(VLOOKUP($B15,HowBig,12,FALSE),-1) -> 550 | O15: =J15*forRPM!$AA$18 -> 11.55122739 | P15: =J15*forRPM!$Z$18 -> 2163.772594
B16: Boise-COM-(Average)-(2035) | C16: 2035 | D16: Distrib Solar PV East Commercial | E16: =F16*$E$5 -> 55.33231218 | F16: =ROUND(VLOOKUP(B16,MeasOut,83,FALSE),-1) -> 100 | G16: =F16*$G$5 -> 150.9063059 | J16: =ROUND(VLOOKUP($B16,HowBig,6,FALSE),-2) -> 3600 | K16: =ROUND(VLOOKUP($B16,HowBig,7,FALSE),-1) -> 600 | L16: =ROUND(VLOOKUP($B16,HowBig,11,FALSE),-2) -> 2000 | M16: =ROUND(VLOOKUP($B16,HowBig,12,FALSE),-1) -> 330 | O16: =J16*forRPM!$AA$19 -> 6.930736436 | P16: =J16*forRPM!$Z$19 -> 1298.263557
B17: Portland-RES-(Average)-(2035) | C17: 2035 | D17: Distrib Solar PV West Residential | E17: =F17*$E$5 -> 99.59816192 | F17: =ROUND(VLOOKUP(B17,MeasOut,83,FALSE),-1) -> 180 | G17: =F17*$G$5 -> 271.6313507 | J17: =ROUND(VLOOKUP($B17,HowBig,6,FALSE),-2) -> 11400 | K17: =ROUND(VLOOKUP($B17,HowBig,7,FALSE),-1) -> 1470 | L17: =ROUND(VLOOKUP($B17,HowBig,11,FALSE),-2) -> 6300 | M17: =ROUND(VLOOKUP($B17,HowBig,12,FALSE),-1) -> 810 | O17: =J17*forRPM!$AA$20 -> 0 | P17: =J17*forRPM!$Z$20 -> 2970.160238
B18: Portland-COM-(Average)-(2035) | C18: 2035 | D18: Distrib Solar PV West Commercial | E18: =F18*$E$5 -> 71.93200583 | F18: =ROUND(VLOOKUP(B18,MeasOut,83,FALSE),-1) -> 130 | G18: =F18*$G$5 -> 196.1781977 | J18: =ROUND(VLOOKUP($B18,HowBig,6,FALSE),-2) -> 7100 | K18: =ROUND(VLOOKUP($B18,HowBig,7,FALSE),-1) -> 930 | L18: =ROUND(VLOOKUP($B18,HowBig,11,FALSE),-2) -> 3900 | M18: =ROUND(VLOOKUP($B18,HowBig,12,FALSE),-1) -> 510 | O18: =J18*forRPM!$AA$21 -> 0 | P18: =J18*forRPM!$Z$21 -> 1849.836639
E19: =SUMPRODUCT(E15:E18,J15:J18)/J19 -> 82.21081969 | F19: =SUMPRODUCT(F15:F18,K15:K18)/K19 -> 146.375 | G19: =SUMPRODUCT(G15:G18,L15:L18)/L19 -> 224.217563 | J19: =SUM(J15:J18) -> 28100 | K19: =SUM(K15:K18) -> 4000 | L19: =SUM(L15:L18) -> 15500 | M19: 2200 | O19: =SUM(O15:O18) -> 18.48196383 | P19: =SUM(P15:P18) -> 8282.033028 | Q19: =ROUND(P19,-2) -> 8300
B21: Boise-RES-(Average)-(2030) | J21: =ROUND(VLOOKUP($B21,HowBig,6,FALSE),-2) -> 4300 | K21: =ROUND(VLOOKUP($B21,HowBig,7,FALSE),-1) -> 710 | L21: =ROUND(VLOOKUP($B21,HowBig,11,FALSE),-2) -> 2400 | M21: =ROUND(VLOOKUP($B21,HowBig,12,FALSE),-1) -> 390 | O21: =J21*forRPM!$AA$18 -> 8.278379631 | P21: =J21*forRPM!$Z$18 -> 1550.703693
B22: Boise-COM-(Average)-(2030) | J22: =ROUND(VLOOKUP($B22,HowBig,6,FALSE),-2) -> 2600 | K22: =ROUND(VLOOKUP($B22,HowBig,7,FALSE),-1) -> 430 | L22: =ROUND(VLOOKUP($B22,HowBig,11,FALSE),-2) -> 1400 | M22: =ROUND(VLOOKUP($B22,HowBig,12,FALSE),-1) -> 240 | O22: =J22*forRPM!$AA$19 -> 5.00553187 | P22: =J22*forRPM!$Z$19 -> 937.6347909
B23: Portland-RES-(Average)-(2030) | J23: =ROUND(VLOOKUP($B23,HowBig,6,FALSE),-2) -> 8200 | K23: =ROUND(VLOOKUP($B23,HowBig,7,FALSE),-1) -> 1060 | L23: =ROUND(VLOOKUP($B23,HowBig,11,FALSE),-2) -> 4500 | M23: =ROUND(VLOOKUP($B23,HowBig,12,FALSE),-1) -> 590 | O23: =J23*forRPM!$AA$20 -> 0 | P23: =J23*forRPM!$Z$20 -> 2136.431048
B24: Portland-COM-(Average)-(2030) | J24: =ROUND(VLOOKUP($B24,HowBig,6,FALSE),-2) -> 5100 | K24: =ROUND(VLOOKUP($B24,HowBig,7,FALSE),-1) -> 680 | L24: =ROUND(VLOOKUP($B24,HowBig,11,FALSE),-2) -> 2800 | M24: =ROUND(VLOOKUP($B24,HowBig,12,FALSE),-1) -> 370 | O24: =J24*forRPM!$AA$21 -> 0 | P24: =J24*forRPM!$Z$21 -> 1328.755896
J25: =SUM(J21:J24) -> 20200 | K25: =SUM(K21:K24) -> 2880 | L25: =SUM(L21:L24) -> 11100 | M25: =SUM(M21:M24) -> 1590 | O25: =SUM(O21:O24) -> 13.2839115 | P25: =SUM(P21:P24) -> 5953.525428 | Q25: =ROUND(P25,-2) -> 6000
B27: Boise-RES-(Average)-(2020) | J27: =ROUND(VLOOKUP($B27,HowBig,6,FALSE),-2) -> 500 | K27: =ROUND(VLOOKUP($B27,HowBig,7,FALSE),-1) -> 80 | L27: =ROUND(VLOOKUP($B27,HowBig,11,FALSE),-2) -> 300 | M27: =ROUND(VLOOKUP($B27,HowBig,12,FALSE),-1) -> 50 | O27: =J27*forRPM!$AA$18 -> 0.9626022827 | P27: =J27*forRPM!$Z$18 -> 180.3143829
B28: Boise-COM-(Average)-(2020) | J28: =ROUND(VLOOKUP($B28,HowBig,6,FALSE),-2) -> 300 | K28: =ROUND(VLOOKUP($B28,HowBig,7,FALSE),-1) -> 50 | L28: =ROUND(VLOOKUP($B28,HowBig,11,FALSE),-2) -> 200 | M28: =ROUND(VLOOKUP($B28,HowBig,12,FALSE),-1) -> 30 | O28: =J28*forRPM!$AA$19 -> 0.5775613696 | P28: =J28*forRPM!$Z$19 -> 108.1886297
B29: Portland-RES-(Average)-(2020) | J29: =ROUND(VLOOKUP($B29,HowBig,6,FALSE),-2) -> 1000 | K29: =ROUND(VLOOKUP($B29,HowBig,7,FALSE),-1) -> 130 | L29: =ROUND(VLOOKUP($B29,HowBig,11,FALSE),-2) -> 500 | M29: =ROUND(VLOOKUP($B29,HowBig,12,FALSE),-1) -> 70 | O29: =J29*forRPM!$AA$20 -> 0 | P29: =J29*forRPM!$Z$20 -> 260.5403718
B30: Portland-COM-(Average)-(2020) | J30: =ROUND(VLOOKUP($B30,HowBig,6,FALSE),-2) -> 600 | K30: =ROUND(VLOOKUP($B30,HowBig,7,FALSE),-1) -> 80 | L30: =ROUND(VLOOKUP($B30,HowBig,11,FALSE),-2) -> 300 | M30: =ROUND(VLOOKUP($B30,HowBig,12,FALSE),-1) -> 40 | O30: =J30*forRPM!$AA$21 -> 0 | P30: =J30*forRPM!$Z$21 -> 156.3242231
J31: =SUM(J27:J30) -> 2400 | K31: =SUM(K27:K30) -> 340 | L31: =SUM(L27:L30) -> 1300 | M31: =SUM(M27:M30) -> 190 | O31: =SUM(O27:O30) -> 1.540163652 | P31: =SUM(P27:P30) -> 705.3676074 | Q31: =ROUND(P31,-2) -> 700
I34: Scenario 3B Inputs
I35: Year | J35: Connected (MW) | K35: Energy (aMW) | L35: Winter Peak (MW) | M35: Summer Peak (MW) | N35: Cost ($/MWh)
I36: 2020 | J36: =J31 -> 2400 | K36: =K31 -> 340 | L36: =O31 -> 1.540163652 | M36: =Q31 -> 700 | N36: =ROUND(F13*(0.83/0.77),-1) -> 180
I37: 2025 | J37: =J13 -> 9400 | K37: =K13 -> 1350 | L37: =O13 -> 6.160654609 | M37: =Q13 -> 2800 | N37: =ROUND(F13,-1) -> 170
I38: 2030 | J38: =J25 -> 20200 | K38: =K25 -> 2880 | L38: =O25 -> 13.2839115 | M38: =Q25 -> 6000 | N38: =ROUND(F19*(0.72/0.69),-1) -> 150
I39: 2035 | J39: =J19 -> 28100 | K39: =K19 -> 4000 | L39: =O19 -> 18.48196383 | M39: =Q19 -> 8300 | N39: =ROUND(F19,-1) -> 150

Sheet M_Input
A1: Data Set Name
A2: Measure Index Name | F2: Beta04
A3: Costs must be denominated in the same year as 'Input Cost Reference Year' = | C3: 2012
F4: Var O&M (Sys Integration) | H4: Fixed O&M
A5: 1 | B5: 2 | C5: 3 | D5: 4 | E5: 5 | F5: 6 | G5: 7 | H5: 8 | I5: 9 | J5: 10 | K5: 11 | L5: 12 | M5: 13 | N5: 14 | O5: 15 | P5: 16 | Q5: 17 | R5: 18 | S5: 19 | T5: 20 | U5: 21 | V5: 22 | W5: 23 | X5: 24 | Y5: 25 | Z5: 26 | AA5: 27 | AB5: 28 | AC5: 29 | AD5: 30 | AE5: 31 | AF5: 32 | AG5: 33 | AH5: 34 | AI5: 35 | AJ5: 36 | AK5: 37 | AL5: 38 | AM5: 39 | AN5: 40 | AO5: 41 | AP5: 42 | AQ5: 43 | AR5: 44 | AS5: 45 | AT5: 46 | AU5: 47 | AV5: 48 | AW5: 49 | AX5: 50 | AY5: 51 | AZ5: 52 | BA5: 53 | BB5: 54 | BC5: 55 | BD5: 56 | BE5: 57 | BF5: 58 | BG5: 59 | BH5: 60 | BI5: 61 | BJ5: 62 | BK5: 63 | BL5: 64 | BM5: 65 | BN5: 66 | BO5: 67 | BP5: 68 | BQ5: 69 | BR5: 70 | BS5: 71 | BT5: 72 | BU5: 73 | BV5: 74 | BW5: 75 | BX5: 76 | BY5: 77 | BZ5: 78 | CA5: 79 | CB5: 80 | CC5: 81 | CD5: 82 | CE5: 83 | CF5: 84 | CG5: 85 | CH5: 86 | CI5: 87 | CJ5: 88 | CK5: 89 | CL5: 90 | CM5: 91 | CN5: 92 | CO5: 93 | CP5: 94 | CQ5: 95 | CR5: 96 | CS5: 97 | CT5: 98 | CU5: 99 | CV5: 100 | CW5: 101 | CX5: 102 | CY5: 103 | CZ5: 104 | DA5: 105
A6: Input Data | I6: Periodic Replacement Costs and Savings and Replacement Period | O6: Gas Inputs | Q6: Retro or LO | R6: Early Retrofit Parameters
A7: Category Name | B7: Measure Name | C7: Savings (kwh/yr) | D7: Life (yrs) | E7: Capital Cost | F7: Annual O&M | G7: Shape Pointer | H7: Non-E Val ($/yr) | I7: Cost 1 ($) | J7: Period 1 | K7: Cost 2 ($) | L7: Period 2 | M7: Cost 3 ($) | N7: Period 3 | O7: Savings (therms/yr) | P7: Shape Pointer | Q7: R or L | R7: Savings 2 (kWh) | S7: Remaining Life (yrs) | T7: Salvage Value ($)
A8: Boise-RES-(Average)-(2014) | B8: Boise-RES-(Average)-(2014) | C8: 7723 | D8: 25 | E8: 23850 | F8: 8.26361 | G8: Residential-RES-SolarPV-Boise | H8: -169.6 | I8: 1925 | J8: 10 | Q8: R
A9: Boise-RES-(Low Quartile)-(2014) | B9: Boise-RES-(Low Quartile)-(2014) | C9: 7723 | D9: 25 | E9: 19610 | F9: 8.26361 | G9: Residential-RES-SolarPV-Boise | H9: -169.6 | I9: 1925 | J9: 10 | Q9: R
A10: Boise-COM-(Average)-(2014) | B10: Boise-COM-(Average)-(2014) | C10: 7723 | D10: 25 | E10: 19610 | F10: 8.26361 | G10: Residential-RES-SolarPV-Boise | H10: -124.55 | I10: 1660 | J10: 15 | Q10: R
A11: Boise-COM-(Low Quartile)-(2014) | B11: Boise-COM-(Low Quartile)-(2014) | C11: 7723 | D11: 25 | E11: 14840 | F11: 8.26361 | G11: Residential-RES-SolarPV-Boise | H11: -124.55 | I11: 1660 | J11: 15 | Q11: R
A12: Boise-RES-(Average)-(Fed Tax Credit) | B12: Boise-RES-(Average)-(Fed Tax Credit) | C12: 7723 | D12: 25 | E12: 21465 | F12: 8.26361 | G12: Residential-RES-SolarPV-Boise | H12: -169.6 | I12: 1925 | J12: 10 | Q12: R
A13: Boise-RES-(Low Quartile)-(Fed Tax Credit) | B13: Boise-RES-(Low Quartile)-(Fed Tax Credit) | C13: 7723 | D13: 25 | E13: 17649 | F13: 8.26361 | G13: Residential-RES-SolarPV-Boise | H13: -169.6 | I13: 1925 | J13: 10 | Q13: R
A14: Boise-COM-(Average)-(Fed Tax Credit) | B14: Boise-COM-(Average)-(Fed Tax Credit) | C14: 7723 | D14: 25 | E14: 17649 | F14: 8.26361 | G14: Residential-RES-SolarPV-Boise | H14: -124.55 | I14: 1660 | J14: 15 | Q14: R
A15: Boise-COM-(Low Quartile)-(Fed Tax Credit) | B15: Boise-COM-(Low Quartile)-(Fed Tax Credit) | C15: 7723 | D15: 25 | E15: 13356 | F15: 8.26361 | G15: Residential-RES-SolarPV-Boise | H15: -124.55 | I15: 1660 | J15: 15 | Q15: R
A16: Boise-RES-(Average)-(2025) | B16: Boise-RES-(Average)-(2025) | C16: 7723 | D16: 25 | E16: 15672.09114 | F16: 8.26361 | G16: Residential-RES-SolarPV-Boise | H16: -169.6 | I16: 1925 | J16: 10 | Q16: R
A17: Boise-COM-(Average)-(2025) | B17: Boise-COM-(Average)-(2025) | C17: 7723 | D17: 25 | E17: 12885.9416 | F17: 8.26361 | G17: Residential-RES-SolarPV-Boise | H17: -124.55 | I17: 1660 | J17: 15 | Q17: R
A18: Boise-RES-(Average)-(2035) | B18: Boise-RES-(Average)-(2035) | C18: 7723 | D18: 25 | E18: 14178.60484 | F18: 8.26361 | G18: Residential-RES-SolarPV-Boise | H18: -169.6 | I18: 1925 | J18: 10 | Q18: R
A19: Boise-COM-(Average)-(2035) | B19: Boise-COM-(Average)-(2035) | C19: 7723 | D19: 25 | E19: 10492.16758 | F19: 8.26361 | G19: Residential-RES-SolarPV-Boise | H19: -124.55 | I19: 1660 | J19: 15 | Q19: R
A20: Portland-RES-(Average)-(2014) | B20: Portland-RES-(Average)-(2014) | C20: 6043 | D20: 25 | E20: 23850 | F20: 6.46601 | G20: Residential-RES-SolarPV-Portland | H20: -169.6 | I20: 1925 | J20: 10 | Q20: R
A21: Portland-RES-(Low Quartile)-(2014) | B21: Portland-RES-(Low Quartile)-(2014) | C21: 6043 | D21: 25 | E21: 19610 | F21: 6.46601 | G21: Residential-RES-SolarPV-Portland | H21: -169.6 | I21: 1925 | J21: 10 | Q21: R
A22: Portland-COM-(Average)-(2014) | B22: Portland-COM-(Average)-(2014) | C22: 6043 | D22: 25 | E22: 19610 | F22: 6.46601 | G22: Residential-RES-SolarPV-Portland | H22: -124.55 | I22: 1660 | J22: 15 | Q22: R
A23: Portland-COM-(Low Quartile)-(2014) | B23: Portland-COM-(Low Quartile)-(2014) | C23: 6043 | D23: 25 | E23: 14840 | F23: 6.46601 | G23: Residential-RES-SolarPV-Portland | H23: -124.55 | I23: 1660 | J23: 15 | Q23: R
A24: Portland-RES-(Average)-(Fed Tax Credit) | B24: Portland-RES-(Average)-(Fed Tax Credit) | C24: 6043 | D24: 25 | E24: 21465 | F24: 6.46601 | G24: Residential-RES-SolarPV-Portland | H24: -169.6 | I24: 1925 | J24: 10 | Q24: R
A25: Portland-RES-(Low Quartile)-(Fed Tax Credit) | B25: Portland-RES-(Low Quartile)-(Fed Tax Credit) | C25: 6043 | D25: 25 | E25: 17649 | F25: 6.46601 | G25: Residential-RES-SolarPV-Portland | H25: -169.6 | I25: 1925 | J25: 10 | Q25: R
A26: Portland-COM-(Average)-(Fed Tax Credit) | B26: Portland-COM-(Average)-(Fed Tax Credit) | C26: 6043 | D26: 25 | E26: 17649 | F26: 6.46601 | G26: Residential-RES-SolarPV-Portland | H26: -124.55 | I26: 1660 | J26: 15 | Q26: R
A27: Portland-COM-(Low Quartile)-(Fed Tax Credit) | B27: Portland-COM-(Low Quartile)-(Fed Tax Credit) | C27: 6043 | D27: 25 | E27: 13356 | F27: 6.46601 | G27: Residential-RES-SolarPV-Portland | H27: -124.55 | I27: 1660 | J27: 15 | Q27: R
A28: Portland-RES-(Average)-(2025) | B28: Portland-RES-(Average)-(2025) | C28: 6043 | D28: 25 | E28: 15672.09114 | F28: 6.46601 | G28: Residential-RES-SolarPV-Portland | H28: -169.6 | I28: 1925 | J28: 10 | Q28: R
A29: Portland-COM-(Average)-(2025) | B29: Portland-COM-(Average)-(2025) | C29: 6043 | D29: 25 | E29: 12885.9416 | F29: 6.46601 | G29: Residential-RES-SolarPV-Portland | H29: -124.55 | I29: 1660 | J29: 15 | Q29: R
A30: Portland-RES-(Average)-(2035) | B30: Portland-RES-(Average)-(2035) | C30: 6043 | D30: 25 | E30: 14178.60484 | F30: 6.46601 | G30: Residential-RES-SolarPV-Portland | H30: -169.6 | I30: 1925 | J30: 10 | Q30: R
A31: Portland-COM-(Average)-(2035) | B31: Portland-COM-(Average)-(2035) | C31: 6043 | D31: 25 | E31: 10492.16758 | F31: 6.46601 | G31: Residential-RES-SolarPV-Portland | H31: -124.55 | I31: 1660 | J31: 15 | Q31: R
A35: ProCost Results
A36: Version: | B36: ProCost 3.0 - Beta04
A37: Run Time: | B37: Thursday, 25 June , 2015 at 10:07 PM
A39: Regurgitation of ProData input parameters which were used for this run
B40: Run Parameters | D40: Run Parameters | G40: Marginal Cost & Conservation Load Shape Parameters | Q40: Sponsor Parameters | W40: Program Parameters | Z40: Utility System Parameters
B41: Run Type | C41: Electric | D41: Run Type | E41: Electric | G41: Marginal Costs and Savings Shape File | H41: Q:\SeventhPlan\Conservation Analysis\Global EE Inputs\MC Files\MC_AND_LOADSHAPE_v3.0_24segment-7P-D9 - NewSegValues.xlsx | K41: 6P MidC Final (with carbon) | R41: Customer | S41: Wholesale Elec | T41: Retail Elec | U41: Nat Gas | W41: Program Life (yrs) | X41: 20 | AA41: Electric | AB41: Gas
B42: Negative B/C Ratios | C42: Off | D42: Negative B/C Ratios | E42: Off | G42: Marginal Elec Avoided Cost Input Worksheet | H42: 7P Mid | K42: Conservation Load Shapes | Q42: Real After-Tax Cost of Capital | R42: 0.0430960452 | S42: 0.04387844424 | T42: 0.05328900777 | U42: 0.05447903102 | W42: Program Start Date | X42: 2016 | Z42: Bulk System T&D Loss Factor | AA42: 0.004038901847 | AB42: 0.01
B43: Admin Cost @ Category Level | C43: On | D43: Admin Cost @ Category Level | E43: On | G43: Elec Savings Shape Input Worksheet | H43: GLSShapes | K43: 6P_Gas_Final | Q43: Financial Life (years) | R43: 12 | S43: 12 | T43: 1 | U43: 1 | W43: Present Value Time Zero | X43: 2016 | Z43: Bulk System T&D Credit ($/kw-yr)($/dailytherm-yr) | AA43: 26 | AB43: 0
B44: Repeat Periodic Replacement | C44: On | D44: Repeat Periodic Replacement | E44: On | G44: Marginal Gas Avoided Cost Input Worksheet | H44: 7P Gas | K44: Conservation Load Shapes | R44: Customer | S44: Wholesale Elec | T44: Retail Elec | U44: Nat Gas | W44: Input Cost Reference Year | X44: 2012 | Z44: Bulk System T&D I2R Loss Component (%) | AA44: 0.9 | AB44: N/A
G45: Gas Savings Shape Input Worksheet | H45: GLSShapes | Q45: Sponsor Share of Initial Capital Cost | R45: 0.35 | S45: 0.195 | T45: 0.455 | U45: 0 | W45: Real Discount Rate | X45: 0.04 | Z45: Local System Dist Loss Factor | AA45: 0.0473993482 | AB45: 0
B46: Run Type: | C46: Electric | G46: Marginal Elec CO2 per kWh Input Worksheet | H46: CO2 lbs per kWh .95 | K46: CO2 lbs per therm | Q46: Sponsor Share of Annual O&M | R46: 1 | S46: 0 | T46: 0 | U46: 0 | W46: Capital Real Escalation Rate | X46: 0 | Z46: Local System Dist Credit ($/kw-yr)($/dailytherm-yr) | AA46: 31 | AB46: 0
B47: Negative B/C Ratios: | C47: False: (Converts Negative B/C Ratios) | G47: Marginal Gas CO2 per therm Input Worksheet | H47: CO2 lbs per therm | K47: Zero Dollars per ton CO2 | Q47: Sponsor Share of Periodic Replacement Cost | R47: 1 | S47: 0 | T47: 0 | U47: 0 | W47: Admin Cost (as % of Initial Capital Cost) | X47: 0 | Z47: Local System Dist I2R Loss Component (%) | AA47: 0.7 | AB47: N/A
B48: Admin Cost / Category Level: | C48: True: Admin Costs added at Category Results | G48: Marginal Avoided Cost CO2 Input Worksheet | H48: Zero Dollars per ton CO2 | K48: LineLossShapes | Q48: Sponsor Share of Admin Cost | S48: 0.3 | T48: 0.7 | U48: 0 | W48: Regional Act Conservation Credit (%) | X48: 0 | Z48: Risk-Mitigation Credit (mills/kWh)(mills/therm) - Retro. | AA48: 0 | AB48: 0
B49: Periodic O&M Treatment: | C49: True: (Periodic O&M Repeats over measure life) | G49: Line Loss Shape Input Worksheet | H49: LineLossShapes | Q49: Last Year of Non-Customer O&M & Period Replacement | S49: 20 | W49: Report Annual Carbon Saved for Year | X49: 2018 | Z49: Risk-Mitigation Credit (mills/kWh)(mills/therm) - Lost Op. | AA49: 0 | AB49: 0
A57: Measure Results; Sorted in same order as input
A58: Total Results | C58: Measure Input Data | L58: Savings | R58: PV Capital | V58: PV Admin | Z58: PV O&M | AD58: PV Periodic Repl. | AH58: Total PV Capital, O&M and Periodic Repl Costs | AM58: PV Wholesale Electric Utility Costs & Benefits | AT58: PV Retail Electric Utility Costs & Benefits | BA58: PV Electric Utility System Costs & Benefits | BG58: Electric Utility System Economics | BI58: Sponsor Levelized Cost (mills/kwh) | BN58: PV Regional Costs & Benefits | CD58: TRC Economics | CF58: Physical CO2 | CM58: Gas Inputs | CQ58: PV Gas Utility System Costs & Benefits | CV58: Gas Utility System Economics
A59: Category | B59: Measure | C59: Measure Life | D59: Site Savings (kWh) | E59: Site Savings (therms) | F59: Capital Cost ($/unit) | G59: Annual O&M Cost ($/unit) | H59: PV Per. Repl. Cost ($/unit) | I59: Load Shape (electric) | J59: Diversified Load Factor (electric) | K59: Wholesale Power Coincidence Factor (electric) | L59: Wholesale Electric Energy (kWh) | M59: Wholesale Electric Demand (kw) | N59: Retail Electric Demand (kW) | O59: Wholesale Gas Energy (therms/yr) | P59: Wholesale Gas Demand (therms/day) | Q59: Retail Gas Demand (therms/day) | R59: Wholesale Electric | S59: Retail Electric | T59: Natural Gas | U59: Customer | V59: Wholesale Electric | W59: Retail Electric | X59: Natural Gas | Y59: Customer | Z59: Wholesale Electric | AA59: Retail Electric | AB59: Natural Gas | AC59: Customer | AD59: Wholesale Electric | AE59: Retail Electric | AF59: Natural Gas | AG59: Customer | AH59: Wholesale Electric | AI59: Retail Electric | AJ59: Natural Gas | AK59: Customer | AL59: Total | AM59: Wholesale Utility System Energy | AN59: Wholesale Utility System T&D Def. Cap. | AO59: Wholesale Utility System Act C-E Credit | AP59: Wholesale Utility System Risk Mitigation Benefit | AQ59: Wholesale Utility System Total System Benefit | AR59: Wholesale Utility System Total Non-Consumer Cost | AS59: Wholesale Utility System B/C Ratio | AT59: Retail Utility System Energy | AU59: Retail Utility System T&D Def. Cap. | AV59: Retail Utility System Act C-E Credit | AW59: Retail Utility System Risk Mitigation Benefit | AX59: Retail Utility System Total System Benefit | AY59: Retail Utility System Total Non-Consumer Cost | AZ59: Retail Utility System System B/C Ratio | BA59: Utility System Energy | BB59: Utility System T&D Def. Cap. | BC59: Utility System Act C-E Credit | BD59: Utility System Total Risk Mitigation Benefit | BE59: Utility System Total System Benefit | BF59: Utility System Total Non-Consumer Cost | BG59: Utility System Net Levelized Cost (Net of Elec T&D Capacity Benefits, Act Credit & Risk-Mitigation Benefit) in mills/kwh | BH59: Utility System System B/C Ratio | BI59: Wholesale Electric Levelized Cost | BJ59: Retail Electric Levelized Cost | BK59: Natural Gas Levelized Cost | BL59: Customer Levelized Cost | BM59: Total Levelized Cost | BN59: PV Regional Electric Energy | BO59: PV Regional Gas Energy | BP59: PV Regional Electric T&D Def. Cap. | BQ59: PV Regional Gas T&D Def. Cap. | BR59: PV Regional Electric System CO2 | BS59: PV Regional Gas System CO2 | BT59: PV Regional Electric System Risk-Mitigation Benefit | BU59: PV Regional Gas System Risk-Mitigation Benefit | BV59: PV Regional Non-E Value | BW59: PV Regional Act Credit | BX59: PV Regional Capital Cost | BY59: PV Regional Admin Cost | BZ59: PV Regional Annual O&M Cost | CA59: PV Regional Periodic Replacement Cost | CB59: PV Total Regional Benefit | CC59: PV Total Regional Cost | CD59: TRC B/C Ratio | CE59: TRC Net Levelized Cost (Net of All Benefits) in mills/kWh | CF59: Electric System CO2 Avoided (Lifetime Tons) | CG59: Gas System CO2 Avoided (Lifetime Tons) | CH59: Total System CO2 Avoided (Lifetime Tons) | CI59: Electric System CO2 Avoided (Annual Tons in 2018) | CJ59: Gas System CO2 Avoided (Annual Tons in 2018) | CK59: Total System CO2 Avoided (Annual Tons in 2018) | CM59: Gas Site Savings (therms) | CN59: Load Shape (gas) | CO59: Diversitfied Load Factor (gas) | CP59: Wholesale Coincidence Factor (gas) | CQ59: Total Gas Utility System Energy | CR59: Gas Utility System T&D Def. Cap. | CS59: Gas Utility System Risk Mitigation Benefit | CT59: Gas Utility System Total System Benefit | CU59: Gas Utility System Total Non-Consumer Cost | CV59: Gas Utility System Net Levelized Cost (Net of Gas T&D Capacity Benefits & Risk-Mitigation Benefits) in cents/therm | CW59: Gas Utility System System B/C Ratio
A60: Boise-RES-(Average)-(2014) | B60: Boise-RES-(Average)-(2014) | C60: 25 | D60: 7723 | E60: 0 | F60: 23850 | G60: 8.26361 | H60: 1250.443293 | I60: Residential-RES-SolarPV-Boise | L60: 8292.357105 | M60: 0.6504464322 | N60: 0.6457518015 | O60: 0 | P60: 0 | Q60: 0 | R60: 4137.458598 | S60: 9561.037515 | T60: 0 | U60: 7392.902142 | V60: (na) | W60: (na) | X60: (na) | Y60: (na) | Z60: 0 | AA60: 0 | AB60: 0 | AC60: 112.3051567 | AD60: 0 | AE60: 0 | AF60: 0 | AG60: 1250.443293 | AH60: 4137.458598 | AI60: 9561.037515 | AJ60: 0 | AK60: 8755.650592 | AL60: 22454.14671 | AM60: 4351.021612 | AN60: 229.8342614 | AO60: 0 | AP60: 0 | AQ60: 4580.855873 | AR60: 4137.458598 | AS60: 1.107166577 | AT60: 4351.021612 | AU60: 272.0553093 | AV60: 0 | AW60: 0 | AX60: 4623.076921 | AY60: 9561.037515 | AZ60: 0.4835329758 | BA60: 4351.021612 | BB60: 501.8895707 | BC60: 0 | BD60: 0 | BE60: 4852.911183 | BF60: 13698.49611 | BG60: 117.0993236 | BH60: 0.3542659824 | BI60: 36.71349915 | BJ60: 84.83931244 | BK60: 0 | BL60: 77.69275824 | BM60: 199.2455698 | BN60: 4351.021612 | BO60: 0 | BP60: 501.8895707 | BQ60: 0 | BR60: 0 | BS60: 0 | BT60: 0 | BU60: 0 | BV60: -2304.919348 | BW60: 0 | BX60: 21091.39826 | BZ60: 112.3051567 | CA60: 1250.443293 | CB60: 2547.991834 | CC60: 22454.14671 | CD60: 0.1960054217 | CE60: 215.2446501 | CF60: 78.77880084 | CG60: 0 | CH60: 78.77880084 | CI60: 3.938869625 | CJ60: 0 | CK60: 3.938869625 | CM60: 0 | CO60: 0 | CP60: 0 | CQ60: 0 | CR60: 0 | CS60: 0 | CT60: 0 | CU60: 0 | CV60: 9999 | CW60: 9999
A61: Boise-RES-(Low Quartile)-(2014) | B61: Boise-RES-(Low Quartile)-(2014) | C61: 25 | D61: 7723 | E61: 0 | F61: 19610 | G61: 8.26361 | H61: 1250.443293 | I61: Residential-RES-SolarPV-Boise | L61: 8292.357105 | M61: 0.6504464322 | N61: 0.6457518015 | O61: 0 | P61: 0 | Q61: 0 | R61: 3401.910403 | S61: 7861.297513 | T61: 0 | U61: 6078.608428 | V61: (na) | W61: (na) | X61: (na) | Y61: (na) | Z61: 0 | AA61: 0 | AB61: 0 | AC61: 112.3051567 | AD61: 0 | AE61: 0 | AF61: 0 | AG61: 1250.443293 | AH61: 3401.910403 | AI61: 7861.297513 | AJ61: 0 | AK61: 7441.356878 | AL61: 18704.56479 | AM61: 4351.021612 | AN61: 229.8342614 | AO61: 0 | AP61: 0 | AQ61: 4580.855873 | AR61: 3401.910403 | AS61: 1.346553945 | AT61: 4351.021612 | AU61: 272.0553093 | AV61: 0 | AW61: 0 | AX61: 4623.076921 | AY61: 7861.297513 | AZ61: 0.5880806462 | BA61: 4351.021612 | BB61: 501.8895707 | BC61: 0 | BD61: 0 | BE61: 4852.911183 | BF61: 11263.20792 | BG61: 95.48993484 | BH61: 0.4308640326 | BI61: 30.18665486 | BJ61: 69.75676801 | BK61: 0 | BL61: 66.03044912 | BM61: 165.973872 | BN61: 4351.021612 | BO61: 0 | BP61: 501.8895707 | BQ61: 0 | BR61: 0 | BS61: 0 | BT61: 0 | BU61: 0 | BV61: -2304.919348 | BW61: 0 | BX61: 17341.81634 | BZ61: 112.3051567 | CA61: 1250.443293 | CB61: 2547.991834 | CC61: 18704.56479 | CD61: 0.2309866891 | CE61: 181.9729523 | CF61: 78.77880084 | CG61: 0 | CH61: 78.77880084 | CI61: 3.938869625 | CJ61: 0 | CK61: 3.938869625 | CM61: 0 | CO61: 0 | CP61: 0 | CQ61: 0 | CR61: 0 | CS61: 0 | CT61: 0 | CU61: 0 | CV61: 9999 | CW61: 9999
A62: Boise-COM-(Average)-(2014) | B62: Boise-COM-(Average)-(2014) | C62: 25 | D62: 7723 | E62: 0 | F62: 19610 | G62: 8.26361 | H62: 886.2875716 | I62: Residential-RES-SolarPV-Boise | L62: 8292.357105 | M62: 0.6504464322 | N62: 0.6457518015 | O62: 0 | P62: 0 | Q62: 0 | R62: 3401.910403 | S62: 7861.297513 | T62: 0 | U62: 6078.608428 | V62: (na) | W62: (na) | X62: (na) | Y62: (na) | Z62: 0 | AA62: 0 | AB62: 0 | AC62: 112.3051567 | AD62: 0 | AE62: 0 | AF62: 0 | AG62: 886.2875716 | AH62: 3401.910403 | AI62: 7861.297513 | AJ62: 0 | AK62: 7077.201156 | AL62: 18340.40907 | AM62: 4351.021612 | AN62: 229.8342614 | AO62: 0 | AP62: 0 | AQ62: 4580.855873 | AR62: 3401.910403 | AS62: 1.346553945 | AT62: 4351.021612 | AU62: 272.0553093 | AV62: 0 | AW62: 0 | AX62: 4623.076921 | AY62: 7861.297513 | AZ62: 0.5880806462 | BA62: 4351.021612 | BB62: 501.8895707 | BC62: 0 | BD62: 0 | BE62: 4852.911183 | BF62: 11263.20792 | BG62: 95.48993484 | BH62: 0.4308640326 | BI62: 30.18665486 | BJ62: 69.75676801 | BK62: 0 | BL62: 62.79913442 | BM62: 162.7425573 | BN62: 4351.021612 | BO62: 0 | BP62: 501.8895707 | BQ62: 0 | BR62: 0 | BS62: 0 | BT62: 0 | BU62: 0 | BV62: -1692.675146 | BW62: 0 | BX62: 17341.81634 | BZ62: 112.3051567 | CA62: 886.2875716 | CB62: 3160.236036 | CC62: 18340.40907 | CD62: 0.2422448351 | CE62: 173.3089241 | CF62: 78.77880084 | CG62: 0 | CH62: 78.77880084 | CI62: 3.938869625 | CJ62: 0 | CK62: 3.938869625 | CM62: 0 | CO62: 0 | CP62: 0 | CQ62: 0 | CR62: 0 | CS62: 0 | CT62: 0 | CU62: 0 | CV62: 9999 | CW62: 9999
A63: Boise-COM-(Low Quartile)-(2014) | B63: Boise-COM-(Low Quartile)-(2014) | C63: 25 | D63: 7723 | E63: 0 | F63: 14840 | G63: 8.26361 | H63: 886.2875716 | I63: Residential-RES-SolarPV-Boise | L63: 8292.357105 | M63: 0.6504464322 | N63: 0.6457518015 | O63: 0 | P63: 0 | Q63: 0 | R63: 2574.418683 | S63: 5949.09001 | T63: 0 | U63: 4600.028 | V63: (na) | W63: (na) | X63: (na) | Y63: (na) | Z63: 0 | AA63: 0 | AB63: 0 | AC63: 112.3051567 | AD63: 0 | AE63: 0 | AF63: 0 | AG63: 886.2875716 | AH63: 2574.418683 | AI63: 5949.09001 | AJ63: 0 | AK63: 5598.620728 | AL63: 14122.12942 | AM63: 4351.021612 | AN63: 229.8342614 | AO63: 0 | AP63: 0 | AQ63: 4580.855873 | AR63: 2574.418683 | AS63: 1.779374856 | AT63: 4351.021612 | AU63: 272.0553093 | AV63: 0 | AW63: 0 | AX63: 4623.076921 | AY63: 5949.09001 | AZ63: 0.7771065682 | BA63: 4351.021612 | BB63: 501.8895707 | BC63: 0 | BD63: 0 | BE63: 4852.911183 | BF63: 8523.508693 | BG63: 71.17937252 | BH63: 0.5693560431 | BI63: 22.84395503 | BJ63: 52.78890552 | BK63: 0 | BL63: 49.67903666 | BM63: 125.3118972 | BN63: 4351.021612 | BO63: 0 | BP63: 501.8895707 | BQ63: 0 | BR63: 0 | BS63: 0 | BT63: 0 | BU63: 0 | BV63: -1692.675146 | BW63: 0 | BX63: 13123.53669 | BZ63: 112.3051567 | CA63: 886.2875716 | CB63: 3160.236036 | CC63: 14122.12942 | CD63: 0.3068587514 | CE63: 135.878264 | CF63: 78.77880084 | CG63: 0 | CH63: 78.77880084 | CI63: 3.938869625 | CJ63: 0 | CK63: 3.938869625 | CM63: 0 | CO63: 0 | CP63: 0 | CQ63: 0 | CR63: 0 | CS63: 0 | CT63: 0 | CU63: 0 | CV63: 9999 | CW63: 9999
A64: Boise-RES-(Average)-(Fed Tax Credit) | B64: Boise-RES-(Average)-(Fed Tax Credit) | C64: 25 | D64: 7723 | E64: 0 | F64: 21465 | G64: 8.26361 | H64: 1250.443293 | I64: Residential-RES-SolarPV-Boise | L64: 8292.357105 | M64: 0.6504464322 | N64: 0.6457518015 | O64: 0 | P64: 0 | Q64: 0 | R64: 3723.712738 | S64: 8604.933764 | T64: 0 | U64: 6653.611928 | V64: (na) | W64: (na) | X64: (na) | Y64: (na) | Z64: 0 | AA64: 0 | AB64: 0 | AC64: 112.3051567 | AD64: 0 | AE64: 0 | AF64: 0 | AG64: 1250.443293 | AH64: 3723.712738 | AI64: 8604.933764 | AJ64: 0 | AK64: 8016.360378 | AL64: 20345.00688 | AM64: 4351.021612 | AN64: 229.8342614 | AO64: 0 | AP64: 0 | AQ64: 4580.855873 | AR64: 3723.712738 | AS64: 1.230185086 | AT64: 4351.021612 | AU64: 272.0553093 | AV64: 0 | AW64: 0 | AX64: 4623.076921 | AY64: 8604.933764 | AZ64: 0.537258862 | BA64: 4351.021612 | BB64: 501.8895707 | BC64: 0 | BD64: 0 | BE64: 4852.911183 | BF64: 12328.6465 | BG64: 104.9440424 | BH64: 0.3936288693 | BI64: 33.04214924 | BJ64: 76.3553812 | BK64: 0 | BL64: 71.13270936 | BM64: 180.5302398 | BN64: 4351.021612 | BO64: 0 | BP64: 501.8895707 | BQ64: 0 | BR64: 0 | BS64: 0 | BT64: 0 | BU64: 0 | BV64: -2304.919348 | BW64: 0 | BX64: 18982.25843 | BZ64: 112.3051567 | CA64: 1250.443293 | CB64: 2547.991834 | CC64: 20345.00688 | CD64: 0.2142572622 | CE64: 196.5293201 | CF64: 78.77880084 | CG64: 0 | CH64: 78.77880084 | CI64: 3.938869625 | CJ64: 0 | CK64: 3.938869625 | CM64: 0 | CO64: 0 | CP64: 0 | CQ64: 0 | CR64: 0 | CS64: 0 | CT64: 0 | CU64: 0 | CV64: 9999 | CW64: 9999
A65: Boise-RES-(Low Quartile)-(Fed Tax Credit) | B65: Boise-RES-(Low Quartile)-(Fed Tax Credit) | C65: 25 | D65: 7723 | E65: 0 | F65: 17649 | G65: 8.26361 | H65: 1250.443293 | I65: Residential-RES-SolarPV-Boise | L65: 8292.357105 | M65: 0.6504464322 | N65: 0.6457518015 | O65: 0 | P65: 0 | Q65: 0 | R65: 3061.719362 | S65: 7075.167761 | T65: 0 | U65: 5470.747585 | V65: (na) | W65: (na) | X65: (na) | Y65: (na) | Z65: 0 | AA65: 0 | AB65: 0 | AC65: 112.3051567 | AD65: 0 | AE65: 0 | AF65: 0 | AG65: 1250.443293 | AH65: 3061.719362 | AI65: 7075.167761 | AJ65: 0 | AK65: 6833.496035 | AL65: 16970.38316 | AM65: 4351.021612 | AN65: 229.8342614 | AO65: 0 | AP65: 0 | AQ65: 4580.855873 | AR65: 3061.719362 | AS65: 1.49617105 | AT65: 4351.021612 | AU65: 272.0553093 | AV65: 0 | AW65: 0 | AX65: 4623.076921 | AY65: 7075.167761 | AZ65: 0.6534229402 | BA65: 4351.021612 | BB65: 501.8895707 | BC65: 0 | BD65: 0 | BE65: 4852.911183 | BF65: 10136.88712 | BG65: 85.49559255 | BH65: 0.478737814 | BI65: 27.16798937 | BJ65: 62.78109121 | BK65: 0 | BL65: 60.63663115 | BM65: 150.5857117 | BN65: 4351.021612 | BO65: 0 | BP65: 501.8895707 | BQ65: 0 | BR65: 0 | BS65: 0 | BT65: 0 | BU65: 0 | BV65: -2304.919348 | BW65: 0 | BX65: 15607.63471 | BZ65: 112.3051567 | CA65: 1250.443293 | CB65: 2547.991834 | CC65: 16970.38316 | CD65: 0.2517683539 | CE65: 166.584792 | CF65: 78.77880084 | CG65: 0 | CH65: 78.77880084 | CI65: 3.938869625 | CJ65: 0 | CK65: 3.938869625 | CM65: 0 | CO65: 0 | CP65: 0 | CQ65: 0 | CR65: 0 | CS65: 0 | CT65: 0 | CU65: 0 | CV65: 9999 | CW65: 9999
A66: Boise-COM-(Average)-(Fed Tax Credit) | B66: Boise-COM-(Average)-(Fed Tax Credit) | C66: 25 | D66: 7723 | E66: 0 | F66: 17649 | G66: 8.26361 | H66: 886.2875716 | I66: Residential-RES-SolarPV-Boise | L66: 8292.357105 | M66: 0.6504464322 | N66: 0.6457518015 | O66: 0 | P66: 0 | Q66: 0 | R66: 3061.719362 | S66: 7075.167761 | T66: 0 | U66: 5470.747585 | V66: (na) | W66: (na) | X66: (na) | Y66: (na) | Z66: 0 | AA66: 0 | AB66: 0 | AC66: 112.3051567 | AD66: 0 | AE66: 0 | AF66: 0 | AG66: 886.2875716 | AH66: 3061.719362 | AI66: 7075.167761 | AJ66: 0 | AK66: 6469.340314 | AL66: 16606.22744 | AM66: 4351.021612 | AN66: 229.8342614 | AO66: 0 | AP66: 0 | AQ66: 4580.855873 | AR66: 3061.719362 | AS66: 1.49617105 | AT66: 4351.021612 | AU66: 272.0553093 | AV66: 0 | AW66: 0 | AX66: 4623.076921 | AY66: 7075.167761 | AZ66: 0.6534229402 | BA66: 4351.021612 | BB66: 501.8895707 | BC66: 0 | BD66: 0 | BE66: 4852.911183 | BF66: 10136.88712 | BG66: 85.49559255 | BH66: 0.478737814 | BI66: 27.16798937 | BJ66: 62.78109121 | BK66: 0 | BL66: 57.40531645 | BM66: 147.354397 | BN66: 4351.021612 | BO66: 0 | BP66: 501.8895707 | BQ66: 0 | BR66: 0 | BS66: 0 | BT66: 0 | BU66: 0 | BV66: -1692.675146 | BW66: 0 | BX66: 15607.63471 | BZ66: 112.3051567 | CA66: 886.2875716 | CB66: 3160.236036 | CC66: 16606.22744 | CD66: 0.2652023071 | CE66: 157.9207638 | CF66: 78.77880084 | CG66: 0 | CH66: 78.77880084 | CI66: 3.938869625 | CJ66: 0 | CK66: 3.938869625 | CM66: 0 | CO66: 0 | CP66: 0 | CQ66: 0 | CR66: 0 | CS66: 0 | CT66: 0 | CU66: 0 | CV66: 9999 | CW66: 9999
A67: Boise-COM-(Low Quartile)-(Fed Tax Credit) | B67: Boise-COM-(Low Quartile)-(Fed Tax Credit) | C67: 25 | D67: 7723 | E67: 0 | F67: 13356 | G67: 8.26361 | H67: 886.2875716 | I67: Residential-RES-SolarPV-Boise | L67: 8292.357105 | M67: 0.6504464322 | N67: 0.6457518015 | O67: 0 | P67: 0 | Q67: 0 | R67: 2316.976815 | S67: 5354.181009 | T67: 0 | U67: 4140.0252 | V67: (na) | W67: (na) | X67: (na) | Y67: (na) | Z67: 0 | AA67: 0 | AB67: 0 | AC67: 112.3051567 | AD67: 0 | AE67: 0 | AF67: 0 | AG67: 886.2875716 | AH67: 2316.976815 | AI67: 5354.181009 | AJ67: 0 | AK67: 5138.617928 | AL67: 12809.77575 | AM67: 4351.021612 | AN67: 229.8342614 | AO67: 0 | AP67: 0 | AQ67: 4580.855873 | AR67: 2316.976815 | AS67: 1.977083173 | AT67: 4351.021612 | AU67: 272.0553093 | AV67: 0 | AW67: 0 | AX67: 4623.076921 | AY67: 5354.181009 | AZ67: 0.8634517424 | BA67: 4351.021612 | BB67: 501.8895707 | BC67: 0 | BD67: 0 | BE67: 4852.911183 | BF67: 7671.157823 | BG67: 63.61608647 | BH67: 0.6326178257 | BI67: 20.55955952 | BJ67: 47.51001497 | BK67: 0 | BL67: 45.59722846 | BM67: 113.666803 | BN67: 4351.021612 | BO67: 0 | BP67: 501.8895707 | BQ67: 0 | BR67: 0 | BS67: 0 | BT67: 0 | BU67: 0 | BV67: -1692.675146 | BW67: 0 | BX67: 11811.18302 | BZ67: 112.3051567 | CA67: 886.2875716 | CB67: 3160.236036 | CC67: 12809.77575 | CD67: 0.3346269687 | CE67: 124.2331698 | CF67: 78.77880084 | CG67: 0 | CH67: 78.77880084 | CI67: 3.938869625 | CJ67: 0 | CK67: 3.938869625 | CM67: 0 | CO67: 0 | CP67: 0 | CQ67: 0 | CR67: 0 | CS67: 0 | CT67: 0 | CU67: 0 | CV67: 9999 | CW67: 9999
A68: Boise-RES-(Average)-(2025) | B68: Boise-RES-(Average)-(2025) | C68: 25 | D68: 7723 | E68: 0 | F68: 15672.09114 | G68: 8.26361 | H68: 1250.443293 | I68: Residential-RES-SolarPV-Boise | L68: 8292.357105 | M68: 0.6504464322 | N68: 0.6457518015 | O68: 0 | P68: 0 | Q68: 0 | R68: 2718.768479 | S68: 6282.660433 | T68: 0 | U68: 4857.955395 | V68: (na) | W68: (na) | X68: (na) | Y68: (na) | Z68: 0 | AA68: 0 | AB68: 0 | AC68: 112.3051567 | AD68: 0 | AE68: 0 | AF68: 0 | AG68: 1250.443293 | AH68: 2718.768479 | AI68: 6282.660433 | AJ68: 0 | AK68: 6220.703845 | AL68: 15222.13276 | AM68: 4351.021612 | AN68: 229.8342614 | AO68: 0 | AP68: 0 | AQ68: 4580.855873 | AR68: 2718.768479 | AS68: 1.684901053 | AT68: 4351.021612 | AU68: 272.0553093 | AV68: 0 | AW68: 0 | AX68: 4623.076921 | AY68: 6282.660433 | AZ68: 0.7358470142 | BA68: 4351.021612 | BB68: 501.8895707 | BC68: 0 | BD68: 0 | BE68: 4852.911183 | BF68: 9001.428913 | BG68: 75.4201699 | BH68: 0.5391267575 | BI68: 24.12483458 | BJ68: 55.74882335 | BK68: 0 | BL68: 55.19905515 | BM68: 135.0727131 | BN68: 4351.021612 | BO68: 0 | BP68: 501.8895707 | BQ68: 0 | BR68: 0 | BS68: 0 | BT68: 0 | BU68: 0 | BV68: -2304.919348 | BW68: 0 | BX68: 13859.38431 | BZ68: 112.3051567 | CA68: 1250.443293 | CB68: 2547.991834 | CC68: 15222.13276 | CD68: 0.2768811979 | CE68: 151.0717933 | CF68: 78.77880084 | CG68: 0 | CH68: 78.77880084 | CI68: 3.938869625 | CJ68: 0 | CK68: 3.938869625 | CM68: 0 | CO68: 0 | CP68: 0 | CQ68: 0 | CR68: 0 | CS68: 0 | CT68: 0 | CU68: 0 | CV68: 9999 | CW68: 9999
A69: Boise-COM-(Average)-(2025) | B69: Boise-COM-(Average)-(2025) | C69: 25 | D69: 7723 | E69: 0 | F69: 12885.9416 | G69: 8.26361 | H69: 886.2875716 | I69: Residential-RES-SolarPV-Boise | L69: 8292.357105 | M69: 0.6504464322 | N69: 0.6457518015 | O69: 0 | P69: 0 | Q69: 0 | R69: 2235.431861 | S69: 5165.743023 | T69: 0 | U69: 3994.31888 | V69: (na) | W69: (na) | X69: (na) | Y69: (na) | Z69: 0 | AA69: 0 | AB69: 0 | AC69: 112.3051567 | AD69: 0 | AE69: 0 | AF69: 0 | AG69: 886.2875716 | AH69: 2235.431861 | AI69: 5165.743023 | AJ69: 0 | AK69: 4992.911608 | AL69: 12394.08649 | AM69: 4351.021612 | AN69: 229.8342614 | AO69: 0 | AP69: 0 | AQ69: 4580.855873 | AR69: 2235.431861 | AS69: 2.049203983 | AT69: 4351.021612 | AU69: 272.0553093 | AV69: 0 | AW69: 0 | AX69: 4623.076921 | AY69: 5165.743023 | AZ69: 0.8949490713 | BA69: 4351.021612 | BB69: 501.8895707 | BC69: 0 | BD69: 0 | BE69: 4852.911183 | BF69: 7401.174884 | BG69: 61.22040849 | BH69: 0.6556947051 | BI69: 19.8359751 | BJ69: 45.83792142 | BK69: 0 | BL69: 44.30431188 | BM69: 109.9782084 | BN69: 4351.021612 | BO69: 0 | BP69: 501.8895707 | BQ69: 0 | BR69: 0 | BS69: 0 | BT69: 0 | BU69: 0 | BV69: -1692.675146 | BW69: 0 | BX69: 11395.49376 | BZ69: 112.3051567 | CA69: 886.2875716 | CB69: 3160.236036 | CC69: 12394.08649 | CD69: 0.3445015474 | CE69: 120.5445752 | CF69: 78.77880084 | CG69: 0 | CH69: 78.77880084 | CI69: 3.938869625 | CJ69: 0 | CK69: 3.938869625 | CM69: 0 | CO69: 0 | CP69: 0 | CQ69: 0 | CR69: 0 | CS69: 0 | CT69: 0 | CU69: 0 | CV69: 9999 | CW69: 9999
A70: Boise-RES-(Average)-(2035) | B70: Boise-RES-(Average)-(2035) | C70: 25 | D70: 7723 | E70: 0 | F70: 14178.60484 | G70: 8.26361 | H70: 1250.443293 | I70: Residential-RES-SolarPV-Boise | L70: 8292.357105 | M70: 0.6504464322 | N70: 0.6457518015 | O70: 0 | P70: 0 | Q70: 0 | R70: 2459.680944 | S70: 5683.948545 | T70: 0 | U70: 4395.01208 | V70: (na) | W70: (na) | X70: (na) | Y70: (na) | Z70: 0 | AA70: 0 | AB70: 0 | AC70: 112.3051567 | AD70: 0 | AE70: 0 | AF70: 0 | AG70: 1250.443293 | AH70: 2459.680944 | AI70: 5683.948545 | AJ70: 0 | AK70: 5757.76053 | AL70: 13901.39002 | AM70: 4351.021612 | AN70: 229.8342614 | AO70: 0 | AP70: 0 | AQ70: 4580.855873 | AR70: 2459.680944 | AS70: 1.86237808 | AT70: 4351.021612 | AU70: 272.0553093 | AV70: 0 | AW70: 0 | AX70: 4623.076921 | AY70: 5683.948545 | AZ70: 0.813356575 | BA70: 4351.021612 | BB70: 501.8895707 | BC70: 0 | BD70: 0 | BE70: 4852.911183 | BF70: 8143.629489 | BG70: 67.80853642 | BH70: 0.5959150265 | BI70: 21.82583634 | BJ70: 50.4361881 | BK70: 0 | BL70: 51.09115447 | BM70: 123.3531789 | BN70: 4351.021612 | BO70: 0 | BP70: 501.8895707 | BQ70: 0 | BR70: 0 | BS70: 0 | BT70: 0 | BU70: 0 | BV70: -2304.919348 | BW70: 0 | BX70: 12538.64157 | BZ70: 112.3051567 | CA70: 1250.443293 | CB70: 2547.991834 | CC70: 13901.39002 | CD70: 0.2994457944 | CE70: 139.3522592 | CF70: 78.77880084 | CG70: 0 | CH70: 78.77880084 | CI70: 3.938869625 | CJ70: 0 | CK70: 3.938869625 | CM70: 0 | CO70: 0 | CP70: 0 | CQ70: 0 | CR70: 0 | CS70: 0 | CT70: 0 | CU70: 0 | CV70: 9999 | CW70: 9999
A71: Boise-COM-(Average)-(2035) | B71: Boise-COM-(Average)-(2035) | C71: 25 | D71: 7723 | E71: 0 | F71: 10492.16758 | G71: 8.26361 | H71: 886.2875716 | I71: Residential-RES-SolarPV-Boise | L71: 8292.357105 | M71: 0.6504464322 | N71: 0.6457518015 | O71: 0 | P71: 0 | Q71: 0 | R71: 1820.163898 | S71: 4206.121924 | T71: 0 | U71: 3252.308939 | V71: (na) | W71: (na) | X71: (na) | Y71: (na) | Z71: 0 | AA71: 0 | AB71: 0 | AC71: 112.3051567 | AD71: 0 | AE71: 0 | AF71: 0 | AG71: 886.2875716 | AH71: 1820.163898 | AI71: 4206.121924 | AJ71: 0 | AK71: 4250.901668 | AL71: 10277.18749 | AM71: 4351.021612 | AN71: 229.8342614 | AO71: 0 | AP71: 0 | AQ71: 4580.855873 | AR71: 1820.163898 | AS71: 2.516727135 | AT71: 4351.021612 | AU71: 272.0553093 | AV71: 0 | AW71: 0 | AX71: 4623.076921 | AY71: 4206.121924 | AZ71: 1.099130507 | BA71: 4351.021612 | BB71: 501.8895707 | BC71: 0 | BD71: 0 | BE71: 4852.911183 | BF71: 6026.285822 | BG71: 49.02041006 | BH71: 0.8052905763 | BI71: 16.15111889 | BJ71: 37.32277919 | BK71: 0 | BL71: 37.72012966 | BM71: 91.19402775 | BN71: 4351.021612 | BO71: 0 | BP71: 501.8895707 | BQ71: 0 | BR71: 0 | BS71: 0 | BT71: 0 | BU71: 0 | BV71: -1692.675146 | BW71: 0 | BX71: 9278.594761 | BZ71: 112.3051567 | CA71: 886.2875716 | CB71: 3160.236036 | CC71: 10277.18749 | CD71: 0.4054274748 | CE71: 101.7603946 | CF71: 78.77880084 | CG71: 0 | CH71: 78.77880084 | CI71: 3.938869625 | CJ71: 0 | CK71: 3.938869625 | CM71: 0 | CO71: 0 | CP71: 0 | CQ71: 0 | CR71: 0 | CS71: 0 | CT71: 0 | CU71: 0 | CV71: 9999 | CW71: 9999
A72: Portland-RES-(Average)-(2014) | B72: Portland-RES-(Average)-(2014) | C72: 25 | D72: 6043 | E72: 0 | F72: 23850 | G72: 6.46601 | H72: 1250.443293 | I72: Residential-RES-SolarPV-Portland | L72: 6486.238194 | M72: 0.1038118717 | N72: 0.1030626042 | O72: 0 | P72: 0 | Q72: 0 | R72: 4137.458598 | S72: 9561.037515 | T72: 0 | U72: 7392.902142 | V72: (na) | W72: (na) | X72: (na) | Y72: (na) | Z72: 0 | AA72: 0 | AB72: 0 | AC72: 87.87518605 | AD72: 0 | AE72: 0 | AF72: 0 | AG72: 1250.443293 | AH72: 4137.458598 | AI72: 9561.037515 | AJ72: 0 | AK72: 8731.220622 | AL72: 22429.71673 | AM72: 3387.892811 | AN72: 36.68176759 | AO72: 0 | AP72: 0 | AQ72: 3424.574578 | AR72: 4137.458598 | AS72: 0.8277000234 | AT72: 3387.892811 | AU72: 43.42028716 | AV72: 0 | AW72: 0 | AX72: 3431.313098 | AY72: 9561.037515 | AZ72: 0.3588850156 | BA72: 3387.892811 | BB72: 80.10205475 | BC72: 0 | BD72: 0 | BE72: 3467.994865 | BF72: 13698.49611 | BG72: 154.4909764 | BH72: 0.2531661021 | BI72: 46.93651951 | BJ72: 108.4631576 | BK72: 0 | BL72: 99.04947623 | BM72: 254.4491533 | BN72: 3387.892811 | BO72: 0 | BP72: 80.10205475 | BQ72: 0 | BR72: 0 | BS72: 0 | BT72: 0 | BU72: 0 | BV72: -2304.919348 | BW72: 0 | BX72: 21091.39826 | BZ72: 87.87518605 | CA72: 1250.443293 | CB72: 1163.075517 | CC72: 22429.71673 | CD72: 0.1402080408 | CE72: 279.6881201 | CF72: 61.62033604 | CG72: 0 | CH72: 61.62033604 | CI72: 3.080963142 | CJ72: 0 | CK72: 3.080963142 | CM72: 0 | CO72: 0 | CP72: 0 | CQ72: 0 | CR72: 0 | CS72: 0 | CT72: 0 | CU72: 0 | CV72: 9999 | CW72: 9999
A73: Portland-RES-(Low Quartile)-(2014) | B73: Portland-RES-(Low Quartile)-(2014) | C73: 25 | D73: 6043 | E73: 0 | F73: 19610 | G73: 6.46601 | H73: 1250.443293 | I73: Residential-RES-SolarPV-Portland | L73: 6486.238194 | M73: 0.1038118717 | N73: 0.1030626042 | O73: 0 | P73: 0 | Q73: 0 | R73: 3401.910403 | S73: 7861.297513 | T73: 0 | U73: 6078.608428 | V73: (na) | W73: (na) | X73: (na) | Y73: (na) | Z73: 0 | AA73: 0 | AB73: 0 | AC73: 87.87518605 | AD73: 0 | AE73: 0 | AF73: 0 | AG73: 1250.443293 | AH73: 3401.910403 | AI73: 7861.297513 | AJ73: 0 | AK73: 7416.926907 | AL73: 18680.13482 | AM73: 3387.892811 | AN73: 36.68176759 | AO73: 0 | AP73: 0 | AQ73: 3424.574578 | AR73: 3401.910403 | AS73: 1.006662191 | AT73: 3387.892811 | AU73: 43.42028716 | AV73: 0 | AW73: 0 | AX73: 3431.313098 | AY73: 7861.297513 | AZ73: 0.4364817757 | BA73: 3387.892811 | BB73: 80.10205475 | BC73: 0 | BD73: 0 | BE73: 3467.994865 | BF73: 11263.20792 | BG73: 126.8643671 | BH73: 0.3079047187 | BI73: 38.59224937 | BJ73: 89.18081845 | BK73: 0 | BL73: 84.13975058 | BM73: 211.9128184 | BN73: 3387.892811 | BO73: 0 | BP73: 80.10205475 | BQ73: 0 | BR73: 0 | BS73: 0 | BT73: 0 | BU73: 0 | BV73: -2304.919348 | BW73: 0 | BX73: 17341.81634 | BZ73: 87.87518605 | CA73: 1250.443293 | CB73: 1163.075517 | CC73: 18680.13482 | CD73: 0.1652602294 | CE73: 237.1517852 | CF73: 61.62033604 | CG73: 0 | CH73: 61.62033604 | CI73: 3.080963142 | CJ73: 0 | CK73: 3.080963142 | CM73: 0 | CO73: 0 | CP73: 0 | CQ73: 0 | CR73: 0 | CS73: 0 | CT73: 0 | CU73: 0 | CV73: 9999 | CW73: 9999
A74: Portland-COM-(Average)-(2014) | B74: Portland-COM-(Average)-(2014) | C74: 25 | D74: 6043 | E74: 0 | F74: 19610 | G74: 6.46601 | H74: 886.2875716 | I74: Residential-RES-SolarPV-Portland | L74: 6486.238194 | M74: 0.1038118717 | N74: 0.1030626042 | O74: 0 | P74: 0 | Q74: 0 | R74: 3401.910403 | S74: 7861.297513 | T74: 0 | U74: 6078.608428 | V74: (na) | W74: (na) | X74: (na) | Y74: (na) | Z74: 0 | AA74: 0 | AB74: 0 | AC74: 87.87518605 | AD74: 0 | AE74: 0 | AF74: 0 | AG74: 886.2875716 | AH74: 3401.910403 | AI74: 7861.297513 | AJ74: 0 | AK74: 7052.771186 | AL74: 18315.9791 | AM74: 3387.892811 | AN74: 36.68176759 | AO74: 0 | AP74: 0 | AQ74: 3424.574578 | AR74: 3401.910403 | AS74: 1.006662191 | AT74: 3387.892811 | AU74: 43.42028716 | AV74: 0 | AW74: 0 | AX74: 3431.313098 | AY74: 7861.297513 | AZ74: 0.4364817757 | BA74: 3387.892811 | BB74: 80.10205475 | BC74: 0 | BD74: 0 | BE74: 3467.994865 | BF74: 11263.20792 | BG74: 126.8643671 | BH74: 0.3079047187 | BI74: 38.59224937 | BJ74: 89.18081845 | BK74: 0 | BL74: 80.00866341 | BM74: 207.7817312 | BN74: 3387.892811 | BO74: 0 | BP74: 80.10205475 | BQ74: 0 | BR74: 0 | BS74: 0 | BT74: 0 | BU74: 0 | BV74: -1692.675146 | BW74: 0 | BX74: 17341.81634 | BZ74: 87.87518605 | CA74: 886.2875716 | CB74: 1775.319719 | CC74: 18315.9791 | CD74: 0.1733247435 | CE74: 226.0752239 | CF74: 61.62033604 | CG74: 0 | CH74: 61.62033604 | CI74: 3.080963142 | CJ74: 0 | CK74: 3.080963142 | CM74: 0 | CO74: 0 | CP74: 0 | CQ74: 0 | CR74: 0 | CS74: 0 | CT74: 0 | CU74: 0 | CV74: 9999 | CW74: 9999
A75: Portland-COM-(Low Quartile)-(2014) | B75: Portland-COM-(Low Quartile)-(2014) | C75: 25 | D75: 6043 | E75: 0 | F75: 14840 | G75: 6.46601 | H75: 886.2875716 | I75: Residential-RES-SolarPV-Portland | L75: 6486.238194 | M75: 0.1038118717 | N75: 0.1030626042 | O75: 0 | P75: 0 | Q75: 0 | R75: 2574.418683 | S75: 5949.09001 | T75: 0 | U75: 4600.028 | V75: (na) | W75: (na) | X75: (na) | Y75: (na) | Z75: 0 | AA75: 0 | AB75: 0 | AC75: 87.87518605 | AD75: 0 | AE75: 0 | AF75: 0 | AG75: 886.2875716 | AH75: 2574.418683 | AI75: 5949.09001 | AJ75: 0 | AK75: 5574.190757 | AL75: 14097.69945 | AM75: 3387.892811 | AN75: 36.68176759 | AO75: 0 | AP75: 0 | AQ75: 3424.574578 | AR75: 2574.418683 | AS75: 1.33023218 | AT75: 3387.892811 | AU75: 43.42028716 | AV75: 0 | AW75: 0 | AX75: 3431.313098 | AY75: 5949.09001 | AZ75: 0.5767794893 | BA75: 3387.892811 | BB75: 80.10205475 | BC75: 0 | BD75: 0 | BE75: 3467.994865 | BF75: 8523.508693 | BG75: 95.78443168 | BH75: 0.4068740926 | BI75: 29.20494547 | BJ75: 67.48818694 | BK75: 0 | BL75: 63.23522207 | BM75: 159.9283545 | BN75: 3387.892811 | BO75: 0 | BP75: 80.10205475 | BQ75: 0 | BR75: 0 | BS75: 0 | BT75: 0 | BU75: 0 | BV75: -1692.675146 | BW75: 0 | BX75: 13123.53669 | BZ75: 87.87518605 | CA75: 886.2875716 | CB75: 1775.319719 | CC75: 14097.69945 | CD75: 0.2196271434 | CE75: 178.2218471 | CF75: 61.62033604 | CG75: 0 | CH75: 61.62033604 | CI75: 3.080963142 | CJ75: 0 | CK75: 3.080963142 | CM75: 0 | CO75: 0 | CP75: 0 | CQ75: 0 | CR75: 0 | CS75: 0 | CT75: 0 | CU75: 0 | CV75: 9999 | CW75: 9999
A76: Portland-RES-(Average)-(Fed Tax Credit) | B76: Portland-RES-(Average)-(Fed Tax Credit) | C76: 25 | D76: 6043 | E76: 0 | F76: 21465 | G76: 6.46601 | H76: 1250.443293 | I76: Residential-RES-SolarPV-Portland | L76: 6486.238194 | M76: 0.1038118717 | N76: 0.1030626042 | O76: 0 | P76: 0 | Q76: 0 | R76: 3723.712738 | S76: 8604.933764 | T76: 0 | U76: 6653.611928 | V76: (na) | W76: (na) | X76: (na) | Y76: (na) | Z76: 0 | AA76: 0 | AB76: 0 | AC76: 87.87518605 | AD76: 0 | AE76: 0 | AF76: 0 | AG76: 1250.443293 | AH76: 3723.712738 | AI76: 8604.933764 | AJ76: 0 | AK76: 7991.930407 | AL76: 20320.57691 | AM76: 3387.892811 | AN76: 36.68176759 | AO76: 0 | AP76: 0 | AQ76: 3424.574578 | AR76: 3723.712738 | AS76: 0.9196666927 | AT76: 3387.892811 | AU76: 43.42028716 | AV76: 0 | AW76: 0 | AX76: 3431.313098 | AY76: 8604.933764 | AZ76: 0.3987611284 | BA76: 3387.892811 | BB76: 80.10205475 | BC76: 0 | BD76: 0 | BE76: 3467.994865 | BF76: 12328.6465 | BG76: 138.9510086 | BH76: 0.281295669 | BI76: 42.24286756 | BJ76: 97.61684182 | BK76: 0 | BL76: 90.66275555 | BM76: 230.5224649 | BN76: 3387.892811 | BO76: 0 | BP76: 80.10205475 | BQ76: 0 | BR76: 0 | BS76: 0 | BT76: 0 | BU76: 0 | BV76: -2304.919348 | BW76: 0 | BX76: 18982.25843 | BZ76: 87.87518605 | CA76: 1250.443293 | CB76: 1163.075517 | CC76: 20320.57691 | CD76: 0.153278179 | CE76: 255.7614318 | CF76: 61.62033604 | CG76: 0 | CH76: 61.62033604 | CI76: 3.080963142 | CJ76: 0 | CK76: 3.080963142 | CM76: 0 | CO76: 0 | CP76: 0 | CQ76: 0 | CR76: 0 | CS76: 0 | CT76: 0 | CU76: 0 | CV76: 9999 | CW76: 9999
A77: Portland-RES-(Low Quartile)-(Fed Tax Credit) | B77: Portland-RES-(Low Quartile)-(Fed Tax Credit) | C77: 25 | D77: 6043 | E77: 0 | F77: 17649 | G77: 6.46601 | H77: 1250.443293 | I77: Residential-RES-SolarPV-Portland | L77: 6486.238194 | M77: 0.1038118717 | N77: 0.1030626042 | O77: 0 | P77: 0 | Q77: 0 | R77: 3061.719362 | S77: 7075.167761 | T77: 0 | U77: 5470.747585 | V77: (na) | W77: (na) | X77: (na) | Y77: (na) | Z77: 0 | AA77: 0 | AB77: 0 | AC77: 87.87518605 | AD77: 0 | AE77: 0 | AF77: 0 | AG77: 1250.443293 | AH77: 3061.719362 | AI77: 7075.167761 | AJ77: 0 | AK77: 6809.066065 | AL77: 16945.95319 | AM77: 3387.892811 | AN77: 36.68176759 | AO77: 0 | AP77: 0 | AQ77: 3424.574578 | AR77: 3061.719362 | AS77: 1.118513545 | AT77: 3387.892811 | AU77: 43.42028716 | AV77: 0 | AW77: 0 | AX77: 3431.313098 | AY77: 7075.167761 | AZ77: 0.4849797508 | BA77: 3387.892811 | BB77: 80.10205475 | BC77: 0 | BD77: 0 | BE77: 3467.994865 | BF77: 10136.88712 | BG77: 114.0870603 | BH77: 0.3421163542 | BI77: 34.73302443 | BJ77: 80.26273661 | BK77: 0 | BL77: 77.24400247 | BM77: 192.2397635 | BN77: 3387.892811 | BO77: 0 | BP77: 80.10205475 | BQ77: 0 | BR77: 0 | BS77: 0 | BT77: 0 | BU77: 0 | BV77: -2304.919348 | BW77: 0 | BX77: 15607.63471 | BZ77: 87.87518605 | CA77: 1250.443293 | CB77: 1163.075517 | CC77: 16945.95319 | CD77: 0.180147412 | CE77: 217.4787303 | CF77: 61.62033604 | CG77: 0 | CH77: 61.62033604 | CI77: 3.080963142 | CJ77: 0 | CK77: 3.080963142 | CM77: 0 | CO77: 0 | CP77: 0 | CQ77: 0 | CR77: 0 | CS77: 0 | CT77: 0 | CU77: 0 | CV77: 9999 | CW77: 9999
A78: Portland-COM-(Average)-(Fed Tax Credit) | B78: Portland-COM-(Average)-(Fed Tax Credit) | C78: 25 | D78: 6043 | E78: 0 | F78: 17649 | G78: 6.46601 | H78: 886.2875716 | I78: Residential-RES-SolarPV-Portland | L78: 6486.238194 | M78: 0.1038118717 | N78: 0.1030626042 | O78: 0 | P78: 0 | Q78: 0 | R78: 3061.719362 | S78: 7075.167761 | T78: 0 | U78: 5470.747585 | V78: (na) | W78: (na) | X78: (na) | Y78: (na) | Z78: 0 | AA78: 0 | AB78: 0 | AC78: 87.87518605 | AD78: 0 | AE78: 0 | AF78: 0 | AG78: 886.2875716 | AH78: 3061.719362 | AI78: 7075.167761 | AJ78: 0 | AK78: 6444.910343 | AL78: 16581.79747 | AM78: 3387.892811 | AN78: 36.68176759 | AO78: 0 | AP78: 0 | AQ78: 3424.574578 | AR78: 3061.719362 | AS78: 1.118513545 | AT78: 3387.892811 | AU78: 43.42028716 | AV78: 0 | AW78: 0 | AX78: 3431.313098 | AY78: 7075.167761 | AZ78: 0.4849797508 | BA78: 3387.892811 | BB78: 80.10205475 | BC78: 0 | BD78: 0 | BE78: 3467.994865 | BF78: 10136.88712 | BG78: 114.0870603 | BH78: 0.3421163542 | BI78: 34.73302443 | BJ78: 80.26273661 | BK78: 0 | BL78: 73.1129153 | BM78: 188.1086763 | BN78: 3387.892811 | BO78: 0 | BP78: 80.10205475 | BQ78: 0 | BR78: 0 | BS78: 0 | BT78: 0 | BU78: 0 | BV78: -1692.675146 | BW78: 0 | BX78: 15607.63471 | BZ78: 87.87518605 | CA78: 886.2875716 | CB78: 1775.319719 | CC78: 16581.79747 | CD78: 0.1897726374 | CE78: 206.402169 | CF78: 61.62033604 | CG78: 0 | CH78: 61.62033604 | CI78: 3.080963142 | CJ78: 0 | CK78: 3.080963142 | CM78: 0 | CO78: 0 | CP78: 0 | CQ78: 0 | CR78: 0 | CS78: 0 | CT78: 0 | CU78: 0 | CV78: 9999 | CW78: 9999
A79: Portland-COM-(Low Quartile)-(Fed Tax Credit) | B79: Portland-COM-(Low Quartile)-(Fed Tax Credit) | C79: 25 | D79: 6043 | E79: 0 | F79: 13356 | G79: 6.46601 | H79: 886.2875716 | I79: Residential-RES-SolarPV-Portland | L79: 6486.238194 | M79: 0.1038118717 | N79: 0.1030626042 | O79: 0 | P79: 0 | Q79: 0 | R79: 2316.976815 | S79: 5354.181009 | T79: 0 | U79: 4140.0252 | V79: (na) | W79: (na) | X79: (na) | Y79: (na) | Z79: 0 | AA79: 0 | AB79: 0 | AC79: 87.87518605 | AD79: 0 | AE79: 0 | AF79: 0 | AG79: 886.2875716 | AH79: 2316.976815 | AI79: 5354.181009 | AJ79: 0 | AK79: 5114.187957 | AL79: 12785.34578 | AM79: 3387.892811 | AN79: 36.68176759 | AO79: 0 | AP79: 0 | AQ79: 3424.574578 | AR79: 2316.976815 | AS79: 1.478035756 | AT79: 3387.892811 | AU79: 43.42028716 | AV79: 0 | AW79: 0 | AX79: 3431.313098 | AY79: 5354.181009 | AZ79: 0.6408660992 | BA79: 3387.892811 | BB79: 80.10205475 | BC79: 0 | BD79: 0 | BE79: 3467.994865 | BF79: 7671.157823 | BG79: 86.11511843 | BH79: 0.4520823251 | BI79: 26.28445092 | BJ79: 60.73936824 | BK79: 0 | BL79: 58.01681809 | BM79: 145.0406373 | BN79: 3387.892811 | BO79: 0 | BP79: 80.10205475 | BQ79: 0 | BR79: 0 | BS79: 0 | BT79: 0 | BU79: 0 | BV79: -1692.675146 | BW79: 0 | BX79: 11811.18302 | BZ79: 87.87518605 | CA79: 886.2875716 | CB79: 1775.319719 | CC79: 12785.34578 | CD79: 0.2395351466 | CE79: 163.3341299 | CF79: 61.62033604 | CG79: 0 | CH79: 61.62033604 | CI79: 3.080963142 | CJ79: 0 | CK79: 3.080963142 | CM79: 0 | CO79: 0 | CP79: 0 | CQ79: 0 | CR79: 0 | CS79: 0 | CT79: 0 | CU79: 0 | CV79: 9999 | CW79: 9999
A80: Portland-RES-(Average)-(2025) | B80: Portland-RES-(Average)-(2025) | C80: 25 | D80: 6043 | E80: 0 | F80: 15672.09114 | G80: 6.46601 | H80: 1250.443293 | I80: Residential-RES-SolarPV-Portland | L80: 6486.238194 | M80: 0.1038118717 | N80: 0.1030626042 | O80: 0 | P80: 0 | Q80: 0 | R80: 2718.768479 | S80: 6282.660433 | T80: 0 | U80: 4857.955395 | V80: (na) | W80: (na) | X80: (na) | Y80: (na) | Z80: 0 | AA80: 0 | AB80: 0 | AC80: 87.87518605 | AD80: 0 | AE80: 0 | AF80: 0 | AG80: 1250.443293 | AH80: 2718.768479 | AI80: 6282.660433 | AJ80: 0 | AK80: 6196.273874 | AL80: 15197.70279 | AM80: 3387.892811 | AN80: 36.68176759 | AO80: 0 | AP80: 0 | AQ80: 3424.574578 | AR80: 2718.768479 | AS80: 1.259605076 | AT80: 3387.892811 | AU80: 43.42028716 | AV80: 0 | AW80: 0 | AX80: 3431.313098 | AY80: 6282.660433 | AZ80: 0.5461560646 | BA80: 3387.892811 | BB80: 80.10205475 | BC80: 0 | BD80: 0 | BE80: 3467.994865 | BF80: 9001.428913 | BG80: 101.206096 | BH80: 0.385271594 | BI80: 30.84249105 | BJ80: 71.2723057 | BK80: 0 | BL80: 70.29231174 | BM80: 172.4071085 | BN80: 3387.892811 | BO80: 0 | BP80: 80.10205475 | BQ80: 0 | BR80: 0 | BS80: 0 | BT80: 0 | BU80: 0 | BV80: -2304.919348 | BW80: 0 | BX80: 13859.38431 | BZ80: 87.87518605 | CA80: 1250.443293 | CB80: 1163.075517 | CC80: 15197.70279 | CD80: 0.1981414464 | CE80: 197.6460753 | CF80: 61.62033604 | CG80: 0 | CH80: 61.62033604 | CI80: 3.080963142 | CJ80: 0 | CK80: 3.080963142 | CM80: 0 | CO80: 0 | CP80: 0 | CQ80: 0 | CR80: 0 | CS80: 0 | CT80: 0 | CU80: 0 | CV80: 9999 | CW80: 9999
A81: Portland-COM-(Average)-(2025) | B81: Portland-COM-(Average)-(2025) | C81: 25 | D81: 6043 | E81: 0 | F81: 12885.9416 | G81: 6.46601 | H81: 886.2875716 | I81: Residential-RES-SolarPV-Portland | L81: 6486.238194 | M81: 0.1038118717 | N81: 0.1030626042 | O81: 0 | P81: 0 | Q81: 0 | R81: 2235.431861 | S81: 5165.743023 | T81: 0 | U81: 3994.31888 | V81: (na) | W81: (na) | X81: (na) | Y81: (na) | Z81: 0 | AA81: 0 | AB81: 0 | AC81: 87.87518605 | AD81: 0 | AE81: 0 | AF81: 0 | AG81: 886.2875716 | AH81: 2235.431861 | AI81: 5165.743023 | AJ81: 0 | AK81: 4968.481638 | AL81: 12369.65652 | AM81: 3387.892811 | AN81: 36.68176759 | AO81: 0 | AP81: 0 | AQ81: 3424.574578 | AR81: 2235.431861 | AS81: 1.53195212 | AT81: 3387.892811 | AU81: 43.42028716 | AV81: 0 | AW81: 0 | AX81: 3431.313098 | AY81: 5165.743023 | AZ81: 0.6642438624 | BA81: 3387.892811 | BB81: 80.10205475 | BC81: 0 | BD81: 0 | BE81: 3467.994865 | BF81: 7401.174884 | BG81: 83.05235437 | BH81: 0.4685735602 | BI81: 25.35938153 | BJ81: 58.60167357 | BK81: 0 | BL81: 56.36388372 | BM81: 140.3249388 | BN81: 3387.892811 | BO81: 0 | BP81: 80.10205475 | BQ81: 0 | BR81: 0 | BS81: 0 | BT81: 0 | BU81: 0 | BV81: -1692.675146 | BW81: 0 | BX81: 11395.49376 | BZ81: 87.87518605 | CA81: 886.2875716 | CB81: 1775.319719 | CC81: 12369.65652 | CD81: 0.2466159203 | CE81: 158.6184315 | CF81: 61.62033604 | CG81: 0 | CH81: 61.62033604 | CI81: 3.080963142 | CJ81: 0 | CK81: 3.080963142 | CM81: 0 | CO81: 0 | CP81: 0 | CQ81: 0 | CR81: 0 | CS81: 0 | CT81: 0 | CU81: 0 | CV81: 9999 | CW81: 9999
A82: Portland-RES-(Average)-(2035) | B82: Portland-RES-(Average)-(2035) | C82: 25 | D82: 6043 | E82: 0 | F82: 14178.60484 | G82: 6.46601 | H82: 1250.443293 | I82: Residential-RES-SolarPV-Portland | L82: 6486.238194 | M82: 0.1038118717 | N82: 0.1030626042 | O82: 0 | P82: 0 | Q82: 0 | R82: 2459.680944 | S82: 5683.948545 | T82: 0 | U82: 4395.01208 | V82: (na) | W82: (na) | X82: (na) | Y82: (na) | Z82: 0 | AA82: 0 | AB82: 0 | AC82: 87.87518605 | AD82: 0 | AE82: 0 | AF82: 0 | AG82: 1250.443293 | AH82: 2459.680944 | AI82: 5683.948545 | AJ82: 0 | AK82: 5733.330559 | AL82: 13876.96005 | AM82: 3387.892811 | AN82: 36.68176759 | AO82: 0 | AP82: 0 | AQ82: 3424.574578 | AR82: 2459.680944 | AS82: 1.392284063 | AT82: 3387.892811 | AU82: 43.42028716 | AV82: 0 | AW82: 0 | AX82: 3431.313098 | AY82: 5683.948545 | AZ82: 0.6036847572 | BA82: 3387.892811 | BB82: 80.10205475 | BC82: 0 | BD82: 0 | BE82: 3467.994865 | BF82: 8143.629489 | BG82: 91.47497281 | BH82: 0.4258537142 | BI82: 27.90332758 | BJ82: 64.48034596 | BK82: 0 | BL82: 65.04054972 | BM82: 157.4242233 | BN82: 3387.892811 | BO82: 0 | BP82: 80.10205475 | BQ82: 0 | BR82: 0 | BS82: 0 | BT82: 0 | BU82: 0 | BV82: -2304.919348 | BW82: 0 | BX82: 12538.64157 | BZ82: 87.87518605 | CA82: 1250.443293 | CB82: 1163.075517 | CC82: 13876.96005 | CD82: 0.2143134787 | CE82: 182.6631901 | CF82: 61.62033604 | CG82: 0 | CH82: 61.62033604 | CI82: 3.080963142 | CJ82: 0 | CK82: 3.080963142 | CM82: 0 | CO82: 0 | CP82: 0 | CQ82: 0 | CR82: 0 | CS82: 0 | CT82: 0 | CU82: 0 | CV82: 9999 | CW82: 9999
A83: Portland-COM-(Average)-(2035) | B83: Portland-COM-(Average)-(2035) | C83: 25 | D83: 6043 | E83: 0 | F83: 10492.16758 | G83: 6.46601 | H83: 886.2875716 | I83: Residential-RES-SolarPV-Portland | L83: 6486.238194 | M83: 0.1038118717 | N83: 0.1030626042 | O83: 0 | P83: 0 | Q83: 0 | R83: 1820.163898 | S83: 4206.121924 | T83: 0 | U83: 3252.308939 | V83: (na) | W83: (na) | X83: (na) | Y83: (na) | Z83: 0 | AA83: 0 | AB83: 0 | AC83: 87.87518605 | AD83: 0 | AE83: 0 | AF83: 0 | AG83: 886.2875716 | AH83: 1820.163898 | AI83: 4206.121924 | AJ83: 0 | AK83: 4226.471697 | AL83: 10252.75752 | AM83: 3387.892811 | AN83: 36.68176759 | AO83: 0 | AP83: 0 | AQ83: 3424.574578 | AR83: 1820.163898 | AS83: 1.88146495 | AT83: 3387.892811 | AU83: 43.42028716 | AV83: 0 | AW83: 0 | AX83: 3431.313098 | AY83: 4206.121924 | AZ83: 0.8157902124 | BA83: 3387.892811 | BB83: 80.10205475 | BC83: 0 | BD83: 0 | BE83: 3467.994865 | BF83: 6026.285822 | BG83: 67.45521769 | BH83: 0.5754779922 | BI83: 20.64846241 | BJ83: 47.71545601 | BK83: 0 | BL83: 47.94630969 | BM83: 116.3102281 | BN83: 3387.892811 | BO83: 0 | BP83: 80.10205475 | BQ83: 0 | BR83: 0 | BS83: 0 | BT83: 0 | BU83: 0 | BV83: -1692.675146 | BW83: 0 | BX83: 9278.594761 | BZ83: 87.87518605 | CA83: 886.2875716 | CB83: 1775.319719 | CC83: 10252.75752 | CD83: 0.2903197366 | CE83: 134.6037207 | CF83: 61.62033604 | CG83: 0 | CH83: 61.62033604 | CI83: 3.080963142 | CJ83: 0 | CK83: 3.080963142 | CM83: 0 | CO83: 0 | CP83: 0 | CQ83: 0 | CR83: 0 | CS83: 0 | CT83: 0 | CU83: 0 | CV83: 9999 | CW83: 9999
A86: Category Results; Sorted by TRC Levelized Cost
A87: Total Results | C87: Measure Input Data | L87: Savings | R87: PV Capital | V87: PV Admin | Z87: PV O&M | AD87: PV Periodic Repl. | AH87: Total PV Capital, O&M and Periodic Repl Costs | AM87: PV Wholesale Electric Utility Costs & Benefits | AT87: PV Retail Electric Utility Costs & Benefits | BA87: PV Electric Utility System Costs & Benefits | BG87: Electric Utility System Economics | BI87: Sponsor Levelized Cost (mills/kwh) | BN87: PV Regional Costs & Benefits | CD87: TRC Economics | CF87: Physical CO2 | CM87: Gas Inputs | CQ87: PV Gas Utility System Costs & Benefits | CV87: Gas Utility System Economics
A88: Category | B88: Measure | C88: Measure Life | D88: Site Savings (kWh) | E88: Site Savings (therms) | F88: Capital Cost ($/unit) | G88: Annual O&M Cost ($/unit) | H88: PV Per. Repl. Cost ($/unit) | I88: Load Shape (electric) | J88: Diversified Load Factor (electric) | K88: Wholesale Power Coincidence Factor (electric) | L88: Wholesale Electric Energy (kWh) | M88: Wholesale Electric Demand (kw) | N88: Retail Electric Demand (kW) | O88: Wholesale Gas Energy (therms/yr) | P88: Wholesale Gas Demand (therms/day) | Q88: Retail Gas Demand (therms/day) | R88: Wholesale Electric | S88: Retail Electric | T88: Natural Gas | U88: Customer | V88: Wholesale Electric | W88: Retail Electric | X88: Natural Gas | Y88: Customer | Z88: Wholesale Electric | AA88: Retail Electric | AB88: Natural Gas | AC88: Customer | AD88: Wholesale Electric | AE88: Retail Electric | AF88: Natural Gas | AG88: Customer | AH88: Wholesale Electric | AI88: Retail Electric | AJ88: Natural Gas | AK88: Customer | AL88: Total | AM88: Wholesale Utility System Energy | AN88: Wholesale Utility System T&D Def. Cap. | AO88: Wholesale Utility System Act C-E Credit | AP88: Wholesale Utility System Risk Mitigation Benefit | AQ88: Wholesale Utility System Total System Benefit | AR88: Wholesale Utility System Total Non-Consumer Cost | AS88: Wholesale Utility System B/C Ratio | AT88: Retail Utility System Energy | AU88: Retail Utility System T&D Def. Cap. | AV88: Retail Utility System Act C-E Credit | AW88: Retail Utility System Risk Mitigation Benefit | AX88: Retail Utility System Total System Benefit | AY88: Retail Utility System Total Non-Consumer Cost | AZ88: Retail Utility System System B/C Ratio | BA88: Utility System Energy | BB88: Utility System T&D Def. Cap. | BC88: Utility System Act C-E Credit | BD88: Utility System Total Risk Mitigation Benefit | BE88: Utility System Total System Benefit | BF88: Utility System Total Non-Consumer Cost | BG88: Utility System Net Levelized Cost (Net of Elec T&D Capacity Benefits, Act Credit & Risk-Mitigation Benefit) in mills/kwh | BH88: Utility System System B/C Ratio | BI88: Wholesale Electric Levelized Cost | BJ88: Retail Electric Levelized Cost | BK88: Natural Gas Levelized Cost | BL88: Customer Levelized Cost | BM88: Total Levelized Cost | BN88: PV Regional Electric Energy | BO88: PV Regional Gas Energy | BP88: PV Regional Electric T&D Def. Cap. | BQ88: PV Regional Gas T&D Def. Cap. | BR88: PV Regional Electric System CO2 | BS88: PV Regional Gas System CO2 | BT88: PV Regional Electric System Risk-Mitigation Benefit | BU88: PV Regional Gas System Risk-Mitigation Benefit | BV88: PV Regional Non-E Value | BW88: PV Regional Act Credit | BX88: PV Regional Capital Cost | BY88: PV Regional Admin Cost | BZ88: PV Regional Annual O&M Cost | CA88: PV Regional Periodic Replacement Cost | CB88: PV Total Regional Benefit | CC88: PV Total Regional Cost | CD88: TRC B/C Ratio | CE88: TRC Net Levelized Cost (Net of All Benefits) in mills/kWh | CF88: Electric System CO2 Avoided (Lifetime Tons) | CG88: Gas System CO2 Avoided (Lifetime Tons) | CH88: Total System CO2 Avoided (Lifetime Tons) | CI88: Electric System CO2 Avoided (Annual Tons in 2018) | CJ88: Gas System CO2 Avoided (Annual Tons in 2018) | CK88: Total System CO2 Avoided (Annual Tons in 2018) | CM88: Gas Site Savings (therms) | CN88: Load Shape (gas) | CO88: Diversitfied Load Factor (gas) | CP88: Wholesale Coincidence Factor (gas) | CQ88: Total Gas Utility System Energy | CR88: Gas Utility System T&D Def. Cap. | CS88: Gas Utility System Risk Mitigation Benefit | CT88: Gas Utility System Total System Benefit | CU88: Gas Utility System Total Non-Consumer Cost | CV88: Gas Utility System Net Levelized Cost (Net of Gas T&D Capacity Benefits & Risk-Mitigation Benefits) in cents/therm | CW88: Gas Utility System System B/C Ratio
A89: Boise-COM-(Average)-(2035) | C89: 25 | D89: 7723 | E89: 0 | F89: 10492.16758 | G89: 8.26361 | H89: 886.2875716 | L89: 8292.357105 | M89: 0.6504464322 | N89: 0.6457518015 | O89: 0 | P89: 0 | Q89: 0 | R89: 1820.163898 | S89: 4206.121924 | T89: 0 | U89: 3252.308939 | V89: 0 | W89: 0 | X89: 0 | Y89: 0 | Z89: 0 | AA89: 0 | AB89: 0 | AC89: 112.3051567 | AD89: 0 | AE89: 0 | AF89: 0 | AG89: 886.2875716 | AH89: 1820.163898 | AI89: 4206.121924 | AJ89: 0 | AK89: 4250.901668 | AL89: 10277.18749 | AM89: 4351.021612 | AN89: 229.8342614 | AO89: 0 | AP89: 0 | AQ89: 4580.855873 | AR89: 1820.163898 | AS89: 2.516727135 | AT89: 4351.021612 | AU89: 272.0553093 | AV89: 0 | AW89: 0 | AX89: 4623.076921 | AY89: 4206.121924 | AZ89: 1.099130507 | BA89: 4351.021612 | BB89: 501.8895707 | BC89: 0 | BD89: 0 | BE89: 4852.911183 | BF89: 6026.285822 | BG89: 49.02041006 | BH89: 0.8052905763 | BI89: 16.15111889 | BJ89: 37.32277919 | BK89: 0 | BL89: 37.72012966 | BM89: 91.19402775 | BN89: 4351.021612 | BO89: 0 | BP89: 501.8895707 | BQ89: 0 | BR89: 0 | BS89: 0 | BT89: 0 | BU89: 0 | BV89: -1692.675146 | BW89: 0 | BX89: 9278.594761 | BY89: 0 | BZ89: 112.3051567 | CA89: 886.2875716 | CB89: 3160.236036 | CC89: 10277.18749 | CD89: 0.4054274748 | CE89: 101.7603946 | CF89: 78.77880084 | CG89: 0 | CH89: 78.77880084 | CI89: 3.938869625 | CJ89: 0 | CK89: 3.938869625 | CM89: 0 | CO89: 0 | CP89: 0 | CQ89: 0 | CR89: 0 | CS89: 0 | CT89: 0 | CU89: 0 | CV89: 9999 | CW89: 9999
A90: Boise-COM-(Average)-(2025) | C90: 25 | D90: 7723 | E90: 0 | F90: 12885.9416 | G90: 8.26361 | H90: 886.2875716 | L90: 8292.357105 | M90: 0.6504464322 | N90: 0.6457518015 | O90: 0 | P90: 0 | Q90: 0 | R90: 2235.431861 | S90: 5165.743023 | T90: 0 | U90: 3994.31888 | V90: 0 | W90: 0 | X90: 0 | Y90: 0 | Z90: 0 | AA90: 0 | AB90: 0 | AC90: 112.3051567 | AD90: 0 | AE90: 0 | AF90: 0 | AG90: 886.2875716 | AH90: 2235.431861 | AI90: 5165.743023 | AJ90: 0 | AK90: 4992.911608 | AL90: 12394.08649 | AM90: 4351.021612 | AN90: 229.8342614 | AO90: 0 | AP90: 0 | AQ90: 4580.855873 | AR90: 2235.431861 | AS90: 2.049203983 | AT90: 4351.021612 | AU90: 272.0553093 | AV90: 0 | AW90: 0 | AX90: 4623.076921 | AY90: 5165.743023 | AZ90: 0.8949490713 | BA90: 4351.021612 | BB90: 501.8895707 | BC90: 0 | BD90: 0 | BE90: 4852.911183 | BF90: 7401.174884 | BG90: 61.22040849 | BH90: 0.6556947051 | BI90: 19.8359751 | BJ90: 45.83792142 | BK90: 0 | BL90: 44.30431188 | BM90: 109.9782084 | BN90: 4351.021612 | BO90: 0 | BP90: 501.8895707 | BQ90: 0 | BR90: 0 | BS90: 0 | BT90: 0 | BU90: 0 | BV90: -1692.675146 | BW90: 0 | BX90: 11395.49376 | BY90: 0 | BZ90: 112.3051567 | CA90: 886.2875716 | CB90: 3160.236036 | CC90: 12394.08649 | CD90: 0.3445015474 | CE90: 120.5445752 | CF90: 78.77880084 | CG90: 0 | CH90: 78.77880084 | CI90: 3.938869625 | CJ90: 0 | CK90: 3.938869625 | CM90: 0 | CO90: 0 | CP90: 0 | CQ90: 0 | CR90: 0 | CS90: 0 | CT90: 0 | CU90: 0 | CV90: 9999 | CW90: 9999
A91: Boise-COM-(Low Quartile)-(Fed Tax Credit) | C91: 25 | D91: 7723 | E91: 0 | F91: 13356 | G91: 8.26361 | H91: 886.2875716 | L91: 8292.357105 | M91: 0.6504464322 | N91: 0.6457518015 | O91: 0 | P91: 0 | Q91: 0 | R91: 2316.976815 | S91: 5354.181009 | T91: 0 | U91: 4140.0252 | V91: 0 | W91: 0 | X91: 0 | Y91: 0 | Z91: 0 | AA91: 0 | AB91: 0 | AC91: 112.3051567 | AD91: 0 | AE91: 0 | AF91: 0 | AG91: 886.2875716 | AH91: 2316.976815 | AI91: 5354.181009 | AJ91: 0 | AK91: 5138.617928 | AL91: 12809.77575 | AM91: 4351.021612 | AN91: 229.8342614 | AO91: 0 | AP91: 0 | AQ91: 4580.855873 | AR91: 2316.976815 | AS91: 1.977083173 | AT91: 4351.021612 | AU91: 272.0553093 | AV91: 0 | AW91: 0 | AX91: 4623.076921 | AY91: 5354.181009 | AZ91: 0.8634517424 | BA91: 4351.021612 | BB91: 501.8895707 | BC91: 0 | BD91: 0 | BE91: 4852.911183 | BF91: 7671.157823 | BG91: 63.61608647 | BH91: 0.6326178257 | BI91: 20.55955952 | BJ91: 47.51001497 | BK91: 0 | BL91: 45.59722846 | BM91: 113.666803 | BN91: 4351.021612 | BO91: 0 | BP91: 501.8895707 | BQ91: 0 | BR91: 0 | BS91: 0 | BT91: 0 | BU91: 0 | BV91: -1692.675146 | BW91: 0 | BX91: 11811.18302 | BY91: 0 | BZ91: 112.3051567 | CA91: 886.2875716 | CB91: 3160.236036 | CC91: 12809.77575 | CD91: 0.3346269687 | CE91: 124.2331698 | CF91: 78.77880084 | CG91: 0 | CH91: 78.77880084 | CI91: 3.938869625 | CJ91: 0 | CK91: 3.938869625 | CM91: 0 | CO91: 0 | CP91: 0 | CQ91: 0 | CR91: 0 | CS91: 0 | CT91: 0 | CU91: 0 | CV91: 9999 | CW91: 9999
A92: Boise-COM-(Low Quartile)-(2014) | C92: 25 | D92: 7723 | E92: 0 | F92: 14840 | G92: 8.26361 | H92: 886.2875716 | L92: 8292.357105 | M92: 0.6504464322 | N92: 0.6457518015 | O92: 0 | P92: 0 | Q92: 0 | R92: 2574.418683 | S92: 5949.09001 | T92: 0 | U92: 4600.028 | V92: 0 | W92: 0 | X92: 0 | Y92: 0 | Z92: 0 | AA92: 0 | AB92: 0 | AC92: 112.3051567 | AD92: 0 | AE92: 0 | AF92: 0 | AG92: 886.2875716 | AH92: 2574.418683 | AI92: 5949.09001 | AJ92: 0 | AK92: 5598.620728 | AL92: 14122.12942 | AM92: 4351.021612 | AN92: 229.8342614 | AO92: 0 | AP92: 0 | AQ92: 4580.855873 | AR92: 2574.418683 | AS92: 1.779374856 | AT92: 4351.021612 | AU92: 272.0553093 | AV92: 0 | AW92: 0 | AX92: 4623.076921 | AY92: 5949.09001 | AZ92: 0.7771065682 | BA92: 4351.021612 | BB92: 501.8895707 | BC92: 0 | BD92: 0 | BE92: 4852.911183 | BF92: 8523.508693 | BG92: 71.17937252 | BH92: 0.5693560431 | BI92: 22.84395503 | BJ92: 52.78890552 | BK92: 0 | BL92: 49.67903666 | BM92: 125.3118972 | BN92: 4351.021612 | BO92: 0 | BP92: 501.8895707 | BQ92: 0 | BR92: 0 | BS92: 0 | BT92: 0 | BU92: 0 | BV92: -1692.675146 | BW92: 0 | BX92: 13123.53669 | BY92: 0 | BZ92: 112.3051567 | CA92: 886.2875716 | CB92: 3160.236036 | CC92: 14122.12942 | CD92: 0.3068587514 | CE92: 135.878264 | CF92: 78.77880084 | CG92: 0 | CH92: 78.77880084 | CI92: 3.938869625 | CJ92: 0 | CK92: 3.938869625 | CM92: 0 | CO92: 0 | CP92: 0 | CQ92: 0 | CR92: 0 | CS92: 0 | CT92: 0 | CU92: 0 | CV92: 9999 | CW92: 9999
A93: Boise-RES-(Average)-(2035) | C93: 25 | D93: 7723 | E93: 0 | F93: 14178.60484 | G93: 8.26361 | H93: 1250.443293 | L93: 8292.357105 | M93: 0.6504464322 | N93: 0.6457518015 | O93: 0 | P93: 0 | Q93: 0 | R93: 2459.680944 | S93: 5683.948545 | T93: 0 | U93: 4395.01208 | V93: 0 | W93: 0 | X93: 0 | Y93: 0 | Z93: 0 | AA93: 0 | AB93: 0 | AC93: 112.3051567 | AD93: 0 | AE93: 0 | AF93: 0 | AG93: 1250.443293 | AH93: 2459.680944 | AI93: 5683.948545 | AJ93: 0 | AK93: 5757.76053 | AL93: 13901.39002 | AM93: 4351.021612 | AN93: 229.8342614 | AO93: 0 | AP93: 0 | AQ93: 4580.855873 | AR93: 2459.680944 | AS93: 1.86237808 | AT93: 4351.021612 | AU93: 272.0553093 | AV93: 0 | AW93: 0 | AX93: 4623.076921 | AY93: 5683.948545 | AZ93: 0.813356575 | BA93: 4351.021612 | BB93: 501.8895707 | BC93: 0 | BD93: 0 | BE93: 4852.911183 | BF93: 8143.629489 | BG93: 67.80853642 | BH93: 0.5959150265 | BI93: 21.82583634 | BJ93: 50.4361881 | BK93: 0 | BL93: 51.09115447 | BM93: 123.3531789 | BN93: 4351.021612 | BO93: 0 | BP93: 501.8895707 | BQ93: 0 | BR93: 0 | BS93: 0 | BT93: 0 | BU93: 0 | BV93: -2304.919348 | BW93: 0 | BX93: 12538.64157 | BY93: 0 | BZ93: 112.3051567 | CA93: 1250.443293 | CB93: 2547.991834 | CC93: 13901.39002 | CD93: 0.2994457944 | CE93: 139.3522592 | CF93: 78.77880084 | CG93: 0 | CH93: 78.77880084 | CI93: 3.938869625 | CJ93: 0 | CK93: 3.938869625 | CM93: 0 | CO93: 0 | CP93: 0 | CQ93: 0 | CR93: 0 | CS93: 0 | CT93: 0 | CU93: 0 | CV93: 9999 | CW93: 9999
A94: Portland-COM-(Average)-(2035) | C94: 25 | D94: 6043 | E94: 0 | F94: 10492.16758 | G94: 6.46601 | H94: 886.2875716 | L94: 6486.238194 | M94: 0.1038118717 | N94: 0.1030626042 | O94: 0 | P94: 0 | Q94: 0 | R94: 1820.163898 | S94: 4206.121924 | T94: 0 | U94: 3252.308939 | V94: 0 | W94: 0 | X94: 0 | Y94: 0 | Z94: 0 | AA94: 0 | AB94: 0 | AC94: 87.87518605 | AD94: 0 | AE94: 0 | AF94: 0 | AG94: 886.2875716 | AH94: 1820.163898 | AI94: 4206.121924 | AJ94: 0 | AK94: 4226.471697 | AL94: 10252.75752 | AM94: 3387.892811 | AN94: 36.68176759 | AO94: 0 | AP94: 0 | AQ94: 3424.574578 | AR94: 1820.163898 | AS94: 1.88146495 | AT94: 3387.892811 | AU94: 43.42028716 | AV94: 0 | AW94: 0 | AX94: 3431.313098 | AY94: 4206.121924 | AZ94: 0.8157902124 | BA94: 3387.892811 | BB94: 80.10205475 | BC94: 0 | BD94: 0 | BE94: 3467.994865 | BF94: 6026.285822 | BG94: 67.45521769 | BH94: 0.5754779922 | BI94: 20.64846241 | BJ94: 47.71545601 | BK94: 0 | BL94: 47.94630969 | BM94: 116.3102281 | BN94: 3387.892811 | BO94: 0 | BP94: 80.10205475 | BQ94: 0 | BR94: 0 | BS94: 0 | BT94: 0 | BU94: 0 | BV94: -1692.675146 | BW94: 0 | BX94: 9278.594761 | BY94: 0 | BZ94: 87.87518605 | CA94: 886.2875716 | CB94: 1775.319719 | CC94: 10252.75752 | CD94: 0.2903197366 | CE94: 134.6037207 | CF94: 61.62033604 | CG94: 0 | CH94: 61.62033604 | CI94: 3.080963142 | CJ94: 0 | CK94: 3.080963142 | CM94: 0 | CO94: 0 | CP94: 0 | CQ94: 0 | CR94: 0 | CS94: 0 | CT94: 0 | CU94: 0 | CV94: 9999 | CW94: 9999
A95: Boise-RES-(Average)-(2025) | C95: 25 | D95: 7723 | E95: 0 | F95: 15672.09114 | G95: 8.26361 | H95: 1250.443293 | L95: 8292.357105 | M95: 0.6504464322 | N95: 0.6457518015 | O95: 0 | P95: 0 | Q95: 0 | R95: 2718.768479 | S95: 6282.660433 | T95: 0 | U95: 4857.955395 | V95: 0 | W95: 0 | X95: 0 | Y95: 0 | Z95: 0 | AA95: 0 | AB95: 0 | AC95: 112.3051567 | AD95: 0 | AE95: 0 | AF95: 0 | AG95: 1250.443293 | AH95: 2718.768479 | AI95: 6282.660433 | AJ95: 0 | AK95: 6220.703845 | AL95: 15222.13276 | AM95: 4351.021612 | AN95: 229.8342614 | AO95: 0 | AP95: 0 | AQ95: 4580.855873 | AR95: 2718.768479 | AS95: 1.684901053 | AT95: 4351.021612 | AU95: 272.0553093 | AV95: 0 | AW95: 0 | AX95: 4623.076921 | AY95: 6282.660433 | AZ95: 0.7358470142 | BA95: 4351.021612 | BB95: 501.8895707 | BC95: 0 | BD95: 0 | BE95: 4852.911183 | BF95: 9001.428913 | BG95: 75.4201699 | BH95: 0.5391267575 | BI95: 24.12483458 | BJ95: 55.74882335 | BK95: 0 | BL95: 55.19905515 | BM95: 135.0727131 | BN95: 4351.021612 | BO95: 0 | BP95: 501.8895707 | BQ95: 0 | BR95: 0 | BS95: 0 | BT95: 0 | BU95: 0 | BV95: -2304.919348 | BW95: 0 | BX95: 13859.38431 | BY95: 0 | BZ95: 112.3051567 | CA95: 1250.443293 | CB95: 2547.991834 | CC95: 15222.13276 | CD95: 0.2768811979 | CE95: 151.0717933 | CF95: 78.77880084 | CG95: 0 | CH95: 78.77880084 | CI95: 3.938869625 | CJ95: 0 | CK95: 3.938869625 | CM95: 0 | CO95: 0 | CP95: 0 | CQ95: 0 | CR95: 0 | CS95: 0 | CT95: 0 | CU95: 0 | CV95: 9999 | CW95: 9999
A96: Boise-COM-(Average)-(Fed Tax Credit) | C96: 25 | D96: 7723 | E96: 0 | F96: 17649 | G96: 8.26361 | H96: 886.2875716 | L96: 8292.357105 | M96: 0.6504464322 | N96: 0.6457518015 | O96: 0 | P96: 0 | Q96: 0 | R96: 3061.719362 | S96: 7075.167761 | T96: 0 | U96: 5470.747585 | V96: 0 | W96: 0 | X96: 0 | Y96: 0 | Z96: 0 | AA96: 0 | AB96: 0 | AC96: 112.3051567 | AD96: 0 | AE96: 0 | AF96: 0 | AG96: 886.2875716 | AH96: 3061.719362 | AI96: 7075.167761 | AJ96: 0 | AK96: 6469.340314 | AL96: 16606.22744 | AM96: 4351.021612 | AN96: 229.8342614 | AO96: 0 | AP96: 0 | AQ96: 4580.855873 | AR96: 3061.719362 | AS96: 1.49617105 | AT96: 4351.021612 | AU96: 272.0553093 | AV96: 0 | AW96: 0 | AX96: 4623.076921 | AY96: 7075.167761 | AZ96: 0.6534229402 | BA96: 4351.021612 | BB96: 501.8895707 | BC96: 0 | BD96: 0 | BE96: 4852.911183 | BF96: 10136.88712 | BG96: 85.49559255 | BH96: 0.478737814 | BI96: 27.16798937 | BJ96: 62.78109121 | BK96: 0 | BL96: 57.40531645 | BM96: 147.354397 | BN96: 4351.021612 | BO96: 0 | BP96: 501.8895707 | BQ96: 0 | BR96: 0 | BS96: 0 | BT96: 0 | BU96: 0 | BV96: -1692.675146 | BW96: 0 | BX96: 15607.63471 | BY96: 0 | BZ96: 112.3051567 | CA96: 886.2875716 | CB96: 3160.236036 | CC96: 16606.22744 | CD96: 0.2652023071 | CE96: 157.9207638 | CF96: 78.77880084 | CG96: 0 | CH96: 78.77880084 | CI96: 3.938869625 | CJ96: 0 | CK96: 3.938869625 | CM96: 0 | CO96: 0 | CP96: 0 | CQ96: 0 | CR96: 0 | CS96: 0 | CT96: 0 | CU96: 0 | CV96: 9999 | CW96: 9999
A97: Boise-RES-(Low Quartile)-(Fed Tax Credit) | C97: 25 | D97: 7723 | E97: 0 | F97: 17649 | G97: 8.26361 | H97: 1250.443293 | L97: 8292.357105 | M97: 0.6504464322 | N97: 0.6457518015 | O97: 0 | P97: 0 | Q97: 0 | R97: 3061.719362 | S97: 7075.167761 | T97: 0 | U97: 5470.747585 | V97: 0 | W97: 0 | X97: 0 | Y97: 0 | Z97: 0 | AA97: 0 | AB97: 0 | AC97: 112.3051567 | AD97: 0 | AE97: 0 | AF97: 0 | AG97: 1250.443293 | AH97: 3061.719362 | AI97: 7075.167761 | AJ97: 0 | AK97: 6833.496035 | AL97: 16970.38316 | AM97: 4351.021612 | AN97: 229.8342614 | AO97: 0 | AP97: 0 | AQ97: 4580.855873 | AR97: 3061.719362 | AS97: 1.49617105 | AT97: 4351.021612 | AU97: 272.0553093 | AV97: 0 | AW97: 0 | AX97: 4623.076921 | AY97: 7075.167761 | AZ97: 0.6534229402 | BA97: 4351.021612 | BB97: 501.8895707 | BC97: 0 | BD97: 0 | BE97: 4852.911183 | BF97: 10136.88712 | BG97: 85.49559255 | BH97: 0.478737814 | BI97: 27.16798937 | BJ97: 62.78109121 | BK97: 0 | BL97: 60.63663115 | BM97: 150.5857117 | BN97: 4351.021612 | BO97: 0 | BP97: 501.8895707 | BQ97: 0 | BR97: 0 | BS97: 0 | BT97: 0 | BU97: 0 | BV97: -2304.919348 | BW97: 0 | BX97: 15607.63471 | BY97: 0 | BZ97: 112.3051567 | CA97: 1250.443293 | CB97: 2547.991834 | CC97: 16970.38316 | CD97: 0.2517683539 | CE97: 166.584792 | CF97: 78.77880084 | CG97: 0 | CH97: 78.77880084 | CI97: 3.938869625 | CJ97: 0 | CK97: 3.938869625 | CM97: 0 | CO97: 0 | CP97: 0 | CQ97: 0 | CR97: 0 | CS97: 0 | CT97: 0 | CU97: 0 | CV97: 9999 | CW97: 9999
A98: Portland-COM-(Average)-(2025) | C98: 25 | D98: 6043 | E98: 0 | F98: 12885.9416 | G98: 6.46601 | H98: 886.2875716 | L98: 6486.238194 | M98: 0.1038118717 | N98: 0.1030626042 | O98: 0 | P98: 0 | Q98: 0 | R98: 2235.431861 | S98: 5165.743023 | T98: 0 | U98: 3994.31888 | V98: 0 | W98: 0 | X98: 0 | Y98: 0 | Z98: 0 | AA98: 0 | AB98: 0 | AC98: 87.87518605 | AD98: 0 | AE98: 0 | AF98: 0 | AG98: 886.2875716 | AH98: 2235.431861 | AI98: 5165.743023 | AJ98: 0 | AK98: 4968.481638 | AL98: 12369.65652 | AM98: 3387.892811 | AN98: 36.68176759 | AO98: 0 | AP98: 0 | AQ98: 3424.574578 | AR98: 2235.431861 | AS98: 1.53195212 | AT98: 3387.892811 | AU98: 43.42028716 | AV98: 0 | AW98: 0 | AX98: 3431.313098 | AY98: 5165.743023 | AZ98: 0.6642438624 | BA98: 3387.892811 | BB98: 80.10205475 | BC98: 0 | BD98: 0 | BE98: 3467.994865 | BF98: 7401.174884 | BG98: 83.05235437 | BH98: 0.4685735602 | BI98: 25.35938153 | BJ98: 58.60167357 | BK98: 0 | BL98: 56.36388372 | BM98: 140.3249388 | BN98: 3387.892811 | BO98: 0 | BP98: 80.10205475 | BQ98: 0 | BR98: 0 | BS98: 0 | BT98: 0 | BU98: 0 | BV98: -1692.675146 | BW98: 0 | BX98: 11395.49376 | BY98: 0 | BZ98: 87.87518605 | CA98: 886.2875716 | CB98: 1775.319719 | CC98: 12369.65652 | CD98: 0.2466159203 | CE98: 158.6184315 | CF98: 61.62033604 | CG98: 0 | CH98: 61.62033604 | CI98: 3.080963142 | CJ98: 0 | CK98: 3.080963142 | CM98: 0 | CO98: 0 | CP98: 0 | CQ98: 0 | CR98: 0 | CS98: 0 | CT98: 0 | CU98: 0 | CV98: 9999 | CW98: 9999
A99: Boise-COM-(Average)-(2014) | C99: 25 | D99: 7723 | E99: 0 | F99: 19610 | G99: 8.26361 | H99: 886.2875716 | L99: 8292.357105 | M99: 0.6504464322 | N99: 0.6457518015 | O99: 0 | P99: 0 | Q99: 0 | R99: 3401.910403 | S99: 7861.297513 | T99: 0 | U99: 6078.608428 | V99: 0 | W99: 0 | X99: 0 | Y99: 0 | Z99: 0 | AA99: 0 | AB99: 0 | AC99: 112.3051567 | AD99: 0 | AE99: 0 | AF99: 0 | AG99: 886.2875716 | AH99: 3401.910403 | AI99: 7861.297513 | AJ99: 0 | AK99: 7077.201156 | AL99: 18340.40907 | AM99: 4351.021612 | AN99: 229.8342614 | AO99: 0 | AP99: 0 | AQ99: 4580.855873 | AR99: 3401.910403 | AS99: 1.346553945 | AT99: 4351.021612 | AU99: 272.0553093 | AV99: 0 | AW99: 0 | AX99: 4623.076921 | AY99: 7861.297513 | AZ99: 0.5880806462 | BA99: 4351.021612 | BB99: 501.8895707 | BC99: 0 | BD99: 0 | BE99: 4852.911183 | BF99: 11263.20792 | BG99: 95.48993484 | BH99: 0.4308640326 | BI99: 30.18665486 | BJ99: 69.75676801 | BK99: 0 | BL99: 62.79913442 | BM99: 162.7425573 | BN99: 4351.021612 | BO99: 0 | BP99: 501.8895707 | BQ99: 0 | BR99: 0 | BS99: 0 | BT99: 0 | BU99: 0 | BV99: -1692.675146 | BW99: 0 | BX99: 17341.81634 | BY99: 0 | BZ99: 112.3051567 | CA99: 886.2875716 | CB99: 3160.236036 | CC99: 18340.40907 | CD99: 0.2422448351 | CE99: 173.3089241 | CF99: 78.77880084 | CG99: 0 | CH99: 78.77880084 | CI99: 3.938869625 | CJ99: 0 | CK99: 3.938869625 | CM99: 0 | CO99: 0 | CP99: 0 | CQ99: 0 | CR99: 0 | CS99: 0 | CT99: 0 | CU99: 0 | CV99: 9999 | CW99: 9999
A100: Portland-COM-(Low Quartile)-(Fed Tax Credit) | C100: 25 | D100: 6043 | E100: 0 | F100: 13356 | G100: 6.46601 | H100: 886.2875716 | L100: 6486.238194 | M100: 0.1038118717 | N100: 0.1030626042 | O100: 0 | P100: 0 | Q100: 0 | R100: 2316.976815 | S100: 5354.181009 | T100: 0 | U100: 4140.0252 | V100: 0 | W100: 0 | X100: 0 | Y100: 0 | Z100: 0 | AA100: 0 | AB100: 0 | AC100: 87.87518605 | AD100: 0 | AE100: 0 | AF100: 0 | AG100: 886.2875716 | AH100: 2316.976815 | AI100: 5354.181009 | AJ100: 0 | AK100: 5114.187957 | AL100: 12785.34578 | AM100: 3387.892811 | AN100: 36.68176759 | AO100: 0 | AP100: 0 | AQ100: 3424.574578 | AR100: 2316.976815 | AS100: 1.478035756 | AT100: 3387.892811 | AU100: 43.42028716 | AV100: 0 | AW100: 0 | AX100: 3431.313098 | AY100: 5354.181009 | AZ100: 0.6408660992 | BA100: 3387.892811 | BB100: 80.10205475 | BC100: 0 | BD100: 0 | BE100: 3467.994865 | BF100: 7671.157823 | BG100: 86.11511843 | BH100: 0.4520823251 | BI100: 26.28445092 | BJ100: 60.73936824 | BK100: 0 | BL100: 58.01681809 | BM100: 145.0406373 | BN100: 3387.892811 | BO100: 0 | BP100: 80.10205475 | BQ100: 0 | BR100: 0 | BS100: 0 | BT100: 0 | BU100: 0 | BV100: -1692.675146 | BW100: 0 | BX100: 11811.18302 | BY100: 0 | BZ100: 87.87518605 | CA100: 886.2875716 | CB100: 1775.319719 | CC100: 12785.34578 | CD100: 0.2395351466 | CE100: 163.3341299 | CF100: 61.62033604 | CG100: 0 | CH100: 61.62033604 | CI100: 3.080963142 | CJ100: 0 | CK100: 3.080963142 | CM100: 0 | CO100: 0 | CP100: 0 | CQ100: 0 | CR100: 0 | CS100: 0 | CT100: 0 | CU100: 0 | CV100: 9999 | CW100: 9999
A101: Boise-RES-(Low Quartile)-(2014) | C101: 25 | D101: 7723 | E101: 0 | F101: 19610 | G101: 8.26361 | H101: 1250.443293 | L101: 8292.357105 | M101: 0.6504464322 | N101: 0.6457518015 | O101: 0 | P101: 0 | Q101: 0 | R101: 3401.910403 | S101: 7861.297513 | T101: 0 | U101: 6078.608428 | V101: 0 | W101: 0 | X101: 0 | Y101: 0 | Z101: 0 | AA101: 0 | AB101: 0 | AC101: 112.3051567 | AD101: 0 | AE101: 0 | AF101: 0 | AG101: 1250.443293 | AH101: 3401.910403 | AI101: 7861.297513 | AJ101: 0 | AK101: 7441.356878 | AL101: 18704.56479 | AM101: 4351.021612 | AN101: 229.8342614 | AO101: 0 | AP101: 0 | AQ101: 4580.855873 | AR101: 3401.910403 | AS101: 1.346553945 | AT101: 4351.021612 | AU101: 272.0553093 | AV101: 0 | AW101: 0 | AX101: 4623.076921 | AY101: 7861.297513 | AZ101: 0.5880806462 | BA101: 4351.021612 | BB101: 501.8895707 | BC101: 0 | BD101: 0 | BE101: 4852.911183 | BF101: 11263.20792 | BG101: 95.48993484 | BH101: 0.4308640326 | BI101: 30.18665486 | BJ101: 69.75676801 | BK101: 0 | BL101: 66.03044912 | BM101: 165.973872 | BN101: 4351.021612 | BO101: 0 | BP101: 501.8895707 | BQ101: 0 | BR101: 0 | BS101: 0 | BT101: 0 | BU101: 0 | BV101: -2304.919348 | BW101: 0 | BX101: 17341.81634 | BY101: 0 | BZ101: 112.3051567 | CA101: 1250.443293 | CB101: 2547.991834 | CC101: 18704.56479 | CD101: 0.2309866891 | CE101: 181.9729523 | CF101: 78.77880084 | CG101: 0 | CH101: 78.77880084 | CI101: 3.938869625 | CJ101: 0 | CK101: 3.938869625 | CM101: 0 | CO101: 0 | CP101: 0 | CQ101: 0 | CR101: 0 | CS101: 0 | CT101: 0 | CU101: 0 | CV101: 9999 | CW101: 9999
A102: Portland-COM-(Low Quartile)-(2014) | C102: 25 | D102: 6043 | E102: 0 | F102: 14840 | G102: 6.46601 | H102: 886.2875716 | L102: 6486.238194 | M102: 0.1038118717 | N102: 0.1030626042 | O102: 0 | P102: 0 | Q102: 0 | R102: 2574.418683 | S102: 5949.09001 | T102: 0 | U102: 4600.028 | V102: 0 | W102: 0 | X102: 0 | Y102: 0 | Z102: 0 | AA102: 0 | AB102: 0 | AC102: 87.87518605 | AD102: 0 | AE102: 0 | AF102: 0 | AG102: 886.2875716 | AH102: 2574.418683 | AI102: 5949.09001 | AJ102: 0 | AK102: 5574.190757 | AL102: 14097.69945 | AM102: 3387.892811 | AN102: 36.68176759 | AO102: 0 | AP102: 0 | AQ102: 3424.574578 | AR102: 2574.418683 | AS102: 1.33023218 | AT102: 3387.892811 | AU102: 43.42028716 | AV102: 0 | AW102: 0 | AX102: 3431.313098 | AY102: 5949.09001 | AZ102: 0.5767794893 | BA102: 3387.892811 | BB102: 80.10205475 | BC102: 0 | BD102: 0 | BE102: 3467.994865 | BF102: 8523.508693 | BG102: 95.78443168 | BH102: 0.4068740926 | BI102: 29.20494547 | BJ102: 67.48818694 | BK102: 0 | BL102: 63.23522207 | BM102: 159.9283545 | BN102: 3387.892811 | BO102: 0 | BP102: 80.10205475 | BQ102: 0 | BR102: 0 | BS102: 0 | BT102: 0 | BU102: 0 | BV102: -1692.675146 | BW102: 0 | BX102: 13123.53669 | BY102: 0 | BZ102: 87.87518605 | CA102: 886.2875716 | CB102: 1775.319719 | CC102: 14097.69945 | CD102: 0.2196271434 | CE102: 178.2218471 | CF102: 61.62033604 | CG102: 0 | CH102: 61.62033604 | CI102: 3.080963142 | CJ102: 0 | CK102: 3.080963142 | CM102: 0 | CO102: 0 | CP102: 0 | CQ102: 0 | CR102: 0 | CS102: 0 | CT102: 0 | CU102: 0 | CV102: 9999 | CW102: 9999
A103: Portland-RES-(Average)-(2035) | C103: 25 | D103: 6043 | E103: 0 | F103: 14178.60484 | G103: 6.46601 | H103: 1250.443293 | L103: 6486.238194 | M103: 0.1038118717 | N103: 0.1030626042 | O103: 0 | P103: 0 | Q103: 0 | R103: 2459.680944 | S103: 5683.948545 | T103: 0 | U103: 4395.01208 | V103: 0 | W103: 0 | X103: 0 | Y103: 0 | Z103: 0 | AA103: 0 | AB103: 0 | AC103: 87.87518605 | AD103: 0 | AE103: 0 | AF103: 0 | AG103: 1250.443293 | AH103: 2459.680944 | AI103: 5683.948545 | AJ103: 0 | AK103: 5733.330559 | AL103: 13876.96005 | AM103: 3387.892811 | AN103: 36.68176759 | AO103: 0 | AP103: 0 | AQ103: 3424.574578 | AR103: 2459.680944 | AS103: 1.392284063 | AT103: 3387.892811 | AU103: 43.42028716 | AV103: 0 | AW103: 0 | AX103: 3431.313098 | AY103: 5683.948545 | AZ103: 0.6036847572 | BA103: 3387.892811 | BB103: 80.10205475 | BC103: 0 | BD103: 0 | BE103: 3467.994865 | BF103: 8143.629489 | BG103: 91.47497281 | BH103: 0.4258537142 | BI103: 27.90332758 | BJ103: 64.48034596 | BK103: 0 | BL103: 65.04054972 | BM103: 157.4242233 | BN103: 3387.892811 | BO103: 0 | BP103: 80.10205475 | BQ103: 0 | BR103: 0 | BS103: 0 | BT103: 0 | BU103: 0 | BV103: -2304.919348 | BW103: 0 | BX103: 12538.64157 | BY103: 0 | BZ103: 87.87518605 | CA103: 1250.443293 | CB103: 1163.075517 | CC103: 13876.96005 | CD103: 0.2143134787 | CE103: 182.6631901 | CF103: 61.62033604 | CG103: 0 | CH103: 61.62033604 | CI103: 3.080963142 | CJ103: 0 | CK103: 3.080963142 | CM103: 0 | CO103: 0 | CP103: 0 | CQ103: 0 | CR103: 0 | CS103: 0 | CT103: 0 | CU103: 0 | CV103: 9999 | CW103: 9999
A104: Boise-RES-(Average)-(Fed Tax Credit) | C104: 25 | D104: 7723 | E104: 0 | F104: 21465 | G104: 8.26361 | H104: 1250.443293 | L104: 8292.357105 | M104: 0.6504464322 | N104: 0.6457518015 | O104: 0 | P104: 0 | Q104: 0 | R104: 3723.712738 | S104: 8604.933764 | T104: 0 | U104: 6653.611928 | V104: 0 | W104: 0 | X104: 0 | Y104: 0 | Z104: 0 | AA104: 0 | AB104: 0 | AC104: 112.3051567 | AD104: 0 | AE104: 0 | AF104: 0 | AG104: 1250.443293 | AH104: 3723.712738 | AI104: 8604.933764 | AJ104: 0 | AK104: 8016.360378 | AL104: 20345.00688 | AM104: 4351.021612 | AN104: 229.8342614 | AO104: 0 | AP104: 0 | AQ104: 4580.855873 | AR104: 3723.712738 | AS104: 1.230185086 | AT104: 4351.021612 | AU104: 272.0553093 | AV104: 0 | AW104: 0 | AX104: 4623.076921 | AY104: 8604.933764 | AZ104: 0.537258862 | BA104: 4351.021612 | BB104: 501.8895707 | BC104: 0 | BD104: 0 | BE104: 4852.911183 | BF104: 12328.6465 | BG104: 104.9440424 | BH104: 0.3936288693 | BI104: 33.04214924 | BJ104: 76.3553812 | BK104: 0 | BL104: 71.13270936 | BM104: 180.5302398 | BN104: 4351.021612 | BO104: 0 | BP104: 501.8895707 | BQ104: 0 | BR104: 0 | BS104: 0 | BT104: 0 | BU104: 0 | BV104: -2304.919348 | BW104: 0 | BX104: 18982.25843 | BY104: 0 | BZ104: 112.3051567 | CA104: 1250.443293 | CB104: 2547.991834 | CC104: 20345.00688 | CD104: 0.2142572622 | CE104: 196.5293201 | CF104: 78.77880084 | CG104: 0 | CH104: 78.77880084 | CI104: 3.938869625 | CJ104: 0 | CK104: 3.938869625 | CM104: 0 | CO104: 0 | CP104: 0 | CQ104: 0 | CR104: 0 | CS104: 0 | CT104: 0 | CU104: 0 | CV104: 9999 | CW104: 9999
A105: Portland-RES-(Average)-(2025) | C105: 25 | D105: 6043 | E105: 0 | F105: 15672.09114 | G105: 6.46601 | H105: 1250.443293 | L105: 6486.238194 | M105: 0.1038118717 | N105: 0.1030626042 | O105: 0 | P105: 0 | Q105: 0 | R105: 2718.768479 | S105: 6282.660433 | T105: 0 | U105: 4857.955395 | V105: 0 | W105: 0 | X105: 0 | Y105: 0 | Z105: 0 | AA105: 0 | AB105: 0 | AC105: 87.87518605 | AD105: 0 | AE105: 0 | AF105: 0 | AG105: 1250.443293 | AH105: 2718.768479 | AI105: 6282.660433 | AJ105: 0 | AK105: 6196.273874 | AL105: 15197.70279 | AM105: 3387.892811 | AN105: 36.68176759 | AO105: 0 | AP105: 0 | AQ105: 3424.574578 | AR105: 2718.768479 | AS105: 1.259605076 | AT105: 3387.892811 | AU105: 43.42028716 | AV105: 0 | AW105: 0 | AX105: 3431.313098 | AY105: 6282.660433 | AZ105: 0.5461560646 | BA105: 3387.892811 | BB105: 80.10205475 | BC105: 0 | BD105: 0 | BE105: 3467.994865 | BF105: 9001.428913 | BG105: 101.206096 | BH105: 0.385271594 | BI105: 30.84249105 | BJ105: 71.2723057 | BK105: 0 | BL105: 70.29231174 | BM105: 172.4071085 | BN105: 3387.892811 | BO105: 0 | BP105: 80.10205475 | BQ105: 0 | BR105: 0 | BS105: 0 | BT105: 0 | BU105: 0 | BV105: -2304.919348 | BW105: 0 | BX105: 13859.38431 | BY105: 0 | BZ105: 87.87518605 | CA105: 1250.443293 | CB105: 1163.075517 | CC105: 15197.70279 | CD105: 0.1981414464 | CE105: 197.6460753 | CF105: 61.62033604 | CG105: 0 | CH105: 61.62033604 | CI105: 3.080963142 | CJ105: 0 | CK105: 3.080963142 | CM105: 0 | CO105: 0 | CP105: 0 | CQ105: 0 | CR105: 0 | CS105: 0 | CT105: 0 | CU105: 0 | CV105: 9999 | CW105: 9999
A106: Boise-RES-(Average)-(2014) | C106: 25 | D106: 7723 | E106: 0 | F106: 23850 | G106: 8.26361 | H106: 1250.443293 | L106: 8292.357105 | M106: 0.6504464322 | N106: 0.6457518015 | O106: 0 | P106: 0 | Q106: 0 | R106: 4137.458598 | S106: 9561.037515 | T106: 0 | U106: 7392.902142 | V106: 0 | W106: 0 | X106: 0 | Y106: 0 | Z106: 0 | AA106: 0 | AB106: 0 | AC106: 112.3051567 | AD106: 0 | AE106: 0 | AF106: 0 | AG106: 1250.443293 | AH106: 4137.458598 | AI106: 9561.037515 | AJ106: 0 | AK106: 8755.650592 | AL106: 22454.14671 | AM106: 4351.021612 | AN106: 229.8342614 | AO106: 0 | AP106: 0 | AQ106: 4580.855873 | AR106: 4137.458598 | AS106: 1.107166577 | AT106: 4351.021612 | AU106: 272.0553093 | AV106: 0 | AW106: 0 | AX106: 4623.076921 | AY106: 9561.037515 | AZ106: 0.4835329758 | BA106: 4351.021612 | BB106: 501.8895707 | BC106: 0 | BD106: 0 | BE106: 4852.911183 | BF106: 13698.49611 | BG106: 117.0993236 | BH106: 0.3542659824 | BI106: 36.71349915 | BJ106: 84.83931244 | BK106: 0 | BL106: 77.69275824 | BM106: 199.2455698 | BN106: 4351.021612 | BO106: 0 | BP106: 501.8895707 | BQ106: 0 | BR106: 0 | BS106: 0 | BT106: 0 | BU106: 0 | BV106: -2304.919348 | BW106: 0 | BX106: 21091.39826 | BY106: 0 | BZ106: 112.3051567 | CA106: 1250.443293 | CB106: 2547.991834 | CC106: 22454.14671 | CD106: 0.1960054217 | CE106: 215.2446501 | CF106: 78.77880084 | CG106: 0 | CH106: 78.77880084 | CI106: 3.938869625 | CJ106: 0 | CK106: 3.938869625 | CM106: 0 | CO106: 0 | CP106: 0 | CQ106: 0 | CR106: 0 | CS106: 0 | CT106: 0 | CU106: 0 | CV106: 9999 | CW106: 9999
A107: Portland-COM-(Average)-(Fed Tax Credit) | C107: 25 | D107: 6043 | E107: 0 | F107: 17649 | G107: 6.46601 | H107: 886.2875716 | L107: 6486.238194 | M107: 0.1038118717 | N107: 0.1030626042 | O107: 0 | P107: 0 | Q107: 0 | R107: 3061.719362 | S107: 7075.167761 | T107: 0 | U107: 5470.747585 | V107: 0 | W107: 0 | X107: 0 | Y107: 0 | Z107: 0 | AA107: 0 | AB107: 0 | AC107: 87.87518605 | AD107: 0 | AE107: 0 | AF107: 0 | AG107: 886.2875716 | AH107: 3061.719362 | AI107: 7075.167761 | AJ107: 0 | AK107: 6444.910343 | AL107: 16581.79747 | AM107: 3387.892811 | AN107: 36.68176759 | AO107: 0 | AP107: 0 | AQ107: 3424.574578 | AR107: 3061.719362 | AS107: 1.118513545 | AT107: 3387.892811 | AU107: 43.42028716 | AV107: 0 | AW107: 0 | AX107: 3431.313098 | AY107: 7075.167761 | AZ107: 0.4849797508 | BA107: 3387.892811 | BB107: 80.10205475 | BC107: 0 | BD107: 0 | BE107: 3467.994865 | BF107: 10136.88712 | BG107: 114.0870603 | BH107: 0.3421163542 | BI107: 34.73302443 | BJ107: 80.26273661 | BK107: 0 | BL107: 73.1129153 | BM107: 188.1086763 | BN107: 3387.892811 | BO107: 0 | BP107: 80.10205475 | BQ107: 0 | BR107: 0 | BS107: 0 | BT107: 0 | BU107: 0 | BV107: -1692.675146 | BW107: 0 | BX107: 15607.63471 | BY107: 0 | BZ107: 87.87518605 | CA107: 886.2875716 | CB107: 1775.319719 | CC107: 16581.79747 | CD107: 0.1897726374 | CE107: 206.402169 | CF107: 61.62033604 | CG107: 0 | CH107: 61.62033604 | CI107: 3.080963142 | CJ107: 0 | CK107: 3.080963142 | CM107: 0 | CO107: 0 | CP107: 0 | CQ107: 0 | CR107: 0 | CS107: 0 | CT107: 0 | CU107: 0 | CV107: 9999 | CW107: 9999
A108: Portland-RES-(Low Quartile)-(Fed Tax Credit) | C108: 25 | D108: 6043 | E108: 0 | F108: 17649 | G108: 6.46601 | H108: 1250.443293 | L108: 6486.238194 | M108: 0.1038118717 | N108: 0.1030626042 | O108: 0 | P108: 0 | Q108: 0 | R108: 3061.719362 | S108: 7075.167761 | T108: 0 | U108: 5470.747585 | V108: 0 | W108: 0 | X108: 0 | Y108: 0 | Z108: 0 | AA108: 0 | AB108: 0 | AC108: 87.87518605 | AD108: 0 | AE108: 0 | AF108: 0 | AG108: 1250.443293 | AH108: 3061.719362 | AI108: 7075.167761 | AJ108: 0 | AK108: 6809.066065 | AL108: 16945.95319 | AM108: 3387.892811 | AN108: 36.68176759 | AO108: 0 | AP108: 0 | AQ108: 3424.574578 | AR108: 3061.719362 | AS108: 1.118513545 | AT108: 3387.892811 | AU108: 43.42028716 | AV108: 0 | AW108: 0 | AX108: 3431.313098 | AY108: 7075.167761 | AZ108: 0.4849797508 | BA108: 3387.892811 | BB108: 80.10205475 | BC108: 0 | BD108: 0 | BE108: 3467.994865 | BF108: 10136.88712 | BG108: 114.0870603 | BH108: 0.3421163542 | BI108: 34.73302443 | BJ108: 80.26273661 | BK108: 0 | BL108: 77.24400247 | BM108: 192.2397635 | BN108: 3387.892811 | BO108: 0 | BP108: 80.10205475 | BQ108: 0 | BR108: 0 | BS108: 0 | BT108: 0 | BU108: 0 | BV108: -2304.919348 | BW108: 0 | BX108: 15607.63471 | BY108: 0 | BZ108: 87.87518605 | CA108: 1250.443293 | CB108: 1163.075517 | CC108: 16945.95319 | CD108: 0.180147412 | CE108: 217.4787303 | CF108: 61.62033604 | CG108: 0 | CH108: 61.62033604 | CI108: 3.080963142 | CJ108: 0 | CK108: 3.080963142 | CM108: 0 | CO108: 0 | CP108: 0 | CQ108: 0 | CR108: 0 | CS108: 0 | CT108: 0 | CU108: 0 | CV108: 9999 | CW108: 9999
A109: Portland-COM-(Average)-(2014) | C109: 25 | D109: 6043 | E109: 0 | F109: 19610 | G109: 6.46601 | H109: 886.2875716 | L109: 6486.238194 | M109: 0.1038118717 | N109: 0.1030626042 | O109: 0 | P109: 0 | Q109: 0 | R109: 3401.910403 | S109: 7861.297513 | T109: 0 | U109: 6078.608428 | V109: 0 | W109: 0 | X109: 0 | Y109: 0 | Z109: 0 | AA109: 0 | AB109: 0 | AC109: 87.87518605 | AD109: 0 | AE109: 0 | AF109: 0 | AG109: 886.2875716 | AH109: 3401.910403 | AI109: 7861.297513 | AJ109: 0 | AK109: 7052.771186 | AL109: 18315.9791 | AM109: 3387.892811 | AN109: 36.68176759 | AO109: 0 | AP109: 0 | AQ109: 3424.574578 | AR109: 3401.910403 | AS109: 1.006662191 | AT109: 3387.892811 | AU109: 43.42028716 | AV109: 0 | AW109: 0 | AX109: 3431.313098 | AY109: 7861.297513 | AZ109: 0.4364817757 | BA109: 3387.892811 | BB109: 80.10205475 | BC109: 0 | BD109: 0 | BE109: 3467.994865 | BF109: 11263.20792 | BG109: 126.8643671 | BH109: 0.3079047187 | BI109: 38.59224937 | BJ109: 89.18081845 | BK109: 0 | BL109: 80.00866341 | BM109: 207.7817312 | BN109: 3387.892811 | BO109: 0 | BP109: 80.10205475 | BQ109: 0 | BR109: 0 | BS109: 0 | BT109: 0 | BU109: 0 | BV109: -1692.675146 | BW109: 0 | BX109: 17341.81634 | BY109: 0 | BZ109: 87.87518605 | CA109: 886.2875716 | CB109: 1775.319719 | CC109: 18315.9791 | CD109: 0.1733247435 | CE109: 226.0752239 | CF109: 61.62033604 | CG109: 0 | CH109: 61.62033604 | CI109: 3.080963142 | CJ109: 0 | CK109: 3.080963142 | CM109: 0 | CO109: 0 | CP109: 0 | CQ109: 0 | CR109: 0 | CS109: 0 | CT109: 0 | CU109: 0 | CV109: 9999 | CW109: 9999
A110: Portland-RES-(Low Quartile)-(2014) | C110: 25 | D110: 6043 | E110: 0 | F110: 19610 | G110: 6.46601 | H110: 1250.443293 | L110: 6486.238194 | M110: 0.1038118717 | N110: 0.1030626042 | O110: 0 | P110: 0 | Q110: 0 | R110: 3401.910403 | S110: 7861.297513 | T110: 0 | U110: 6078.608428 | V110: 0 | W110: 0 | X110: 0 | Y110: 0 | Z110: 0 | AA110: 0 | AB110: 0 | AC110: 87.87518605 | AD110: 0 | AE110: 0 | AF110: 0 | AG110: 1250.443293 | AH110: 3401.910403 | AI110: 7861.297513 | AJ110: 0 | AK110: 7416.926907 | AL110: 18680.13482 | AM110: 3387.892811 | AN110: 36.68176759 | AO110: 0 | AP110: 0 | AQ110: 3424.574578 | AR110: 3401.910403 | AS110: 1.006662191 | AT110: 3387.892811 | AU110: 43.42028716 | AV110: 0 | AW110: 0 | AX110: 3431.313098 | AY110: 7861.297513 | AZ110: 0.4364817757 | BA110: 3387.892811 | BB110: 80.10205475 | BC110: 0 | BD110: 0 | BE110: 3467.994865 | BF110: 11263.20792 | BG110: 126.8643671 | BH110: 0.3079047187 | BI110: 38.59224937 | BJ110: 89.18081845 | BK110: 0 | BL110: 84.13975058 | BM110: 211.9128184 | BN110: 3387.892811 | BO110: 0 | BP110: 80.10205475 | BQ110: 0 | BR110: 0 | BS110: 0 | BT110: 0 | BU110: 0 | BV110: -2304.919348 | BW110: 0 | BX110: 17341.81634 | BY110: 0 | BZ110: 87.87518605 | CA110: 1250.443293 | CB110: 1163.075517 | CC110: 18680.13482 | CD110: 0.1652602294 | CE110: 237.1517852 | CF110: 61.62033604 | CG110: 0 | CH110: 61.62033604 | CI110: 3.080963142 | CJ110: 0 | CK110: 3.080963142 | CM110: 0 | CO110: 0 | CP110: 0 | CQ110: 0 | CR110: 0 | CS110: 0 | CT110: 0 | CU110: 0 | CV110: 9999 | CW110: 9999
A111: Portland-RES-(Average)-(Fed Tax Credit) | C111: 25 | D111: 6043 | E111: 0 | F111: 21465 | G111: 6.46601 | H111: 1250.443293 | L111: 6486.238194 | M111: 0.1038118717 | N111: 0.1030626042 | O111: 0 | P111: 0 | Q111: 0 | R111: 3723.712738 | S111: 8604.933764 | T111: 0 | U111: 6653.611928 | V111: 0 | W111: 0 | X111: 0 | Y111: 0 | Z111: 0 | AA111: 0 | AB111: 0 | AC111: 87.87518605 | AD111: 0 | AE111: 0 | AF111: 0 | AG111: 1250.443293 | AH111: 3723.712738 | AI111: 8604.933764 | AJ111: 0 | AK111: 7991.930407 | AL111: 20320.57691 | AM111: 3387.892811 | AN111: 36.68176759 | AO111: 0 | AP111: 0 | AQ111: 3424.574578 | AR111: 3723.712738 | AS111: 0.9196666927 | AT111: 3387.892811 | AU111: 43.42028716 | AV111: 0 | AW111: 0 | AX111: 3431.313098 | AY111: 8604.933764 | AZ111: 0.3987611284 | BA111: 3387.892811 | BB111: 80.10205475 | BC111: 0 | BD111: 0 | BE111: 3467.994865 | BF111: 12328.6465 | BG111: 138.9510086 | BH111: 0.281295669 | BI111: 42.24286756 | BJ111: 97.61684182 | BK111: 0 | BL111: 90.66275555 | BM111: 230.5224649 | BN111: 3387.892811 | BO111: 0 | BP111: 80.10205475 | BQ111: 0 | BR111: 0 | BS111: 0 | BT111: 0 | BU111: 0 | BV111: -2304.919348 | BW111: 0 | BX111: 18982.25843 | BY111: 0 | BZ111: 87.87518605 | CA111: 1250.443293 | CB111: 1163.075517 | CC111: 20320.57691 | CD111: 0.153278179 | CE111: 255.7614318 | CF111: 61.62033604 | CG111: 0 | CH111: 61.62033604 | CI111: 3.080963142 | CJ111: 0 | CK111: 3.080963142 | CM111: 0 | CO111: 0 | CP111: 0 | CQ111: 0 | CR111: 0 | CS111: 0 | CT111: 0 | CU111: 0 | CV111: 9999 | CW111: 9999
A112: Portland-RES-(Average)-(2014) | C112: 25 | D112: 6043 | E112: 0 | F112: 23850 | G112: 6.46601 | H112: 1250.443293 | L112: 6486.238194 | M112: 0.1038118717 | N112: 0.1030626042 | O112: 0 | P112: 0 | Q112: 0 | R112: 4137.458598 | S112: 9561.037515 | T112: 0 | U112: 7392.902142 | V112: 0 | W112: 0 | X112: 0 | Y112: 0 | Z112: 0 | AA112: 0 | AB112: 0 | AC112: 87.87518605 | AD112: 0 | AE112: 0 | AF112: 0 | AG112: 1250.443293 | AH112: 4137.458598 | AI112: 9561.037515 | AJ112: 0 | AK112: 8731.220622 | AL112: 22429.71673 | AM112: 3387.892811 | AN112: 36.68176759 | AO112: 0 | AP112: 0 | AQ112: 3424.574578 | AR112: 4137.458598 | AS112: 0.8277000234 | AT112: 3387.892811 | AU112: 43.42028716 | AV112: 0 | AW112: 0 | AX112: 3431.313098 | AY112: 9561.037515 | AZ112: 0.3588850156 | BA112: 3387.892811 | BB112: 80.10205475 | BC112: 0 | BD112: 0 | BE112: 3467.994865 | BF112: 13698.49611 | BG112: 154.4909764 | BH112: 0.2531661021 | BI112: 46.93651951 | BJ112: 108.4631576 | BK112: 0 | BL112: 99.04947623 | BM112: 254.4491533 | BN112: 3387.892811 | BO112: 0 | BP112: 80.10205475 | BQ112: 0 | BR112: 0 | BS112: 0 | BT112: 0 | BU112: 0 | BV112: -2304.919348 | BW112: 0 | BX112: 21091.39826 | BY112: 0 | BZ112: 87.87518605 | CA112: 1250.443293 | CB112: 1163.075517 | CC112: 22429.71673 | CD112: 0.1402080408 | CE112: 279.6881201 | CF112: 61.62033604 | CG112: 0 | CH112: 61.62033604 | CI112: 3.080963142 | CJ112: 0 | CK112: 3.080963142 | CM112: 0 | CO112: 0 | CP112: 0 | CQ112: 0 | CR112: 0 | CS112: 0 | CT112: 0 | CU112: 0 | CV112: 9999 | CW112: 9999
A115: Supply Curve Results; Categories sorted by TRC Net Levelized Cost
A116: Totals for Categories with Benefits Exceeding Costs. Levelized cost is TRC Net Levelized Cost (Net of Benefits) | N116: Savings Allocation by Cost Bin and Month for Segments 1 | AA116: Savings Allocation by Cost Bin and Month for Segments 2
B117: Totals Basis | C117: Busbar Electric Savings in kWh | D117: First Cost | E117: Admin Cost | F117: First Year Program Cost | G117: PV Cost | H117: PV Benefits | I117: Unit Program Cost: First Year Program Cost in $/average annual kW saved | J117: Utility System Net Levelized Cost (Net of T&D Capacity Benefits, Act Credit & Risk-Mitigation) in mills/kWh | K117: TRC Net Levelized Cost (Net of All Benefits) in mills/kWh | L117: TRC B/C Ratio | M117: Net Electric & Gas System CO2 Avoided (Lifetime Tons) | N117: Jan | O117: Feb | P117: Mar | Q117: Apr | R117: May | S117: Jun | T117: Jul | U117: Aug | V117: Sep | W117: Oct | X117: Nov | Y117: Dec | AA117: Jan | AB117: Feb | AC117: Mar | AD117: Apr | AE117: May | AF117: Jun | AG117: Jul | AH117: Aug | AI117: Sep | AJ117: Oct | AK117: Nov | AL117: Dec
B118: Measures with B/C > 1.00 | C118: 0 | D118: 0 | E118: 0 | F118: 0 | G118: 0 | H118: 0 | I118: 0 | J118: 0 | K118: 0 | L118: 0 | M118: 0 | N118: 0 | O118: 0 | P118: 0 | Q118: 0 | R118: 0 | S118: 0 | T118: 0 | U118: 0 | V118: 0 | W118: 0 | X118: 0 | Y118: 0 | AA118: 0 | AB118: 0 | AC118: 0 | AD118: 0 | AE118: 0 | AF118: 0 | AG118: 0 | AH118: 0 | AI118: 0 | AJ118: 0 | AK118: 0 | AL118: 0
B119: Categories with B/C > 1.00 | C119: 0 | D119: 0 | E119: 0 | F119: 0 | G119: 0 | H119: 0 | I119: 0 | J119: 0 | K119: 0 | L119: 0 | M119: 0 | N119: 0 | O119: 0 | P119: 0 | Q119: 0 | R119: 0 | S119: 0 | T119: 0 | U119: 0 | V119: 0 | W119: 0 | X119: 0 | Y119: 0 | AA119: 0 | AB119: 0 | AC119: 0 | AD119: 0 | AE119: 0 | AF119: 0 | AG119: 0 | AH119: 0 | AI119: 0 | AJ119: 0 | AK119: 0 | AL119: 0
B120: Supply Curve Results: By TRC Net Levelized Cost - Net of Benefits
B121: Block 1: <= 0 mills/kWh | C121: 0 | D121: 0 | E121: 0 | F121: 0 | G121: 0 | H121: 0 | I121: 0 | J121: 0 | K121: 0 | L121: 0 | M121: 0 | N121: 0 | O121: 0 | P121: 0 | Q121: 0 | R121: 0 | S121: 0 | T121: 0 | U121: 0 | V121: 0 | W121: 0 | X121: 0 | Y121: 0 | AA121: 0 | AB121: 0 | AC121: 0 | AD121: 0 | AE121: 0 | AF121: 0 | AG121: 0 | AH121: 0 | AI121: 0 | AJ121: 0 | AK121: 0 | AL121: 0
B122: Block 2: <= 10 mills/kWh | C122: 0 | D122: 0 | E122: 0 | F122: 0 | G122: 0 | H122: 0 | I122: 0 | J122: 0 | K122: 0 | L122: 0 | M122: 0 | N122: 0 | O122: 0 | P122: 0 | Q122: 0 | R122: 0 | S122: 0 | T122: 0 | U122: 0 | V122: 0 | W122: 0 | X122: 0 | Y122: 0 | AA122: 0 | AB122: 0 | AC122: 0 | AD122: 0 | AE122: 0 | AF122: 0 | AG122: 0 | AH122: 0 | AI122: 0 | AJ122: 0 | AK122: 0 | AL122: 0
B123: Block 3: 10-20 mills/kWh | C123: 0 | D123: 0 | E123: 0 | F123: 0 | G123: 0 | H123: 0 | I123: 0 | J123: 0 | K123: 0 | L123: 0 | M123: 0 | N123: 0 | O123: 0 | P123: 0 | Q123: 0 | R123: 0 | S123: 0 | T123: 0 | U123: 0 | V123: 0 | W123: 0 | X123: 0 | Y123: 0 | AA123: 0 | AB123: 0 | AC123: 0 | AD123: 0 | AE123: 0 | AF123: 0 | AG123: 0 | AH123: 0 | AI123: 0 | AJ123: 0 | AK123: 0 | AL123: 0
B124: Block 4: 20-30 mills/kWh | C124: 0 | D124: 0 | E124: 0 | F124: 0 | G124: 0 | H124: 0 | I124: 0 | J124: 0 | K124: 0 | L124: 0 | M124: 0 | N124: 0 | O124: 0 | P124: 0 | Q124: 0 | R124: 0 | S124: 0 | T124: 0 | U124: 0 | V124: 0 | W124: 0 | X124: 0 | Y124: 0 | AA124: 0 | AB124: 0 | AC124: 0 | AD124: 0 | AE124: 0 | AF124: 0 | AG124: 0 | AH124: 0 | AI124: 0 | AJ124: 0 | AK124: 0 | AL124: 0
B125: Block 5: 30-40 mills/kWh | C125: 0 | D125: 0 | E125: 0 | F125: 0 | G125: 0 | H125: 0 | I125: 0 | J125: 0 | K125: 0 | L125: 0 | M125: 0 | N125: 0 | O125: 0 | P125: 0 | Q125: 0 | R125: 0 | S125: 0 | T125: 0 | U125: 0 | V125: 0 | W125: 0 | X125: 0 | Y125: 0 | AA125: 0 | AB125: 0 | AC125: 0 | AD125: 0 | AE125: 0 | AF125: 0 | AG125: 0 | AH125: 0 | AI125: 0 | AJ125: 0 | AK125: 0 | AL125: 0
B126: Block 6: 40-50 mills/kWh | C126: 0 | D126: 0 | E126: 0 | F126: 0 | G126: 0 | H126: 0 | I126: 0 | J126: 0 | K126: 0 | L126: 0 | M126: 0 | N126: 0 | O126: 0 | P126: 0 | Q126: 0 | R126: 0 | S126: 0 | T126: 0 | U126: 0 | V126: 0 | W126: 0 | X126: 0 | Y126: 0 | AA126: 0 | AB126: 0 | AC126: 0 | AD126: 0 | AE126: 0 | AF126: 0 | AG126: 0 | AH126: 0 | AI126: 0 | AJ126: 0 | AK126: 0 | AL126: 0
B127: Block 7: 50-60 mills/kWh | C127: 0 | D127: 0 | E127: 0 | F127: 0 | G127: 0 | H127: 0 | I127: 0 | J127: 0 | K127: 0 | L127: 0 | M127: 0 | N127: 0 | O127: 0 | P127: 0 | Q127: 0 | R127: 0 | S127: 0 | T127: 0 | U127: 0 | V127: 0 | W127: 0 | X127: 0 | Y127: 0 | AA127: 0 | AB127: 0 | AC127: 0 | AD127: 0 | AE127: 0 | AF127: 0 | AG127: 0 | AH127: 0 | AI127: 0 | AJ127: 0 | AK127: 0 | AL127: 0
B128: Block 8: 60-70 mills/kWh | C128: 0 | D128: 0 | E128: 0 | F128: 0 | G128: 0 | H128: 0 | I128: 0 | J128: 0 | K128: 0 | L128: 0 | M128: 0 | N128: 0 | O128: 0 | P128: 0 | Q128: 0 | R128: 0 | S128: 0 | T128: 0 | U128: 0 | V128: 0 | W128: 0 | X128: 0 | Y128: 0 | AA128: 0 | AB128: 0 | AC128: 0 | AD128: 0 | AE128: 0 | AF128: 0 | AG128: 0 | AH128: 0 | AI128: 0 | AJ128: 0 | AK128: 0 | AL128: 0
B129: Block 9: 70-80 mills/kWh | C129: 0 | D129: 0 | E129: 0 | F129: 0 | G129: 0 | H129: 0 | I129: 0 | J129: 0 | K129: 0 | L129: 0 | M129: 0 | N129: 0 | O129: 0 | P129: 0 | Q129: 0 | R129: 0 | S129: 0 | T129: 0 | U129: 0 | V129: 0 | W129: 0 | X129: 0 | Y129: 0 | AA129: 0 | AB129: 0 | AC129: 0 | AD129: 0 | AE129: 0 | AF129: 0 | AG129: 0 | AH129: 0 | AI129: 0 | AJ129: 0 | AK129: 0 | AL129: 0
B130: Block 10: 80-90 mills/kWh | C130: 0 | D130: 0 | E130: 0 | F130: 0 | G130: 0 | H130: 0 | I130: 0 | J130: 0 | K130: 0 | L130: 0 | M130: 0 | N130: 0 | O130: 0 | P130: 0 | Q130: 0 | R130: 0 | S130: 0 | T130: 0 | U130: 0 | V130: 0 | W130: 0 | X130: 0 | Y130: 0 | AA130: 0 | AB130: 0 | AC130: 0 | AD130: 0 | AE130: 0 | AF130: 0 | AG130: 0 | AH130: 0 | AI130: 0 | AJ130: 0 | AK130: 0 | AL130: 0
B131: Block 11: 90-100 mills/kWh | C131: 0 | D131: 0 | E131: 0 | F131: 0 | G131: 0 | H131: 0 | I131: 0 | J131: 0 | K131: 0 | L131: 0 | M131: 0 | N131: 0 | O131: 0 | P131: 0 | Q131: 0 | R131: 0 | S131: 0 | T131: 0 | U131: 0 | V131: 0 | W131: 0 | X131: 0 | Y131: 0 | AA131: 0 | AB131: 0 | AC131: 0 | AD131: 0 | AE131: 0 | AF131: 0 | AG131: 0 | AH131: 0 | AI131: 0 | AJ131: 0 | AK131: 0 | AL131: 0
B132: Block 12: 100-110 mills/kWh | C132: 8292.357105 | D132: 10492.16758 | E132: 0 | F132: 10492.16758 | G132: 10277.18749 | H132: 3160.236036 | I132: 11083.86757 | J132: 49.02041006 | K132: 101.7603946 | L132: 0.4054274748 | M132: 78.77880084 | N132: 291.2040799 | O132: 388.3113121 | P132: 587.8037221 | Q132: 664.7249034 | R132: 769.6501811 | S132: 824.1422377 | T132: 816.6290694 | U132: 830.1597578 | V132: 629.9162472 | W132: 558.8493278 | X132: 319.1818217 | Y132: 273.1383463 | AA132: 72.51274883 | AB132: 87.81509507 | AC132: 90.88661119 | AD132: 131.2700171 | AE132: 147.5765514 | AF132: 123.3285376 | AG132: 186.9084555 | AH132: 116.3675988 | AI132: 148.9811204 | AJ132: 81.88072299 | AK132: 83.29488423 | AL132: 67.82375538
B133: Block 13: 110-120 mills/kWh | C133: 0 | D133: 0 | E133: 0 | F133: 0 | G133: 0 | H133: 0 | I133: 0 | J133: 0 | K133: 0 | L133: 0 | M133: 0 | N133: 0 | O133: 0 | P133: 0 | Q133: 0 | R133: 0 | S133: 0 | T133: 0 | U133: 0 | V133: 0 | W133: 0 | X133: 0 | Y133: 0 | AA133: 0 | AB133: 0 | AC133: 0 | AD133: 0 | AE133: 0 | AF133: 0 | AG133: 0 | AH133: 0 | AI133: 0 | AJ133: 0 | AK133: 0 | AL133: 0
B134: Block 14: 120-130 mills/kWh | C134: 16584.71421 | D134: 26241.9416 | E134: 0 | F134: 26241.9416 | G134: 25203.86224 | H134: 6320.472073 | I134: 13860.9207 | J134: 62.41824748 | K134: 122.3888725 | L134: 0.3395642581 | M134: 157.5576017 | N134: 582.4081598 | O134: 776.6226243 | P134: 1175.607444 | Q134: 1329.449807 | R134: 1539.300362 | S134: 1648.284475 | T134: 1633.258139 | U134: 1660.319516 | V134: 1259.832494 | W134: 1117.698656 | X134: 638.3636434 | Y134: 546.2766926 | AA134: 145.0254977 | AB134: 175.6301901 | AC134: 181.7732224 | AD134: 262.5400343 | AE134: 295.1531027 | AF134: 246.6570753 | AG134: 373.8169109 | AH134: 232.7351976 | AI134: 297.9622408 | AJ134: 163.761446 | AK134: 166.5897685 | AL134: 135.6475108
B135: Block 15: 130-140 mills/kWh | C135: 23070.9524 | D135: 39510.77242 | E135: 0 | F135: 39510.77242 | G135: 38276.27696 | H135: 7483.54759 | I135: 15002.17071 | J135: 68.92077777 | K135: 136.7685878 | L135: 0.2995444943 | M135: 219.1779377 | N135: 793.4577589 | O135: 1034.832975 | P135: 1638.722044 | Q135: 1826.876088 | R135: 2186.699192 | S135: 2339.303439 | T135: 2366.304666 | U135: 2339.4262 | V135: 1762.951184 | W135: 1519.610542 | X135: 836.6779442 | Y135: 698.5605757 | AA135: 194.4212468 | AB135: 230.5722221 | AC135: 249.2051301 | AD135: 379.990585 | AE135: 445.8340592 | AF135: 346.3439291 | AG135: 530.9652866 | AH135: 321.5291033 | AI135: 408.2811727 | AJ135: 233.8333721 | AK135: 215.257357 | AL135: 171.2963309
B136: Block 16: 140-150 mills/kWh | C136: 0 | D136: 0 | E136: 0 | F136: 0 | G136: 0 | H136: 0 | I136: 0 | J136: 0 | K136: 0 | L136: 0 | M136: 0 | N136: 0 | O136: 0 | P136: 0 | Q136: 0 | R136: 0 | S136: 0 | T136: 0 | U136: 0 | V136: 0 | W136: 0 | X136: 0 | Y136: 0 | AA136: 0 | AB136: 0 | AC136: 0 | AD136: 0 | AE136: 0 | AF136: 0 | AG136: 0 | AH136: 0 | AI136: 0 | AJ136: 0 | AK136: 0 | AL136: 0
B137: Block 17: 150-160 mills/kWh | C137: 23070.9524 | D137: 46207.03274 | E137: 0 | F137: 46207.03274 | G137: 44198.01672 | H137: 7483.54759 | I137: 17544.72896 | J137: 81.18729935 | K137: 155.6551933 | L137: 0.2641745992 | M137: 219.1779377 | N137: 793.4577589 | O137: 1034.832975 | P137: 1638.722044 | Q137: 1826.876088 | R137: 2186.699192 | S137: 2339.303439 | T137: 2366.304666 | U137: 2339.4262 | V137: 1762.951184 | W137: 1519.610542 | X137: 836.6779442 | Y137: 698.5605757 | AA137: 194.4212468 | AB137: 230.5722221 | AC137: 249.2051301 | AD137: 379.990585 | AE137: 445.8340592 | AF137: 346.3439291 | AG137: 530.9652866 | AH137: 321.5291033 | AI137: 408.2811727 | AJ137: 233.8333721 | AK137: 215.257357 | AL137: 171.2963309
B138: Block 18: 160-170 mills/kWh | C138: 14778.5953 | D138: 31005 | E138: 0 | F138: 31005 | G138: 29755.72894 | H138: 4323.311553 | I138: 18378.18781 | J138: 85.7674988 | K138: 165.1580956 | L138: 0.2463992715 | M138: 140.3991369 | N138: 502.253679 | O138: 646.5216632 | P138: 1050.918322 | Q138: 1162.151185 | R138: 1417.04901 | S138: 1515.161201 | T138: 1549.675597 | U138: 1509.266442 | V138: 1133.034937 | W138: 960.7612141 | X138: 517.4961225 | Y138: 425.4222294 | AA138: 121.908498 | AB138: 142.757127 | AC138: 158.3185189 | AD138: 248.7205679 | AE138: 298.2575078 | AF138: 223.0153915 | AG138: 344.0568312 | AH138: 205.1615045 | AI138: 259.3000523 | AJ138: 151.9526491 | AK138: 131.9624727 | AL138: 103.4725755
B139: Block 19: 170-180 mills/kWh | C139: 14778.5953 | D139: 34450 | E139: 0 | F139: 34450 | G139: 32438.10852 | H139: 4935.555755 | I139: 20420.20868 | J139: 95.61918776 | K139: 175.465177 | L139: 0.2323180638 | M139: 140.3991369 | N139: 502.253679 | O139: 646.5216632 | P139: 1050.918322 | Q139: 1162.151185 | R139: 1417.04901 | S139: 1515.161201 | T139: 1549.675597 | U139: 1509.266442 | V139: 1133.034937 | W139: 960.7612141 | X139: 517.4961225 | Y139: 425.4222294 | AA139: 121.908498 | AB139: 142.757127 | AC139: 158.3185189 | AD139: 248.7205679 | AE139: 298.2575078 | AF139: 223.0153915 | AG139: 344.0568312 | AH139: 205.1615045 | AI139: 259.3000523 | AJ139: 151.9526491 | AK139: 131.9624727 | AL139: 103.4725755
B140: Block 20: 180-190 mills/kWh | C140: 14778.5953 | D140: 33788.60484 | E140: 0 | F140: 33788.60484 | G140: 32581.52484 | H140: 3711.067352 | I140: 20028.16725 | J140: 93.72779172 | K140: 182.2758936 | L140: 0.2236689156 | M140: 140.3991369 | N140: 502.253679 | O140: 646.5216632 | P140: 1050.918322 | Q140: 1162.151185 | R140: 1417.04901 | S140: 1515.161201 | T140: 1549.675597 | U140: 1509.266442 | V140: 1133.034937 | W140: 960.7612141 | X140: 517.4961225 | Y140: 425.4222294 | AA140: 121.908498 | AB140: 142.757127 | AC140: 158.3185189 | AD140: 248.7205679 | AE140: 298.2575078 | AF140: 223.0153915 | AG140: 344.0568312 | AH140: 205.1615045 | AI140: 259.3000523 | AJ140: 151.9526491 | AK140: 131.9624727 | AL140: 103.4725755
B141: Block 21: 190-200 mills/kWh | C141: 14778.5953 | D141: 37137.09114 | E141: 0 | F141: 37137.09114 | G141: 35542.70967 | H141: 3711.067352 | I141: 22012.9797 | J141: 103.3034798 | K141: 197.0194573 | L141: 0.2071841258 | M141: 140.3991369 | N141: 502.253679 | O141: 646.5216632 | P141: 1050.918322 | Q141: 1162.151185 | R141: 1417.04901 | S141: 1515.161201 | T141: 1549.675597 | U141: 1509.266442 | V141: 1133.034937 | W141: 960.7612141 | X141: 517.4961225 | Y141: 425.4222294 | AA141: 121.908498 | AB141: 142.757127 | AC141: 158.3185189 | AD141: 248.7205679 | AE141: 298.2575078 | AF141: 223.0153915 | AG141: 344.0568312 | AH141: 205.1615045 | AI141: 259.3000523 | AJ141: 151.9526491 | AK141: 131.9624727 | AL141: 103.4725755
B142: Block 22: > 200 mills/kWh | C142: 47209.78627 | D142: 143683 | E142: 0 | F142: 143683 | G142: 135728.3049 | H142: 10750.93334 | I142: 26661.06287 | J142: 127.0944267 | K142: 233.2552826 | L142: 0.1720935733 | M142: 448.5008171 | N142: 1557.501674 | O142: 1937.573419 | P142: 3366.491323 | Q142: 3649.282592 | R142: 4654.043157 | S142: 4970.256019 | T142: 5214.908233 | U142: 4904.799864 | V142: 3648.628387 | W142: 2970.320646 | X142: 1509.067627 | Y142: 1186.841645 | AA142: 368.8872436 | AB142: 417.4672868 | AC142: 495.4780573 | AD142: 835.9733216 | AE142: 1051.66229 | AF142: 721.4496608 | AG142: 1129.79871 | AH142: 649.1310331 | AI142: 810.8947118 | AJ142: 502.3122798 | AK142: 375.3004152 | AL142: 281.7166763
A145: Shaped Savings Results; By Category and sorted by TRC BC ratio
O146: Savings Allocation by Category and Month for Segments 1 | AB146: Savings Allocation by Category and Month for Segments 2
A147: Category | B147: Measure | C147: Busbar Savings | D147: First Cost | E147: Admin Cost | F147: First Year Program Cost | G147: PV Cost | H147: PV Benefits | I147: Unit Program Cost: First Year Program Cost in $/average annual kW saved | J147: Utility System Net Levelized Cost (Net of T&D Capacity Benefits, Act Credit & Risk-Mitigation) in mills/kWh | K147: TRC Net Levelized Cost (Net of All Benefits) in mills/kWh | L147: TRC B/C Ratio | M147: Net Electric & Gas System CO2 Avoided (Lifetime Tons) | N147: Wholesale KW | O147: Jan | P147: Feb | Q147: Mar | R147: Apr | S147: May | T147: Jun | U147: Jul | V147: Aug | W147: Sep | X147: Oct | Y147: Nov | Z147: Dec | AB147: Jan | AC147: Feb | AD147: Mar | AE147: Apr | AF147: May | AG147: Jun | AH147: Jul | AI147: Aug | AJ147: Sep | AK147: Oct | AL147: Nov | AM147: Dec
A148: Boise-COM-(Average)-(2035) | C148: 8292.357105 | D148: 10492.16758 | E148: 0 | F148: 10492.16758 | G148: 10277.18749 | H148: 3160.236036 | I148: 11083.86757 | J148: 49.02041006 | K148: 101.7603946 | L148: 0.4054274748 | M148: 78.77880084 | N148: 0.6504464322 | O148: 291.2040799 | P148: 388.3113121 | Q148: 587.8037221 | R148: 664.7249034 | S148: 769.6501811 | T148: 824.1422377 | U148: 816.6290694 | V148: 830.1597578 | W148: 629.9162472 | X148: 558.8493278 | Y148: 319.1818217 | Z148: 273.1383463 | AB148: 72.51274883 | AC148: 87.81509507 | AD148: 90.88661119 | AE148: 131.2700171 | AF148: 147.5765514 | AG148: 123.3285376 | AH148: 186.9084555 | AI148: 116.3675988 | AJ148: 148.9811204 | AK148: 81.88072299 | AL148: 83.29488423 | AM148: 67.82375538
A149: Boise-COM-(Average)-(2025) | C149: 8292.357105 | D149: 12885.9416 | E149: 0 | F149: 12885.9416 | G149: 12394.08649 | H149: 3160.236036 | I149: 13612.63716 | J149: 61.22040849 | K149: 120.5445752 | L149: 0.3445015474 | M149: 78.77880084 | N149: 0.6504464322 | O149: 291.2040799 | P149: 388.3113121 | Q149: 587.8037221 | R149: 664.7249034 | S149: 769.6501811 | T149: 824.1422377 | U149: 816.6290694 | V149: 830.1597578 | W149: 629.9162472 | X149: 558.8493278 | Y149: 319.1818217 | Z149: 273.1383463 | AB149: 72.51274883 | AC149: 87.81509507 | AD149: 90.88661119 | AE149: 131.2700171 | AF149: 147.5765514 | AG149: 123.3285376 | AH149: 186.9084555 | AI149: 116.3675988 | AJ149: 148.9811204 | AK149: 81.88072299 | AL149: 83.29488423 | AM149: 67.82375538
A150: Boise-COM-(Low Quartile)-(Fed Tax Credit) | C150: 8292.357105 | D150: 13356 | E150: 0 | F150: 13356 | G150: 12809.77575 | H150: 3160.236036 | I150: 14109.20424 | J150: 63.61608647 | K150: 124.2331698 | L150: 0.3346269687 | M150: 78.77880084 | N150: 0.6504464322 | O150: 291.2040799 | P150: 388.3113121 | Q150: 587.8037221 | R150: 664.7249034 | S150: 769.6501811 | T150: 824.1422377 | U150: 816.6290694 | V150: 830.1597578 | W150: 629.9162472 | X150: 558.8493278 | Y150: 319.1818217 | Z150: 273.1383463 | AB150: 72.51274883 | AC150: 87.81509507 | AD150: 90.88661119 | AE150: 131.2700171 | AF150: 147.5765514 | AG150: 123.3285376 | AH150: 186.9084555 | AI150: 116.3675988 | AJ150: 148.9811204 | AK150: 81.88072299 | AL150: 83.29488423 | AM150: 67.82375538
A151: Boise-COM-(Low Quartile)-(2014) | C151: 8292.357105 | D151: 14840 | E151: 0 | F151: 14840 | G151: 14122.12942 | H151: 3160.236036 | I151: 15676.8936 | J151: 71.17937252 | K151: 135.878264 | L151: 0.3068587514 | M151: 78.77880084 | N151: 0.6504464322 | O151: 291.2040799 | P151: 388.3113121 | Q151: 587.8037221 | R151: 664.7249034 | S151: 769.6501811 | T151: 824.1422377 | U151: 816.6290694 | V151: 830.1597578 | W151: 629.9162472 | X151: 558.8493278 | Y151: 319.1818217 | Z151: 273.1383463 | AB151: 72.51274883 | AC151: 87.81509507 | AD151: 90.88661119 | AE151: 131.2700171 | AF151: 147.5765514 | AG151: 123.3285376 | AH151: 186.9084555 | AI151: 116.3675988 | AJ151: 148.9811204 | AK151: 81.88072299 | AL151: 83.29488423 | AM151: 67.82375538
A152: Boise-RES-(Average)-(2035) | C152: 8292.357105 | D152: 14178.60484 | E152: 0 | F152: 14178.60484 | G152: 13901.39002 | H152: 2547.991834 | I152: 14978.19942 | J152: 67.80853642 | K152: 139.3522592 | L152: 0.2994457944 | M152: 78.77880084 | N152: 0.6504464322 | O152: 291.2040799 | P152: 388.3113121 | Q152: 587.8037221 | R152: 664.7249034 | S152: 769.6501811 | T152: 824.1422377 | U152: 816.6290694 | V152: 830.1597578 | W152: 629.9162472 | X152: 558.8493278 | Y152: 319.1818217 | Z152: 273.1383463 | AB152: 72.51274883 | AC152: 87.81509507 | AD152: 90.88661119 | AE152: 131.2700171 | AF152: 147.5765514 | AG152: 123.3285376 | AH152: 186.9084555 | AI152: 116.3675988 | AJ152: 148.9811204 | AK152: 81.88072299 | AL152: 83.29488423 | AM152: 67.82375538
A153: Portland-COM-(Average)-(2035) | C153: 6486.238194 | D153: 10492.16758 | E153: 0 | F153: 10492.16758 | G153: 10252.75752 | H153: 1775.319719 | I153: 14170.21473 | J153: 67.45521769 | K153: 134.6037207 | L153: 0.2903197366 | M153: 61.62033604 | N153: 0.1038118717 | O153: 211.0495991 | P153: 258.2103511 | Q153: 463.1146002 | R153: 497.4262814 | S153: 647.3988292 | T153: 691.0189636 | U153: 733.0465273 | V153: 679.1066844 | W153: 503.11869 | X153: 401.9118863 | Y153: 198.3143008 | Z153: 152.2838831 | AB153: 49.39574914 | AC153: 54.94203195 | AD153: 67.43190769 | AE153: 117.4505508 | AF153: 150.6809564 | AG153: 99.68685387 | AH153: 157.1483757 | AI153: 88.79390572 | AJ153: 110.3189319 | AK153: 70.07192613 | AL153: 48.6675885 | AM153: 35.64882015
A154: Boise-RES-(Average)-(2025) | C154: 8292.357105 | D154: 15672.09114 | E154: 0 | F154: 15672.09114 | G154: 15222.13276 | H154: 2547.991834 | I154: 16555.91006 | J154: 75.4201699 | K154: 151.0717933 | L154: 0.2768811979 | M154: 78.77880084 | N154: 0.6504464322 | O154: 291.2040799 | P154: 388.3113121 | Q154: 587.8037221 | R154: 664.7249034 | S154: 769.6501811 | T154: 824.1422377 | U154: 816.6290694 | V154: 830.1597578 | W154: 629.9162472 | X154: 558.8493278 | Y154: 319.1818217 | Z154: 273.1383463 | AB154: 72.51274883 | AC154: 87.81509507 | AD154: 90.88661119 | AE154: 131.2700171 | AF154: 147.5765514 | AG154: 123.3285376 | AH154: 186.9084555 | AI154: 116.3675988 | AJ154: 148.9811204 | AK154: 81.88072299 | AL154: 83.29488423 | AM154: 67.82375538
A155: Boise-COM-(Average)-(Fed Tax Credit) | C155: 8292.357105 | D155: 17649 | E155: 0 | F155: 17649 | G155: 16606.22744 | H155: 3160.236036 | I155: 18644.3056 | J155: 85.49559255 | K155: 157.9207638 | L155: 0.2652023071 | M155: 78.77880084 | N155: 0.6504464322 | O155: 291.2040799 | P155: 388.3113121 | Q155: 587.8037221 | R155: 664.7249034 | S155: 769.6501811 | T155: 824.1422377 | U155: 816.6290694 | V155: 830.1597578 | W155: 629.9162472 | X155: 558.8493278 | Y155: 319.1818217 | Z155: 273.1383463 | AB155: 72.51274883 | AC155: 87.81509507 | AD155: 90.88661119 | AE155: 131.2700171 | AF155: 147.5765514 | AG155: 123.3285376 | AH155: 186.9084555 | AI155: 116.3675988 | AJ155: 148.9811204 | AK155: 81.88072299 | AL155: 83.29488423 | AM155: 67.82375538
A156: Boise-RES-(Low Quartile)-(Fed Tax Credit) | C156: 8292.357105 | D156: 17649 | E156: 0 | F156: 17649 | G156: 16970.38316 | H156: 2547.991834 | I156: 18644.3056 | J156: 85.49559255 | K156: 166.584792 | L156: 0.2517683539 | M156: 78.77880084 | N156: 0.6504464322 | O156: 291.2040799 | P156: 388.3113121 | Q156: 587.8037221 | R156: 664.7249034 | S156: 769.6501811 | T156: 824.1422377 | U156: 816.6290694 | V156: 830.1597578 | W156: 629.9162472 | X156: 558.8493278 | Y156: 319.1818217 | Z156: 273.1383463 | AB156: 72.51274883 | AC156: 87.81509507 | AD156: 90.88661119 | AE156: 131.2700171 | AF156: 147.5765514 | AG156: 123.3285376 | AH156: 186.9084555 | AI156: 116.3675988 | AJ156: 148.9811204 | AK156: 81.88072299 | AL156: 83.29488423 | AM156: 67.82375538
A157: Portland-COM-(Average)-(2025) | C157: 6486.238194 | D157: 12885.9416 | E157: 0 | F157: 12885.9416 | G157: 12369.65652 | H157: 1775.319719 | I157: 17403.1303 | J157: 83.05235437 | K157: 158.6184315 | L157: 0.2466159203 | M157: 61.62033604 | N157: 0.1038118717 | O157: 211.0495991 | P157: 258.2103511 | Q157: 463.1146002 | R157: 497.4262814 | S157: 647.3988292 | T157: 691.0189636 | U157: 733.0465273 | V157: 679.1066844 | W157: 503.11869 | X157: 401.9118863 | Y157: 198.3143008 | Z157: 152.2838831 | AB157: 49.39574914 | AC157: 54.94203195 | AD157: 67.43190769 | AE157: 117.4505508 | AF157: 150.6809564 | AG157: 99.68685387 | AH157: 157.1483757 | AI157: 88.79390572 | AJ157: 110.3189319 | AK157: 70.07192613 | AL157: 48.6675885 | AM157: 35.64882015
A158: Boise-COM-(Average)-(2014) | C158: 8292.357105 | D158: 19610 | E158: 0 | F158: 19610 | G158: 18340.40907 | H158: 3160.236036 | I158: 20715.89511 | J158: 95.48993484 | K158: 173.3089241 | L158: 0.2422448351 | M158: 78.77880084 | N158: 0.6504464322 | O158: 291.2040799 | P158: 388.3113121 | Q158: 587.8037221 | R158: 664.7249034 | S158: 769.6501811 | T158: 824.1422377 | U158: 816.6290694 | V158: 830.1597578 | W158: 629.9162472 | X158: 558.8493278 | Y158: 319.1818217 | Z158: 273.1383463 | AB158: 72.51274883 | AC158: 87.81509507 | AD158: 90.88661119 | AE158: 131.2700171 | AF158: 147.5765514 | AG158: 123.3285376 | AH158: 186.9084555 | AI158: 116.3675988 | AJ158: 148.9811204 | AK158: 81.88072299 | AL158: 83.29488423 | AM158: 67.82375538
A159: Portland-COM-(Low Quartile)-(Fed Tax Credit) | C159: 6486.238194 | D159: 13356 | E159: 0 | F159: 13356 | G159: 12785.34578 | H159: 1775.319719 | I159: 18037.96846 | J159: 86.11511843 | K159: 163.3341299 | L159: 0.2395351466 | M159: 61.62033604 | N159: 0.1038118717 | O159: 211.0495991 | P159: 258.2103511 | Q159: 463.1146002 | R159: 497.4262814 | S159: 647.3988292 | T159: 691.0189636 | U159: 733.0465273 | V159: 679.1066844 | W159: 503.11869 | X159: 401.9118863 | Y159: 198.3143008 | Z159: 152.2838831 | AB159: 49.39574914 | AC159: 54.94203195 | AD159: 67.43190769 | AE159: 117.4505508 | AF159: 150.6809564 | AG159: 99.68685387 | AH159: 157.1483757 | AI159: 88.79390572 | AJ159: 110.3189319 | AK159: 70.07192613 | AL159: 48.6675885 | AM159: 35.64882015
A160: Boise-RES-(Low Quartile)-(2014) | C160: 8292.357105 | D160: 19610 | E160: 0 | F160: 19610 | G160: 18704.56479 | H160: 2547.991834 | I160: 20715.89511 | J160: 95.48993484 | K160: 181.9729523 | L160: 0.2309866891 | M160: 78.77880084 | N160: 0.6504464322 | O160: 291.2040799 | P160: 388.3113121 | Q160: 587.8037221 | R160: 664.7249034 | S160: 769.6501811 | T160: 824.1422377 | U160: 816.6290694 | V160: 830.1597578 | W160: 629.9162472 | X160: 558.8493278 | Y160: 319.1818217 | Z160: 273.1383463 | AB160: 72.51274883 | AC160: 87.81509507 | AD160: 90.88661119 | AE160: 131.2700171 | AF160: 147.5765514 | AG160: 123.3285376 | AH160: 186.9084555 | AI160: 116.3675988 | AJ160: 148.9811204 | AK160: 81.88072299 | AL160: 83.29488423 | AM160: 67.82375538
A161: Portland-COM-(Low Quartile)-(2014) | C161: 6486.238194 | D161: 14840 | E161: 0 | F161: 14840 | G161: 14097.69945 | H161: 1775.319719 | I161: 20042.18718 | J161: 95.78443168 | K161: 178.2218471 | L161: 0.2196271434 | M161: 61.62033604 | N161: 0.1038118717 | O161: 211.0495991 | P161: 258.2103511 | Q161: 463.1146002 | R161: 497.4262814 | S161: 647.3988292 | T161: 691.0189636 | U161: 733.0465273 | V161: 679.1066844 | W161: 503.11869 | X161: 401.9118863 | Y161: 198.3143008 | Z161: 152.2838831 | AB161: 49.39574914 | AC161: 54.94203195 | AD161: 67.43190769 | AE161: 117.4505508 | AF161: 150.6809564 | AG161: 99.68685387 | AH161: 157.1483757 | AI161: 88.79390572 | AJ161: 110.3189319 | AK161: 70.07192613 | AL161: 48.6675885 | AM161: 35.64882015
A162: Portland-RES-(Average)-(2035) | C162: 6486.238194 | D162: 14178.60484 | E162: 0 | F162: 14178.60484 | G162: 13876.96005 | H162: 1163.075517 | I162: 19148.93883 | J162: 91.47497281 | K162: 182.6631901 | L162: 0.2143134787 | M162: 61.62033604 | N162: 0.1038118717 | O162: 211.0495991 | P162: 258.2103511 | Q162: 463.1146002 | R162: 497.4262814 | S162: 647.3988292 | T162: 691.0189636 | U162: 733.0465273 | V162: 679.1066844 | W162: 503.11869 | X162: 401.9118863 | Y162: 198.3143008 | Z162: 152.2838831 | AB162: 49.39574914 | AC162: 54.94203195 | AD162: 67.43190769 | AE162: 117.4505508 | AF162: 150.6809564 | AG162: 99.68685387 | AH162: 157.1483757 | AI162: 88.79390572 | AJ162: 110.3189319 | AK162: 70.07192613 | AL162: 48.6675885 | AM162: 35.64882015
A163: Boise-RES-(Average)-(Fed Tax Credit) | C163: 8292.357105 | D163: 21465 | E163: 0 | F163: 21465 | G163: 20345.00688 | H163: 2547.991834 | I163: 22675.50681 | J163: 104.9440424 | K163: 196.5293201 | L163: 0.2142572622 | M163: 78.77880084 | N163: 0.6504464322 | O163: 291.2040799 | P163: 388.3113121 | Q163: 587.8037221 | R163: 664.7249034 | S163: 769.6501811 | T163: 824.1422377 | U163: 816.6290694 | V163: 830.1597578 | W163: 629.9162472 | X163: 558.8493278 | Y163: 319.1818217 | Z163: 273.1383463 | AB163: 72.51274883 | AC163: 87.81509507 | AD163: 90.88661119 | AE163: 131.2700171 | AF163: 147.5765514 | AG163: 123.3285376 | AH163: 186.9084555 | AI163: 116.3675988 | AJ163: 148.9811204 | AK163: 81.88072299 | AL163: 83.29488423 | AM163: 67.82375538
A164: Portland-RES-(Average)-(2025) | C164: 6486.238194 | D164: 15672.09114 | E164: 0 | F164: 15672.09114 | G164: 15197.70279 | H164: 1163.075517 | I164: 21165.96928 | J164: 101.206096 | K164: 197.6460753 | L164: 0.1981414464 | M164: 61.62033604 | N164: 0.1038118717 | O164: 211.0495991 | P164: 258.2103511 | Q164: 463.1146002 | R164: 497.4262814 | S164: 647.3988292 | T164: 691.0189636 | U164: 733.0465273 | V164: 679.1066844 | W164: 503.11869 | X164: 401.9118863 | Y164: 198.3143008 | Z164: 152.2838831 | AB164: 49.39574914 | AC164: 54.94203195 | AD164: 67.43190769 | AE164: 117.4505508 | AF164: 150.6809564 | AG164: 99.68685387 | AH164: 157.1483757 | AI164: 88.79390572 | AJ164: 110.3189319 | AK164: 70.07192613 | AL164: 48.6675885 | AM164: 35.64882015
A165: Boise-RES-(Average)-(2014) | C165: 8292.357105 | D165: 23850 | E165: 0 | F165: 23850 | G165: 22454.14671 | H165: 2547.991834 | I165: 25195.00757 | J165: 117.0993236 | K165: 215.2446501 | L165: 0.1960054217 | M165: 78.77880084 | N165: 0.6504464322 | O165: 291.2040799 | P165: 388.3113121 | Q165: 587.8037221 | R165: 664.7249034 | S165: 769.6501811 | T165: 824.1422377 | U165: 816.6290694 | V165: 830.1597578 | W165: 629.9162472 | X165: 558.8493278 | Y165: 319.1818217 | Z165: 273.1383463 | AB165: 72.51274883 | AC165: 87.81509507 | AD165: 90.88661119 | AE165: 131.2700171 | AF165: 147.5765514 | AG165: 123.3285376 | AH165: 186.9084555 | AI165: 116.3675988 | AJ165: 148.9811204 | AK165: 81.88072299 | AL165: 83.29488423 | AM165: 67.82375538
A166: Portland-COM-(Average)-(Fed Tax Credit) | C166: 6486.238194 | D166: 17649 | E166: 0 | F166: 17649 | G166: 16581.79747 | H166: 1775.319719 | I166: 23835.8869 | J166: 114.0870603 | K166: 206.402169 | L166: 0.1897726374 | M166: 61.62033604 | N166: 0.1038118717 | O166: 211.0495991 | P166: 258.2103511 | Q166: 463.1146002 | R166: 497.4262814 | S166: 647.3988292 | T166: 691.0189636 | U166: 733.0465273 | V166: 679.1066844 | W166: 503.11869 | X166: 401.9118863 | Y166: 198.3143008 | Z166: 152.2838831 | AB166: 49.39574914 | AC166: 54.94203195 | AD166: 67.43190769 | AE166: 117.4505508 | AF166: 150.6809564 | AG166: 99.68685387 | AH166: 157.1483757 | AI166: 88.79390572 | AJ166: 110.3189319 | AK166: 70.07192613 | AL166: 48.6675885 | AM166: 35.64882015
A167: Portland-RES-(Low Quartile)-(Fed Tax Credit) | C167: 6486.238194 | D167: 17649 | E167: 0 | F167: 17649 | G167: 16945.95319 | H167: 1163.075517 | I167: 23835.8869 | J167: 114.0870603 | K167: 217.4787303 | L167: 0.180147412 | M167: 61.62033604 | N167: 0.1038118717 | O167: 211.0495991 | P167: 258.2103511 | Q167: 463.1146002 | R167: 497.4262814 | S167: 647.3988292 | T167: 691.0189636 | U167: 733.0465273 | V167: 679.1066844 | W167: 503.11869 | X167: 401.9118863 | Y167: 198.3143008 | Z167: 152.2838831 | AB167: 49.39574914 | AC167: 54.94203195 | AD167: 67.43190769 | AE167: 117.4505508 | AF167: 150.6809564 | AG167: 99.68685387 | AH167: 157.1483757 | AI167: 88.79390572 | AJ167: 110.3189319 | AK167: 70.07192613 | AL167: 48.6675885 | AM167: 35.64882015
A168: Portland-COM-(Average)-(2014) | C168: 6486.238194 | D168: 19610 | E168: 0 | F168: 19610 | G168: 18315.9791 | H168: 1775.319719 | I168: 26484.31878 | J168: 126.8643671 | K168: 226.0752239 | L168: 0.1733247435 | M168: 61.62033604 | N168: 0.1038118717 | O168: 211.0495991 | P168: 258.2103511 | Q168: 463.1146002 | R168: 497.4262814 | S168: 647.3988292 | T168: 691.0189636 | U168: 733.0465273 | V168: 679.1066844 | W168: 503.11869 | X168: 401.9118863 | Y168: 198.3143008 | Z168: 152.2838831 | AB168: 49.39574914 | AC168: 54.94203195 | AD168: 67.43190769 | AE168: 117.4505508 | AF168: 150.6809564 | AG168: 99.68685387 | AH168: 157.1483757 | AI168: 88.79390572 | AJ168: 110.3189319 | AK168: 70.07192613 | AL168: 48.6675885 | AM168: 35.64882015
A169: Portland-RES-(Low Quartile)-(2014) | C169: 6486.238194 | D169: 19610 | E169: 0 | F169: 19610 | G169: 18680.13482 | H169: 1163.075517 | I169: 26484.31878 | J169: 126.8643671 | K169: 237.1517852 | L169: 0.1652602294 | M169: 61.62033604 | N169: 0.1038118717 | O169: 211.0495991 | P169: 258.2103511 | Q169: 463.1146002 | R169: 497.4262814 | S169: 647.3988292 | T169: 691.0189636 | U169: 733.0465273 | V169: 679.1066844 | W169: 503.11869 | X169: 401.9118863 | Y169: 198.3143008 | Z169: 152.2838831 | AB169: 49.39574914 | AC169: 54.94203195 | AD169: 67.43190769 | AE169: 117.4505508 | AF169: 150.6809564 | AG169: 99.68685387 | AH169: 157.1483757 | AI169: 88.79390572 | AJ169: 110.3189319 | AK169: 70.07192613 | AL169: 48.6675885 | AM169: 35.64882015
A170: Portland-RES-(Average)-(Fed Tax Credit) | C170: 6486.238194 | D170: 21465 | E170: 0 | F170: 21465 | G170: 20320.57691 | H170: 1163.075517 | I170: 28989.59217 | J170: 138.9510086 | K170: 255.7614318 | L170: 0.153278179 | M170: 61.62033604 | N170: 0.1038118717 | O170: 211.0495991 | P170: 258.2103511 | Q170: 463.1146002 | R170: 497.4262814 | S170: 647.3988292 | T170: 691.0189636 | U170: 733.0465273 | V170: 679.1066844 | W170: 503.11869 | X170: 401.9118863 | Y170: 198.3143008 | Z170: 152.2838831 | AB170: 49.39574914 | AC170: 54.94203195 | AD170: 67.43190769 | AE170: 117.4505508 | AF170: 150.6809564 | AG170: 99.68685387 | AH170: 157.1483757 | AI170: 88.79390572 | AJ170: 110.3189319 | AK170: 70.07192613 | AL170: 48.6675885 | AM170: 35.64882015
A171: Portland-RES-(Average)-(2014) | C171: 6486.238194 | D171: 23850 | E171: 0 | F171: 23850 | G171: 22429.71673 | H171: 1163.075517 | I171: 32210.65797 | J171: 154.4909764 | K171: 279.6881201 | L171: 0.1402080408 | M171: 61.62033604 | N171: 0.1038118717 | O171: 211.0495991 | P171: 258.2103511 | Q171: 463.1146002 | R171: 497.4262814 | S171: 647.3988292 | T171: 691.0189636 | U171: 733.0465273 | V171: 679.1066844 | W171: 503.11869 | X171: 401.9118863 | Y171: 198.3143008 | Z171: 152.2838831 | AB171: 49.39574914 | AC171: 54.94203195 | AD171: 67.43190769 | AE171: 117.4505508 | AF171: 150.6809564 | AG171: 99.68685387 | AH171: 157.1483757 | AI171: 88.79390572 | AJ171: 110.3189319 | AK171: 70.07192613 | AL171: 48.6675885 | AM171: 35.64882015

Sheet M_Input (link)
A1: Data Set Name | B1: =IF(AND('[1]ProCost 7th Plan Inputs'!B90=TRUE,'[1]ProCost 7th Plan Inputs'!C90=TRUE,'[1]ProCost 7th Plan Inputs'!D90=TRUE,'[1]ProCost 7th Plan Inputs'!E90=TRUE,'[1]ProCost 7th Plan Inputs'!F90=TRUE,'[1]ProCost 7th Plan Inputs'!B93=TRUE,'[1]ProCost 7th Plan Inputs'!C93=TRUE,'[1]ProCost 7th Plan Inputs'!D93=TRUE,'[1]ProCost 7th Plan Inputs'!E93=TRUE,'[1]ProCost 7th Plan Inputs'!F93=TRUE,'[1]ProCost 7th Plan Inputs'!B96=TRUE,'[1]ProCost 7th Plan Inputs'!C96=TRUE,'[1]ProCost 7th Plan Inputs'!D96=TRUE,'[1]ProCost 7th Plan Inputs'!E96=TRUE,'[1]ProCost 7th Plan Inputs'!F96=TRUE,'[1]ProCost 7th Plan Inputs'!G90=TRUE,'[1]ProCost 7th Plan Inputs'!G93=TRUE,'[1]ProCost 7th Plan Inputs'!G96=TRUE),"","ERROR - Inputs have changed re-run ProCost") ->  | C1: =IF(AND('[1]ProCost 7th Plan Inputs'!B90=TRUE,'[1]ProCost 7th Plan Inputs'!B93=TRUE,'[1]ProCost 7th Plan Inputs'!B96=TRUE),"","Re-run ProCost") ->  | D1: =IF(AND('[1]ProCost 7th Plan Inputs'!C90=TRUE,'[1]ProCost 7th Plan Inputs'!C93=TRUE,'[1]ProCost 7th Plan Inputs'!C96=TRUE),"","Re-run ProCost") ->  | E1: =IF(AND('[1]ProCost 7th Plan Inputs'!D90=TRUE,'[1]ProCost 7th Plan Inputs'!D93=TRUE,'[1]ProCost 7th Plan Inputs'!D96=TRUE),"","Re-run ProCost") ->  | F1: =IF(AND('[1]ProCost 7th Plan Inputs'!E90=TRUE,'[1]ProCost 7th Plan Inputs'!E93=TRUE,'[1]ProCost 7th Plan Inputs'!E96=TRUE),"","Re-run ProCost") ->  | G1: =IF(AND('[1]ProCost 7th Plan Inputs'!F90=TRUE,'[1]ProCost 7th Plan Inputs'!F93=TRUE,'[1]ProCost 7th Plan Inputs'!F96=TRUE),"","Re-run ProCost") ->  | O1: =IF(AND('[1]ProCost 7th Plan Inputs'!G90=TRUE,'[1]ProCost 7th Plan Inputs'!G93=TRUE,'[1]ProCost 7th Plan Inputs'!G96=TRUE),"","Re-run ProCost") -> 
A2: Measure Index Name | F2: Beta04
A3: Costs must be denominated in the same year as 'Input Cost Reference Year' = | C3: 2012
F4: Var O&M (Sys Integration) | H4: Fixed O&M
A5: 1 | B5: 2 | C5: 3 | D5: 4 | E5: 5 | F5: 6 | G5: 7 | H5: 8 | I5: 9 | J5: 10 | K5: 11 | L5: 12 | M5: 13 | N5: 14 | O5: 15 | P5: 16 | Q5: 17 | R5: 18 | S5: 19 | T5: 20 | U5: 21 | V5: 22 | W5: 23 | X5: 24 | Y5: 25 | Z5: 26 | AA5: 27 | AB5: 28 | AC5: 29 | AD5: 30 | AE5: 31 | AF5: 32 | AG5: 33 | AH5: 34 | AI5: 35 | AJ5: 36 | AK5: 37 | AL5: 38 | AM5: 39 | AN5: 40 | AO5: 41 | AP5: 42 | AQ5: 43 | AR5: 44 | AS5: 45 | AT5: 46 | AU5: 47 | AV5: 48 | AW5: 49 | AX5: 50 | AY5: 51 | AZ5: 52 | BA5: 53 | BB5: 54 | BC5: 55 | BD5: 56 | BE5: 57 | BF5: 58 | BG5: 59 | BH5: 60 | BI5: 61 | BJ5: 62 | BK5: 63 | BL5: 64 | BM5: 65 | BN5: 66 | BO5: 67 | BP5: 68 | BQ5: 69 | BR5: 70 | BS5: 71 | BT5: 72 | BU5: 73 | BV5: 74 | BW5: 75 | BX5: 76 | BY5: 77 | BZ5: 78 | CA5: 79 | CB5: 80 | CC5: 81 | CD5: 82 | CE5: 83 | CF5: 84 | CG5: 85 | CH5: 86 | CI5: 87 | CJ5: 88 | CK5: 89 | CL5: 90 | CM5: 91 | CN5: 92 | CO5: 93 | CP5: 94 | CQ5: 95 | CR5: 96 | CS5: 97 | CT5: 98 | CU5: 99 | CV5: 100 | CW5: 101 | CX5: 102 | CY5: 103 | CZ5: 104 | DA5: 105
A6: Input Data | I6: Periodic Replacement Costs and Savings and Replacement Period | O6: Gas Inputs | Q6: Retro or LO | R6: Early Retrofit Parameters
A7: Category Name | B7: Measure Name | C7: Savings (kwh/yr) | D7: Life (yrs) | E7: Capital Cost | F7: Annual O&M | G7: Shape Pointer | H7: Non-E Val ($/yr) | I7: Cost 1 ($) | J7: Period 1 | K7: Cost 2 ($) | L7: Period 2 | M7: Cost 3 ($) | N7: Period 3 | O7: Savings (therms/yr) | P7: Shape Pointer | Q7: R or L | R7: Savings 2 (kWh) | S7: Remaining Life (yrs) | T7: Salvage Value ($)
A8: =B8 -> Boise-RES-(Average)-(2014) | B8: =MMap!F6 -> Boise-RES-(Average)-(2014) | C8: =MMap!H6 -> 7723 | D8: =MMap!I6 -> 25 | E8: =MMap!G6 -> 23850 | F8: =+MMap!M6 -> 8.26361 | G8: =MMap!N6 -> Residential-RES-SolarPV-Boise | H8: =-MMap!J6 -> -169.6 | I8: =MMap!K6 -> 1925 | J8: =MMap!L6 -> 10 | Q8: R
A9: Boise-RES-(Low Quartile)-(2014) | B9: Boise-RES-(Low Quartile)-(2014) | C9: =MMap!H7 -> 7723 | D9: =MMap!I7 -> 25 | E9: =MMap!G7 -> 19610 | F9: =+MMap!M7 -> 8.26361 | G9: =MMap!N7 -> Residential-RES-SolarPV-Boise | H9: =-MMap!J7 -> -169.6 | I9: =MMap!K7 -> 1925 | J9: =MMap!L7 -> 10 | Q9: R
A10: Boise-COM-(Average)-(2014) | B10: Boise-COM-(Average)-(2014) | C10: =MMap!H8 -> 7723 | D10: =MMap!I8 -> 25 | E10: =MMap!G8 -> 19610 | F10: =+MMap!M8 -> 8.26361 | G10: =MMap!N8 -> Residential-RES-SolarPV-Boise | H10: =-MMap!J8 -> -124.55 | I10: =MMap!K8 -> 1660 | J10: =MMap!L8 -> 15 | Q10: R
A11: Boise-COM-(Low Quartile)-(2014) | B11: Boise-COM-(Low Quartile)-(2014) | C11: =MMap!H9 -> 7723 | D11: =MMap!I9 -> 25 | E11: =MMap!G9 -> 14840 | F11: =+MMap!M9 -> 8.26361 | G11: =MMap!N9 -> Residential-RES-SolarPV-Boise | H11: =-MMap!J9 -> -124.55 | I11: =MMap!K9 -> 1660 | J11: =MMap!L9 -> 15 | Q11: R
A12: Boise-RES-(Average)-(Fed Tax Credit) | B12: Boise-RES-(Average)-(Fed Tax Credit) | C12: =MMap!H10 -> 7723 | D12: =MMap!I10 -> 25 | E12: =MMap!G10 -> 21465 | F12: =+MMap!M10 -> 8.26361 | G12: =MMap!N10 -> Residential-RES-SolarPV-Boise | H12: =-MMap!J10 -> -169.6 | I12: =MMap!K10 -> 1925 | J12: =MMap!L10 -> 10 | Q12: R
A13: Boise-RES-(Low Quartile)-(Fed Tax Credit) | B13: Boise-RES-(Low Quartile)-(Fed Tax Credit) | C13: =MMap!H11 -> 7723 | D13: =MMap!I11 -> 25 | E13: =MMap!G11 -> 17649 | F13: =+MMap!M11 -> 8.26361 | G13: =MMap!N11 -> Residential-RES-SolarPV-Boise | H13: =-MMap!J11 -> -169.6 | I13: =MMap!K11 -> 1925 | J13: =MMap!L11 -> 10 | Q13: R
A14: Boise-COM-(Average)-(Fed Tax Credit) | B14: Boise-COM-(Average)-(Fed Tax Credit) | C14: =MMap!H12 -> 7723 | D14: =MMap!I12 -> 25 | E14: =MMap!G12 -> 17649 | F14: =+MMap!M12 -> 8.26361 | G14: =MMap!N12 -> Residential-RES-SolarPV-Boise | H14: =-MMap!J12 -> -124.55 | I14: =MMap!K12 -> 1660 | J14: =MMap!L12 -> 15 | Q14: R
A15: Boise-COM-(Low Quartile)-(Fed Tax Credit) | B15: Boise-COM-(Low Quartile)-(Fed Tax Credit) | C15: =MMap!H13 -> 7723 | D15: =MMap!I13 -> 25 | E15: =MMap!G13 -> 13356 | F15: =+MMap!M13 -> 8.26361 | G15: =MMap!N13 -> Residential-RES-SolarPV-Boise | H15: =-MMap!J13 -> -124.55 | I15: =MMap!K13 -> 1660 | J15: =MMap!L13 -> 15 | Q15: R
A16: Boise-RES-(Average)-(2025) | B16: Boise-RES-(Average)-(2025) | C16: =MMap!H14 -> 7723 | D16: =MMap!I14 -> 25 | E16: =MMap!G14 -> 15900 | F16: =+MMap!M14 -> 8.26361 | G16: =MMap!N14 -> Residential-RES-SolarPV-Boise | H16: =-MMap!J14 -> -169.6 | I16: =MMap!K14 -> 1925 | J16: =MMap!L14 -> 10 | Q16: R
A17: Boise-COM-(Average)-(2025) | B17: Boise-COM-(Average)-(2025) | C17: =MMap!H15 -> 7723 | D17: =MMap!I15 -> 25 | E17: =MMap!G15 -> 12720 | F17: =+MMap!M15 -> 8.26361 | G17: =MMap!N15 -> Residential-RES-SolarPV-Boise | H17: =-MMap!J15 -> -124.55 | I17: =MMap!K15 -> 1660 | J17: =MMap!L15 -> 15 | Q17: R
A18: Boise-RES-(Average)-(2035) | B18: Boise-RES-(Average)-(2035) | C18: =MMap!H16 -> 7723 | D18: =MMap!I16 -> 25 | E18: =MMap!G16 -> 14310 | F18: =+MMap!M16 -> 8.26361 | G18: =MMap!N16 -> Residential-RES-SolarPV-Boise | H18: =-MMap!J16 -> -169.6 | I18: =MMap!K16 -> 1925 | J18: =MMap!L16 -> 10 | Q18: R
A19: Boise-COM-(Average)-(2035) | B19: Boise-COM-(Average)-(2035) | C19: =MMap!H17 -> 7723 | D19: =MMap!I17 -> 25 | E19: =MMap!G17 -> 10600 | F19: =+MMap!M17 -> 8.26361 | G19: =MMap!N17 -> Residential-RES-SolarPV-Boise | H19: =-MMap!J17 -> -124.55 | I19: =MMap!K17 -> 1660 | J19: =MMap!L17 -> 15 | Q19: R
A20: Portland-RES-(Average)-(2014) | B20: Portland-RES-(Average)-(2014) | C20: =MMap!H18 -> 6043 | D20: =MMap!I18 -> 25 | E20: =MMap!G18 -> 23850 | F20: =+MMap!M18 -> 6.46601 | G20: =MMap!N18 -> Residential-RES-SolarPV-Portland | H20: =-MMap!J18 -> -169.6 | I20: =MMap!K18 -> 1925 | J20: =MMap!L18 -> 10 | Q20: R
A21: Portland-RES-(Low Quartile)-(2014) | B21: Portland-RES-(Low Quartile)-(2014) | C21: =MMap!H19 -> 6043 | D21: =MMap!I19 -> 25 | E21: =MMap!G19 -> 19610 | F21: =+MMap!M19 -> 6.46601 | G21: =MMap!N19 -> Residential-RES-SolarPV-Portland | H21: =-MMap!J19 -> -169.6 | I21: =MMap!K19 -> 1925 | J21: =MMap!L19 -> 10 | Q21: R
A22: Portland-COM-(Average)-(2014) | B22: Portland-COM-(Average)-(2014) | C22: =MMap!H20 -> 6043 | D22: =MMap!I20 -> 25 | E22: =MMap!G20 -> 19610 | F22: =+MMap!M20 -> 6.46601 | G22: =MMap!N20 -> Residential-RES-SolarPV-Portland | H22: =-MMap!J20 -> -124.55 | I22: =MMap!K20 -> 1660 | J22: =MMap!L20 -> 15 | Q22: R
A23: Portland-COM-(Low Quartile)-(2014) | B23: Portland-COM-(Low Quartile)-(2014) | C23: =MMap!H21 -> 6043 | D23: =MMap!I21 -> 25 | E23: =MMap!G21 -> 14840 | F23: =+MMap!M21 -> 6.46601 | G23: =MMap!N21 -> Residential-RES-SolarPV-Portland | H23: =-MMap!J21 -> -124.55 | I23: =MMap!K21 -> 1660 | J23: =MMap!L21 -> 15 | Q23: R
A24: Portland-RES-(Average)-(Fed Tax Credit) | B24: Portland-RES-(Average)-(Fed Tax Credit) | C24: =MMap!H22 -> 6043 | D24: =MMap!I22 -> 25 | E24: =MMap!G22 -> 21465 | F24: =+MMap!M22 -> 6.46601 | G24: =MMap!N22 -> Residential-RES-SolarPV-Portland | H24: =-MMap!J22 -> -169.6 | I24: =MMap!K22 -> 1925 | J24: =MMap!L22 -> 10 | Q24: R
A25: Portland-RES-(Low Quartile)-(Fed Tax Credit) | B25: Portland-RES-(Low Quartile)-(Fed Tax Credit) | C25: =MMap!H23 -> 6043 | D25: =MMap!I23 -> 25 | E25: =MMap!G23 -> 17649 | F25: =+MMap!M23 -> 6.46601 | G25: =MMap!N23 -> Residential-RES-SolarPV-Portland | H25: =-MMap!J23 -> -169.6 | I25: =MMap!K23 -> 1925 | J25: =MMap!L23 -> 10 | Q25: R
A26: Portland-COM-(Average)-(Fed Tax Credit) | B26: Portland-COM-(Average)-(Fed Tax Credit) | C26: =MMap!H24 -> 6043 | D26: =MMap!I24 -> 25 | E26: =MMap!G24 -> 17649 | F26: =+MMap!M24 -> 6.46601 | G26: =MMap!N24 -> Residential-RES-SolarPV-Portland | H26: =-MMap!J24 -> -124.55 | I26: =MMap!K24 -> 1660 | J26: =MMap!L24 -> 15 | Q26: R
A27: Portland-COM-(Low Quartile)-(Fed Tax Credit) | B27: Portland-COM-(Low Quartile)-(Fed Tax Credit) | C27: =MMap!H25 -> 6043 | D27: =MMap!I25 -> 25 | E27: =MMap!G25 -> 13356 | F27: =+MMap!M25 -> 6.46601 | G27: =MMap!N25 -> Residential-RES-SolarPV-Portland | H27: =-MMap!J25 -> -124.55 | I27: =MMap!K25 -> 1660 | J27: =MMap!L25 -> 15 | Q27: R
A28: Portland-RES-(Average)-(2025) | B28: Portland-RES-(Average)-(2025) | C28: =MMap!H26 -> 6043 | D28: =MMap!I26 -> 25 | E28: =MMap!G26 -> 15900 | F28: =+MMap!M26 -> 6.46601 | G28: =MMap!N26 -> Residential-RES-SolarPV-Portland | H28: =-MMap!J26 -> -169.6 | I28: =MMap!K26 -> 1925 | J28: =MMap!L26 -> 10 | Q28: R
A29: Portland-COM-(Average)-(2025) | B29: Portland-COM-(Average)-(2025) | C29: =MMap!H27 -> 6043 | D29: =MMap!I27 -> 25 | E29: =MMap!G27 -> 12720 | F29: =+MMap!M27 -> 6.46601 | G29: =MMap!N27 -> Residential-RES-SolarPV-Portland | H29: =-MMap!J27 -> -124.55 | I29: =MMap!K27 -> 1660 | J29: =MMap!L27 -> 15 | Q29: R
A30: Portland-RES-(Average)-(2035) | B30: Portland-RES-(Average)-(2035) | C30: =MMap!H28 -> 6043 | D30: =MMap!I28 -> 25 | E30: =MMap!G28 -> 14310 | F30: =+MMap!M28 -> 6.46601 | G30: =MMap!N28 -> Residential-RES-SolarPV-Portland | H30: =-MMap!J28 -> -169.6 | I30: =MMap!K28 -> 1925 | J30: =MMap!L28 -> 10 | Q30: R
A31: Portland-COM-(Average)-(2035) | B31: Portland-COM-(Average)-(2035) | C31: =MMap!H29 -> 6043 | D31: =MMap!I29 -> 25 | E31: =MMap!G29 -> 10600 | F31: =+MMap!M29 -> 6.46601 | G31: =MMap!N29 -> Residential-RES-SolarPV-Portland | H31: =-MMap!J29 -> -124.55 | I31: =MMap!K29 -> 1660 | J31: =MMap!L29 -> 15 | Q31: R
A35: ProCost Results
A36: Version: | B36: ProCost 3.0 - Beta04
A37: Run Time: | B37: Thursday, 25 June , 2015 at 10:07 PM
A39: Regurgitation of ProData input parameters which were used for this run
B40: Run Parameters | D40: Run Parameters | G40: Marginal Cost & Conservation Load Shape Parameters | Q40: Sponsor Parameters | W40: Program Parameters | Z40: Utility System Parameters
B41: Run Type | C41: Electric | D41: Run Type | E41: Electric | G41: Marginal Costs and Savings Shape File | H41: Q:\SeventhPlan\Conservation Analysis\Global EE Inputs\MC Files\MC_AND_LOADSHAPE_v3.0_24segment-7P-D9 - NewSegValues.xlsx | K41: 6P MidC Final (with carbon) | R41: Customer | S41: Wholesale Elec | T41: Retail Elec | U41: Nat Gas | W41: Program Life (yrs) | X41: 20 | AA41: Electric | AB41: Gas
B42: Negative B/C Ratios | C42: Off | D42: Negative B/C Ratios | E42: Off | G42: Marginal Elec Avoided Cost Input Worksheet | H42: 7P Mid | K42: Conservation Load Shapes | Q42: Real After-Tax Cost of Capital | R42: 0.0430960452 | S42: 0.04387844424 | T42: 0.05328900777 | U42: 0.05447903102 | W42: Program Start Date | X42: 2016 | Z42: Bulk System T&D Loss Factor | AA42: 0.004038901847 | AB42: 0.01
B43: Admin Cost @ Category Level | C43: On | D43: Admin Cost @ Category Level | E43: On | G43: Elec Savings Shape Input Worksheet | H43: GLSShapes | K43: 6P_Gas_Final | Q43: Financial Life (years) | R43: 12 | S43: 12 | T43: 1 | U43: 1 | W43: Present Value Time Zero | X43: 2016 | Z43: Bulk System T&D Credit ($/kw-yr)($/dailytherm-yr) | AA43: 26 | AB43: 0
B44: Repeat Periodic Replacement | C44: On | D44: Repeat Periodic Replacement | E44: On | G44: Marginal Gas Avoided Cost Input Worksheet | H44: 7P Gas | K44: Conservation Load Shapes | R44: Customer | S44: Wholesale Elec | T44: Retail Elec | U44: Nat Gas | W44: Input Cost Reference Year | X44: 2012 | Z44: Bulk System T&D I2R Loss Component (%) | AA44: 0.9 | AB44: N/A
G45: Gas Savings Shape Input Worksheet | H45: GLSShapes | Q45: Sponsor Share of Initial Capital Cost | R45: 0.35 | S45: 0.195 | T45: 0.455 | U45: 0 | W45: Real Discount Rate | X45: 0.04 | Z45: Local System Dist Loss Factor | AA45: 0.0473993482 | AB45: 0
B46: Run Type: | C46: Electric | G46: Marginal Elec CO2 per kWh Input Worksheet | H46: CO2 lbs per kWh .95 | K46: CO2 lbs per therm | Q46: Sponsor Share of Annual O&M | R46: 1 | S46: 0 | T46: 0 | U46: 0 | W46: Capital Real Escalation Rate | X46: 0 | Z46: Local System Dist Credit ($/kw-yr)($/dailytherm-yr) | AA46: 31 | AB46: 0
B47: Negative B/C Ratios: | C47: False: (Converts Negative B/C Ratios) | G47: Marginal Gas CO2 per therm Input Worksheet | H47: CO2 lbs per therm | K47: Zero Dollars per ton CO2 | Q47: Sponsor Share of Periodic Replacement Cost | R47: 1 | S47: 0 | T47: 0 | U47: 0 | W47: Admin Cost (as % of Initial Capital Cost) | X47: 0 | Z47: Local System Dist I2R Loss Component (%) | AA47: 0.7 | AB47: N/A
B48: Admin Cost / Category Level: | C48: True: Admin Costs added at Category Results | G48: Marginal Avoided Cost CO2 Input Worksheet | H48: Zero Dollars per ton CO2 | K48: LineLossShapes | Q48: Sponsor Share of Admin Cost | S48: 0.3 | T48: 0.7 | U48: 0 | W48: Regional Act Conservation Credit (%) | X48: 0 | Z48: Risk-Mitigation Credit (mills/kWh)(mills/therm) - Retro. | AA48: 0 | AB48: 0
B49: Periodic O&M Treatment: | C49: True: (Periodic O&M Repeats over measure life) | G49: Line Loss Shape Input Worksheet | H49: LineLossShapes | Q49: Last Year of Non-Customer O&M & Period Replacement | S49: 20 | W49: Report Annual Carbon Saved for Year | X49: 2018 | Z49: Risk-Mitigation Credit (mills/kWh)(mills/therm) - Lost Op. | AA49: 0 | AB49: 0
A57: Measure Results; Sorted in same order as input
A58: Total Results | C58: Measure Input Data | L58: Savings | R58: PV Capital | V58: PV Admin | Z58: PV O&M | AD58: PV Periodic Repl. | AH58: Total PV Capital, O&M and Periodic Repl Costs | AM58: PV Wholesale Electric Utility Costs & Benefits | AT58: PV Retail Electric Utility Costs & Benefits | BA58: PV Electric Utility System Costs & Benefits | BG58: Electric Utility System Economics | BI58: Sponsor Levelized Cost (mills/kwh) | BN58: PV Regional Costs & Benefits | CD58: TRC Economics | CF58: Physical CO2 | CM58: Gas Inputs | CQ58: PV Gas Utility System Costs & Benefits | CV58: Gas Utility System Economics
A59: Category | B59: Measure | C59: Measure Life | D59: Site Savings (kWh) | E59: Site Savings (therms) | F59: Capital Cost ($/unit) | G59: Annual O&M Cost ($/unit) | H59: PV Per. Repl. Cost ($/unit) | I59: Load Shape (electric) | J59: Diversified Load Factor (electric) | K59: Wholesale Power Coincidence Factor (electric) | L59: Wholesale Electric Energy (kWh) | M59: Wholesale Electric Demand (kw) | N59: Retail Electric Demand (kW) | O59: Wholesale Gas Energy (therms/yr) | P59: Wholesale Gas Demand (therms/day) | Q59: Retail Gas Demand (therms/day) | R59: Wholesale Electric | S59: Retail Electric | T59: Natural Gas | U59: Customer | V59: Wholesale Electric | W59: Retail Electric | X59: Natural Gas | Y59: Customer | Z59: Wholesale Electric | AA59: Retail Electric | AB59: Natural Gas | AC59: Customer | AD59: Wholesale Electric | AE59: Retail Electric | AF59: Natural Gas | AG59: Customer | AH59: Wholesale Electric | AI59: Retail Electric | AJ59: Natural Gas | AK59: Customer | AL59: Total | AM59: Wholesale Utility System Energy | AN59: Wholesale Utility System T&D Def. Cap. | AO59: Wholesale Utility System Act C-E Credit | AP59: Wholesale Utility System Risk Mitigation Benefit | AQ59: Wholesale Utility System Total System Benefit | AR59: Wholesale Utility System Total Non-Consumer Cost | AS59: Wholesale Utility System B/C Ratio | AT59: Retail Utility System Energy | AU59: Retail Utility System T&D Def. Cap. | AV59: Retail Utility System Act C-E Credit | AW59: Retail Utility System Risk Mitigation Benefit | AX59: Retail Utility System Total System Benefit | AY59: Retail Utility System Total Non-Consumer Cost | AZ59: Retail Utility System System B/C Ratio | BA59: Utility System Energy | BB59: Utility System T&D Def. Cap. | BC59: Utility System Act C-E Credit | BD59: Utility System Total Risk Mitigation Benefit | BE59: Utility System Total System Benefit | BF59: Utility System Total Non-Consumer Cost | BG59: Utility System Net Levelized Cost (Net of Elec T&D Capacity Benefits, Act Credit & Risk-Mitigation Benefit) in mills/kwh | BH59: Utility System System B/C Ratio | BI59: Wholesale Electric Levelized Cost | BJ59: Retail Electric Levelized Cost | BK59: Natural Gas Levelized Cost | BL59: Customer Levelized Cost | BM59: Total Levelized Cost | BN59: PV Regional Electric Energy | BO59: PV Regional Gas Energy | BP59: PV Regional Electric T&D Def. Cap. | BQ59: PV Regional Gas T&D Def. Cap. | BR59: PV Regional Electric System CO2 | BS59: PV Regional Gas System CO2 | BT59: PV Regional Electric System Risk-Mitigation Benefit | BU59: PV Regional Gas System Risk-Mitigation Benefit | BV59: PV Regional Non-E Value | BW59: PV Regional Act Credit | BX59: PV Regional Capital Cost | BY59: PV Regional Admin Cost | BZ59: PV Regional Annual O&M Cost | CA59: PV Regional Periodic Replacement Cost | CB59: PV Total Regional Benefit | CC59: PV Total Regional Cost | CD59: TRC B/C Ratio | CE59: TRC Net Levelized Cost (Net of All Benefits) in mills/kWh | CF59: Electric System CO2 Avoided (Lifetime Tons) | CG59: Gas System CO2 Avoided (Lifetime Tons) | CH59: Total System CO2 Avoided (Lifetime Tons) | CI59: Electric System CO2 Avoided (Annual Tons in 2018) | CJ59: Gas System CO2 Avoided (Annual Tons in 2018) | CK59: Total System CO2 Avoided (Annual Tons in 2018) | CM59: Gas Site Savings (therms) | CN59: Load Shape (gas) | CO59: Diversitfied Load Factor (gas) | CP59: Wholesale Coincidence Factor (gas) | CQ59: Total Gas Utility System Energy | CR59: Gas Utility System T&D Def. Cap. | CS59: Gas Utility System Risk Mitigation Benefit | CT59: Gas Utility System Total System Benefit | CU59: Gas Utility System Total Non-Consumer Cost | CV59: Gas Utility System Net Levelized Cost (Net of Gas T&D Capacity Benefits & Risk-Mitigation Benefits) in cents/therm | CW59: Gas Utility System System B/C Ratio
A60: Boise-RES-(Average)-(2014) | B60: Boise-RES-(Average)-(2014) | C60: 25 | D60: 7723 | E60: 0 | F60: 23850 | G60: 8.26361 | H60: 1250.443293 | I60: Residential-RES-SolarPV-Boise | L60: 8292.357105 | M60: 0.6504464322 | N60: 0.6457518015 | O60: 0 | P60: 0 | Q60: 0 | R60: 4137.458598 | S60: 9561.037515 | T60: 0 | U60: 7392.902142 | V60: (na) | W60: (na) | X60: (na) | Y60: (na) | Z60: 0 | AA60: 0 | AB60: 0 | AC60: 112.3051567 | AD60: 0 | AE60: 0 | AF60: 0 | AG60: 1250.443293 | AH60: 4137.458598 | AI60: 9561.037515 | AJ60: 0 | AK60: 8755.650592 | AL60: 22454.14671 | AM60: 4351.021612 | AN60: 229.8342614 | AO60: 0 | AP60: 0 | AQ60: 4580.855873 | AR60: 4137.458598 | AS60: 1.107166577 | AT60: 4351.021612 | AU60: 272.0553093 | AV60: 0 | AW60: 0 | AX60: 4623.076921 | AY60: 9561.037515 | AZ60: 0.4835329758 | BA60: 4351.021612 | BB60: 501.8895707 | BC60: 0 | BD60: 0 | BE60: 4852.911183 | BF60: 13698.49611 | BG60: 117.0993236 | BH60: 0.3542659824 | BI60: 36.71349915 | BJ60: 84.83931244 | BK60: 0 | BL60: 77.69275824 | BM60: 199.2455698 | BN60: 4351.021612 | BO60: 0 | BP60: 501.8895707 | BQ60: 0 | BR60: 0 | BS60: 0 | BT60: 0 | BU60: 0 | BV60: -2304.919348 | BW60: 0 | BX60: 21091.39826 | BZ60: 112.3051567 | CA60: 1250.443293 | CB60: 2547.991834 | CC60: 22454.14671 | CD60: 0.1960054217 | CE60: 215.2446501 | CF60: 78.77880084 | CG60: 0 | CH60: 78.77880084 | CI60: 3.938869625 | CJ60: 0 | CK60: 3.938869625 | CM60: 0 | CO60: 0 | CP60: 0 | CQ60: 0 | CR60: 0 | CS60: 0 | CT60: 0 | CU60: 0 | CV60: 9999 | CW60: 9999
A61: Boise-RES-(Low Quartile)-(2014) | B61: Boise-RES-(Low Quartile)-(2014) | C61: 25 | D61: 7723 | E61: 0 | F61: 19610 | G61: 8.26361 | H61: 1250.443293 | I61: Residential-RES-SolarPV-Boise | L61: 8292.357105 | M61: 0.6504464322 | N61: 0.6457518015 | O61: 0 | P61: 0 | Q61: 0 | R61: 3401.910403 | S61: 7861.297513 | T61: 0 | U61: 6078.608428 | V61: (na) | W61: (na) | X61: (na) | Y61: (na) | Z61: 0 | AA61: 0 | AB61: 0 | AC61: 112.3051567 | AD61: 0 | AE61: 0 | AF61: 0 | AG61: 1250.443293 | AH61: 3401.910403 | AI61: 7861.297513 | AJ61: 0 | AK61: 7441.356878 | AL61: 18704.56479 | AM61: 4351.021612 | AN61: 229.8342614 | AO61: 0 | AP61: 0 | AQ61: 4580.855873 | AR61: 3401.910403 | AS61: 1.346553945 | AT61: 4351.021612 | AU61: 272.0553093 | AV61: 0 | AW61: 0 | AX61: 4623.076921 | AY61: 7861.297513 | AZ61: 0.5880806462 | BA61: 4351.021612 | BB61: 501.8895707 | BC61: 0 | BD61: 0 | BE61: 4852.911183 | BF61: 11263.20792 | BG61: 95.48993484 | BH61: 0.4308640326 | BI61: 30.18665486 | BJ61: 69.75676801 | BK61: 0 | BL61: 66.03044912 | BM61: 165.973872 | BN61: 4351.021612 | BO61: 0 | BP61: 501.8895707 | BQ61: 0 | BR61: 0 | BS61: 0 | BT61: 0 | BU61: 0 | BV61: -2304.919348 | BW61: 0 | BX61: 17341.81634 | BZ61: 112.3051567 | CA61: 1250.443293 | CB61: 2547.991834 | CC61: 18704.56479 | CD61: 0.2309866891 | CE61: 181.9729523 | CF61: 78.77880084 | CG61: 0 | CH61: 78.77880084 | CI61: 3.938869625 | CJ61: 0 | CK61: 3.938869625 | CM61: 0 | CO61: 0 | CP61: 0 | CQ61: 0 | CR61: 0 | CS61: 0 | CT61: 0 | CU61: 0 | CV61: 9999 | CW61: 9999
A62: Boise-COM-(Average)-(2014) | B62: Boise-COM-(Average)-(2014) | C62: 25 | D62: 7723 | E62: 0 | F62: 19610 | G62: 8.26361 | H62: 886.2875716 | I62: Residential-RES-SolarPV-Boise | L62: 8292.357105 | M62: 0.6504464322 | N62: 0.6457518015 | O62: 0 | P62: 0 | Q62: 0 | R62: 3401.910403 | S62: 7861.297513 | T62: 0 | U62: 6078.608428 | V62: (na) | W62: (na) | X62: (na) | Y62: (na) | Z62: 0 | AA62: 0 | AB62: 0 | AC62: 112.3051567 | AD62: 0 | AE62: 0 | AF62: 0 | AG62: 886.2875716 | AH62: 3401.910403 | AI62: 7861.297513 | AJ62: 0 | AK62: 7077.201156 | AL62: 18340.40907 | AM62: 4351.021612 | AN62: 229.8342614 | AO62: 0 | AP62: 0 | AQ62: 4580.855873 | AR62: 3401.910403 | AS62: 1.346553945 | AT62: 4351.021612 | AU62: 272.0553093 | AV62: 0 | AW62: 0 | AX62: 4623.076921 | AY62: 7861.297513 | AZ62: 0.5880806462 | BA62: 4351.021612 | BB62: 501.8895707 | BC62: 0 | BD62: 0 | BE62: 4852.911183 | BF62: 11263.20792 | BG62: 95.48993484 | BH62: 0.4308640326 | BI62: 30.18665486 | BJ62: 69.75676801 | BK62: 0 | BL62: 62.79913442 | BM62: 162.7425573 | BN62: 4351.021612 | BO62: 0 | BP62: 501.8895707 | BQ62: 0 | BR62: 0 | BS62: 0 | BT62: 0 | BU62: 0 | BV62: -1692.675146 | BW62: 0 | BX62: 17341.81634 | BZ62: 112.3051567 | CA62: 886.2875716 | CB62: 3160.236036 | CC62: 18340.40907 | CD62: 0.2422448351 | CE62: 173.3089241 | CF62: 78.77880084 | CG62: 0 | CH62: 78.77880084 | CI62: 3.938869625 | CJ62: 0 | CK62: 3.938869625 | CM62: 0 | CO62: 0 | CP62: 0 | CQ62: 0 | CR62: 0 | CS62: 0 | CT62: 0 | CU62: 0 | CV62: 9999 | CW62: 9999
A63: Boise-COM-(Low Quartile)-(2014) | B63: Boise-COM-(Low Quartile)-(2014) | C63: 25 | D63: 7723 | E63: 0 | F63: 14840 | G63: 8.26361 | H63: 886.2875716 | I63: Residential-RES-SolarPV-Boise | L63: 8292.357105 | M63: 0.6504464322 | N63: 0.6457518015 | O63: 0 | P63: 0 | Q63: 0 | R63: 2574.418683 | S63: 5949.09001 | T63: 0 | U63: 4600.028 | V63: (na) | W63: (na) | X63: (na) | Y63: (na) | Z63: 0 | AA63: 0 | AB63: 0 | AC63: 112.3051567 | AD63: 0 | AE63: 0 | AF63: 0 | AG63: 886.2875716 | AH63: 2574.418683 | AI63: 5949.09001 | AJ63: 0 | AK63: 5598.620728 | AL63: 14122.12942 | AM63: 4351.021612 | AN63: 229.8342614 | AO63: 0 | AP63: 0 | AQ63: 4580.855873 | AR63: 2574.418683 | AS63: 1.779374856 | AT63: 4351.021612 | AU63: 272.0553093 | AV63: 0 | AW63: 0 | AX63: 4623.076921 | AY63: 5949.09001 | AZ63: 0.7771065682 | BA63: 4351.021612 | BB63: 501.8895707 | BC63: 0 | BD63: 0 | BE63: 4852.911183 | BF63: 8523.508693 | BG63: 71.17937252 | BH63: 0.5693560431 | BI63: 22.84395503 | BJ63: 52.78890552 | BK63: 0 | BL63: 49.67903666 | BM63: 125.3118972 | BN63: 4351.021612 | BO63: 0 | BP63: 501.8895707 | BQ63: 0 | BR63: 0 | BS63: 0 | BT63: 0 | BU63: 0 | BV63: -1692.675146 | BW63: 0 | BX63: 13123.53669 | BZ63: 112.3051567 | CA63: 886.2875716 | CB63: 3160.236036 | CC63: 14122.12942 | CD63: 0.3068587514 | CE63: 135.878264 | CF63: 78.77880084 | CG63: 0 | CH63: 78.77880084 | CI63: 3.938869625 | CJ63: 0 | CK63: 3.938869625 | CM63: 0 | CO63: 0 | CP63: 0 | CQ63: 0 | CR63: 0 | CS63: 0 | CT63: 0 | CU63: 0 | CV63: 9999 | CW63: 9999
A64: Boise-RES-(Average)-(Fed Tax Credit) | B64: Boise-RES-(Average)-(Fed Tax Credit) | C64: 25 | D64: 7723 | E64: 0 | F64: 21465 | G64: 8.26361 | H64: 1250.443293 | I64: Residential-RES-SolarPV-Boise | L64: 8292.357105 | M64: 0.6504464322 | N64: 0.6457518015 | O64: 0 | P64: 0 | Q64: 0 | R64: 3723.712738 | S64: 8604.933764 | T64: 0 | U64: 6653.611928 | V64: (na) | W64: (na) | X64: (na) | Y64: (na) | Z64: 0 | AA64: 0 | AB64: 0 | AC64: 112.3051567 | AD64: 0 | AE64: 0 | AF64: 0 | AG64: 1250.443293 | AH64: 3723.712738 | AI64: 8604.933764 | AJ64: 0 | AK64: 8016.360378 | AL64: 20345.00688 | AM64: 4351.021612 | AN64: 229.8342614 | AO64: 0 | AP64: 0 | AQ64: 4580.855873 | AR64: 3723.712738 | AS64: 1.230185086 | AT64: 4351.021612 | AU64: 272.0553093 | AV64: 0 | AW64: 0 | AX64: 4623.076921 | AY64: 8604.933764 | AZ64: 0.537258862 | BA64: 4351.021612 | BB64: 501.8895707 | BC64: 0 | BD64: 0 | BE64: 4852.911183 | BF64: 12328.6465 | BG64: 104.9440424 | BH64: 0.3936288693 | BI64: 33.04214924 | BJ64: 76.3553812 | BK64: 0 | BL64: 71.13270936 | BM64: 180.5302398 | BN64: 4351.021612 | BO64: 0 | BP64: 501.8895707 | BQ64: 0 | BR64: 0 | BS64: 0 | BT64: 0 | BU64: 0 | BV64: -2304.919348 | BW64: 0 | BX64: 18982.25843 | BZ64: 112.3051567 | CA64: 1250.443293 | CB64: 2547.991834 | CC64: 20345.00688 | CD64: 0.2142572622 | CE64: 196.5293201 | CF64: 78.77880084 | CG64: 0 | CH64: 78.77880084 | CI64: 3.938869625 | CJ64: 0 | CK64: 3.938869625 | CM64: 0 | CO64: 0 | CP64: 0 | CQ64: 0 | CR64: 0 | CS64: 0 | CT64: 0 | CU64: 0 | CV64: 9999 | CW64: 9999
A65: Boise-RES-(Low Quartile)-(Fed Tax Credit) | B65: Boise-RES-(Low Quartile)-(Fed Tax Credit) | C65: 25 | D65: 7723 | E65: 0 | F65: 17649 | G65: 8.26361 | H65: 1250.443293 | I65: Residential-RES-SolarPV-Boise | L65: 8292.357105 | M65: 0.6504464322 | N65: 0.6457518015 | O65: 0 | P65: 0 | Q65: 0 | R65: 3061.719362 | S65: 7075.167761 | T65: 0 | U65: 5470.747585 | V65: (na) | W65: (na) | X65: (na) | Y65: (na) | Z65: 0 | AA65: 0 | AB65: 0 | AC65: 112.3051567 | AD65: 0 | AE65: 0 | AF65: 0 | AG65: 1250.443293 | AH65: 3061.719362 | AI65: 7075.167761 | AJ65: 0 | AK65: 6833.496035 | AL65: 16970.38316 | AM65: 4351.021612 | AN65: 229.8342614 | AO65: 0 | AP65: 0 | AQ65: 4580.855873 | AR65: 3061.719362 | AS65: 1.49617105 | AT65: 4351.021612 | AU65: 272.0553093 | AV65: 0 | AW65: 0 | AX65: 4623.076921 | AY65: 7075.167761 | AZ65: 0.6534229402 | BA65: 4351.021612 | BB65: 501.8895707 | BC65: 0 | BD65: 0 | BE65: 4852.911183 | BF65: 10136.88712 | BG65: 85.49559255 | BH65: 0.478737814 | BI65: 27.16798937 | BJ65: 62.78109121 | BK65: 0 | BL65: 60.63663115 | BM65: 150.5857117 | BN65: 4351.021612 | BO65: 0 | BP65: 501.8895707 | BQ65: 0 | BR65: 0 | BS65: 0 | BT65: 0 | BU65: 0 | BV65: -2304.919348 | BW65: 0 | BX65: 15607.63471 | BZ65: 112.3051567 | CA65: 1250.443293 | CB65: 2547.991834 | CC65: 16970.38316 | CD65: 0.2517683539 | CE65: 166.584792 | CF65: 78.77880084 | CG65: 0 | CH65: 78.77880084 | CI65: 3.938869625 | CJ65: 0 | CK65: 3.938869625 | CM65: 0 | CO65: 0 | CP65: 0 | CQ65: 0 | CR65: 0 | CS65: 0 | CT65: 0 | CU65: 0 | CV65: 9999 | CW65: 9999
A66: Boise-COM-(Average)-(Fed Tax Credit) | B66: Boise-COM-(Average)-(Fed Tax Credit) | C66: 25 | D66: 7723 | E66: 0 | F66: 17649 | G66: 8.26361 | H66: 886.2875716 | I66: Residential-RES-SolarPV-Boise | L66: 8292.357105 | M66: 0.6504464322 | N66: 0.6457518015 | O66: 0 | P66: 0 | Q66: 0 | R66: 3061.719362 | S66: 7075.167761 | T66: 0 | U66: 5470.747585 | V66: (na) | W66: (na) | X66: (na) | Y66: (na) | Z66: 0 | AA66: 0 | AB66: 0 | AC66: 112.3051567 | AD66: 0 | AE66: 0 | AF66: 0 | AG66: 886.2875716 | AH66: 3061.719362 | AI66: 7075.167761 | AJ66: 0 | AK66: 6469.340314 | AL66: 16606.22744 | AM66: 4351.021612 | AN66: 229.8342614 | AO66: 0 | AP66: 0 | AQ66: 4580.855873 | AR66: 3061.719362 | AS66: 1.49617105 | AT66: 4351.021612 | AU66: 272.0553093 | AV66: 0 | AW66: 0 | AX66: 4623.076921 | AY66: 7075.167761 | AZ66: 0.6534229402 | BA66: 4351.021612 | BB66: 501.8895707 | BC66: 0 | BD66: 0 | BE66: 4852.911183 | BF66: 10136.88712 | BG66: 85.49559255 | BH66: 0.478737814 | BI66: 27.16798937 | BJ66: 62.78109121 | BK66: 0 | BL66: 57.40531645 | BM66: 147.354397 | BN66: 4351.021612 | BO66: 0 | BP66: 501.8895707 | BQ66: 0 | BR66: 0 | BS66: 0 | BT66: 0 | BU66: 0 | BV66: -1692.675146 | BW66: 0 | BX66: 15607.63471 | BZ66: 112.3051567 | CA66: 886.2875716 | CB66: 3160.236036 | CC66: 16606.22744 | CD66: 0.2652023071 | CE66: 157.9207638 | CF66: 78.77880084 | CG66: 0 | CH66: 78.77880084 | CI66: 3.938869625 | CJ66: 0 | CK66: 3.938869625 | CM66: 0 | CO66: 0 | CP66: 0 | CQ66: 0 | CR66: 0 | CS66: 0 | CT66: 0 | CU66: 0 | CV66: 9999 | CW66: 9999
A67: Boise-COM-(Low Quartile)-(Fed Tax Credit) | B67: Boise-COM-(Low Quartile)-(Fed Tax Credit) | C67: 25 | D67: 7723 | E67: 0 | F67: 13356 | G67: 8.26361 | H67: 886.2875716 | I67: Residential-RES-SolarPV-Boise | L67: 8292.357105 | M67: 0.6504464322 | N67: 0.6457518015 | O67: 0 | P67: 0 | Q67: 0 | R67: 2316.976815 | S67: 5354.181009 | T67: 0 | U67: 4140.0252 | V67: (na) | W67: (na) | X67: (na) | Y67: (na) | Z67: 0 | AA67: 0 | AB67: 0 | AC67: 112.3051567 | AD67: 0 | AE67: 0 | AF67: 0 | AG67: 886.2875716 | AH67: 2316.976815 | AI67: 5354.181009 | AJ67: 0 | AK67: 5138.617928 | AL67: 12809.77575 | AM67: 4351.021612 | AN67: 229.8342614 | AO67: 0 | AP67: 0 | AQ67: 4580.855873 | AR67: 2316.976815 | AS67: 1.977083173 | AT67: 4351.021612 | AU67: 272.0553093 | AV67: 0 | AW67: 0 | AX67: 4623.076921 | AY67: 5354.181009 | AZ67: 0.8634517424 | BA67: 4351.021612 | BB67: 501.8895707 | BC67: 0 | BD67: 0 | BE67: 4852.911183 | BF67: 7671.157823 | BG67: 63.61608647 | BH67: 0.6326178257 | BI67: 20.55955952 | BJ67: 47.51001497 | BK67: 0 | BL67: 45.59722846 | BM67: 113.666803 | BN67: 4351.021612 | BO67: 0 | BP67: 501.8895707 | BQ67: 0 | BR67: 0 | BS67: 0 | BT67: 0 | BU67: 0 | BV67: -1692.675146 | BW67: 0 | BX67: 11811.18302 | BZ67: 112.3051567 | CA67: 886.2875716 | CB67: 3160.236036 | CC67: 12809.77575 | CD67: 0.3346269687 | CE67: 124.2331698 | CF67: 78.77880084 | CG67: 0 | CH67: 78.77880084 | CI67: 3.938869625 | CJ67: 0 | CK67: 3.938869625 | CM67: 0 | CO67: 0 | CP67: 0 | CQ67: 0 | CR67: 0 | CS67: 0 | CT67: 0 | CU67: 0 | CV67: 9999 | CW67: 9999
A68: Boise-RES-(Average)-(2025) | B68: Boise-RES-(Average)-(2025) | C68: 25 | D68: 7723 | E68: 0 | F68: 15672.09114 | G68: 8.26361 | H68: 1250.443293 | I68: Residential-RES-SolarPV-Boise | L68: 8292.357105 | M68: 0.6504464322 | N68: 0.6457518015 | O68: 0 | P68: 0 | Q68: 0 | R68: 2718.768479 | S68: 6282.660433 | T68: 0 | U68: 4857.955395 | V68: (na) | W68: (na) | X68: (na) | Y68: (na) | Z68: 0 | AA68: 0 | AB68: 0 | AC68: 112.3051567 | AD68: 0 | AE68: 0 | AF68: 0 | AG68: 1250.443293 | AH68: 2718.768479 | AI68: 6282.660433 | AJ68: 0 | AK68: 6220.703845 | AL68: 15222.13276 | AM68: 4351.021612 | AN68: 229.8342614 | AO68: 0 | AP68: 0 | AQ68: 4580.855873 | AR68: 2718.768479 | AS68: 1.684901053 | AT68: 4351.021612 | AU68: 272.0553093 | AV68: 0 | AW68: 0 | AX68: 4623.076921 | AY68: 6282.660433 | AZ68: 0.7358470142 | BA68: 4351.021612 | BB68: 501.8895707 | BC68: 0 | BD68: 0 | BE68: 4852.911183 | BF68: 9001.428913 | BG68: 75.4201699 | BH68: 0.5391267575 | BI68: 24.12483458 | BJ68: 55.74882335 | BK68: 0 | BL68: 55.19905515 | BM68: 135.0727131 | BN68: 4351.021612 | BO68: 0 | BP68: 501.8895707 | BQ68: 0 | BR68: 0 | BS68: 0 | BT68: 0 | BU68: 0 | BV68: -2304.919348 | BW68: 0 | BX68: 13859.38431 | BZ68: 112.3051567 | CA68: 1250.443293 | CB68: 2547.991834 | CC68: 15222.13276 | CD68: 0.2768811979 | CE68: 151.0717933 | CF68: 78.77880084 | CG68: 0 | CH68: 78.77880084 | CI68: 3.938869625 | CJ68: 0 | CK68: 3.938869625 | CM68: 0 | CO68: 0 | CP68: 0 | CQ68: 0 | CR68: 0 | CS68: 0 | CT68: 0 | CU68: 0 | CV68: 9999 | CW68: 9999
A69: Boise-COM-(Average)-(2025) | B69: Boise-COM-(Average)-(2025) | C69: 25 | D69: 7723 | E69: 0 | F69: 12885.9416 | G69: 8.26361 | H69: 886.2875716 | I69: Residential-RES-SolarPV-Boise | L69: 8292.357105 | M69: 0.6504464322 | N69: 0.6457518015 | O69: 0 | P69: 0 | Q69: 0 | R69: 2235.431861 | S69: 5165.743023 | T69: 0 | U69: 3994.31888 | V69: (na) | W69: (na) | X69: (na) | Y69: (na) | Z69: 0 | AA69: 0 | AB69: 0 | AC69: 112.3051567 | AD69: 0 | AE69: 0 | AF69: 0 | AG69: 886.2875716 | AH69: 2235.431861 | AI69: 5165.743023 | AJ69: 0 | AK69: 4992.911608 | AL69: 12394.08649 | AM69: 4351.021612 | AN69: 229.8342614 | AO69: 0 | AP69: 0 | AQ69: 4580.855873 | AR69: 2235.431861 | AS69: 2.049203983 | AT69: 4351.021612 | AU69: 272.0553093 | AV69: 0 | AW69: 0 | AX69: 4623.076921 | AY69: 5165.743023 | AZ69: 0.8949490713 | BA69: 4351.021612 | BB69: 501.8895707 | BC69: 0 | BD69: 0 | BE69: 4852.911183 | BF69: 7401.174884 | BG69: 61.22040849 | BH69: 0.6556947051 | BI69: 19.8359751 | BJ69: 45.83792142 | BK69: 0 | BL69: 44.30431188 | BM69: 109.9782084 | BN69: 4351.021612 | BO69: 0 | BP69: 501.8895707 | BQ69: 0 | BR69: 0 | BS69: 0 | BT69: 0 | BU69: 0 | BV69: -1692.675146 | BW69: 0 | BX69: 11395.49376 | BZ69: 112.3051567 | CA69: 886.2875716 | CB69: 3160.236036 | CC69: 12394.08649 | CD69: 0.3445015474 | CE69: 120.5445752 | CF69: 78.77880084 | CG69: 0 | CH69: 78.77880084 | CI69: 3.938869625 | CJ69: 0 | CK69: 3.938869625 | CM69: 0 | CO69: 0 | CP69: 0 | CQ69: 0 | CR69: 0 | CS69: 0 | CT69: 0 | CU69: 0 | CV69: 9999 | CW69: 9999
A70: Boise-RES-(Average)-(2035) | B70: Boise-RES-(Average)-(2035) | C70: 25 | D70: 7723 | E70: 0 | F70: 14178.60484 | G70: 8.26361 | H70: 1250.443293 | I70: Residential-RES-SolarPV-Boise | L70: 8292.357105 | M70: 0.6504464322 | N70: 0.6457518015 | O70: 0 | P70: 0 | Q70: 0 | R70: 2459.680944 | S70: 5683.948545 | T70: 0 | U70: 4395.01208 | V70: (na) | W70: (na) | X70: (na) | Y70: (na) | Z70: 0 | AA70: 0 | AB70: 0 | AC70: 112.3051567 | AD70: 0 | AE70: 0 | AF70: 0 | AG70: 1250.443293 | AH70: 2459.680944 | AI70: 5683.948545 | AJ70: 0 | AK70: 5757.76053 | AL70: 13901.39002 | AM70: 4351.021612 | AN70: 229.8342614 | AO70: 0 | AP70: 0 | AQ70: 4580.855873 | AR70: 2459.680944 | AS70: 1.86237808 | AT70: 4351.021612 | AU70: 272.0553093 | AV70: 0 | AW70: 0 | AX70: 4623.076921 | AY70: 5683.948545 | AZ70: 0.813356575 | BA70: 4351.021612 | BB70: 501.8895707 | BC70: 0 | BD70: 0 | BE70: 4852.911183 | BF70: 8143.629489 | BG70: 67.80853642 | BH70: 0.5959150265 | BI70: 21.82583634 | BJ70: 50.4361881 | BK70: 0 | BL70: 51.09115447 | BM70: 123.3531789 | BN70: 4351.021612 | BO70: 0 | BP70: 501.8895707 | BQ70: 0 | BR70: 0 | BS70: 0 | BT70: 0 | BU70: 0 | BV70: -2304.919348 | BW70: 0 | BX70: 12538.64157 | BZ70: 112.3051567 | CA70: 1250.443293 | CB70: 2547.991834 | CC70: 13901.39002 | CD70: 0.2994457944 | CE70: 139.3522592 | CF70: 78.77880084 | CG70: 0 | CH70: 78.77880084 | CI70: 3.938869625 | CJ70: 0 | CK70: 3.938869625 | CM70: 0 | CO70: 0 | CP70: 0 | CQ70: 0 | CR70: 0 | CS70: 0 | CT70: 0 | CU70: 0 | CV70: 9999 | CW70: 9999
A71: Boise-COM-(Average)-(2035) | B71: Boise-COM-(Average)-(2035) | C71: 25 | D71: 7723 | E71: 0 | F71: 10492.16758 | G71: 8.26361 | H71: 886.2875716 | I71: Residential-RES-SolarPV-Boise | L71: 8292.357105 | M71: 0.6504464322 | N71: 0.6457518015 | O71: 0 | P71: 0 | Q71: 0 | R71: 1820.163898 | S71: 4206.121924 | T71: 0 | U71: 3252.308939 | V71: (na) | W71: (na) | X71: (na) | Y71: (na) | Z71: 0 | AA71: 0 | AB71: 0 | AC71: 112.3051567 | AD71: 0 | AE71: 0 | AF71: 0 | AG71: 886.2875716 | AH71: 1820.163898 | AI71: 4206.121924 | AJ71: 0 | AK71: 4250.901668 | AL71: 10277.18749 | AM71: 4351.021612 | AN71: 229.8342614 | AO71: 0 | AP71: 0 | AQ71: 4580.855873 | AR71: 1820.163898 | AS71: 2.516727135 | AT71: 4351.021612 | AU71: 272.0553093 | AV71: 0 | AW71: 0 | AX71: 4623.076921 | AY71: 4206.121924 | AZ71: 1.099130507 | BA71: 4351.021612 | BB71: 501.8895707 | BC71: 0 | BD71: 0 | BE71: 4852.911183 | BF71: 6026.285822 | BG71: 49.02041006 | BH71: 0.8052905763 | BI71: 16.15111889 | BJ71: 37.32277919 | BK71: 0 | BL71: 37.72012966 | BM71: 91.19402775 | BN71: 4351.021612 | BO71: 0 | BP71: 501.8895707 | BQ71: 0 | BR71: 0 | BS71: 0 | BT71: 0 | BU71: 0 | BV71: -1692.675146 | BW71: 0 | BX71: 9278.594761 | BZ71: 112.3051567 | CA71: 886.2875716 | CB71: 3160.236036 | CC71: 10277.18749 | CD71: 0.4054274748 | CE71: 101.7603946 | CF71: 78.77880084 | CG71: 0 | CH71: 78.77880084 | CI71: 3.938869625 | CJ71: 0 | CK71: 3.938869625 | CM71: 0 | CO71: 0 | CP71: 0 | CQ71: 0 | CR71: 0 | CS71: 0 | CT71: 0 | CU71: 0 | CV71: 9999 | CW71: 9999
A72: Portland-RES-(Average)-(2014) | B72: Portland-RES-(Average)-(2014) | C72: 25 | D72: 6043 | E72: 0 | F72: 23850 | G72: 6.46601 | H72: 1250.443293 | I72: Residential-RES-SolarPV-Portland | L72: 6486.238194 | M72: 0.1038118717 | N72: 0.1030626042 | O72: 0 | P72: 0 | Q72: 0 | R72: 4137.458598 | S72: 9561.037515 | T72: 0 | U72: 7392.902142 | V72: (na) | W72: (na) | X72: (na) | Y72: (na) | Z72: 0 | AA72: 0 | AB72: 0 | AC72: 87.87518605 | AD72: 0 | AE72: 0 | AF72: 0 | AG72: 1250.443293 | AH72: 4137.458598 | AI72: 9561.037515 | AJ72: 0 | AK72: 8731.220622 | AL72: 22429.71673 | AM72: 3387.892811 | AN72: 36.68176759 | AO72: 0 | AP72: 0 | AQ72: 3424.574578 | AR72: 4137.458598 | AS72: 0.8277000234 | AT72: 3387.892811 | AU72: 43.42028716 | AV72: 0 | AW72: 0 | AX72: 3431.313098 | AY72: 9561.037515 | AZ72: 0.3588850156 | BA72: 3387.892811 | BB72: 80.10205475 | BC72: 0 | BD72: 0 | BE72: 3467.994865 | BF72: 13698.49611 | BG72: 154.4909764 | BH72: 0.2531661021 | BI72: 46.93651951 | BJ72: 108.4631576 | BK72: 0 | BL72: 99.04947623 | BM72: 254.4491533 | BN72: 3387.892811 | BO72: 0 | BP72: 80.10205475 | BQ72: 0 | BR72: 0 | BS72: 0 | BT72: 0 | BU72: 0 | BV72: -2304.919348 | BW72: 0 | BX72: 21091.39826 | BZ72: 87.87518605 | CA72: 1250.443293 | CB72: 1163.075517 | CC72: 22429.71673 | CD72: 0.1402080408 | CE72: 279.6881201 | CF72: 61.62033604 | CG72: 0 | CH72: 61.62033604 | CI72: 3.080963142 | CJ72: 0 | CK72: 3.080963142 | CM72: 0 | CO72: 0 | CP72: 0 | CQ72: 0 | CR72: 0 | CS72: 0 | CT72: 0 | CU72: 0 | CV72: 9999 | CW72: 9999
A73: Portland-RES-(Low Quartile)-(2014) | B73: Portland-RES-(Low Quartile)-(2014) | C73: 25 | D73: 6043 | E73: 0 | F73: 19610 | G73: 6.46601 | H73: 1250.443293 | I73: Residential-RES-SolarPV-Portland | L73: 6486.238194 | M73: 0.1038118717 | N73: 0.1030626042 | O73: 0 | P73: 0 | Q73: 0 | R73: 3401.910403 | S73: 7861.297513 | T73: 0 | U73: 6078.608428 | V73: (na) | W73: (na) | X73: (na) | Y73: (na) | Z73: 0 | AA73: 0 | AB73: 0 | AC73: 87.87518605 | AD73: 0 | AE73: 0 | AF73: 0 | AG73: 1250.443293 | AH73: 3401.910403 | AI73: 7861.297513 | AJ73: 0 | AK73: 7416.926907 | AL73: 18680.13482 | AM73: 3387.892811 | AN73: 36.68176759 | AO73: 0 | AP73: 0 | AQ73: 3424.574578 | AR73: 3401.910403 | AS73: 1.006662191 | AT73: 3387.892811 | AU73: 43.42028716 | AV73: 0 | AW73: 0 | AX73: 3431.313098 | AY73: 7861.297513 | AZ73: 0.4364817757 | BA73: 3387.892811 | BB73: 80.10205475 | BC73: 0 | BD73: 0 | BE73: 3467.994865 | BF73: 11263.20792 | BG73: 126.8643671 | BH73: 0.3079047187 | BI73: 38.59224937 | BJ73: 89.18081845 | BK73: 0 | BL73: 84.13975058 | BM73: 211.9128184 | BN73: 3387.892811 | BO73: 0 | BP73: 80.10205475 | BQ73: 0 | BR73: 0 | BS73: 0 | BT73: 0 | BU73: 0 | BV73: -2304.919348 | BW73: 0 | BX73: 17341.81634 | BZ73: 87.87518605 | CA73: 1250.443293 | CB73: 1163.075517 | CC73: 18680.13482 | CD73: 0.1652602294 | CE73: 237.1517852 | CF73: 61.62033604 | CG73: 0 | CH73: 61.62033604 | CI73: 3.080963142 | CJ73: 0 | CK73: 3.080963142 | CM73: 0 | CO73: 0 | CP73: 0 | CQ73: 0 | CR73: 0 | CS73: 0 | CT73: 0 | CU73: 0 | CV73: 9999 | CW73: 9999
A74: Portland-COM-(Average)-(2014) | B74: Portland-COM-(Average)-(2014) | C74: 25 | D74: 6043 | E74: 0 | F74: 19610 | G74: 6.46601 | H74: 886.2875716 | I74: Residential-RES-SolarPV-Portland | L74: 6486.238194 | M74: 0.1038118717 | N74: 0.1030626042 | O74: 0 | P74: 0 | Q74: 0 | R74: 3401.910403 | S74: 7861.297513 | T74: 0 | U74: 6078.608428 | V74: (na) | W74: (na) | X74: (na) | Y74: (na) | Z74: 0 | AA74: 0 | AB74: 0 | AC74: 87.87518605 | AD74: 0 | AE74: 0 | AF74: 0 | AG74: 886.2875716 | AH74: 3401.910403 | AI74: 7861.297513 | AJ74: 0 | AK74: 7052.771186 | AL74: 18315.9791 | AM74: 3387.892811 | AN74: 36.68176759 | AO74: 0 | AP74: 0 | AQ74: 3424.574578 | AR74: 3401.910403 | AS74: 1.006662191 | AT74: 3387.892811 | AU74: 43.42028716 | AV74: 0 | AW74: 0 | AX74: 3431.313098 | AY74: 7861.297513 | AZ74: 0.4364817757 | BA74: 3387.892811 | BB74: 80.10205475 | BC74: 0 | BD74: 0 | BE74: 3467.994865 | BF74: 11263.20792 | BG74: 126.8643671 | BH74: 0.3079047187 | BI74: 38.59224937 | BJ74: 89.18081845 | BK74: 0 | BL74: 80.00866341 | BM74: 207.7817312 | BN74: 3387.892811 | BO74: 0 | BP74: 80.10205475 | BQ74: 0 | BR74: 0 | BS74: 0 | BT74: 0 | BU74: 0 | BV74: -1692.675146 | BW74: 0 | BX74: 17341.81634 | BZ74: 87.87518605 | CA74: 886.2875716 | CB74: 1775.319719 | CC74: 18315.9791 | CD74: 0.1733247435 | CE74: 226.0752239 | CF74: 61.62033604 | CG74: 0 | CH74: 61.62033604 | CI74: 3.080963142 | CJ74: 0 | CK74: 3.080963142 | CM74: 0 | CO74: 0 | CP74: 0 | CQ74: 0 | CR74: 0 | CS74: 0 | CT74: 0 | CU74: 0 | CV74: 9999 | CW74: 9999
A75: Portland-COM-(Low Quartile)-(2014) | B75: Portland-COM-(Low Quartile)-(2014) | C75: 25 | D75: 6043 | E75: 0 | F75: 14840 | G75: 6.46601 | H75: 886.2875716 | I75: Residential-RES-SolarPV-Portland | L75: 6486.238194 | M75: 0.1038118717 | N75: 0.1030626042 | O75: 0 | P75: 0 | Q75: 0 | R75: 2574.418683 | S75: 5949.09001 | T75: 0 | U75: 4600.028 | V75: (na) | W75: (na) | X75: (na) | Y75: (na) | Z75: 0 | AA75: 0 | AB75: 0 | AC75: 87.87518605 | AD75: 0 | AE75: 0 | AF75: 0 | AG75: 886.2875716 | AH75: 2574.418683 | AI75: 5949.09001 | AJ75: 0 | AK75: 5574.190757 | AL75: 14097.69945 | AM75: 3387.892811 | AN75: 36.68176759 | AO75: 0 | AP75: 0 | AQ75: 3424.574578 | AR75: 2574.418683 | AS75: 1.33023218 | AT75: 3387.892811 | AU75: 43.42028716 | AV75: 0 | AW75: 0 | AX75: 3431.313098 | AY75: 5949.09001 | AZ75: 0.5767794893 | BA75: 3387.892811 | BB75: 80.10205475 | BC75: 0 | BD75: 0 | BE75: 3467.994865 | BF75: 8523.508693 | BG75: 95.78443168 | BH75: 0.4068740926 | BI75: 29.20494547 | BJ75: 67.48818694 | BK75: 0 | BL75: 63.23522207 | BM75: 159.9283545 | BN75: 3387.892811 | BO75: 0 | BP75: 80.10205475 | BQ75: 0 | BR75: 0 | BS75: 0 | BT75: 0 | BU75: 0 | BV75: -1692.675146 | BW75: 0 | BX75: 13123.53669 | BZ75: 87.87518605 | CA75: 886.2875716 | CB75: 1775.319719 | CC75: 14097.69945 | CD75: 0.2196271434 | CE75: 178.2218471 | CF75: 61.62033604 | CG75: 0 | CH75: 61.62033604 | CI75: 3.080963142 | CJ75: 0 | CK75: 3.080963142 | CM75: 0 | CO75: 0 | CP75: 0 | CQ75: 0 | CR75: 0 | CS75: 0 | CT75: 0 | CU75: 0 | CV75: 9999 | CW75: 9999
A76: Portland-RES-(Average)-(Fed Tax Credit) | B76: Portland-RES-(Average)-(Fed Tax Credit) | C76: 25 | D76: 6043 | E76: 0 | F76: 21465 | G76: 6.46601 | H76: 1250.443293 | I76: Residential-RES-SolarPV-Portland | L76: 6486.238194 | M76: 0.1038118717 | N76: 0.1030626042 | O76: 0 | P76: 0 | Q76: 0 | R76: 3723.712738 | S76: 8604.933764 | T76: 0 | U76: 6653.611928 | V76: (na) | W76: (na) | X76: (na) | Y76: (na) | Z76: 0 | AA76: 0 | AB76: 0 | AC76: 87.87518605 | AD76: 0 | AE76: 0 | AF76: 0 | AG76: 1250.443293 | AH76: 3723.712738 | AI76: 8604.933764 | AJ76: 0 | AK76: 7991.930407 | AL76: 20320.57691 | AM76: 3387.892811 | AN76: 36.68176759 | AO76: 0 | AP76: 0 | AQ76: 3424.574578 | AR76: 3723.712738 | AS76: 0.9196666927 | AT76: 3387.892811 | AU76: 43.42028716 | AV76: 0 | AW76: 0 | AX76: 3431.313098 | AY76: 8604.933764 | AZ76: 0.3987611284 | BA76: 3387.892811 | BB76: 80.10205475 | BC76: 0 | BD76: 0 | BE76: 3467.994865 | BF76: 12328.6465 | BG76: 138.9510086 | BH76: 0.281295669 | BI76: 42.24286756 | BJ76: 97.61684182 | BK76: 0 | BL76: 90.66275555 | BM76: 230.5224649 | BN76: 3387.892811 | BO76: 0 | BP76: 80.10205475 | BQ76: 0 | BR76: 0 | BS76: 0 | BT76: 0 | BU76: 0 | BV76: -2304.919348 | BW76: 0 | BX76: 18982.25843 | BZ76: 87.87518605 | CA76: 1250.443293 | CB76: 1163.075517 | CC76: 20320.57691 | CD76: 0.153278179 | CE76: 255.7614318 | CF76: 61.62033604 | CG76: 0 | CH76: 61.62033604 | CI76: 3.080963142 | CJ76: 0 | CK76: 3.080963142 | CM76: 0 | CO76: 0 | CP76: 0 | CQ76: 0 | CR76: 0 | CS76: 0 | CT76: 0 | CU76: 0 | CV76: 9999 | CW76: 9999
A77: Portland-RES-(Low Quartile)-(Fed Tax Credit) | B77: Portland-RES-(Low Quartile)-(Fed Tax Credit) | C77: 25 | D77: 6043 | E77: 0 | F77: 17649 | G77: 6.46601 | H77: 1250.443293 | I77: Residential-RES-SolarPV-Portland | L77: 6486.238194 | M77: 0.1038118717 | N77: 0.1030626042 | O77: 0 | P77: 0 | Q77: 0 | R77: 3061.719362 | S77: 7075.167761 | T77: 0 | U77: 5470.747585 | V77: (na) | W77: (na) | X77: (na) | Y77: (na) | Z77: 0 | AA77: 0 | AB77: 0 | AC77: 87.87518605 | AD77: 0 | AE77: 0 | AF77: 0 | AG77: 1250.443293 | AH77: 3061.719362 | AI77: 7075.167761 | AJ77: 0 | AK77: 6809.066065 | AL77: 16945.95319 | AM77: 3387.892811 | AN77: 36.68176759 | AO77: 0 | AP77: 0 | AQ77: 3424.574578 | AR77: 3061.719362 | AS77: 1.118513545 | AT77: 3387.892811 | AU77: 43.42028716 | AV77: 0 | AW77: 0 | AX77: 3431.313098 | AY77: 7075.167761 | AZ77: 0.4849797508 | BA77: 3387.892811 | BB77: 80.10205475 | BC77: 0 | BD77: 0 | BE77: 3467.994865 | BF77: 10136.88712 | BG77: 114.0870603 | BH77: 0.3421163542 | BI77: 34.73302443 | BJ77: 80.26273661 | BK77: 0 | BL77: 77.24400247 | BM77: 192.2397635 | BN77: 3387.892811 | BO77: 0 | BP77: 80.10205475 | BQ77: 0 | BR77: 0 | BS77: 0 | BT77: 0 | BU77: 0 | BV77: -2304.919348 | BW77: 0 | BX77: 15607.63471 | BZ77: 87.87518605 | CA77: 1250.443293 | CB77: 1163.075517 | CC77: 16945.95319 | CD77: 0.180147412 | CE77: 217.4787303 | CF77: 61.62033604 | CG77: 0 | CH77: 61.62033604 | CI77: 3.080963142 | CJ77: 0 | CK77: 3.080963142 | CM77: 0 | CO77: 0 | CP77: 0 | CQ77: 0 | CR77: 0 | CS77: 0 | CT77: 0 | CU77: 0 | CV77: 9999 | CW77: 9999
A78: Portland-COM-(Average)-(Fed Tax Credit) | B78: Portland-COM-(Average)-(Fed Tax Credit) | C78: 25 | D78: 6043 | E78: 0 | F78: 17649 | G78: 6.46601 | H78: 886.2875716 | I78: Residential-RES-SolarPV-Portland | L78: 6486.238194 | M78: 0.1038118717 | N78: 0.1030626042 | O78: 0 | P78: 0 | Q78: 0 | R78: 3061.719362 | S78: 7075.167761 | T78: 0 | U78: 5470.747585 | V78: (na) | W78: (na) | X78: (na) | Y78: (na) | Z78: 0 | AA78: 0 | AB78: 0 | AC78: 87.87518605 | AD78: 0 | AE78: 0 | AF78: 0 | AG78: 886.2875716 | AH78: 3061.719362 | AI78: 7075.167761 | AJ78: 0 | AK78: 6444.910343 | AL78: 16581.79747 | AM78: 3387.892811 | AN78: 36.68176759 | AO78: 0 | AP78: 0 | AQ78: 3424.574578 | AR78: 3061.719362 | AS78: 1.118513545 | AT78: 3387.892811 | AU78: 43.42028716 | AV78: 0 | AW78: 0 | AX78: 3431.313098 | AY78: 7075.167761 | AZ78: 0.4849797508 | BA78: 3387.892811 | BB78: 80.10205475 | BC78: 0 | BD78: 0 | BE78: 3467.994865 | BF78: 10136.88712 | BG78: 114.0870603 | BH78: 0.3421163542 | BI78: 34.73302443 | BJ78: 80.26273661 | BK78: 0 | BL78: 73.1129153 | BM78: 188.1086763 | BN78: 3387.892811 | BO78: 0 | BP78: 80.10205475 | BQ78: 0 | BR78: 0 | BS78: 0 | BT78: 0 | BU78: 0 | BV78: -1692.675146 | BW78: 0 | BX78: 15607.63471 | BZ78: 87.87518605 | CA78: 886.2875716 | CB78: 1775.319719 | CC78: 16581.79747 | CD78: 0.1897726374 | CE78: 206.402169 | CF78: 61.62033604 | CG78: 0 | CH78: 61.62033604 | CI78: 3.080963142 | CJ78: 0 | CK78: 3.080963142 | CM78: 0 | CO78: 0 | CP78: 0 | CQ78: 0 | CR78: 0 | CS78: 0 | CT78: 0 | CU78: 0 | CV78: 9999 | CW78: 9999
A79: Portland-COM-(Low Quartile)-(Fed Tax Credit) | B79: Portland-COM-(Low Quartile)-(Fed Tax Credit) | C79: 25 | D79: 6043 | E79: 0 | F79: 13356 | G79: 6.46601 | H79: 886.2875716 | I79: Residential-RES-SolarPV-Portland | L79: 6486.238194 | M79: 0.1038118717 | N79: 0.1030626042 | O79: 0 | P79: 0 | Q79: 0 | R79: 2316.976815 | S79: 5354.181009 | T79: 0 | U79: 4140.0252 | V79: (na) | W79: (na) | X79: (na) | Y79: (na) | Z79: 0 | AA79: 0 | AB79: 0 | AC79: 87.87518605 | AD79: 0 | AE79: 0 | AF79: 0 | AG79: 886.2875716 | AH79: 2316.976815 | AI79: 5354.181009 | AJ79: 0 | AK79: 5114.187957 | AL79: 12785.34578 | AM79: 3387.892811 | AN79: 36.68176759 | AO79: 0 | AP79: 0 | AQ79: 3424.574578 | AR79: 2316.976815 | AS79: 1.478035756 | AT79: 3387.892811 | AU79: 43.42028716 | AV79: 0 | AW79: 0 | AX79: 3431.313098 | AY79: 5354.181009 | AZ79: 0.6408660992 | BA79: 3387.892811 | BB79: 80.10205475 | BC79: 0 | BD79: 0 | BE79: 3467.994865 | BF79: 7671.157823 | BG79: 86.11511843 | BH79: 0.4520823251 | BI79: 26.28445092 | BJ79: 60.73936824 | BK79: 0 | BL79: 58.01681809 | BM79: 145.0406373 | BN79: 3387.892811 | BO79: 0 | BP79: 80.10205475 | BQ79: 0 | BR79: 0 | BS79: 0 | BT79: 0 | BU79: 0 | BV79: -1692.675146 | BW79: 0 | BX79: 11811.18302 | BZ79: 87.87518605 | CA79: 886.2875716 | CB79: 1775.319719 | CC79: 12785.34578 | CD79: 0.2395351466 | CE79: 163.3341299 | CF79: 61.62033604 | CG79: 0 | CH79: 61.62033604 | CI79: 3.080963142 | CJ79: 0 | CK79: 3.080963142 | CM79: 0 | CO79: 0 | CP79: 0 | CQ79: 0 | CR79: 0 | CS79: 0 | CT79: 0 | CU79: 0 | CV79: 9999 | CW79: 9999
A80: Portland-RES-(Average)-(2025) | B80: Portland-RES-(Average)-(2025) | C80: 25 | D80: 6043 | E80: 0 | F80: 15672.09114 | G80: 6.46601 | H80: 1250.443293 | I80: Residential-RES-SolarPV-Portland | L80: 6486.238194 | M80: 0.1038118717 | N80: 0.1030626042 | O80: 0 | P80: 0 | Q80: 0 | R80: 2718.768479 | S80: 6282.660433 | T80: 0 | U80: 4857.955395 | V80: (na) | W80: (na) | X80: (na) | Y80: (na) | Z80: 0 | AA80: 0 | AB80: 0 | AC80: 87.87518605 | AD80: 0 | AE80: 0 | AF80: 0 | AG80: 1250.443293 | AH80: 2718.768479 | AI80: 6282.660433 | AJ80: 0 | AK80: 6196.273874 | AL80: 15197.70279 | AM80: 3387.892811 | AN80: 36.68176759 | AO80: 0 | AP80: 0 | AQ80: 3424.574578 | AR80: 2718.768479 | AS80: 1.259605076 | AT80: 3387.892811 | AU80: 43.42028716 | AV80: 0 | AW80: 0 | AX80: 3431.313098 | AY80: 6282.660433 | AZ80: 0.5461560646 | BA80: 3387.892811 | BB80: 80.10205475 | BC80: 0 | BD80: 0 | BE80: 3467.994865 | BF80: 9001.428913 | BG80: 101.206096 | BH80: 0.385271594 | BI80: 30.84249105 | BJ80: 71.2723057 | BK80: 0 | BL80: 70.29231174 | BM80: 172.4071085 | BN80: 3387.892811 | BO80: 0 | BP80: 80.10205475 | BQ80: 0 | BR80: 0 | BS80: 0 | BT80: 0 | BU80: 0 | BV80: -2304.919348 | BW80: 0 | BX80: 13859.38431 | BZ80: 87.87518605 | CA80: 1250.443293 | CB80: 1163.075517 | CC80: 15197.70279 | CD80: 0.1981414464 | CE80: 197.6460753 | CF80: 61.62033604 | CG80: 0 | CH80: 61.62033604 | CI80: 3.080963142 | CJ80: 0 | CK80: 3.080963142 | CM80: 0 | CO80: 0 | CP80: 0 | CQ80: 0 | CR80: 0 | CS80: 0 | CT80: 0 | CU80: 0 | CV80: 9999 | CW80: 9999
A81: Portland-COM-(Average)-(2025) | B81: Portland-COM-(Average)-(2025) | C81: 25 | D81: 6043 | E81: 0 | F81: 12885.9416 | G81: 6.46601 | H81: 886.2875716 | I81: Residential-RES-SolarPV-Portland | L81: 6486.238194 | M81: 0.1038118717 | N81: 0.1030626042 | O81: 0 | P81: 0 | Q81: 0 | R81: 2235.431861 | S81: 5165.743023 | T81: 0 | U81: 3994.31888 | V81: (na) | W81: (na) | X81: (na) | Y81: (na) | Z81: 0 | AA81: 0 | AB81: 0 | AC81: 87.87518605 | AD81: 0 | AE81: 0 | AF81: 0 | AG81: 886.2875716 | AH81: 2235.431861 | AI81: 5165.743023 | AJ81: 0 | AK81: 4968.481638 | AL81: 12369.65652 | AM81: 3387.892811 | AN81: 36.68176759 | AO81: 0 | AP81: 0 | AQ81: 3424.574578 | AR81: 2235.431861 | AS81: 1.53195212 | AT81: 3387.892811 | AU81: 43.42028716 | AV81: 0 | AW81: 0 | AX81: 3431.313098 | AY81: 5165.743023 | AZ81: 0.6642438624 | BA81: 3387.892811 | BB81: 80.10205475 | BC81: 0 | BD81: 0 | BE81: 3467.994865 | BF81: 7401.174884 | BG81: 83.05235437 | BH81: 0.4685735602 | BI81: 25.35938153 | BJ81: 58.60167357 | BK81: 0 | BL81: 56.36388372 | BM81: 140.3249388 | BN81: 3387.892811 | BO81: 0 | BP81: 80.10205475 | BQ81: 0 | BR81: 0 | BS81: 0 | BT81: 0 | BU81: 0 | BV81: -1692.675146 | BW81: 0 | BX81: 11395.49376 | BZ81: 87.87518605 | CA81: 886.2875716 | CB81: 1775.319719 | CC81: 12369.65652 | CD81: 0.2466159203 | CE81: 158.6184315 | CF81: 61.62033604 | CG81: 0 | CH81: 61.62033604 | CI81: 3.080963142 | CJ81: 0 | CK81: 3.080963142 | CM81: 0 | CO81: 0 | CP81: 0 | CQ81: 0 | CR81: 0 | CS81: 0 | CT81: 0 | CU81: 0 | CV81: 9999 | CW81: 9999
A82: Portland-RES-(Average)-(2035) | B82: Portland-RES-(Average)-(2035) | C82: 25 | D82: 6043 | E82: 0 | F82: 14178.60484 | G82: 6.46601 | H82: 1250.443293 | I82: Residential-RES-SolarPV-Portland | L82: 6486.238194 | M82: 0.1038118717 | N82: 0.1030626042 | O82: 0 | P82: 0 | Q82: 0 | R82: 2459.680944 | S82: 5683.948545 | T82: 0 | U82: 4395.01208 | V82: (na) | W82: (na) | X82: (na) | Y82: (na) | Z82: 0 | AA82: 0 | AB82: 0 | AC82: 87.87518605 | AD82: 0 | AE82: 0 | AF82: 0 | AG82: 1250.443293 | AH82: 2459.680944 | AI82: 5683.948545 | AJ82: 0 | AK82: 5733.330559 | AL82: 13876.96005 | AM82: 3387.892811 | AN82: 36.68176759 | AO82: 0 | AP82: 0 | AQ82: 3424.574578 | AR82: 2459.680944 | AS82: 1.392284063 | AT82: 3387.892811 | AU82: 43.42028716 | AV82: 0 | AW82: 0 | AX82: 3431.313098 | AY82: 5683.948545 | AZ82: 0.6036847572 | BA82: 3387.892811 | BB82: 80.10205475 | BC82: 0 | BD82: 0 | BE82: 3467.994865 | BF82: 8143.629489 | BG82: 91.47497281 | BH82: 0.4258537142 | BI82: 27.90332758 | BJ82: 64.48034596 | BK82: 0 | BL82: 65.04054972 | BM82: 157.4242233 | BN82: 3387.892811 | BO82: 0 | BP82: 80.10205475 | BQ82: 0 | BR82: 0 | BS82: 0 | BT82: 0 | BU82: 0 | BV82: -2304.919348 | BW82: 0 | BX82: 12538.64157 | BZ82: 87.87518605 | CA82: 1250.443293 | CB82: 1163.075517 | CC82: 13876.96005 | CD82: 0.2143134787 | CE82: 182.6631901 | CF82: 61.62033604 | CG82: 0 | CH82: 61.62033604 | CI82: 3.080963142 | CJ82: 0 | CK82: 3.080963142 | CM82: 0 | CO82: 0 | CP82: 0 | CQ82: 0 | CR82: 0 | CS82: 0 | CT82: 0 | CU82: 0 | CV82: 9999 | CW82: 9999
A83: Portland-COM-(Average)-(2035) | B83: Portland-COM-(Average)-(2035) | C83: 25 | D83: 6043 | E83: 0 | F83: 10492.16758 | G83: 6.46601 | H83: 886.2875716 | I83: Residential-RES-SolarPV-Portland | L83: 6486.238194 | M83: 0.1038118717 | N83: 0.1030626042 | O83: 0 | P83: 0 | Q83: 0 | R83: 1820.163898 | S83: 4206.121924 | T83: 0 | U83: 3252.308939 | V83: (na) | W83: (na) | X83: (na) | Y83: (na) | Z83: 0 | AA83: 0 | AB83: 0 | AC83: 87.87518605 | AD83: 0 | AE83: 0 | AF83: 0 | AG83: 886.2875716 | AH83: 1820.163898 | AI83: 4206.121924 | AJ83: 0 | AK83: 4226.471697 | AL83: 10252.75752 | AM83: 3387.892811 | AN83: 36.68176759 | AO83: 0 | AP83: 0 | AQ83: 3424.574578 | AR83: 1820.163898 | AS83: 1.88146495 | AT83: 3387.892811 | AU83: 43.42028716 | AV83: 0 | AW83: 0 | AX83: 3431.313098 | AY83: 4206.121924 | AZ83: 0.8157902124 | BA83: 3387.892811 | BB83: 80.10205475 | BC83: 0 | BD83: 0 | BE83: 3467.994865 | BF83: 6026.285822 | BG83: 67.45521769 | BH83: 0.5754779922 | BI83: 20.64846241 | BJ83: 47.71545601 | BK83: 0 | BL83: 47.94630969 | BM83: 116.3102281 | BN83: 3387.892811 | BO83: 0 | BP83: 80.10205475 | BQ83: 0 | BR83: 0 | BS83: 0 | BT83: 0 | BU83: 0 | BV83: -1692.675146 | BW83: 0 | BX83: 9278.594761 | BZ83: 87.87518605 | CA83: 886.2875716 | CB83: 1775.319719 | CC83: 10252.75752 | CD83: 0.2903197366 | CE83: 134.6037207 | CF83: 61.62033604 | CG83: 0 | CH83: 61.62033604 | CI83: 3.080963142 | CJ83: 0 | CK83: 3.080963142 | CM83: 0 | CO83: 0 | CP83: 0 | CQ83: 0 | CR83: 0 | CS83: 0 | CT83: 0 | CU83: 0 | CV83: 9999 | CW83: 9999
A86: Category Results; Sorted by TRC Levelized Cost
A87: Total Results | C87: Measure Input Data | L87: Savings | R87: PV Capital | V87: PV Admin | Z87: PV O&M | AD87: PV Periodic Repl. | AH87: Total PV Capital, O&M and Periodic Repl Costs | AM87: PV Wholesale Electric Utility Costs & Benefits | AT87: PV Retail Electric Utility Costs & Benefits | BA87: PV Electric Utility System Costs & Benefits | BG87: Electric Utility System Economics | BI87: Sponsor Levelized Cost (mills/kwh) | BN87: PV Regional Costs & Benefits | CD87: TRC Economics | CF87: Physical CO2 | CM87: Gas Inputs | CQ87: PV Gas Utility System Costs & Benefits | CV87: Gas Utility System Economics
A88: Category | B88: Measure | C88: Measure Life | D88: Site Savings (kWh) | E88: Site Savings (therms) | F88: Capital Cost ($/unit) | G88: Annual O&M Cost ($/unit) | H88: PV Per. Repl. Cost ($/unit) | I88: Load Shape (electric) | J88: Diversified Load Factor (electric) | K88: Wholesale Power Coincidence Factor (electric) | L88: Wholesale Electric Energy (kWh) | M88: Wholesale Electric Demand (kw) | N88: Retail Electric Demand (kW) | O88: Wholesale Gas Energy (therms/yr) | P88: Wholesale Gas Demand (therms/day) | Q88: Retail Gas Demand (therms/day) | R88: Wholesale Electric | S88: Retail Electric | T88: Natural Gas | U88: Customer | V88: Wholesale Electric | W88: Retail Electric | X88: Natural Gas | Y88: Customer | Z88: Wholesale Electric | AA88: Retail Electric | AB88: Natural Gas | AC88: Customer | AD88: Wholesale Electric | AE88: Retail Electric | AF88: Natural Gas | AG88: Customer | AH88: Wholesale Electric | AI88: Retail Electric | AJ88: Natural Gas | AK88: Customer | AL88: Total | AM88: Wholesale Utility System Energy | AN88: Wholesale Utility System T&D Def. Cap. | AO88: Wholesale Utility System Act C-E Credit | AP88: Wholesale Utility System Risk Mitigation Benefit | AQ88: Wholesale Utility System Total System Benefit | AR88: Wholesale Utility System Total Non-Consumer Cost | AS88: Wholesale Utility System B/C Ratio | AT88: Retail Utility System Energy | AU88: Retail Utility System T&D Def. Cap. | AV88: Retail Utility System Act C-E Credit | AW88: Retail Utility System Risk Mitigation Benefit | AX88: Retail Utility System Total System Benefit | AY88: Retail Utility System Total Non-Consumer Cost | AZ88: Retail Utility System System B/C Ratio | BA88: Utility System Energy | BB88: Utility System T&D Def. Cap. | BC88: Utility System Act C-E Credit | BD88: Utility System Total Risk Mitigation Benefit | BE88: Utility System Total System Benefit | BF88: Utility System Total Non-Consumer Cost | BG88: Utility System Net Levelized Cost (Net of Elec T&D Capacity Benefits, Act Credit & Risk-Mitigation Benefit) in mills/kwh | BH88: Utility System System B/C Ratio | BI88: Wholesale Electric Levelized Cost | BJ88: Retail Electric Levelized Cost | BK88: Natural Gas Levelized Cost | BL88: Customer Levelized Cost | BM88: Total Levelized Cost | BN88: PV Regional Electric Energy | BO88: PV Regional Gas Energy | BP88: PV Regional Electric T&D Def. Cap. | BQ88: PV Regional Gas T&D Def. Cap. | BR88: PV Regional Electric System CO2 | BS88: PV Regional Gas System CO2 | BT88: PV Regional Electric System Risk-Mitigation Benefit | BU88: PV Regional Gas System Risk-Mitigation Benefit | BV88: PV Regional Non-E Value | BW88: PV Regional Act Credit | BX88: PV Regional Capital Cost | BY88: PV Regional Admin Cost | BZ88: PV Regional Annual O&M Cost | CA88: PV Regional Periodic Replacement Cost | CB88: PV Total Regional Benefit | CC88: PV Total Regional Cost | CD88: TRC B/C Ratio | CE88: TRC Net Levelized Cost (Net of All Benefits) in mills/kWh | CF88: Electric System CO2 Avoided (Lifetime Tons) | CG88: Gas System CO2 Avoided (Lifetime Tons) | CH88: Total System CO2 Avoided (Lifetime Tons) | CI88: Electric System CO2 Avoided (Annual Tons in 2018) | CJ88: Gas System CO2 Avoided (Annual Tons in 2018) | CK88: Total System CO2 Avoided (Annual Tons in 2018) | CM88: Gas Site Savings (therms) | CN88: Load Shape (gas) | CO88: Diversitfied Load Factor (gas) | CP88: Wholesale Coincidence Factor (gas) | CQ88: Total Gas Utility System Energy | CR88: Gas Utility System T&D Def. Cap. | CS88: Gas Utility System Risk Mitigation Benefit | CT88: Gas Utility System Total System Benefit | CU88: Gas Utility System Total Non-Consumer Cost | CV88: Gas Utility System Net Levelized Cost (Net of Gas T&D Capacity Benefits & Risk-Mitigation Benefits) in cents/therm | CW88: Gas Utility System System B/C Ratio
A89: Boise-COM-(Average)-(2035) | C89: 25 | D89: 7723 | E89: 0 | F89: 10492.16758 | G89: 8.26361 | H89: 886.2875716 | L89: 8292.357105 | M89: 0.6504464322 | N89: 0.6457518015 | O89: 0 | P89: 0 | Q89: 0 | R89: 1820.163898 | S89: 4206.121924 | T89: 0 | U89: 3252.308939 | V89: 0 | W89: 0 | X89: 0 | Y89: 0 | Z89: 0 | AA89: 0 | AB89: 0 | AC89: 112.3051567 | AD89: 0 | AE89: 0 | AF89: 0 | AG89: 886.2875716 | AH89: 1820.163898 | AI89: 4206.121924 | AJ89: 0 | AK89: 4250.901668 | AL89: 10277.18749 | AM89: 4351.021612 | AN89: 229.8342614 | AO89: 0 | AP89: 0 | AQ89: 4580.855873 | AR89: 1820.163898 | AS89: 2.516727135 | AT89: 4351.021612 | AU89: 272.0553093 | AV89: 0 | AW89: 0 | AX89: 4623.076921 | AY89: 4206.121924 | AZ89: 1.099130507 | BA89: 4351.021612 | BB89: 501.8895707 | BC89: 0 | BD89: 0 | BE89: 4852.911183 | BF89: 6026.285822 | BG89: 49.02041006 | BH89: 0.8052905763 | BI89: 16.15111889 | BJ89: 37.32277919 | BK89: 0 | BL89: 37.72012966 | BM89: 91.19402775 | BN89: 4351.021612 | BO89: 0 | BP89: 501.8895707 | BQ89: 0 | BR89: 0 | BS89: 0 | BT89: 0 | BU89: 0 | BV89: -1692.675146 | BW89: 0 | BX89: 9278.594761 | BY89: 0 | BZ89: 112.3051567 | CA89: 886.2875716 | CB89: 3160.236036 | CC89: 10277.18749 | CD89: 0.4054274748 | CE89: 101.7603946 | CF89: 78.77880084 | CG89: 0 | CH89: 78.77880084 | CI89: 3.938869625 | CJ89: 0 | CK89: 3.938869625 | CM89: 0 | CO89: 0 | CP89: 0 | CQ89: 0 | CR89: 0 | CS89: 0 | CT89: 0 | CU89: 0 | CV89: 9999 | CW89: 9999
A90: Boise-COM-(Average)-(2025) | C90: 25 | D90: 7723 | E90: 0 | F90: 12885.9416 | G90: 8.26361 | H90: 886.2875716 | L90: 8292.357105 | M90: 0.6504464322 | N90: 0.6457518015 | O90: 0 | P90: 0 | Q90: 0 | R90: 2235.431861 | S90: 5165.743023 | T90: 0 | U90: 3994.31888 | V90: 0 | W90: 0 | X90: 0 | Y90: 0 | Z90: 0 | AA90: 0 | AB90: 0 | AC90: 112.3051567 | AD90: 0 | AE90: 0 | AF90: 0 | AG90: 886.2875716 | AH90: 2235.431861 | AI90: 5165.743023 | AJ90: 0 | AK90: 4992.911608 | AL90: 12394.08649 | AM90: 4351.021612 | AN90: 229.8342614 | AO90: 0 | AP90: 0 | AQ90: 4580.855873 | AR90: 2235.431861 | AS90: 2.049203983 | AT90: 4351.021612 | AU90: 272.0553093 | AV90: 0 | AW90: 0 | AX90: 4623.076921 | AY90: 5165.743023 | AZ90: 0.8949490713 | BA90: 4351.021612 | BB90: 501.8895707 | BC90: 0 | BD90: 0 | BE90: 4852.911183 | BF90: 7401.174884 | BG90: 61.22040849 | BH90: 0.6556947051 | BI90: 19.8359751 | BJ90: 45.83792142 | BK90: 0 | BL90: 44.30431188 | BM90: 109.9782084 | BN90: 4351.021612 | BO90: 0 | BP90: 501.8895707 | BQ90: 0 | BR90: 0 | BS90: 0 | BT90: 0 | BU90: 0 | BV90: -1692.675146 | BW90: 0 | BX90: 11395.49376 | BY90: 0 | BZ90: 112.3051567 | CA90: 886.2875716 | CB90: 3160.236036 | CC90: 12394.08649 | CD90: 0.3445015474 | CE90: 120.5445752 | CF90: 78.77880084 | CG90: 0 | CH90: 78.77880084 | CI90: 3.938869625 | CJ90: 0 | CK90: 3.938869625 | CM90: 0 | CO90: 0 | CP90: 0 | CQ90: 0 | CR90: 0 | CS90: 0 | CT90: 0 | CU90: 0 | CV90: 9999 | CW90: 9999
A91: Boise-COM-(Low Quartile)-(Fed Tax Credit) | C91: 25 | D91: 7723 | E91: 0 | F91: 13356 | G91: 8.26361 | H91: 886.2875716 | L91: 8292.357105 | M91: 0.6504464322 | N91: 0.6457518015 | O91: 0 | P91: 0 | Q91: 0 | R91: 2316.976815 | S91: 5354.181009 | T91: 0 | U91: 4140.0252 | V91: 0 | W91: 0 | X91: 0 | Y91: 0 | Z91: 0 | AA91: 0 | AB91: 0 | AC91: 112.3051567 | AD91: 0 | AE91: 0 | AF91: 0 | AG91: 886.2875716 | AH91: 2316.976815 | AI91: 5354.181009 | AJ91: 0 | AK91: 5138.617928 | AL91: 12809.77575 | AM91: 4351.021612 | AN91: 229.8342614 | AO91: 0 | AP91: 0 | AQ91: 4580.855873 | AR91: 2316.976815 | AS91: 1.977083173 | AT91: 4351.021612 | AU91: 272.0553093 | AV91: 0 | AW91: 0 | AX91: 4623.076921 | AY91: 5354.181009 | AZ91: 0.8634517424 | BA91: 4351.021612 | BB91: 501.8895707 | BC91: 0 | BD91: 0 | BE91: 4852.911183 | BF91: 7671.157823 | BG91: 63.61608647 | BH91: 0.6326178257 | BI91: 20.55955952 | BJ91: 47.51001497 | BK91: 0 | BL91: 45.59722846 | BM91: 113.666803 | BN91: 4351.021612 | BO91: 0 | BP91: 501.8895707 | BQ91: 0 | BR91: 0 | BS91: 0 | BT91: 0 | BU91: 0 | BV91: -1692.675146 | BW91: 0 | BX91: 11811.18302 | BY91: 0 | BZ91: 112.3051567 | CA91: 886.2875716 | CB91: 3160.236036 | CC91: 12809.77575 | CD91: 0.3346269687 | CE91: 124.2331698 | CF91: 78.77880084 | CG91: 0 | CH91: 78.77880084 | CI91: 3.938869625 | CJ91: 0 | CK91: 3.938869625 | CM91: 0 | CO91: 0 | CP91: 0 | CQ91: 0 | CR91: 0 | CS91: 0 | CT91: 0 | CU91: 0 | CV91: 9999 | CW91: 9999
A92: Boise-COM-(Low Quartile)-(2014) | C92: 25 | D92: 7723 | E92: 0 | F92: 14840 | G92: 8.26361 | H92: 886.2875716 | L92: 8292.357105 | M92: 0.6504464322 | N92: 0.6457518015 | O92: 0 | P92: 0 | Q92: 0 | R92: 2574.418683 | S92: 5949.09001 | T92: 0 | U92: 4600.028 | V92: 0 | W92: 0 | X92: 0 | Y92: 0 | Z92: 0 | AA92: 0 | AB92: 0 | AC92: 112.3051567 | AD92: 0 | AE92: 0 | AF92: 0 | AG92: 886.2875716 | AH92: 2574.418683 | AI92: 5949.09001 | AJ92: 0 | AK92: 5598.620728 | AL92: 14122.12942 | AM92: 4351.021612 | AN92: 229.8342614 | AO92: 0 | AP92: 0 | AQ92: 4580.855873 | AR92: 2574.418683 | AS92: 1.779374856 | AT92: 4351.021612 | AU92: 272.0553093 | AV92: 0 | AW92: 0 | AX92: 4623.076921 | AY92: 5949.09001 | AZ92: 0.7771065682 | BA92: 4351.021612 | BB92: 501.8895707 | BC92: 0 | BD92: 0 | BE92: 4852.911183 | BF92: 8523.508693 | BG92: 71.17937252 | BH92: 0.5693560431 | BI92: 22.84395503 | BJ92: 52.78890552 | BK92: 0 | BL92: 49.67903666 | BM92: 125.3118972 | BN92: 4351.021612 | BO92: 0 | BP92: 501.8895707 | BQ92: 0 | BR92: 0 | BS92: 0 | BT92: 0 | BU92: 0 | BV92: -1692.675146 | BW92: 0 | BX92: 13123.53669 | BY92: 0 | BZ92: 112.3051567 | CA92: 886.2875716 | CB92: 3160.236036 | CC92: 14122.12942 | CD92: 0.3068587514 | CE92: 135.878264 | CF92: 78.77880084 | CG92: 0 | CH92: 78.77880084 | CI92: 3.938869625 | CJ92: 0 | CK92: 3.938869625 | CM92: 0 | CO92: 0 | CP92: 0 | CQ92: 0 | CR92: 0 | CS92: 0 | CT92: 0 | CU92: 0 | CV92: 9999 | CW92: 9999
A93: Boise-RES-(Average)-(2035) | C93: 25 | D93: 7723 | E93: 0 | F93: 14178.60484 | G93: 8.26361 | H93: 1250.443293 | L93: 8292.357105 | M93: 0.6504464322 | N93: 0.6457518015 | O93: 0 | P93: 0 | Q93: 0 | R93: 2459.680944 | S93: 5683.948545 | T93: 0 | U93: 4395.01208 | V93: 0 | W93: 0 | X93: 0 | Y93: 0 | Z93: 0 | AA93: 0 | AB93: 0 | AC93: 112.3051567 | AD93: 0 | AE93: 0 | AF93: 0 | AG93: 1250.443293 | AH93: 2459.680944 | AI93: 5683.948545 | AJ93: 0 | AK93: 5757.76053 | AL93: 13901.39002 | AM93: 4351.021612 | AN93: 229.8342614 | AO93: 0 | AP93: 0 | AQ93: 4580.855873 | AR93: 2459.680944 | AS93: 1.86237808 | AT93: 4351.021612 | AU93: 272.0553093 | AV93: 0 | AW93: 0 | AX93: 4623.076921 | AY93: 5683.948545 | AZ93: 0.813356575 | BA93: 4351.021612 | BB93: 501.8895707 | BC93: 0 | BD93: 0 | BE93: 4852.911183 | BF93: 8143.629489 | BG93: 67.80853642 | BH93: 0.5959150265 | BI93: 21.82583634 | BJ93: 50.4361881 | BK93: 0 | BL93: 51.09115447 | BM93: 123.3531789 | BN93: 4351.021612 | BO93: 0 | BP93: 501.8895707 | BQ93: 0 | BR93: 0 | BS93: 0 | BT93: 0 | BU93: 0 | BV93: -2304.919348 | BW93: 0 | BX93: 12538.64157 | BY93: 0 | BZ93: 112.3051567 | CA93: 1250.443293 | CB93: 2547.991834 | CC93: 13901.39002 | CD93: 0.2994457944 | CE93: 139.3522592 | CF93: 78.77880084 | CG93: 0 | CH93: 78.77880084 | CI93: 3.938869625 | CJ93: 0 | CK93: 3.938869625 | CM93: 0 | CO93: 0 | CP93: 0 | CQ93: 0 | CR93: 0 | CS93: 0 | CT93: 0 | CU93: 0 | CV93: 9999 | CW93: 9999
A94: Portland-COM-(Average)-(2035) | C94: 25 | D94: 6043 | E94: 0 | F94: 10492.16758 | G94: 6.46601 | H94: 886.2875716 | L94: 6486.238194 | M94: 0.1038118717 | N94: 0.1030626042 | O94: 0 | P94: 0 | Q94: 0 | R94: 1820.163898 | S94: 4206.121924 | T94: 0 | U94: 3252.308939 | V94: 0 | W94: 0 | X94: 0 | Y94: 0 | Z94: 0 | AA94: 0 | AB94: 0 | AC94: 87.87518605 | AD94: 0 | AE94: 0 | AF94: 0 | AG94: 886.2875716 | AH94: 1820.163898 | AI94: 4206.121924 | AJ94: 0 | AK94: 4226.471697 | AL94: 10252.75752 | AM94: 3387.892811 | AN94: 36.68176759 | AO94: 0 | AP94: 0 | AQ94: 3424.574578 | AR94: 1820.163898 | AS94: 1.88146495 | AT94: 3387.892811 | AU94: 43.42028716 | AV94: 0 | AW94: 0 | AX94: 3431.313098 | AY94: 4206.121924 | AZ94: 0.8157902124 | BA94: 3387.892811 | BB94: 80.10205475 | BC94: 0 | BD94: 0 | BE94: 3467.994865 | BF94: 6026.285822 | BG94: 67.45521769 | BH94: 0.5754779922 | BI94: 20.64846241 | BJ94: 47.71545601 | BK94: 0 | BL94: 47.94630969 | BM94: 116.3102281 | BN94: 3387.892811 | BO94: 0 | BP94: 80.10205475 | BQ94: 0 | BR94: 0 | BS94: 0 | BT94: 0 | BU94: 0 | BV94: -1692.675146 | BW94: 0 | BX94: 9278.594761 | BY94: 0 | BZ94: 87.87518605 | CA94: 886.2875716 | CB94: 1775.319719 | CC94: 10252.75752 | CD94: 0.2903197366 | CE94: 134.6037207 | CF94: 61.62033604 | CG94: 0 | CH94: 61.62033604 | CI94: 3.080963142 | CJ94: 0 | CK94: 3.080963142 | CM94: 0 | CO94: 0 | CP94: 0 | CQ94: 0 | CR94: 0 | CS94: 0 | CT94: 0 | CU94: 0 | CV94: 9999 | CW94: 9999
A95: Boise-RES-(Average)-(2025) | C95: 25 | D95: 7723 | E95: 0 | F95: 15672.09114 | G95: 8.26361 | H95: 1250.443293 | L95: 8292.357105 | M95: 0.6504464322 | N95: 0.6457518015 | O95: 0 | P95: 0 | Q95: 0 | R95: 2718.768479 | S95: 6282.660433 | T95: 0 | U95: 4857.955395 | V95: 0 | W95: 0 | X95: 0 | Y95: 0 | Z95: 0 | AA95: 0 | AB95: 0 | AC95: 112.3051567 | AD95: 0 | AE95: 0 | AF95: 0 | AG95: 1250.443293 | AH95: 2718.768479 | AI95: 6282.660433 | AJ95: 0 | AK95: 6220.703845 | AL95: 15222.13276 | AM95: 4351.021612 | AN95: 229.8342614 | AO95: 0 | AP95: 0 | AQ95: 4580.855873 | AR95: 2718.768479 | AS95: 1.684901053 | AT95: 4351.021612 | AU95: 272.0553093 | AV95: 0 | AW95: 0 | AX95: 4623.076921 | AY95: 6282.660433 | AZ95: 0.7358470142 | BA95: 4351.021612 | BB95: 501.8895707 | BC95: 0 | BD95: 0 | BE95: 4852.911183 | BF95: 9001.428913 | BG95: 75.4201699 | BH95: 0.5391267575 | BI95: 24.12483458 | BJ95: 55.74882335 | BK95: 0 | BL95: 55.19905515 | BM95: 135.0727131 | BN95: 4351.021612 | BO95: 0 | BP95: 501.8895707 | BQ95: 0 | BR95: 0 | BS95: 0 | BT95: 0 | BU95: 0 | BV95: -2304.919348 | BW95: 0 | BX95: 13859.38431 | BY95: 0 | BZ95: 112.3051567 | CA95: 1250.443293 | CB95: 2547.991834 | CC95: 15222.13276 | CD95: 0.2768811979 | CE95: 151.0717933 | CF95: 78.77880084 | CG95: 0 | CH95: 78.77880084 | CI95: 3.938869625 | CJ95: 0 | CK95: 3.938869625 | CM95: 0 | CO95: 0 | CP95: 0 | CQ95: 0 | CR95: 0 | CS95: 0 | CT95: 0 | CU95: 0 | CV95: 9999 | CW95: 9999
A96: Boise-COM-(Average)-(Fed Tax Credit) | C96: 25 | D96: 7723 | E96: 0 | F96: 17649 | G96: 8.26361 | H96: 886.2875716 | L96: 8292.357105 | M96: 0.6504464322 | N96: 0.6457518015 | O96: 0 | P96: 0 | Q96: 0 | R96: 3061.719362 | S96: 7075.167761 | T96: 0 | U96: 5470.747585 | V96: 0 | W96: 0 | X96: 0 | Y96: 0 | Z96: 0 | AA96: 0 | AB96: 0 | AC96: 112.3051567 | AD96: 0 | AE96: 0 | AF96: 0 | AG96: 886.2875716 | AH96: 3061.719362 | AI96: 7075.167761 | AJ96: 0 | AK96: 6469.340314 | AL96: 16606.22744 | AM96: 4351.021612 | AN96: 229.8342614 | AO96: 0 | AP96: 0 | AQ96: 4580.855873 | AR96: 3061.719362 | AS96: 1.49617105 | AT96: 4351.021612 | AU96: 272.0553093 | AV96: 0 | AW96: 0 | AX96: 4623.076921 | AY96: 7075.167761 | AZ96: 0.6534229402 | BA96: 4351.021612 | BB96: 501.8895707 | BC96: 0 | BD96: 0 | BE96: 4852.911183 | BF96: 10136.88712 | BG96: 85.49559255 | BH96: 0.478737814 | BI96: 27.16798937 | BJ96: 62.78109121 | BK96: 0 | BL96: 57.40531645 | BM96: 147.354397 | BN96: 4351.021612 | BO96: 0 | BP96: 501.8895707 | BQ96: 0 | BR96: 0 | BS96: 0 | BT96: 0 | BU96: 0 | BV96: -1692.675146 | BW96: 0 | BX96: 15607.63471 | BY96: 0 | BZ96: 112.3051567 | CA96: 886.2875716 | CB96: 3160.236036 | CC96: 16606.22744 | CD96: 0.2652023071 | CE96: 157.9207638 | CF96: 78.77880084 | CG96: 0 | CH96: 78.77880084 | CI96: 3.938869625 | CJ96: 0 | CK96: 3.938869625 | CM96: 0 | CO96: 0 | CP96: 0 | CQ96: 0 | CR96: 0 | CS96: 0 | CT96: 0 | CU96: 0 | CV96: 9999 | CW96: 9999
A97: Boise-RES-(Low Quartile)-(Fed Tax Credit) | C97: 25 | D97: 7723 | E97: 0 | F97: 17649 | G97: 8.26361 | H97: 1250.443293 | L97: 8292.357105 | M97: 0.6504464322 | N97: 0.6457518015 | O97: 0 | P97: 0 | Q97: 0 | R97: 3061.719362 | S97: 7075.167761 | T97: 0 | U97: 5470.747585 | V97: 0 | W97: 0 | X97: 0 | Y97: 0 | Z97: 0 | AA97: 0 | AB97: 0 | AC97: 112.3051567 | AD97: 0 | AE97: 0 | AF97: 0 | AG97: 1250.443293 | AH97: 3061.719362 | AI97: 7075.167761 | AJ97: 0 | AK97: 6833.496035 | AL97: 16970.38316 | AM97: 4351.021612 | AN97: 229.8342614 | AO97: 0 | AP97: 0 | AQ97: 4580.855873 | AR97: 3061.719362 | AS97: 1.49617105 | AT97: 4351.021612 | AU97: 272.0553093 | AV97: 0 | AW97: 0 | AX97: 4623.076921 | AY97: 7075.167761 | AZ97: 0.6534229402 | BA97: 4351.021612 | BB97: 501.8895707 | BC97: 0 | BD97: 0 | BE97: 4852.911183 | BF97: 10136.88712 | BG97: 85.49559255 | BH97: 0.478737814 | BI97: 27.16798937 | BJ97: 62.78109121 | BK97: 0 | BL97: 60.63663115 | BM97: 150.5857117 | BN97: 4351.021612 | BO97: 0 | BP97: 501.8895707 | BQ97: 0 | BR97: 0 | BS97: 0 | BT97: 0 | BU97: 0 | BV97: -2304.919348 | BW97: 0 | BX97: 15607.63471 | BY97: 0 | BZ97: 112.3051567 | CA97: 1250.443293 | CB97: 2547.991834 | CC97: 16970.38316 | CD97: 0.2517683539 | CE97: 166.584792 | CF97: 78.77880084 | CG97: 0 | CH97: 78.77880084 | CI97: 3.938869625 | CJ97: 0 | CK97: 3.938869625 | CM97: 0 | CO97: 0 | CP97: 0 | CQ97: 0 | CR97: 0 | CS97: 0 | CT97: 0 | CU97: 0 | CV97: 9999 | CW97: 9999
A98: Portland-COM-(Average)-(2025) | C98: 25 | D98: 6043 | E98: 0 | F98: 12885.9416 | G98: 6.46601 | H98: 886.2875716 | L98: 6486.238194 | M98: 0.1038118717 | N98: 0.1030626042 | O98: 0 | P98: 0 | Q98: 0 | R98: 2235.431861 | S98: 5165.743023 | T98: 0 | U98: 3994.31888 | V98: 0 | W98: 0 | X98: 0 | Y98: 0 | Z98: 0 | AA98: 0 | AB98: 0 | AC98: 87.87518605 | AD98: 0 | AE98: 0 | AF98: 0 | AG98: 886.2875716 | AH98: 2235.431861 | AI98: 5165.743023 | AJ98: 0 | AK98: 4968.481638 | AL98: 12369.65652 | AM98: 3387.892811 | AN98: 36.68176759 | AO98: 0 | AP98: 0 | AQ98: 3424.574578 | AR98: 2235.431861 | AS98: 1.53195212 | AT98: 3387.892811 | AU98: 43.42028716 | AV98: 0 | AW98: 0 | AX98: 3431.313098 | AY98: 5165.743023 | AZ98: 0.6642438624 | BA98: 3387.892811 | BB98: 80.10205475 | BC98: 0 | BD98: 0 | BE98: 3467.994865 | BF98: 7401.174884 | BG98: 83.05235437 | BH98: 0.4685735602 | BI98: 25.35938153 | BJ98: 58.60167357 | BK98: 0 | BL98: 56.36388372 | BM98: 140.3249388 | BN98: 3387.892811 | BO98: 0 | BP98: 80.10205475 | BQ98: 0 | BR98: 0 | BS98: 0 | BT98: 0 | BU98: 0 | BV98: -1692.675146 | BW98: 0 | BX98: 11395.49376 | BY98: 0 | BZ98: 87.87518605 | CA98: 886.2875716 | CB98: 1775.319719 | CC98: 12369.65652 | CD98: 0.2466159203 | CE98: 158.6184315 | CF98: 61.62033604 | CG98: 0 | CH98: 61.62033604 | CI98: 3.080963142 | CJ98: 0 | CK98: 3.080963142 | CM98: 0 | CO98: 0 | CP98: 0 | CQ98: 0 | CR98: 0 | CS98: 0 | CT98: 0 | CU98: 0 | CV98: 9999 | CW98: 9999
A99: Boise-COM-(Average)-(2014) | C99: 25 | D99: 7723 | E99: 0 | F99: 19610 | G99: 8.26361 | H99: 886.2875716 | L99: 8292.357105 | M99: 0.6504464322 | N99: 0.6457518015 | O99: 0 | P99: 0 | Q99: 0 | R99: 3401.910403 | S99: 7861.297513 | T99: 0 | U99: 6078.608428 | V99: 0 | W99: 0 | X99: 0 | Y99: 0 | Z99: 0 | AA99: 0 | AB99: 0 | AC99: 112.3051567 | AD99: 0 | AE99: 0 | AF99: 0 | AG99: 886.2875716 | AH99: 3401.910403 | AI99: 7861.297513 | AJ99: 0 | AK99: 7077.201156 | AL99: 18340.40907 | AM99: 4351.021612 | AN99: 229.8342614 | AO99: 0 | AP99: 0 | AQ99: 4580.855873 | AR99: 3401.910403 | AS99: 1.346553945 | AT99: 4351.021612 | AU99: 272.0553093 | AV99: 0 | AW99: 0 | AX99: 4623.076921 | AY99: 7861.297513 | AZ99: 0.5880806462 | BA99: 4351.021612 | BB99: 501.8895707 | BC99: 0 | BD99: 0 | BE99: 4852.911183 | BF99: 11263.20792 | BG99: 95.48993484 | BH99: 0.4308640326 | BI99: 30.18665486 | BJ99: 69.75676801 | BK99: 0 | BL99: 62.79913442 | BM99: 162.7425573 | BN99: 4351.021612 | BO99: 0 | BP99: 501.8895707 | BQ99: 0 | BR99: 0 | BS99: 0 | BT99: 0 | BU99: 0 | BV99: -1692.675146 | BW99: 0 | BX99: 17341.81634 | BY99: 0 | BZ99: 112.3051567 | CA99: 886.2875716 | CB99: 3160.236036 | CC99: 18340.40907 | CD99: 0.2422448351 | CE99: 173.3089241 | CF99: 78.77880084 | CG99: 0 | CH99: 78.77880084 | CI99: 3.938869625 | CJ99: 0 | CK99: 3.938869625 | CM99: 0 | CO99: 0 | CP99: 0 | CQ99: 0 | CR99: 0 | CS99: 0 | CT99: 0 | CU99: 0 | CV99: 9999 | CW99: 9999
A100: Portland-COM-(Low Quartile)-(Fed Tax Credit) | C100: 25 | D100: 6043 | E100: 0 | F100: 13356 | G100: 6.46601 | H100: 886.2875716 | L100: 6486.238194 | M100: 0.1038118717 | N100: 0.1030626042 | O100: 0 | P100: 0 | Q100: 0 | R100: 2316.976815 | S100: 5354.181009 | T100: 0 | U100: 4140.0252 | V100: 0 | W100: 0 | X100: 0 | Y100: 0 | Z100: 0 | AA100: 0 | AB100: 0 | AC100: 87.87518605 | AD100: 0 | AE100: 0 | AF100: 0 | AG100: 886.2875716 | AH100: 2316.976815 | AI100: 5354.181009 | AJ100: 0 | AK100: 5114.187957 | AL100: 12785.34578 | AM100: 3387.892811 | AN100: 36.68176759 | AO100: 0 | AP100: 0 | AQ100: 3424.574578 | AR100: 2316.976815 | AS100: 1.478035756 | AT100: 3387.892811 | AU100: 43.42028716 | AV100: 0 | AW100: 0 | AX100: 3431.313098 | AY100: 5354.181009 | AZ100: 0.6408660992 | BA100: 3387.892811 | BB100: 80.10205475 | BC100: 0 | BD100: 0 | BE100: 3467.994865 | BF100: 7671.157823 | BG100: 86.11511843 | BH100: 0.4520823251 | BI100: 26.28445092 | BJ100: 60.73936824 | BK100: 0 | BL100: 58.01681809 | BM100: 145.0406373 | BN100: 3387.892811 | BO100: 0 | BP100: 80.10205475 | BQ100: 0 | BR100: 0 | BS100: 0 | BT100: 0 | BU100: 0 | BV100: -1692.675146 | BW100: 0 | BX100: 11811.18302 | BY100: 0 | BZ100: 87.87518605 | CA100: 886.2875716 | CB100: 1775.319719 | CC100: 12785.34578 | CD100: 0.2395351466 | CE100: 163.3341299 | CF100: 61.62033604 | CG100: 0 | CH100: 61.62033604 | CI100: 3.080963142 | CJ100: 0 | CK100: 3.080963142 | CM100: 0 | CO100: 0 | CP100: 0 | CQ100: 0 | CR100: 0 | CS100: 0 | CT100: 0 | CU100: 0 | CV100: 9999 | CW100: 9999
A101: Boise-RES-(Low Quartile)-(2014) | C101: 25 | D101: 7723 | E101: 0 | F101: 19610 | G101: 8.26361 | H101: 1250.443293 | L101: 8292.357105 | M101: 0.6504464322 | N101: 0.6457518015 | O101: 0 | P101: 0 | Q101: 0 | R101: 3401.910403 | S101: 7861.297513 | T101: 0 | U101: 6078.608428 | V101: 0 | W101: 0 | X101: 0 | Y101: 0 | Z101: 0 | AA101: 0 | AB101: 0 | AC101: 112.3051567 | AD101: 0 | AE101: 0 | AF101: 0 | AG101: 1250.443293 | AH101: 3401.910403 | AI101: 7861.297513 | AJ101: 0 | AK101: 7441.356878 | AL101: 18704.56479 | AM101: 4351.021612 | AN101: 229.8342614 | AO101: 0 | AP101: 0 | AQ101: 4580.855873 | AR101: 3401.910403 | AS101: 1.346553945 | AT101: 4351.021612 | AU101: 272.0553093 | AV101: 0 | AW101: 0 | AX101: 4623.076921 | AY101: 7861.297513 | AZ101: 0.5880806462 | BA101: 4351.021612 | BB101: 501.8895707 | BC101: 0 | BD101: 0 | BE101: 4852.911183 | BF101: 11263.20792 | BG101: 95.48993484 | BH101: 0.4308640326 | BI101: 30.18665486 | BJ101: 69.75676801 | BK101: 0 | BL101: 66.03044912 | BM101: 165.973872 | BN101: 4351.021612 | BO101: 0 | BP101: 501.8895707 | BQ101: 0 | BR101: 0 | BS101: 0 | BT101: 0 | BU101: 0 | BV101: -2304.919348 | BW101: 0 | BX101: 17341.81634 | BY101: 0 | BZ101: 112.3051567 | CA101: 1250.443293 | CB101: 2547.991834 | CC101: 18704.56479 | CD101: 0.2309866891 | CE101: 181.9729523 | CF101: 78.77880084 | CG101: 0 | CH101: 78.77880084 | CI101: 3.938869625 | CJ101: 0 | CK101: 3.938869625 | CM101: 0 | CO101: 0 | CP101: 0 | CQ101: 0 | CR101: 0 | CS101: 0 | CT101: 0 | CU101: 0 | CV101: 9999 | CW101: 9999
A102: Portland-COM-(Low Quartile)-(2014) | C102: 25 | D102: 6043 | E102: 0 | F102: 14840 | G102: 6.46601 | H102: 886.2875716 | L102: 6486.238194 | M102: 0.1038118717 | N102: 0.1030626042 | O102: 0 | P102: 0 | Q102: 0 | R102: 2574.418683 | S102: 5949.09001 | T102: 0 | U102: 4600.028 | V102: 0 | W102: 0 | X102: 0 | Y102: 0 | Z102: 0 | AA102: 0 | AB102: 0 | AC102: 87.87518605 | AD102: 0 | AE102: 0 | AF102: 0 | AG102: 886.2875716 | AH102: 2574.418683 | AI102: 5949.09001 | AJ102: 0 | AK102: 5574.190757 | AL102: 14097.69945 | AM102: 3387.892811 | AN102: 36.68176759 | AO102: 0 | AP102: 0 | AQ102: 3424.574578 | AR102: 2574.418683 | AS102: 1.33023218 | AT102: 3387.892811 | AU102: 43.42028716 | AV102: 0 | AW102: 0 | AX102: 3431.313098 | AY102: 5949.09001 | AZ102: 0.5767794893 | BA102: 3387.892811 | BB102: 80.10205475 | BC102: 0 | BD102: 0 | BE102: 3467.994865 | BF102: 8523.508693 | BG102: 95.78443168 | BH102: 0.4068740926 | BI102: 29.20494547 | BJ102: 67.48818694 | BK102: 0 | BL102: 63.23522207 | BM102: 159.9283545 | BN102: 3387.892811 | BO102: 0 | BP102: 80.10205475 | BQ102: 0 | BR102: 0 | BS102: 0 | BT102: 0 | BU102: 0 | BV102: -1692.675146 | BW102: 0 | BX102: 13123.53669 | BY102: 0 | BZ102: 87.87518605 | CA102: 886.2875716 | CB102: 1775.319719 | CC102: 14097.69945 | CD102: 0.2196271434 | CE102: 178.2218471 | CF102: 61.62033604 | CG102: 0 | CH102: 61.62033604 | CI102: 3.080963142 | CJ102: 0 | CK102: 3.080963142 | CM102: 0 | CO102: 0 | CP102: 0 | CQ102: 0 | CR102: 0 | CS102: 0 | CT102: 0 | CU102: 0 | CV102: 9999 | CW102: 9999
A103: Portland-RES-(Average)-(2035) | C103: 25 | D103: 6043 | E103: 0 | F103: 14178.60484 | G103: 6.46601 | H103: 1250.443293 | L103: 6486.238194 | M103: 0.1038118717 | N103: 0.1030626042 | O103: 0 | P103: 0 | Q103: 0 | R103: 2459.680944 | S103: 5683.948545 | T103: 0 | U103: 4395.01208 | V103: 0 | W103: 0 | X103: 0 | Y103: 0 | Z103: 0 | AA103: 0 | AB103: 0 | AC103: 87.87518605 | AD103: 0 | AE103: 0 | AF103: 0 | AG103: 1250.443293 | AH103: 2459.680944 | AI103: 5683.948545 | AJ103: 0 | AK103: 5733.330559 | AL103: 13876.96005 | AM103: 3387.892811 | AN103: 36.68176759 | AO103: 0 | AP103: 0 | AQ103: 3424.574578 | AR103: 2459.680944 | AS103: 1.392284063 | AT103: 3387.892811 | AU103: 43.42028716 | AV103: 0 | AW103: 0 | AX103: 3431.313098 | AY103: 5683.948545 | AZ103: 0.6036847572 | BA103: 3387.892811 | BB103: 80.10205475 | BC103: 0 | BD103: 0 | BE103: 3467.994865 | BF103: 8143.629489 | BG103: 91.47497281 | BH103: 0.4258537142 | BI103: 27.90332758 | BJ103: 64.48034596 | BK103: 0 | BL103: 65.04054972 | BM103: 157.4242233 | BN103: 3387.892811 | BO103: 0 | BP103: 80.10205475 | BQ103: 0 | BR103: 0 | BS103: 0 | BT103: 0 | BU103: 0 | BV103: -2304.919348 | BW103: 0 | BX103: 12538.64157 | BY103: 0 | BZ103: 87.87518605 | CA103: 1250.443293 | CB103: 1163.075517 | CC103: 13876.96005 | CD103: 0.2143134787 | CE103: 182.6631901 | CF103: 61.62033604 | CG103: 0 | CH103: 61.62033604 | CI103: 3.080963142 | CJ103: 0 | CK103: 3.080963142 | CM103: 0 | CO103: 0 | CP103: 0 | CQ103: 0 | CR103: 0 | CS103: 0 | CT103: 0 | CU103: 0 | CV103: 9999 | CW103: 9999
A104: Boise-RES-(Average)-(Fed Tax Credit) | C104: 25 | D104: 7723 | E104: 0 | F104: 21465 | G104: 8.26361 | H104: 1250.443293 | L104: 8292.357105 | M104: 0.6504464322 | N104: 0.6457518015 | O104: 0 | P104: 0 | Q104: 0 | R104: 3723.712738 | S104: 8604.933764 | T104: 0 | U104: 6653.611928 | V104: 0 | W104: 0 | X104: 0 | Y104: 0 | Z104: 0 | AA104: 0 | AB104: 0 | AC104: 112.3051567 | AD104: 0 | AE104: 0 | AF104: 0 | AG104: 1250.443293 | AH104: 3723.712738 | AI104: 8604.933764 | AJ104: 0 | AK104: 8016.360378 | AL104: 20345.00688 | AM104: 4351.021612 | AN104: 229.8342614 | AO104: 0 | AP104: 0 | AQ104: 4580.855873 | AR104: 3723.712738 | AS104: 1.230185086 | AT104: 4351.021612 | AU104: 272.0553093 | AV104: 0 | AW104: 0 | AX104: 4623.076921 | AY104: 8604.933764 | AZ104: 0.537258862 | BA104: 4351.021612 | BB104: 501.8895707 | BC104: 0 | BD104: 0 | BE104: 4852.911183 | BF104: 12328.6465 | BG104: 104.9440424 | BH104: 0.3936288693 | BI104: 33.04214924 | BJ104: 76.3553812 | BK104: 0 | BL104: 71.13270936 | BM104: 180.5302398 | BN104: 4351.021612 | BO104: 0 | BP104: 501.8895707 | BQ104: 0 | BR104: 0 | BS104: 0 | BT104: 0 | BU104: 0 | BV104: -2304.919348 | BW104: 0 | BX104: 18982.25843 | BY104: 0 | BZ104: 112.3051567 | CA104: 1250.443293 | CB104: 2547.991834 | CC104: 20345.00688 | CD104: 0.2142572622 | CE104: 196.5293201 | CF104: 78.77880084 | CG104: 0 | CH104: 78.77880084 | CI104: 3.938869625 | CJ104: 0 | CK104: 3.938869625 | CM104: 0 | CO104: 0 | CP104: 0 | CQ104: 0 | CR104: 0 | CS104: 0 | CT104: 0 | CU104: 0 | CV104: 9999 | CW104: 9999
A105: Portland-RES-(Average)-(2025) | C105: 25 | D105: 6043 | E105: 0 | F105: 15672.09114 | G105: 6.46601 | H105: 1250.443293 | L105: 6486.238194 | M105: 0.1038118717 | N105: 0.1030626042 | O105: 0 | P105: 0 | Q105: 0 | R105: 2718.768479 | S105: 6282.660433 | T105: 0 | U105: 4857.955395 | V105: 0 | W105: 0 | X105: 0 | Y105: 0 | Z105: 0 | AA105: 0 | AB105: 0 | AC105: 87.87518605 | AD105: 0 | AE105: 0 | AF105: 0 | AG105: 1250.443293 | AH105: 2718.768479 | AI105: 6282.660433 | AJ105: 0 | AK105: 6196.273874 | AL105: 15197.70279 | AM105: 3387.892811 | AN105: 36.68176759 | AO105: 0 | AP105: 0 | AQ105: 3424.574578 | AR105: 2718.768479 | AS105: 1.259605076 | AT105: 3387.892811 | AU105: 43.42028716 | AV105: 0 | AW105: 0 | AX105: 3431.313098 | AY105: 6282.660433 | AZ105: 0.5461560646 | BA105: 3387.892811 | BB105: 80.10205475 | BC105: 0 | BD105: 0 | BE105: 3467.994865 | BF105: 9001.428913 | BG105: 101.206096 | BH105: 0.385271594 | BI105: 30.84249105 | BJ105: 71.2723057 | BK105: 0 | BL105: 70.29231174 | BM105: 172.4071085 | BN105: 3387.892811 | BO105: 0 | BP105: 80.10205475 | BQ105: 0 | BR105: 0 | BS105: 0 | BT105: 0 | BU105: 0 | BV105: -2304.919348 | BW105: 0 | BX105: 13859.38431 | BY105: 0 | BZ105: 87.87518605 | CA105: 1250.443293 | CB105: 1163.075517 | CC105: 15197.70279 | CD105: 0.1981414464 | CE105: 197.6460753 | CF105: 61.62033604 | CG105: 0 | CH105: 61.62033604 | CI105: 3.080963142 | CJ105: 0 | CK105: 3.080963142 | CM105: 0 | CO105: 0 | CP105: 0 | CQ105: 0 | CR105: 0 | CS105: 0 | CT105: 0 | CU105: 0 | CV105: 9999 | CW105: 9999
A106: Boise-RES-(Average)-(2014) | C106: 25 | D106: 7723 | E106: 0 | F106: 23850 | G106: 8.26361 | H106: 1250.443293 | L106: 8292.357105 | M106: 0.6504464322 | N106: 0.6457518015 | O106: 0 | P106: 0 | Q106: 0 | R106: 4137.458598 | S106: 9561.037515 | T106: 0 | U106: 7392.902142 | V106: 0 | W106: 0 | X106: 0 | Y106: 0 | Z106: 0 | AA106: 0 | AB106: 0 | AC106: 112.3051567 | AD106: 0 | AE106: 0 | AF106: 0 | AG106: 1250.443293 | AH106: 4137.458598 | AI106: 9561.037515 | AJ106: 0 | AK106: 8755.650592 | AL106: 22454.14671 | AM106: 4351.021612 | AN106: 229.8342614 | AO106: 0 | AP106: 0 | AQ106: 4580.855873 | AR106: 4137.458598 | AS106: 1.107166577 | AT106: 4351.021612 | AU106: 272.0553093 | AV106: 0 | AW106: 0 | AX106: 4623.076921 | AY106: 9561.037515 | AZ106: 0.4835329758 | BA106: 4351.021612 | BB106: 501.8895707 | BC106: 0 | BD106: 0 | BE106: 4852.911183 | BF106: 13698.49611 | BG106: 117.0993236 | BH106: 0.3542659824 | BI106: 36.71349915 | BJ106: 84.83931244 | BK106: 0 | BL106: 77.69275824 | BM106: 199.2455698 | BN106: 4351.021612 | BO106: 0 | BP106: 501.8895707 | BQ106: 0 | BR106: 0 | BS106: 0 | BT106: 0 | BU106: 0 | BV106: -2304.919348 | BW106: 0 | BX106: 21091.39826 | BY106: 0 | BZ106: 112.3051567 | CA106: 1250.443293 | CB106: 2547.991834 | CC106: 22454.14671 | CD106: 0.1960054217 | CE106: 215.2446501 | CF106: 78.77880084 | CG106: 0 | CH106: 78.77880084 | CI106: 3.938869625 | CJ106: 0 | CK106: 3.938869625 | CM106: 0 | CO106: 0 | CP106: 0 | CQ106: 0 | CR106: 0 | CS106: 0 | CT106: 0 | CU106: 0 | CV106: 9999 | CW106: 9999
A107: Portland-COM-(Average)-(Fed Tax Credit) | C107: 25 | D107: 6043 | E107: 0 | F107: 17649 | G107: 6.46601 | H107: 886.2875716 | L107: 6486.238194 | M107: 0.1038118717 | N107: 0.1030626042 | O107: 0 | P107: 0 | Q107: 0 | R107: 3061.719362 | S107: 7075.167761 | T107: 0 | U107: 5470.747585 | V107: 0 | W107: 0 | X107: 0 | Y107: 0 | Z107: 0 | AA107: 0 | AB107: 0 | AC107: 87.87518605 | AD107: 0 | AE107: 0 | AF107: 0 | AG107: 886.2875716 | AH107: 3061.719362 | AI107: 7075.167761 | AJ107: 0 | AK107: 6444.910343 | AL107: 16581.79747 | AM107: 3387.892811 | AN107: 36.68176759 | AO107: 0 | AP107: 0 | AQ107: 3424.574578 | AR107: 3061.719362 | AS107: 1.118513545 | AT107: 3387.892811 | AU107: 43.42028716 | AV107: 0 | AW107: 0 | AX107: 3431.313098 | AY107: 7075.167761 | AZ107: 0.4849797508 | BA107: 3387.892811 | BB107: 80.10205475 | BC107: 0 | BD107: 0 | BE107: 3467.994865 | BF107: 10136.88712 | BG107: 114.0870603 | BH107: 0.3421163542 | BI107: 34.73302443 | BJ107: 80.26273661 | BK107: 0 | BL107: 73.1129153 | BM107: 188.1086763 | BN107: 3387.892811 | BO107: 0 | BP107: 80.10205475 | BQ107: 0 | BR107: 0 | BS107: 0 | BT107: 0 | BU107: 0 | BV107: -1692.675146 | BW107: 0 | BX107: 15607.63471 | BY107: 0 | BZ107: 87.87518605 | CA107: 886.2875716 | CB107: 1775.319719 | CC107: 16581.79747 | CD107: 0.1897726374 | CE107: 206.402169 | CF107: 61.62033604 | CG107: 0 | CH107: 61.62033604 | CI107: 3.080963142 | CJ107: 0 | CK107: 3.080963142 | CM107: 0 | CO107: 0 | CP107: 0 | CQ107: 0 | CR107: 0 | CS107: 0 | CT107: 0 | CU107: 0 | CV107: 9999 | CW107: 9999
A108: Portland-RES-(Low Quartile)-(Fed Tax Credit) | C108: 25 | D108: 6043 | E108: 0 | F108: 17649 | G108: 6.46601 | H108: 1250.443293 | L108: 6486.238194 | M108: 0.1038118717 | N108: 0.1030626042 | O108: 0 | P108: 0 | Q108: 0 | R108: 3061.719362 | S108: 7075.167761 | T108: 0 | U108: 5470.747585 | V108: 0 | W108: 0 | X108: 0 | Y108: 0 | Z108: 0 | AA108: 0 | AB108: 0 | AC108: 87.87518605 | AD108: 0 | AE108: 0 | AF108: 0 | AG108: 1250.443293 | AH108: 3061.719362 | AI108: 7075.167761 | AJ108: 0 | AK108: 6809.066065 | AL108: 16945.95319 | AM108: 3387.892811 | AN108: 36.68176759 | AO108: 0 | AP108: 0 | AQ108: 3424.574578 | AR108: 3061.719362 | AS108: 1.118513545 | AT108: 3387.892811 | AU108: 43.42028716 | AV108: 0 | AW108: 0 | AX108: 3431.313098 | AY108: 7075.167761 | AZ108: 0.4849797508 | BA108: 3387.892811 | BB108: 80.10205475 | BC108: 0 | BD108: 0 | BE108: 3467.994865 | BF108: 10136.88712 | BG108: 114.0870603 | BH108: 0.3421163542 | BI108: 34.73302443 | BJ108: 80.26273661 | BK108: 0 | BL108: 77.24400247 | BM108: 192.2397635 | BN108: 3387.892811 | BO108: 0 | BP108: 80.10205475 | BQ108: 0 | BR108: 0 | BS108: 0 | BT108: 0 | BU108: 0 | BV108: -2304.919348 | BW108: 0 | BX108: 15607.63471 | BY108: 0 | BZ108: 87.87518605 | CA108: 1250.443293 | CB108: 1163.075517 | CC108: 16945.95319 | CD108: 0.180147412 | CE108: 217.4787303 | CF108: 61.62033604 | CG108: 0 | CH108: 61.62033604 | CI108: 3.080963142 | CJ108: 0 | CK108: 3.080963142 | CM108: 0 | CO108: 0 | CP108: 0 | CQ108: 0 | CR108: 0 | CS108: 0 | CT108: 0 | CU108: 0 | CV108: 9999 | CW108: 9999
A109: Portland-COM-(Average)-(2014) | C109: 25 | D109: 6043 | E109: 0 | F109: 19610 | G109: 6.46601 | H109: 886.2875716 | L109: 6486.238194 | M109: 0.1038118717 | N109: 0.1030626042 | O109: 0 | P109: 0 | Q109: 0 | R109: 3401.910403 | S109: 7861.297513 | T109: 0 | U109: 6078.608428 | V109: 0 | W109: 0 | X109: 0 | Y109: 0 | Z109: 0 | AA109: 0 | AB109: 0 | AC109: 87.87518605 | AD109: 0 | AE109: 0 | AF109: 0 | AG109: 886.2875716 | AH109: 3401.910403 | AI109: 7861.297513 | AJ109: 0 | AK109: 7052.771186 | AL109: 18315.9791 | AM109: 3387.892811 | AN109: 36.68176759 | AO109: 0 | AP109: 0 | AQ109: 3424.574578 | AR109: 3401.910403 | AS109: 1.006662191 | AT109: 3387.892811 | AU109: 43.42028716 | AV109: 0 | AW109: 0 | AX109: 3431.313098 | AY109: 7861.297513 | AZ109: 0.4364817757 | BA109: 3387.892811 | BB109: 80.10205475 | BC109: 0 | BD109: 0 | BE109: 3467.994865 | BF109: 11263.20792 | BG109: 126.8643671 | BH109: 0.3079047187 | BI109: 38.59224937 | BJ109: 89.18081845 | BK109: 0 | BL109: 80.00866341 | BM109: 207.7817312 | BN109: 3387.892811 | BO109: 0 | BP109: 80.10205475 | BQ109: 0 | BR109: 0 | BS109: 0 | BT109: 0 | BU109: 0 | BV109: -1692.675146 | BW109: 0 | BX109: 17341.81634 | BY109: 0 | BZ109: 87.87518605 | CA109: 886.2875716 | CB109: 1775.319719 | CC109: 18315.9791 | CD109: 0.1733247435 | CE109: 226.0752239 | CF109: 61.62033604 | CG109: 0 | CH109: 61.62033604 | CI109: 3.080963142 | CJ109: 0 | CK109: 3.080963142 | CM109: 0 | CO109: 0 | CP109: 0 | CQ109: 0 | CR109: 0 | CS109: 0 | CT109: 0 | CU109: 0 | CV109: 9999 | CW109: 9999
A110: Portland-RES-(Low Quartile)-(2014) | C110: 25 | D110: 6043 | E110: 0 | F110: 19610 | G110: 6.46601 | H110: 1250.443293 | L110: 6486.238194 | M110: 0.1038118717 | N110: 0.1030626042 | O110: 0 | P110: 0 | Q110: 0 | R110: 3401.910403 | S110: 7861.297513 | T110: 0 | U110: 6078.608428 | V110: 0 | W110: 0 | X110: 0 | Y110: 0 | Z110: 0 | AA110: 0 | AB110: 0 | AC110: 87.87518605 | AD110: 0 | AE110: 0 | AF110: 0 | AG110: 1250.443293 | AH110: 3401.910403 | AI110: 7861.297513 | AJ110: 0 | AK110: 7416.926907 | AL110: 18680.13482 | AM110: 3387.892811 | AN110: 36.68176759 | AO110: 0 | AP110: 0 | AQ110: 3424.574578 | AR110: 3401.910403 | AS110: 1.006662191 | AT110: 3387.892811 | AU110: 43.42028716 | AV110: 0 | AW110: 0 | AX110: 3431.313098 | AY110: 7861.297513 | AZ110: 0.4364817757 | BA110: 3387.892811 | BB110: 80.10205475 | BC110: 0 | BD110: 0 | BE110: 3467.994865 | BF110: 11263.20792 | BG110: 126.8643671 | BH110: 0.3079047187 | BI110: 38.59224937 | BJ110: 89.18081845 | BK110: 0 | BL110: 84.13975058 | BM110: 211.9128184 | BN110: 3387.892811 | BO110: 0 | BP110: 80.10205475 | BQ110: 0 | BR110: 0 | BS110: 0 | BT110: 0 | BU110: 0 | BV110: -2304.919348 | BW110: 0 | BX110: 17341.81634 | BY110: 0 | BZ110: 87.87518605 | CA110: 1250.443293 | CB110: 1163.075517 | CC110: 18680.13482 | CD110: 0.1652602294 | CE110: 237.1517852 | CF110: 61.62033604 | CG110: 0 | CH110: 61.62033604 | CI110: 3.080963142 | CJ110: 0 | CK110: 3.080963142 | CM110: 0 | CO110: 0 | CP110: 0 | CQ110: 0 | CR110: 0 | CS110: 0 | CT110: 0 | CU110: 0 | CV110: 9999 | CW110: 9999
A111: Portland-RES-(Average)-(Fed Tax Credit) | C111: 25 | D111: 6043 | E111: 0 | F111: 21465 | G111: 6.46601 | H111: 1250.443293 | L111: 6486.238194 | M111: 0.1038118717 | N111: 0.1030626042 | O111: 0 | P111: 0 | Q111: 0 | R111: 3723.712738 | S111: 8604.933764 | T111: 0 | U111: 6653.611928 | V111: 0 | W111: 0 | X111: 0 | Y111: 0 | Z111: 0 | AA111: 0 | AB111: 0 | AC111: 87.87518605 | AD111: 0 | AE111: 0 | AF111: 0 | AG111: 1250.443293 | AH111: 3723.712738 | AI111: 8604.933764 | AJ111: 0 | AK111: 7991.930407 | AL111: 20320.57691 | AM111: 3387.892811 | AN111: 36.68176759 | AO111: 0 | AP111: 0 | AQ111: 3424.574578 | AR111: 3723.712738 | AS111: 0.9196666927 | AT111: 3387.892811 | AU111: 43.42028716 | AV111: 0 | AW111: 0 | AX111: 3431.313098 | AY111: 8604.933764 | AZ111: 0.3987611284 | BA111: 3387.892811 | BB111: 80.10205475 | BC111: 0 | BD111: 0 | BE111: 3467.994865 | BF111: 12328.6465 | BG111: 138.9510086 | BH111: 0.281295669 | BI111: 42.24286756 | BJ111: 97.61684182 | BK111: 0 | BL111: 90.66275555 | BM111: 230.5224649 | BN111: 3387.892811 | BO111: 0 | BP111: 80.10205475 | BQ111: 0 | BR111: 0 | BS111: 0 | BT111: 0 | BU111: 0 | BV111: -2304.919348 | BW111: 0 | BX111: 18982.25843 | BY111: 0 | BZ111: 87.87518605 | CA111: 1250.443293 | CB111: 1163.075517 | CC111: 20320.57691 | CD111: 0.153278179 | CE111: 255.7614318 | CF111: 61.62033604 | CG111: 0 | CH111: 61.62033604 | CI111: 3.080963142 | CJ111: 0 | CK111: 3.080963142 | CM111: 0 | CO111: 0 | CP111: 0 | CQ111: 0 | CR111: 0 | CS111: 0 | CT111: 0 | CU111: 0 | CV111: 9999 | CW111: 9999
A112: Portland-RES-(Average)-(2014) | C112: 25 | D112: 6043 | E112: 0 | F112: 23850 | G112: 6.46601 | H112: 1250.443293 | L112: 6486.238194 | M112: 0.1038118717 | N112: 0.1030626042 | O112: 0 | P112: 0 | Q112: 0 | R112: 4137.458598 | S112: 9561.037515 | T112: 0 | U112: 7392.902142 | V112: 0 | W112: 0 | X112: 0 | Y112: 0 | Z112: 0 | AA112: 0 | AB112: 0 | AC112: 87.87518605 | AD112: 0 | AE112: 0 | AF112: 0 | AG112: 1250.443293 | AH112: 4137.458598 | AI112: 9561.037515 | AJ112: 0 | AK112: 8731.220622 | AL112: 22429.71673 | AM112: 3387.892811 | AN112: 36.68176759 | AO112: 0 | AP112: 0 | AQ112: 3424.574578 | AR112: 4137.458598 | AS112: 0.8277000234 | AT112: 3387.892811 | AU112: 43.42028716 | AV112: 0 | AW112: 0 | AX112: 3431.313098 | AY112: 9561.037515 | AZ112: 0.3588850156 | BA112: 3387.892811 | BB112: 80.10205475 | BC112: 0 | BD112: 0 | BE112: 3467.994865 | BF112: 13698.49611 | BG112: 154.4909764 | BH112: 0.2531661021 | BI112: 46.93651951 | BJ112: 108.4631576 | BK112: 0 | BL112: 99.04947623 | BM112: 254.4491533 | BN112: 3387.892811 | BO112: 0 | BP112: 80.10205475 | BQ112: 0 | BR112: 0 | BS112: 0 | BT112: 0 | BU112: 0 | BV112: -2304.919348 | BW112: 0 | BX112: 21091.39826 | BY112: 0 | BZ112: 87.87518605 | CA112: 1250.443293 | CB112: 1163.075517 | CC112: 22429.71673 | CD112: 0.1402080408 | CE112: 279.6881201 | CF112: 61.62033604 | CG112: 0 | CH112: 61.62033604 | CI112: 3.080963142 | CJ112: 0 | CK112: 3.080963142 | CM112: 0 | CO112: 0 | CP112: 0 | CQ112: 0 | CR112: 0 | CS112: 0 | CT112: 0 | CU112: 0 | CV112: 9999 | CW112: 9999
A115: Supply Curve Results; Categories sorted by TRC Net Levelized Cost
A116: Totals for Categories with Benefits Exceeding Costs. Levelized cost is TRC Net Levelized Cost (Net of Benefits) | N116: Savings Allocation by Cost Bin and Month for Segments 1 | AA116: Savings Allocation by Cost Bin and Month for Segments 2
B117: Totals Basis | C117: Busbar Electric Savings in kWh | D117: First Cost | E117: Admin Cost | F117: First Year Program Cost | G117: PV Cost | H117: PV Benefits | I117: Unit Program Cost: First Year Program Cost in $/average annual kW saved | J117: Utility System Net Levelized Cost (Net of T&D Capacity Benefits, Act Credit & Risk-Mitigation) in mills/kWh | K117: TRC Net Levelized Cost (Net of All Benefits) in mills/kWh | L117: TRC B/C Ratio | M117: Net Electric & Gas System CO2 Avoided (Lifetime Tons) | N117: Jan | O117: Feb | P117: Mar | Q117: Apr | R117: May | S117: Jun | T117: Jul | U117: Aug | V117: Sep | W117: Oct | X117: Nov | Y117: Dec | AA117: Jan | AB117: Feb | AC117: Mar | AD117: Apr | AE117: May | AF117: Jun | AG117: Jul | AH117: Aug | AI117: Sep | AJ117: Oct | AK117: Nov | AL117: Dec
B118: Measures with B/C > 1.00 | C118: 0 | D118: 0 | E118: 0 | F118: 0 | G118: 0 | H118: 0 | I118: 0 | J118: 0 | K118: 0 | L118: 0 | M118: 0 | N118: 0 | O118: 0 | P118: 0 | Q118: 0 | R118: 0 | S118: 0 | T118: 0 | U118: 0 | V118: 0 | W118: 0 | X118: 0 | Y118: 0 | AA118: 0 | AB118: 0 | AC118: 0 | AD118: 0 | AE118: 0 | AF118: 0 | AG118: 0 | AH118: 0 | AI118: 0 | AJ118: 0 | AK118: 0 | AL118: 0
B119: Categories with B/C > 1.00 | C119: 0 | D119: 0 | E119: 0 | F119: 0 | G119: 0 | H119: 0 | I119: 0 | J119: 0 | K119: 0 | L119: 0 | M119: 0 | N119: 0 | O119: 0 | P119: 0 | Q119: 0 | R119: 0 | S119: 0 | T119: 0 | U119: 0 | V119: 0 | W119: 0 | X119: 0 | Y119: 0 | AA119: 0 | AB119: 0 | AC119: 0 | AD119: 0 | AE119: 0 | AF119: 0 | AG119: 0 | AH119: 0 | AI119: 0 | AJ119: 0 | AK119: 0 | AL119: 0
B120: Supply Curve Results: By TRC Net Levelized Cost - Net of Benefits
B121: Block 1: <= 0 mills/kWh | C121: 0 | D121: 0 | E121: 0 | F121: 0 | G121: 0 | H121: 0 | I121: 0 | J121: 0 | K121: 0 | L121: 0 | M121: 0 | N121: 0 | O121: 0 | P121: 0 | Q121: 0 | R121: 0 | S121: 0 | T121: 0 | U121: 0 | V121: 0 | W121: 0 | X121: 0 | Y121: 0 | AA121: 0 | AB121: 0 | AC121: 0 | AD121: 0 | AE121: 0 | AF121: 0 | AG121: 0 | AH121: 0 | AI121: 0 | AJ121: 0 | AK121: 0 | AL121: 0
B122: Block 2: <= 10 mills/kWh | C122: 0 | D122: 0 | E122: 0 | F122: 0 | G122: 0 | H122: 0 | I122: 0 | J122: 0 | K122: 0 | L122: 0 | M122: 0 | N122: 0 | O122: 0 | P122: 0 | Q122: 0 | R122: 0 | S122: 0 | T122: 0 | U122: 0 | V122: 0 | W122: 0 | X122: 0 | Y122: 0 | AA122: 0 | AB122: 0 | AC122: 0 | AD122: 0 | AE122: 0 | AF122: 0 | AG122: 0 | AH122: 0 | AI122: 0 | AJ122: 0 | AK122: 0 | AL122: 0
B123: Block 3: 10-20 mills/kWh | C123: 0 | D123: 0 | E123: 0 | F123: 0 | G123: 0 | H123: 0 | I123: 0 | J123: 0 | K123: 0 | L123: 0 | M123: 0 | N123: 0 | O123: 0 | P123: 0 | Q123: 0 | R123: 0 | S123: 0 | T123: 0 | U123: 0 | V123: 0 | W123: 0 | X123: 0 | Y123: 0 | AA123: 0 | AB123: 0 | AC123: 0 | AD123: 0 | AE123: 0 | AF123: 0 | AG123: 0 | AH123: 0 | AI123: 0 | AJ123: 0 | AK123: 0 | AL123: 0
B124: Block 4: 20-30 mills/kWh | C124: 0 | D124: 0 | E124: 0 | F124: 0 | G124: 0 | H124: 0 | I124: 0 | J124: 0 | K124: 0 | L124: 0 | M124: 0 | N124: 0 | O124: 0 | P124: 0 | Q124: 0 | R124: 0 | S124: 0 | T124: 0 | U124: 0 | V124: 0 | W124: 0 | X124: 0 | Y124: 0 | AA124: 0 | AB124: 0 | AC124: 0 | AD124: 0 | AE124: 0 | AF124: 0 | AG124: 0 | AH124: 0 | AI124: 0 | AJ124: 0 | AK124: 0 | AL124: 0
B125: Block 5: 30-40 mills/kWh | C125: 0 | D125: 0 | E125: 0 | F125: 0 | G125: 0 | H125: 0 | I125: 0 | J125: 0 | K125: 0 | L125: 0 | M125: 0 | N125: 0 | O125: 0 | P125: 0 | Q125: 0 | R125: 0 | S125: 0 | T125: 0 | U125: 0 | V125: 0 | W125: 0 | X125: 0 | Y125: 0 | AA125: 0 | AB125: 0 | AC125: 0 | AD125: 0 | AE125: 0 | AF125: 0 | AG125: 0 | AH125: 0 | AI125: 0 | AJ125: 0 | AK125: 0 | AL125: 0
B126: Block 6: 40-50 mills/kWh | C126: 0 | D126: 0 | E126: 0 | F126: 0 | G126: 0 | H126: 0 | I126: 0 | J126: 0 | K126: 0 | L126: 0 | M126: 0 | N126: 0 | O126: 0 | P126: 0 | Q126: 0 | R126: 0 | S126: 0 | T126: 0 | U126: 0 | V126: 0 | W126: 0 | X126: 0 | Y126: 0 | AA126: 0 | AB126: 0 | AC126: 0 | AD126: 0 | AE126: 0 | AF126: 0 | AG126: 0 | AH126: 0 | AI126: 0 | AJ126: 0 | AK126: 0 | AL126: 0
B127: Block 7: 50-60 mills/kWh | C127: 0 | D127: 0 | E127: 0 | F127: 0 | G127: 0 | H127: 0 | I127: 0 | J127: 0 | K127: 0 | L127: 0 | M127: 0 | N127: 0 | O127: 0 | P127: 0 | Q127: 0 | R127: 0 | S127: 0 | T127: 0 | U127: 0 | V127: 0 | W127: 0 | X127: 0 | Y127: 0 | AA127: 0 | AB127: 0 | AC127: 0 | AD127: 0 | AE127: 0 | AF127: 0 | AG127: 0 | AH127: 0 | AI127: 0 | AJ127: 0 | AK127: 0 | AL127: 0
B128: Block 8: 60-70 mills/kWh | C128: 0 | D128: 0 | E128: 0 | F128: 0 | G128: 0 | H128: 0 | I128: 0 | J128: 0 | K128: 0 | L128: 0 | M128: 0 | N128: 0 | O128: 0 | P128: 0 | Q128: 0 | R128: 0 | S128: 0 | T128: 0 | U128: 0 | V128: 0 | W128: 0 | X128: 0 | Y128: 0 | AA128: 0 | AB128: 0 | AC128: 0 | AD128: 0 | AE128: 0 | AF128: 0 | AG128: 0 | AH128: 0 | AI128: 0 | AJ128: 0 | AK128: 0 | AL128: 0
B129: Block 9: 70-80 mills/kWh | C129: 0 | D129: 0 | E129: 0 | F129: 0 | G129: 0 | H129: 0 | I129: 0 | J129: 0 | K129: 0 | L129: 0 | M129: 0 | N129: 0 | O129: 0 | P129: 0 | Q129: 0 | R129: 0 | S129: 0 | T129: 0 | U129: 0 | V129: 0 | W129: 0 | X129: 0 | Y129: 0 | AA129: 0 | AB129: 0 | AC129: 0 | AD129: 0 | AE129: 0 | AF129: 0 | AG129: 0 | AH129: 0 | AI129: 0 | AJ129: 0 | AK129: 0 | AL129: 0
B130: Block 10: 80-90 mills/kWh | C130: 0 | D130: 0 | E130: 0 | F130: 0 | G130: 0 | H130: 0 | I130: 0 | J130: 0 | K130: 0 | L130: 0 | M130: 0 | N130: 0 | O130: 0 | P130: 0 | Q130: 0 | R130: 0 | S130: 0 | T130: 0 | U130: 0 | V130: 0 | W130: 0 | X130: 0 | Y130: 0 | AA130: 0 | AB130: 0 | AC130: 0 | AD130: 0 | AE130: 0 | AF130: 0 | AG130: 0 | AH130: 0 | AI130: 0 | AJ130: 0 | AK130: 0 | AL130: 0
B131: Block 11: 90-100 mills/kWh | C131: 0 | D131: 0 | E131: 0 | F131: 0 | G131: 0 | H131: 0 | I131: 0 | J131: 0 | K131: 0 | L131: 0 | M131: 0 | N131: 0 | O131: 0 | P131: 0 | Q131: 0 | R131: 0 | S131: 0 | T131: 0 | U131: 0 | V131: 0 | W131: 0 | X131: 0 | Y131: 0 | AA131: 0 | AB131: 0 | AC131: 0 | AD131: 0 | AE131: 0 | AF131: 0 | AG131: 0 | AH131: 0 | AI131: 0 | AJ131: 0 | AK131: 0 | AL131: 0
B132: Block 12: 100-110 mills/kWh | C132: 8292.357105 | D132: 10492.16758 | E132: 0 | F132: 10492.16758 | G132: 10277.18749 | H132: 3160.236036 | I132: 11083.86757 | J132: 49.02041006 | K132: 101.7603946 | L132: 0.4054274748 | M132: 78.77880084 | N132: 291.2040799 | O132: 388.3113121 | P132: 587.8037221 | Q132: 664.7249034 | R132: 769.6501811 | S132: 824.1422377 | T132: 816.6290694 | U132: 830.1597578 | V132: 629.9162472 | W132: 558.8493278 | X132: 319.1818217 | Y132: 273.1383463 | AA132: 72.51274883 | AB132: 87.81509507 | AC132: 90.88661119 | AD132: 131.2700171 | AE132: 147.5765514 | AF132: 123.3285376 | AG132: 186.9084555 | AH132: 116.3675988 | AI132: 148.9811204 | AJ132: 81.88072299 | AK132: 83.29488423 | AL132: 67.82375538
B133: Block 13: 110-120 mills/kWh | C133: 0 | D133: 0 | E133: 0 | F133: 0 | G133: 0 | H133: 0 | I133: 0 | J133: 0 | K133: 0 | L133: 0 | M133: 0 | N133: 0 | O133: 0 | P133: 0 | Q133: 0 | R133: 0 | S133: 0 | T133: 0 | U133: 0 | V133: 0 | W133: 0 | X133: 0 | Y133: 0 | AA133: 0 | AB133: 0 | AC133: 0 | AD133: 0 | AE133: 0 | AF133: 0 | AG133: 0 | AH133: 0 | AI133: 0 | AJ133: 0 | AK133: 0 | AL133: 0
B134: Block 14: 120-130 mills/kWh | C134: 16584.71421 | D134: 26241.9416 | E134: 0 | F134: 26241.9416 | G134: 25203.86224 | H134: 6320.472073 | I134: 13860.9207 | J134: 62.41824748 | K134: 122.3888725 | L134: 0.3395642581 | M134: 157.5576017 | N134: 582.4081598 | O134: 776.6226243 | P134: 1175.607444 | Q134: 1329.449807 | R134: 1539.300362 | S134: 1648.284475 | T134: 1633.258139 | U134: 1660.319516 | V134: 1259.832494 | W134: 1117.698656 | X134: 638.3636434 | Y134: 546.2766926 | AA134: 145.0254977 | AB134: 175.6301901 | AC134: 181.7732224 | AD134: 262.5400343 | AE134: 295.1531027 | AF134: 246.6570753 | AG134: 373.8169109 | AH134: 232.7351976 | AI134: 297.9622408 | AJ134: 163.761446 | AK134: 166.5897685 | AL134: 135.6475108
B135: Block 15: 130-140 mills/kWh | C135: 23070.9524 | D135: 39510.77242 | E135: 0 | F135: 39510.77242 | G135: 38276.27696 | H135: 7483.54759 | I135: 15002.17071 | J135: 68.92077777 | K135: 136.7685878 | L135: 0.2995444943 | M135: 219.1779377 | N135: 793.4577589 | O135: 1034.832975 | P135: 1638.722044 | Q135: 1826.876088 | R135: 2186.699192 | S135: 2339.303439 | T135: 2366.304666 | U135: 2339.4262 | V135: 1762.951184 | W135: 1519.610542 | X135: 836.6779442 | Y135: 698.5605757 | AA135: 194.4212468 | AB135: 230.5722221 | AC135: 249.2051301 | AD135: 379.990585 | AE135: 445.8340592 | AF135: 346.3439291 | AG135: 530.9652866 | AH135: 321.5291033 | AI135: 408.2811727 | AJ135: 233.8333721 | AK135: 215.257357 | AL135: 171.2963309
B136: Block 16: 140-150 mills/kWh | C136: 0 | D136: 0 | E136: 0 | F136: 0 | G136: 0 | H136: 0 | I136: 0 | J136: 0 | K136: 0 | L136: 0 | M136: 0 | N136: 0 | O136: 0 | P136: 0 | Q136: 0 | R136: 0 | S136: 0 | T136: 0 | U136: 0 | V136: 0 | W136: 0 | X136: 0 | Y136: 0 | AA136: 0 | AB136: 0 | AC136: 0 | AD136: 0 | AE136: 0 | AF136: 0 | AG136: 0 | AH136: 0 | AI136: 0 | AJ136: 0 | AK136: 0 | AL136: 0
B137: Block 17: 150-160 mills/kWh | C137: 23070.9524 | D137: 46207.03274 | E137: 0 | F137: 46207.03274 | G137: 44198.01672 | H137: 7483.54759 | I137: 17544.72896 | J137: 81.18729935 | K137: 155.6551933 | L137: 0.2641745992 | M137: 219.1779377 | N137: 793.4577589 | O137: 1034.832975 | P137: 1638.722044 | Q137: 1826.876088 | R137: 2186.699192 | S137: 2339.303439 | T137: 2366.304666 | U137: 2339.4262 | V137: 1762.951184 | W137: 1519.610542 | X137: 836.6779442 | Y137: 698.5605757 | AA137: 194.4212468 | AB137: 230.5722221 | AC137: 249.2051301 | AD137: 379.990585 | AE137: 445.8340592 | AF137: 346.3439291 | AG137: 530.9652866 | AH137: 321.5291033 | AI137: 408.2811727 | AJ137: 233.8333721 | AK137: 215.257357 | AL137: 171.2963309
B138: Block 18: 160-170 mills/kWh | C138: 14778.5953 | D138: 31005 | E138: 0 | F138: 31005 | G138: 29755.72894 | H138: 4323.311553 | I138: 18378.18781 | J138: 85.7674988 | K138: 165.1580956 | L138: 0.2463992715 | M138: 140.3991369 | N138: 502.253679 | O138: 646.5216632 | P138: 1050.918322 | Q138: 1162.151185 | R138: 1417.04901 | S138: 1515.161201 | T138: 1549.675597 | U138: 1509.266442 | V138: 1133.034937 | W138: 960.7612141 | X138: 517.4961225 | Y138: 425.4222294 | AA138: 121.908498 | AB138: 142.757127 | AC138: 158.3185189 | AD138: 248.7205679 | AE138: 298.2575078 | AF138: 223.0153915 | AG138: 344.0568312 | AH138: 205.1615045 | AI138: 259.3000523 | AJ138: 151.9526491 | AK138: 131.9624727 | AL138: 103.4725755
B139: Block 19: 170-180 mills/kWh | C139: 14778.5953 | D139: 34450 | E139: 0 | F139: 34450 | G139: 32438.10852 | H139: 4935.555755 | I139: 20420.20868 | J139: 95.61918776 | K139: 175.465177 | L139: 0.2323180638 | M139: 140.3991369 | N139: 502.253679 | O139: 646.5216632 | P139: 1050.918322 | Q139: 1162.151185 | R139: 1417.04901 | S139: 1515.161201 | T139: 1549.675597 | U139: 1509.266442 | V139: 1133.034937 | W139: 960.7612141 | X139: 517.4961225 | Y139: 425.4222294 | AA139: 121.908498 | AB139: 142.757127 | AC139: 158.3185189 | AD139: 248.7205679 | AE139: 298.2575078 | AF139: 223.0153915 | AG139: 344.0568312 | AH139: 205.1615045 | AI139: 259.3000523 | AJ139: 151.9526491 | AK139: 131.9624727 | AL139: 103.4725755
B140: Block 20: 180-190 mills/kWh | C140: 14778.5953 | D140: 33788.60484 | E140: 0 | F140: 33788.60484 | G140: 32581.52484 | H140: 3711.067352 | I140: 20028.16725 | J140: 93.72779172 | K140: 182.2758936 | L140: 0.2236689156 | M140: 140.3991369 | N140: 502.253679 | O140: 646.5216632 | P140: 1050.918322 | Q140: 1162.151185 | R140: 1417.04901 | S140: 1515.161201 | T140: 1549.675597 | U140: 1509.266442 | V140: 1133.034937 | W140: 960.7612141 | X140: 517.4961225 | Y140: 425.4222294 | AA140: 121.908498 | AB140: 142.757127 | AC140: 158.3185189 | AD140: 248.7205679 | AE140: 298.2575078 | AF140: 223.0153915 | AG140: 344.0568312 | AH140: 205.1615045 | AI140: 259.3000523 | AJ140: 151.9526491 | AK140: 131.9624727 | AL140: 103.4725755
B141: Block 21: 190-200 mills/kWh | C141: 14778.5953 | D141: 37137.09114 | E141: 0 | F141: 37137.09114 | G141: 35542.70967 | H141: 3711.067352 | I141: 22012.9797 | J141: 103.3034798 | K141: 197.0194573 | L141: 0.2071841258 | M141: 140.3991369 | N141: 502.253679 | O141: 646.5216632 | P141: 1050.918322 | Q141: 1162.151185 | R141: 1417.04901 | S141: 1515.161201 | T141: 1549.675597 | U141: 1509.266442 | V141: 1133.034937 | W141: 960.7612141 | X141: 517.4961225 | Y141: 425.4222294 | AA141: 121.908498 | AB141: 142.757127 | AC141: 158.3185189 | AD141: 248.7205679 | AE141: 298.2575078 | AF141: 223.0153915 | AG141: 344.0568312 | AH141: 205.1615045 | AI141: 259.3000523 | AJ141: 151.9526491 | AK141: 131.9624727 | AL141: 103.4725755
B142: Block 22: > 200 mills/kWh | C142: 47209.78627 | D142: 143683 | E142: 0 | F142: 143683 | G142: 135728.3049 | H142: 10750.93334 | I142: 26661.06287 | J142: 127.0944267 | K142: 233.2552826 | L142: 0.1720935733 | M142: 448.5008171 | N142: 1557.501674 | O142: 1937.573419 | P142: 3366.491323 | Q142: 3649.282592 | R142: 4654.043157 | S142: 4970.256019 | T142: 5214.908233 | U142: 4904.799864 | V142: 3648.628387 | W142: 2970.320646 | X142: 1509.067627 | Y142: 1186.841645 | AA142: 368.8872436 | AB142: 417.4672868 | AC142: 495.4780573 | AD142: 835.9733216 | AE142: 1051.66229 | AF142: 721.4496608 | AG142: 1129.79871 | AH142: 649.1310331 | AI142: 810.8947118 | AJ142: 502.3122798 | AK142: 375.3004152 | AL142: 281.7166763
A145: Shaped Savings Results; By Category and sorted by TRC BC ratio
O146: Savings Allocation by Category and Month for Segments 1 | AB146: Savings Allocation by Category and Month for Segments 2
A147: Category | B147: Measure | C147: Busbar Savings | D147: First Cost | E147: Admin Cost | F147: First Year Program Cost | G147: PV Cost | H147: PV Benefits | I147: Unit Program Cost: First Year Program Cost in $/average annual kW saved | J147: Utility System Net Levelized Cost (Net of T&D Capacity Benefits, Act Credit & Risk-Mitigation) in mills/kWh | K147: TRC Net Levelized Cost (Net of All Benefits) in mills/kWh | L147: TRC B/C Ratio | M147: Net Electric & Gas System CO2 Avoided (Lifetime Tons) | N147: Wholesale KW | O147: Jan | P147: Feb | Q147: Mar | R147: Apr | S147: May | T147: Jun | U147: Jul | V147: Aug | W147: Sep | X147: Oct | Y147: Nov | Z147: Dec | AB147: Jan | AC147: Feb | AD147: Mar | AE147: Apr | AF147: May | AG147: Jun | AH147: Jul | AI147: Aug | AJ147: Sep | AK147: Oct | AL147: Nov | AM147: Dec
A148: Boise-COM-(Average)-(2035) | C148: 8292.357105 | D148: 10492.16758 | E148: 0 | F148: 10492.16758 | G148: 10277.18749 | H148: 3160.236036 | I148: 11083.86757 | J148: 49.02041006 | K148: 101.7603946 | L148: 0.4054274748 | M148: 78.77880084 | N148: 0.6504464322 | O148: 291.2040799 | P148: 388.3113121 | Q148: 587.8037221 | R148: 664.7249034 | S148: 769.6501811 | T148: 824.1422377 | U148: 816.6290694 | V148: 830.1597578 | W148: 629.9162472 | X148: 558.8493278 | Y148: 319.1818217 | Z148: 273.1383463 | AB148: 72.51274883 | AC148: 87.81509507 | AD148: 90.88661119 | AE148: 131.2700171 | AF148: 147.5765514 | AG148: 123.3285376 | AH148: 186.9084555 | AI148: 116.3675988 | AJ148: 148.9811204 | AK148: 81.88072299 | AL148: 83.29488423 | AM148: 67.82375538
